Workbook

Sheet Profile Overview (hidden)
A1: Prior to opening this file, open the Consolidated Spread Sheet from GAC and save it in the same folder as this Shell. Then open this Shell and follow these steps. | B1: Step 1 | C1: Step 2 | D1: Step 3 | E1: Step 4 | F1: Step 5 | H1: NOTE:
B2: Sort Table 1 (A to Z) by Profile ID. | C2: Add Contract Start and End Dates, or ensure they are correct. | D2: On LHD Overview tab, update the "Locked?" column as needed. | E2: Did you want to make changes to the shell? If yes, "Save" now. Then "Save As…" YYYYconsolidated-contract-overview (YYYY = contract year) in the appropriate folder. | F2: Click macro button, which does the following: | H2: The new file can be uploaded to https://www.dhs.wisconsin.gov/gac/gacYYYY.htm (YYYY = contract year)
C3: If there are any new Profiles in DPH, add them to the Profile Library table. | F3: >> Hides this worksheet >> Sorts each LHD worksheet by Amount >> Copies/Pastes Values on the LHD Overview worksheet
B5: TABLE 1 | I5: Profile Library | IV5: Debarment & Suspension | ME5: =COUNT(IW5:MD5) -> 0 | MF5: =COUNT(IW5:MD5)/87 -> 0 | MG5: Debarment & Suspension
B6: Sort by Profile ID ↓ | D6: Manual Entry ↓ | E6: Manual Entry ↓
B7: Profile ID (Populates from LHD Overview) | C7: Profile Name | D7: Contract Start Date | E7: Contract End Date | F7: Agency Type Prefix | G7: Final Report Due (Contract End plus 45) | I7: Prof ID | J7: Name
B8: ='LHD Overview'!AZ2 -> 157125 | C8: =IFERROR(VLOOKUP(B8,Table2[],2,FALSE),"") -> WELL WOMAN WISEWOMAN | F8: =IF(E8="","",IF(E8<DATE(2020,1,1),"900",IF(E8<DATE(2021,1,1),"000",IF(E8<DATE(2022,1,1),"100",IF(E8<DATE(2023,1,1),"200",IF(E8<DATE(2024,1,1),"300",IF(E8<DATE(2025,1,1),"400",IF(E8<DATE(2026,1,1),"500",IF(E8<DATE(2027,1,1),"600",IF(E8<DATE(2028,1,1),"700",IF(E8<DATE(2029,1,1),"800",IF(E8<DATE(2030,1,1),"900","")))))))))))) ->  | G8: =IF(E8="","",IFERROR(E8+45,"TBD")) ->  | I8: 312 | J8: APS-ADULT PROTECTIVE SVCS
B9: ='LHD Overview'!BA2 -> 159317 | C9: =IFERROR(VLOOKUP(B9,Table2[],2,FALSE),"") -> WH/FP RH 253.07 GPR | F9: =IF(E9="","",IF(E9<DATE(2020,1,1),"900",IF(E9<DATE(2021,1,1),"000",IF(E9<DATE(2022,1,1),"100",IF(E9<DATE(2023,1,1),"200",IF(E9<DATE(2024,1,1),"300",IF(E9<DATE(2025,1,1),"400",IF(E9<DATE(2026,1,1),"500",IF(E9<DATE(2027,1,1),"600",IF(E9<DATE(2028,1,1),"700",IF(E9<DATE(2029,1,1),"800",IF(E9<DATE(2030,1,1),"900","")))))))))))) ->  | G9: =IF(E9="","",IFERROR(E9+45,"TBD")) ->  | I9: 381 | J9: ALZHEIMERS FAMILY SUPPORT
B10: ='LHD Overview'!AK2 -> 159332 | C10: =IFERROR(VLOOKUP(B10,Table2[],2,FALSE),"") -> STATEWIDES-PERF BASED | D10: 2021-01-01 | E10: 2021-12-31 | F10: =IF(E10="","",IF(E10<DATE(2020,1,1),"900",IF(E10<DATE(2021,1,1),"000",IF(E10<DATE(2022,1,1),"100",IF(E10<DATE(2023,1,1),"200",IF(E10<DATE(2024,1,1),"300",IF(E10<DATE(2025,1,1),"400",IF(E10<DATE(2026,1,1),"500",IF(E10<DATE(2027,1,1),"600",IF(E10<DATE(2028,1,1),"700",IF(E10<DATE(2029,1,1),"800",IF(E10<DATE(2030,1,1),"900","")))))))))))) -> 100 | G10: =IF(E10="","",IFERROR(E10+45,"TBD")) -> 2022-02-14 | I10: 1111 | J10: TCB INCENT RECOUP
B11: ='LHD Overview'!AE2 -> 155809 | C11: =IFERROR(VLOOKUP(B11,Table2[],2,FALSE),"") ->  | D11: 2021-01-01 | E11: 2021-12-31 | F11: =IF(E11="","",IF(E11<DATE(2020,1,1),"900",IF(E11<DATE(2021,1,1),"000",IF(E11<DATE(2022,1,1),"100",IF(E11<DATE(2023,1,1),"200",IF(E11<DATE(2024,1,1),"300",IF(E11<DATE(2025,1,1),"400",IF(E11<DATE(2026,1,1),"500",IF(E11<DATE(2027,1,1),"600",IF(E11<DATE(2028,1,1),"700",IF(E11<DATE(2029,1,1),"800",IF(E11<DATE(2030,1,1),"900","")))))))))))) -> 100 | G11: =IF(E11="","",IFERROR(E11+45,"TBD")) -> 2022-02-14 | I11: 11111 | J11: PHEP EBOLA 2
B12: ='LHD Overview'!AA2 -> 155806 | C12: =IFERROR(VLOOKUP(B12,Table2[],2,FALSE),"") ->  | D12: 2021-07-01 | E12: 2022-06-30 | F12: =IF(E12="","",IF(E12<DATE(2020,1,1),"900",IF(E12<DATE(2021,1,1),"000",IF(E12<DATE(2022,1,1),"100",IF(E12<DATE(2023,1,1),"200",IF(E12<DATE(2024,1,1),"300",IF(E12<DATE(2025,1,1),"400",IF(E12<DATE(2026,1,1),"500",IF(E12<DATE(2027,1,1),"600",IF(E12<DATE(2028,1,1),"700",IF(E12<DATE(2029,1,1),"800",IF(E12<DATE(2030,1,1),"900","")))))))))))) -> 200 | G12: =IF(E12="","",IFERROR(E12+45,"TBD")) -> 2022-08-14 | I12: 14112 | J12: DELTA DENTAL/SEALANTS
B13: ='LHD Overview'!V2 -> 157720 | C13: =IFERROR(VLOOKUP(B13,Table2[],2,FALSE),"") -> CONS CONTRACTS CHHD LD | D13: 2021-02-01 | E13: 2022-01-31 | F13: =IF(E13="","",IF(E13<DATE(2020,1,1),"900",IF(E13<DATE(2021,1,1),"000",IF(E13<DATE(2022,1,1),"100",IF(E13<DATE(2023,1,1),"200",IF(E13<DATE(2024,1,1),"300",IF(E13<DATE(2025,1,1),"400",IF(E13<DATE(2026,1,1),"500",IF(E13<DATE(2027,1,1),"600",IF(E13<DATE(2028,1,1),"700",IF(E13<DATE(2029,1,1),"800",IF(E13<DATE(2030,1,1),"900","")))))))))))) -> 200 | G13: =IF(E13="","",IFERROR(E13+45,"TBD")) -> 2022-03-17 | I13: 65328 | J13: ATSDR APPLETREE TRIBAL
B14: ='LHD Overview'!AL2 -> 115002 | C14: =IFERROR(VLOOKUP(B14,Table2[],2,FALSE),"") -> NEWBORN HEAR SCREEN-OUTRC | D14: 2021-01-01 | E14: 2021-12-31 | F14: =IF(E14="","",IF(E14<DATE(2020,1,1),"900",IF(E14<DATE(2021,1,1),"000",IF(E14<DATE(2022,1,1),"100",IF(E14<DATE(2023,1,1),"200",IF(E14<DATE(2024,1,1),"300",IF(E14<DATE(2025,1,1),"400",IF(E14<DATE(2026,1,1),"500",IF(E14<DATE(2027,1,1),"600",IF(E14<DATE(2028,1,1),"700",IF(E14<DATE(2029,1,1),"800",IF(E14<DATE(2030,1,1),"900","")))))))))))) -> 100 | G14: =IF(E14="","",IFERROR(E14+45,"TBD")) -> 2022-02-14 | I14: 65505 | J14: WI WELL WOMEN PROGRAM
B15: ='LHD Overview'!N2 -> 150426 | C15: =IFERROR(VLOOKUP(B15,Table2[],2,FALSE),"") -> 1815 DIABETES | D15: 2021-01-01 | E15: 2021-12-31 | F15: 100 | G15: =IF(E15="","",IFERROR(E15+45,"TBD")) -> 2022-02-14 | I15: 65507 | J15: WWWP MENOMINEE CONS CONT
B16: ='LHD Overview'!O2 -> 150427 | C16: =IFERROR(VLOOKUP(B16,Table2[],2,FALSE),"") -> 1815 HEART DISEASE PREV | D16: 2021-01-01 | E16: 2021-12-31 | F16: 100 | G16: =IF(E16="","",IFERROR(E16+45,"TBD")) -> 2022-02-14 | I16: 65510 | J16: COOP AM INDIAN HLTH PROJ
B17: ='LHD Overview'!K2 -> 152003 | C17: =IFERROR(VLOOKUP(B17,Table2[],2,FALSE),"") -> WH/FP RH 253.07 (E) | D17: 2021-01-01 | E17: 2021-12-31 | F17: 100 | G17: =IF(E17="","",IFERROR(E17+45,"TBD")) -> 2022-02-14 | I17: 65511 | J17: HCR-INFRASTRUTURE & QI
B18: ='LHD Overview'!J2 -> 152020 | C18: =IFERROR(VLOOKUP(B18,Table2[],2,FALSE),"") -> WH/FP RH 253.07 (D) | D18: 2021-01-01 | E18: 2021-12-31 | F18: 100 | G18: =IF(E18="","",IFERROR(E18+45,"TBD")) -> 2022-02-14 | I18: 65514 | J18: TRIBAL COMM HLTH CNTR
B19: ='LHD Overview'!AW2 -> 181010 | C19: =IFERROR(VLOOKUP(B19,Table2[],2,FALSE),"") -> TPCP COMMUNITY INTRVNS | D19: 2021-01-01 | E19: 2021-12-31 | F19: =IF(E19="","",IF(E19<DATE(2020,1,1),"900",IF(E19<DATE(2021,1,1),"000",IF(E19<DATE(2022,1,1),"100",IF(E19<DATE(2023,1,1),"200",IF(E19<DATE(2024,1,1),"300",IF(E19<DATE(2025,1,1),"400",IF(E19<DATE(2026,1,1),"500",IF(E19<DATE(2027,1,1),"600",IF(E19<DATE(2028,1,1),"700",IF(E19<DATE(2029,1,1),"800",IF(E19<DATE(2030,1,1),"900","")))))))))))) -> 100 | G19: =IF(E19="","",IFERROR(E19+45,"TBD")) -> 2022-02-14 | I19: 65515 | J19: ASTHMA SERVICES
B20: ='LHD Overview'!AS2 -> 103010 | C20: =IFERROR(VLOOKUP(B20,Table2[],2,FALSE),"") -> REGNL RADON INF CENTERS | D20: 2021-01-01 | E20: 2021-12-31 | F20: =IF(E20="","",IF(E20<DATE(2020,1,1),"900",IF(E20<DATE(2021,1,1),"000",IF(E20<DATE(2022,1,1),"100",IF(E20<DATE(2023,1,1),"200",IF(E20<DATE(2024,1,1),"300",IF(E20<DATE(2025,1,1),"400",IF(E20<DATE(2026,1,1),"500",IF(E20<DATE(2027,1,1),"600",IF(E20<DATE(2028,1,1),"700",IF(E20<DATE(2029,1,1),"800",IF(E20<DATE(2030,1,1),"900","")))))))))))) -> 100 | G20: =IF(E20="","",IFERROR(E20+45,"TBD")) -> 2022-02-14 | I20: 65516 | J20: OPIOID RX PATHWAY TRIBAL
B21: ='LHD Overview'!AV2 -> 154661 | C21: =IFERROR(VLOOKUP(B21,Table2[],2,FALSE),"") -> SNAP NUTR ED GRANT | D21: 2021-01-01 | E21: 2021-12-31 | F21: =IF(E21="","",IF(E21<DATE(2020,1,1),"900",IF(E21<DATE(2021,1,1),"000",IF(E21<DATE(2022,1,1),"100",IF(E21<DATE(2023,1,1),"200",IF(E21<DATE(2024,1,1),"300",IF(E21<DATE(2025,1,1),"400",IF(E21<DATE(2026,1,1),"500",IF(E21<DATE(2027,1,1),"600",IF(E21<DATE(2028,1,1),"700",IF(E21<DATE(2029,1,1),"800",IF(E21<DATE(2030,1,1),"900","")))))))))))) -> 100 | G21: =IF(E21="","",IFERROR(E21+45,"TBD")) -> 2022-02-14 | I21: 65517 | J21: PUB HLTH CRISIS RESPONSE
B22: ='LHD Overview'!AT2 -> 150321 | C22: =IFERROR(VLOOKUP(B22,Table2[],2,FALSE),"") -> EPA INDOOR RADON SERVICES | D22: 2021-01-01 | E22: 2021-12-31 | F22: =IF(E22="","",IF(E22<DATE(2020,1,1),"900",IF(E22<DATE(2021,1,1),"000",IF(E22<DATE(2022,1,1),"100",IF(E22<DATE(2023,1,1),"200",IF(E22<DATE(2024,1,1),"300",IF(E22<DATE(2025,1,1),"400",IF(E22<DATE(2026,1,1),"500",IF(E22<DATE(2027,1,1),"600",IF(E22<DATE(2028,1,1),"700",IF(E22<DATE(2029,1,1),"800",IF(E22<DATE(2030,1,1),"900","")))))))))))) -> 100 | G22: =IF(E22="","",IFERROR(E22+45,"TBD")) -> 2022-02-14 | I22: 65519 | J22: PREVENTION BG AMEND
B23: ='LHD Overview'!AU2 -> 155080 | C23: =IFERROR(VLOOKUP(B23,Table2[],2,FALSE),"") -> RAPE PREV AND EDUCATION | D23: 2021-01-01 | E23: 2021-12-31 | F23: =IF(E23="","",IF(E23<DATE(2020,1,1),"900",IF(E23<DATE(2021,1,1),"000",IF(E23<DATE(2022,1,1),"100",IF(E23<DATE(2023,1,1),"200",IF(E23<DATE(2024,1,1),"300",IF(E23<DATE(2025,1,1),"400",IF(E23<DATE(2026,1,1),"500",IF(E23<DATE(2027,1,1),"600",IF(E23<DATE(2028,1,1),"700",IF(E23<DATE(2029,1,1),"800",IF(E23<DATE(2030,1,1),"900","")))))))))))) -> 100 | G23: =IF(E23="","",IFERROR(E23+45,"TBD")) -> 2022-02-14 | I23: 65520 | J23: PREVENTIVE HLTH&HLTH SERV
B24: ='LHD Overview'!R2 -> 155072 | C24: HIV PREV PS & LINKAGES | D24: 2021-01-01 | E24: 2021-12-31 | F24: =IF(E24="","",IF(E24<DATE(2020,1,1),"900",IF(E24<DATE(2021,1,1),"000",IF(E24<DATE(2022,1,1),"100",IF(E24<DATE(2023,1,1),"200",IF(E24<DATE(2024,1,1),"300",IF(E24<DATE(2025,1,1),"400",IF(E24<DATE(2026,1,1),"500",IF(E24<DATE(2027,1,1),"600",IF(E24<DATE(2028,1,1),"700",IF(E24<DATE(2029,1,1),"800",IF(E24<DATE(2030,1,1),"900","")))))))))))) -> 100 | G24: =IF(E24="","",IFERROR(E24+45,"TBD")) -> 2022-02-14 | I24: 65525 | J24: HLTH EQUITY CHECK IN
B25: ='LHD Overview'!S2 -> 155190 | C25: BIOT FOCUS A PLANNING | D25: 2021-07-01 | E25: 2022-06-30 | F25: =IF(E25="","",IF(E25<DATE(2020,1,1),"900",IF(E25<DATE(2021,1,1),"000",IF(E25<DATE(2022,1,1),"100",IF(E25<DATE(2023,1,1),"200",IF(E25<DATE(2024,1,1),"300",IF(E25<DATE(2025,1,1),"400",IF(E25<DATE(2026,1,1),"500",IF(E25<DATE(2027,1,1),"600",IF(E25<DATE(2028,1,1),"700",IF(E25<DATE(2029,1,1),"800",IF(E25<DATE(2030,1,1),"900","")))))))))))) -> 200 | G25: =IF(E25="","",IFERROR(E25+45,"TBD")) -> 2022-08-14 | I25: 65535 | J25: FLUORIDE MOUTH RINSING
B26: ='LHD Overview'!AD2 -> 155957 | C26: =IFERROR(VLOOKUP(B26,Table2[],2,FALSE),"") -> HIV PREV PS & LINKAGES | D26: 2021-01-01 | E26: 2021-12-31 | F26: =IF(E26="","",IF(E26<DATE(2020,1,1),"900",IF(E26<DATE(2021,1,1),"000",IF(E26<DATE(2022,1,1),"100",IF(E26<DATE(2023,1,1),"200",IF(E26<DATE(2024,1,1),"300",IF(E26<DATE(2025,1,1),"400",IF(E26<DATE(2026,1,1),"500",IF(E26<DATE(2027,1,1),"600",IF(E26<DATE(2028,1,1),"700",IF(E26<DATE(2029,1,1),"800",IF(E26<DATE(2030,1,1),"900","")))))))))))) -> 100 | G26: =IF(E26="","",IFERROR(E26+45,"TBD")) -> 2022-02-14 | I26: 65537 | J26: PHER TRIBES
B27: ='LHD Overview'!AF2 -> 155020 | C27: =IFERROR(VLOOKUP(B27,Table2[],2,FALSE),"") -> CONS CONTRACTS IMM | D27: 2021-01-01 | E27: 2021-12-31 | F27: =IF(E27="","",IF(E27<DATE(2020,1,1),"900",IF(E27<DATE(2021,1,1),"000",IF(E27<DATE(2022,1,1),"100",IF(E27<DATE(2023,1,1),"200",IF(E27<DATE(2024,1,1),"300",IF(E27<DATE(2025,1,1),"400",IF(E27<DATE(2026,1,1),"500",IF(E27<DATE(2027,1,1),"600",IF(E27<DATE(2028,1,1),"700",IF(E27<DATE(2029,1,1),"800",IF(E27<DATE(2030,1,1),"900","")))))))))))) -> 100 | G27: =IF(E27="","",IFERROR(E27+45,"TBD")) -> 2022-02-14 | I27: 65540 | J27: HIV PREVENTION (MINORITY)
B28: ='LHD Overview'!X2 -> 128010 | C28: REGNL RADON INF CENTERS | D28: 2021-01-01 | E28: 2021-12-31 | F28: =IF(E28="","",IF(E28<DATE(2020,1,1),"900",IF(E28<DATE(2021,1,1),"000",IF(E28<DATE(2022,1,1),"100",IF(E28<DATE(2023,1,1),"200",IF(E28<DATE(2024,1,1),"300",IF(E28<DATE(2025,1,1),"400",IF(E28<DATE(2026,1,1),"500",IF(E28<DATE(2027,1,1),"600",IF(E28<DATE(2028,1,1),"700",IF(E28<DATE(2029,1,1),"800",IF(E28<DATE(2030,1,1),"900","")))))))))))) -> 100 | G28: =IF(E28="","",IFERROR(E28+45,"TBD")) -> 2022-02-14 | I28: 65549 | J28: WIC CSHCN SPECIAL PROJ
B29: ='LHD Overview'!AM2 -> 150211 | C29: =IFERROR(VLOOKUP(B29,Table2[],2,FALSE),"") -> OPIOID RX PATHWAY PROJ | D29: 2021-02-01 | E29: 2022-01-31 | F29: =IF(E29="","",IF(E29<DATE(2020,1,1),"900",IF(E29<DATE(2021,1,1),"000",IF(E29<DATE(2022,1,1),"100",IF(E29<DATE(2023,1,1),"200",IF(E29<DATE(2024,1,1),"300",IF(E29<DATE(2025,1,1),"400",IF(E29<DATE(2026,1,1),"500",IF(E29<DATE(2027,1,1),"600",IF(E29<DATE(2028,1,1),"700",IF(E29<DATE(2029,1,1),"800",IF(E29<DATE(2030,1,1),"900","")))))))))))) -> 200 | G29: =IF(E29="","",IFERROR(E29+45,"TBD")) -> 2022-03-17 | I29: 65550 | J29: IMMUNIZATION - TRIBE
B30: ='LHD Overview'!Q2 -> 155811 | C30: BIOT PREPARE CRI | D30: 2021-07-01 | E30: 2022-06-30 | F30: =IF(E30="","",IF(E30<DATE(2020,1,1),"900",IF(E30<DATE(2021,1,1),"000",IF(E30<DATE(2022,1,1),"100",IF(E30<DATE(2023,1,1),"200",IF(E30<DATE(2024,1,1),"300",IF(E30<DATE(2025,1,1),"400",IF(E30<DATE(2026,1,1),"500",IF(E30<DATE(2027,1,1),"600",IF(E30<DATE(2028,1,1),"700",IF(E30<DATE(2029,1,1),"800",IF(E30<DATE(2030,1,1),"900","")))))))))))) -> 200 | G30: =IF(E30="","",IFERROR(E30+45,"TBD")) -> 2022-08-14 | I30: 65556 | J30: TRIBES IMMUN - ADULT
B31: ='LHD Overview'!U2 -> 155015 | C31: =IFERROR(VLOOKUP(B31,Table2[],2,FALSE),"") -> BIOT FOCUS A PLANNING | D31: 2021-07-01 | E31: 2022-06-30 | F31: =IF(E31="","",IF(E31<DATE(2020,1,1),"900",IF(E31<DATE(2021,1,1),"000",IF(E31<DATE(2022,1,1),"100",IF(E31<DATE(2023,1,1),"200",IF(E31<DATE(2024,1,1),"300",IF(E31<DATE(2025,1,1),"400",IF(E31<DATE(2026,1,1),"500",IF(E31<DATE(2027,1,1),"600",IF(E31<DATE(2028,1,1),"700",IF(E31<DATE(2029,1,1),"800",IF(E31<DATE(2030,1,1),"900","")))))))))))) -> 200 | G31: =IF(E31="","",IFERROR(E31+45,"TBD")) -> 2022-08-14 | I31: 65557 | J31: DIABETES PRS2011
B32: ='LHD Overview'!Y2 -> 155801 | C32: ENHANCING DETECTION COVID | D32: 2020-10-01 | E32: 2022-10-31 | F32: =IF(E32="","",IF(E32<DATE(2020,1,1),"900",IF(E32<DATE(2021,1,1),"000",IF(E32<DATE(2022,1,1),"100",IF(E32<DATE(2023,1,1),"200",IF(E32<DATE(2024,1,1),"300",IF(E32<DATE(2025,1,1),"400",IF(E32<DATE(2026,1,1),"500",IF(E32<DATE(2027,1,1),"600",IF(E32<DATE(2028,1,1),"700",IF(E32<DATE(2029,1,1),"800",IF(E32<DATE(2030,1,1),"900","")))))))))))) -> 200 | G32: =IF(E32="","",IFERROR(E32+45,"TBD")) -> 2022-12-15 | I32: 65560 | J32: MCH REPRODUCTIVE HEALTH
B33: ='LHD Overview'!AC2 -> 119011 | C33: IMM COVID Supplement Cons | D33: 2021-07-01 | E33: 2024-06-30 | F33: =IF(E33="","",IF(E33<DATE(2020,1,1),"900",IF(E33<DATE(2021,1,1),"000",IF(E33<DATE(2022,1,1),"100",IF(E33<DATE(2023,1,1),"200",IF(E33<DATE(2024,1,1),"300",IF(E33<DATE(2025,1,1),"400",IF(E33<DATE(2026,1,1),"500",IF(E33<DATE(2027,1,1),"600",IF(E33<DATE(2028,1,1),"700",IF(E33<DATE(2029,1,1),"800",IF(E33<DATE(2030,1,1),"900","")))))))))))) -> 400 | G33: =IF(E33="","",IFERROR(E33+45,"TBD")) -> 2024-08-14 | I33: 65561 | J33: MCH PERINATAL HEALTH
B34: ='LHD Overview'!P2 -> 150429 | C34: ARPA COVID Recovery Fund | D34: 2021-03-01 | E34: 2024-12-31 | F34: 400 | G34: =IF(E34="","",IFERROR(E34+45,"TBD")) -> 2025-02-14 | I34: 65562 | J34: MCH INFANT CHILD HEALTH
B35: ='LHD Overview'!AJ2 -> 159320 | C35: PH Workforce | D35: 2021-07-01 | E35: 2023-06-30 | F35: =IF(E35="","",IF(E35<DATE(2020,1,1),"900",IF(E35<DATE(2021,1,1),"000",IF(E35<DATE(2022,1,1),"100",IF(E35<DATE(2023,1,1),"200",IF(E35<DATE(2024,1,1),"300",IF(E35<DATE(2025,1,1),"400",IF(E35<DATE(2026,1,1),"500",IF(E35<DATE(2027,1,1),"600",IF(E35<DATE(2028,1,1),"700",IF(E35<DATE(2029,1,1),"800",IF(E35<DATE(2030,1,1),"900","")))))))))))) -> 300 | G35: =IF(E35="","",IFERROR(E35+45,"TBD")) -> 2023-08-14 | I35: 65563 | J35: MCH SCHOOL-AGE ADOL HLTH
B36: ='LHD Overview'!AB2 -> 159316 | C36: =IFERROR(VLOOKUP(B36,Table2[],2,FALSE),"") ->  | D36: 2021-01-01 | E36: 2021-12-31 | F36: 100 | G36: =IF(E36="","",IFERROR(E36+45,"TBD")) -> 2022-02-14 | I36: 65564 | J36: MCH CHILDREN SPECIAL NEED
B37: ='LHD Overview'!AX2 -> 181004 | C37: =IFERROR(VLOOKUP(B37,Table2[],2,FALSE),"") -> TPCP WI WINS | D37: 2021-07-01 | E37: 2022-06-30 | F37: =IF(E37="","",IF(E37<DATE(2020,1,1),"900",IF(E37<DATE(2021,1,1),"000",IF(E37<DATE(2022,1,1),"100",IF(E37<DATE(2023,1,1),"200",IF(E37<DATE(2024,1,1),"300",IF(E37<DATE(2025,1,1),"400",IF(E37<DATE(2026,1,1),"500",IF(E37<DATE(2027,1,1),"600",IF(E37<DATE(2028,1,1),"700",IF(E37<DATE(2029,1,1),"800",IF(E37<DATE(2030,1,1),"900","")))))))))))) -> 200 | G37: =IF(E37="","",IFERROR(E37+45,"TBD")) -> 2022-08-14 | I37: 65574 | J37: TPCP-NATIVE YOUTH SURVEY
B38: ='LHD Overview'!AY2 -> 159328 | C38: =IFERROR(VLOOKUP(B38,Table2[],2,FALSE),"") -> TITLE X SERVICES | D38: 2021-07-01 | E38: 2022-06-30 | F38: =IF(E38="","",IF(E38<DATE(2020,1,1),"900",IF(E38<DATE(2021,1,1),"000",IF(E38<DATE(2022,1,1),"100",IF(E38<DATE(2023,1,1),"200",IF(E38<DATE(2024,1,1),"300",IF(E38<DATE(2025,1,1),"400",IF(E38<DATE(2026,1,1),"500",IF(E38<DATE(2027,1,1),"600",IF(E38<DATE(2028,1,1),"700",IF(E38<DATE(2029,1,1),"800",IF(E38<DATE(2030,1,1),"900","")))))))))))) -> 200 | G38: =IF(E38="","",IFERROR(E38+45,"TBD")) -> 2022-08-14 | I38: 65578 | J38: TOBACCO NETWORK
B39: ='LHD Overview'!AQ2 -> 155812 | C39: =IFERROR(VLOOKUP(B39,Table2[],2,FALSE),"") ->  | D39: 2021-10-01 | E39: 2022-09-30 | F39: =IF(E39="","",IF(E39<DATE(2020,1,1),"900",IF(E39<DATE(2021,1,1),"000",IF(E39<DATE(2022,1,1),"100",IF(E39<DATE(2023,1,1),"200",IF(E39<DATE(2024,1,1),"300",IF(E39<DATE(2025,1,1),"400",IF(E39<DATE(2026,1,1),"500",IF(E39<DATE(2027,1,1),"600",IF(E39<DATE(2028,1,1),"700",IF(E39<DATE(2029,1,1),"800",IF(E39<DATE(2030,1,1),"900","")))))))))))) -> 200 | G39: =IF(E39="","",IFERROR(E39+45,"TBD")) -> 2022-11-14 | I39: 65580 | J39: WIC INFRASTRUCTURE
B40: ='LHD Overview'!T2 -> 154791 | C40: INFERTILITY PREVENTION | D40: 2021-01-01 | E40: 2021-12-31 | F40: =IF(E40="","",IF(E40<DATE(2020,1,1),"900",IF(E40<DATE(2021,1,1),"000",IF(E40<DATE(2022,1,1),"100",IF(E40<DATE(2023,1,1),"200",IF(E40<DATE(2024,1,1),"300",IF(E40<DATE(2025,1,1),"400",IF(E40<DATE(2026,1,1),"500",IF(E40<DATE(2027,1,1),"600",IF(E40<DATE(2028,1,1),"700",IF(E40<DATE(2029,1,1),"800",IF(E40<DATE(2030,1,1),"900","")))))))))))) -> 100 | G40: =IF(E40="","",IFERROR(E40+45,"TBD")) -> 2022-02-14 | I40: 65581 | J40: WIC PEER COUNSELING
B41: ='LHD Overview'!Z2 -> 155078 | C41: FP DUAL PROTECTION SITE | D41: 2021-01-01 | E41: 2021-12-31 | F41: =IF(E41="","",IF(E41<DATE(2020,1,1),"900",IF(E41<DATE(2021,1,1),"000",IF(E41<DATE(2022,1,1),"100",IF(E41<DATE(2023,1,1),"200",IF(E41<DATE(2024,1,1),"300",IF(E41<DATE(2025,1,1),"400",IF(E41<DATE(2026,1,1),"500",IF(E41<DATE(2027,1,1),"600",IF(E41<DATE(2028,1,1),"700",IF(E41<DATE(2029,1,1),"800",IF(E41<DATE(2030,1,1),"900","")))))))))))) -> 100 | G41: =IF(E41="","",IFERROR(E41+45,"TBD")) -> 2022-02-14 | I41: 65585 | J41: WIC GRANTS
B42: ='LHD Overview'!AR2 -> 159220 | C42: =IFERROR(VLOOKUP(B42,Table2[],2,FALSE),"") -> CONS CONTRACTS PHHS | D42: 2021-01-01 | E42: 2021-12-31 | F42: =IF(E42="","",IF(E42<DATE(2020,1,1),"900",IF(E42<DATE(2021,1,1),"000",IF(E42<DATE(2022,1,1),"100",IF(E42<DATE(2023,1,1),"200",IF(E42<DATE(2024,1,1),"300",IF(E42<DATE(2025,1,1),"400",IF(E42<DATE(2026,1,1),"500",IF(E42<DATE(2027,1,1),"600",IF(E42<DATE(2028,1,1),"700",IF(E42<DATE(2029,1,1),"800",IF(E42<DATE(2030,1,1),"900","")))))))))))) -> 100 | G42: =IF(E42="","",IFERROR(E42+45,"TBD")) -> 2022-02-14 | I42: 65586 | J42: WIC FARMERS MARKET
B43: ='LHD Overview'!AH2 -> 155027 | C43: =IFERROR(VLOOKUP(B43,Table2[],2,FALSE),"") -> INFERTILITY PREVENTION | D43: 2021-01-01 | E43: 2021-12-31 | F43: =IF(E43="","",IF(E43<DATE(2020,1,1),"900",IF(E43<DATE(2021,1,1),"000",IF(E43<DATE(2022,1,1),"100",IF(E43<DATE(2023,1,1),"200",IF(E43<DATE(2024,1,1),"300",IF(E43<DATE(2025,1,1),"400",IF(E43<DATE(2026,1,1),"500",IF(E43<DATE(2027,1,1),"600",IF(E43<DATE(2028,1,1),"700",IF(E43<DATE(2029,1,1),"800",IF(E43<DATE(2030,1,1),"900","")))))))))))) -> 100 | G43: =IF(E43="","",IFERROR(E43+45,"TBD")) -> 2022-02-14 | I43: 65587 | J43: WIC OUTREACH TRIBAL
B44: ='LHD Overview'!M2 -> 159322 | C44: WH/FP RH 20.435 (1)(EV) | D44: 2021-01-01 | E44: 2021-12-31 | F44: 100 | G44: =IF(E44="","",IFERROR(E44+45,"TBD")) -> 2022-02-14 | I44: 65590 | J44: TEFAP
B45: ='LHD Overview'!L2 -> 159327 | C45: WH/FP RH 253.07 (4)(a) | D45: 2021-01-01 | E45: 2021-12-31 | F45: 100 | G45: =IF(E45="","",IFERROR(E45+45,"TBD")) -> 2022-02-14 | I45: 65594 | J45: MINORITY HEALTH GRANT
B46: ='LHD Overview'!AP2 -> 159354 | C46: =IFERROR(VLOOKUP(B46,Table2[],2,FALSE),"") -> PERS RESP EDUC PROG-PREP | D46: 2021-04-01 | E46: 2022-03-31 | F46: =IF(E46="","",IF(E46<DATE(2020,1,1),"900",IF(E46<DATE(2021,1,1),"000",IF(E46<DATE(2022,1,1),"100",IF(E46<DATE(2023,1,1),"200",IF(E46<DATE(2024,1,1),"300",IF(E46<DATE(2025,1,1),"400",IF(E46<DATE(2026,1,1),"500",IF(E46<DATE(2027,1,1),"600",IF(E46<DATE(2028,1,1),"700",IF(E46<DATE(2029,1,1),"800",IF(E46<DATE(2030,1,1),"900","")))))))))))) -> 200 | G46: =IF(E46="","",IFERROR(E46+45,"TBD")) -> 2022-05-15 | I46: 65595 | J46: MINORITY HEALTH GRANT
B47: ='LHD Overview'!AI2 -> 191001 | C47: =IFERROR(VLOOKUP(B47,Table2[],2,FALSE),"") -> MCH-CYSHCNHUBS | D47: 2021-01-01 | E47: 2021-12-31 | F47: =IF(E47="","",IF(E47<DATE(2020,1,1),"900",IF(E47<DATE(2021,1,1),"000",IF(E47<DATE(2022,1,1),"100",IF(E47<DATE(2023,1,1),"200",IF(E47<DATE(2024,1,1),"300",IF(E47<DATE(2025,1,1),"400",IF(E47<DATE(2026,1,1),"500",IF(E47<DATE(2027,1,1),"600",IF(E47<DATE(2028,1,1),"700",IF(E47<DATE(2029,1,1),"800",IF(E47<DATE(2030,1,1),"900","")))))))))))) -> 100 | G47: =IF(E47="","",IFERROR(E47+45,"TBD")) -> 2022-02-14 | I47: 65596 | J47: BIOTERRORISM PREPAREDNESS
B48: ='LHD Overview'!AO2 -> 150216 | C48: =IFERROR(VLOOKUP(B48,Table2[],2,FALSE),"") ->  | D48: 2021-07-01 | E48: 2022-06-30 | F48: =IF(E48="","",IF(E48<DATE(2020,1,1),"900",IF(E48<DATE(2021,1,1),"000",IF(E48<DATE(2022,1,1),"100",IF(E48<DATE(2023,1,1),"200",IF(E48<DATE(2024,1,1),"300",IF(E48<DATE(2025,1,1),"400",IF(E48<DATE(2026,1,1),"500",IF(E48<DATE(2027,1,1),"600",IF(E48<DATE(2028,1,1),"700",IF(E48<DATE(2029,1,1),"800",IF(E48<DATE(2030,1,1),"900","")))))))))))) -> 200 | G48: =IF(E48="","",IFERROR(E48+45,"TBD")) -> 2022-08-14 | I48: 65597 | J48: BIOTERRORISM PREPAREDNESS
B49: ='LHD Overview'!AN2 -> 150215 | C49: =IFERROR(VLOOKUP(B49,Table2[],2,FALSE),"") ->  | D49: 2021-07-01 | E49: 2022-06-30 | F49: =IF(E49="","",IF(E49<DATE(2020,1,1),"900",IF(E49<DATE(2021,1,1),"000",IF(E49<DATE(2022,1,1),"100",IF(E49<DATE(2023,1,1),"200",IF(E49<DATE(2024,1,1),"300",IF(E49<DATE(2025,1,1),"400",IF(E49<DATE(2026,1,1),"500",IF(E49<DATE(2027,1,1),"600",IF(E49<DATE(2028,1,1),"700",IF(E49<DATE(2029,1,1),"800",IF(E49<DATE(2030,1,1),"900","")))))))))))) -> 200 | G49: =IF(E49="","",IFERROR(E49+45,"TBD")) -> 2022-08-14 | I49: 65691 | J49: SNAP-ED TRIBES
B50: ='LHD Overview'!AG2 -> 110190 | C50: =IFERROR(VLOOKUP(B50,Table2[],2,FALSE),"") -> INFANT MORTALITY-RACINE | D50: 2021-01-01 | E50: 2021-12-31 | F50: =IF(E50="","",IF(E50<DATE(2020,1,1),"900",IF(E50<DATE(2021,1,1),"000",IF(E50<DATE(2022,1,1),"100",IF(E50<DATE(2023,1,1),"200",IF(E50<DATE(2024,1,1),"300",IF(E50<DATE(2025,1,1),"400",IF(E50<DATE(2026,1,1),"500",IF(E50<DATE(2027,1,1),"600",IF(E50<DATE(2028,1,1),"700",IF(E50<DATE(2029,1,1),"800",IF(E50<DATE(2030,1,1),"900","")))))))))))) -> 100 | G50: =IF(E50="","",IFERROR(E50+45,"TBD")) -> 2022-02-14 | I50: 65692 | J50: ENVIR PUB HLTH TRACKING
C51: =IFERROR(VLOOKUP(B51,Table2[],2,FALSE),"") ->  | F51: =IF(E51="","",IF(E51<DATE(2020,1,1),"900",IF(E51<DATE(2021,1,1),"000",IF(E51<DATE(2022,1,1),"100",IF(E51<DATE(2023,1,1),"200",IF(E51<DATE(2024,1,1),"300",IF(E51<DATE(2025,1,1),"400",IF(E51<DATE(2026,1,1),"500",IF(E51<DATE(2027,1,1),"600",IF(E51<DATE(2028,1,1),"700",IF(E51<DATE(2029,1,1),"800",IF(E51<DATE(2030,1,1),"900","")))))))))))) ->  | G51: =IF(E51="","",IFERROR(E51+45,"TBD")) ->  | I51: 65693 | J51: TRIBE PHEP EBOLA
C52: =IFERROR(VLOOKUP(B52,Table2[],2,FALSE),"") ->  | F52: =IF(E52="","",IF(E52<DATE(2020,1,1),"900",IF(E52<DATE(2021,1,1),"000",IF(E52<DATE(2022,1,1),"100",IF(E52<DATE(2023,1,1),"200",IF(E52<DATE(2024,1,1),"300",IF(E52<DATE(2025,1,1),"400",IF(E52<DATE(2026,1,1),"500",IF(E52<DATE(2027,1,1),"600",IF(E52<DATE(2028,1,1),"700",IF(E52<DATE(2029,1,1),"800",IF(E52<DATE(2030,1,1),"900","")))))))))))) ->  | G52: =IF(E52="","",IFERROR(E52+45,"TBD")) ->  | I52: 65694 | J52: TRIBAL ORAL HLTH PROG
C53: =IFERROR(VLOOKUP(B53,Table2[],2,FALSE),"") ->  | F53: =IF(E53="","",IF(E53<DATE(2020,1,1),"900",IF(E53<DATE(2021,1,1),"000",IF(E53<DATE(2022,1,1),"100",IF(E53<DATE(2023,1,1),"200",IF(E53<DATE(2024,1,1),"300",IF(E53<DATE(2025,1,1),"400",IF(E53<DATE(2026,1,1),"500",IF(E53<DATE(2027,1,1),"600",IF(E53<DATE(2028,1,1),"700",IF(E53<DATE(2029,1,1),"800",IF(E53<DATE(2030,1,1),"900","")))))))))))) ->  | G53: =IF(E53="","",IFERROR(E53+45,"TBD")) ->  | I53: 65695 | J53: RTTT GARDENS TO CHILDREN
C54: =IFERROR(VLOOKUP(B54,Table2[],2,FALSE),"") ->  | F54: =IF(E54="","",IF(E54<DATE(2020,1,1),"900",IF(E54<DATE(2021,1,1),"000",IF(E54<DATE(2022,1,1),"100",IF(E54<DATE(2023,1,1),"200",IF(E54<DATE(2024,1,1),"300",IF(E54<DATE(2025,1,1),"400",IF(E54<DATE(2026,1,1),"500",IF(E54<DATE(2027,1,1),"600",IF(E54<DATE(2028,1,1),"700",IF(E54<DATE(2029,1,1),"800",IF(E54<DATE(2030,1,1),"900","")))))))))))) ->  | G54: =IF(E54="","",IFERROR(E54+45,"TBD")) ->  | I54: 65800 | J54: COM DIS CTRL & PREV TRIBE
C55: =IFERROR(VLOOKUP(B55,Table2[],2,FALSE),"") ->  | F55: =IF(E55="","",IF(E55<DATE(2020,1,1),"900",IF(E55<DATE(2021,1,1),"000",IF(E55<DATE(2022,1,1),"100",IF(E55<DATE(2023,1,1),"200",IF(E55<DATE(2024,1,1),"300",IF(E55<DATE(2025,1,1),"400",IF(E55<DATE(2026,1,1),"500",IF(E55<DATE(2027,1,1),"600",IF(E55<DATE(2028,1,1),"700",IF(E55<DATE(2029,1,1),"800",IF(E55<DATE(2030,1,1),"900","")))))))))))) ->  | G55: =IF(E55="","",IFERROR(E55+45,"TBD")) ->  | I55: 65855 | J55: LTCFS-DATA
C56: =IFERROR(VLOOKUP(B56,Table2[],2,FALSE),"") ->  | F56: =IF(E56="","",IF(E56<DATE(2020,1,1),"900",IF(E56<DATE(2021,1,1),"000",IF(E56<DATE(2022,1,1),"100",IF(E56<DATE(2023,1,1),"200",IF(E56<DATE(2024,1,1),"300",IF(E56<DATE(2025,1,1),"400",IF(E56<DATE(2026,1,1),"500",IF(E56<DATE(2027,1,1),"600",IF(E56<DATE(2028,1,1),"700",IF(E56<DATE(2029,1,1),"800",IF(E56<DATE(2030,1,1),"900","")))))))))))) ->  | G56: =IF(E56="","",IFERROR(E56+45,"TBD")) ->  | I56: 65856 | J56: LTCFS-DATA FED
C57: =IFERROR(VLOOKUP(B57,Table2[],2,FALSE),"") ->  | F57: =IF(E57="","",IF(E57<DATE(2020,1,1),"900",IF(E57<DATE(2021,1,1),"000",IF(E57<DATE(2022,1,1),"100",IF(E57<DATE(2023,1,1),"200",IF(E57<DATE(2024,1,1),"300",IF(E57<DATE(2025,1,1),"400",IF(E57<DATE(2026,1,1),"500",IF(E57<DATE(2027,1,1),"600",IF(E57<DATE(2028,1,1),"700",IF(E57<DATE(2029,1,1),"800",IF(E57<DATE(2030,1,1),"900","")))))))))))) ->  | G57: =IF(E57="","",IFERROR(E57+45,"TBD")) ->  | I57: 65858 | J57: LTCFS-DATA GPR
C58: =IFERROR(VLOOKUP(B58,Table2[],2,FALSE),"") ->  | F58: =IF(E58="","",IF(E58<DATE(2020,1,1),"900",IF(E58<DATE(2021,1,1),"000",IF(E58<DATE(2022,1,1),"100",IF(E58<DATE(2023,1,1),"200",IF(E58<DATE(2024,1,1),"300",IF(E58<DATE(2025,1,1),"400",IF(E58<DATE(2026,1,1),"500",IF(E58<DATE(2027,1,1),"600",IF(E58<DATE(2028,1,1),"700",IF(E58<DATE(2029,1,1),"800",IF(E58<DATE(2030,1,1),"900","")))))))))))) ->  | G58: =IF(E58="","",IFERROR(E58+45,"TBD")) ->  | I58: 65863 | J58: TRIBAL DEMENTIACARE NONMA
C59: =IFERROR(VLOOKUP(B59,Table2[],2,FALSE),"") ->  | F59: =IF(E59="","",IF(E59<DATE(2020,1,1),"900",IF(E59<DATE(2021,1,1),"000",IF(E59<DATE(2022,1,1),"100",IF(E59<DATE(2023,1,1),"200",IF(E59<DATE(2024,1,1),"300",IF(E59<DATE(2025,1,1),"400",IF(E59<DATE(2026,1,1),"500",IF(E59<DATE(2027,1,1),"600",IF(E59<DATE(2028,1,1),"700",IF(E59<DATE(2029,1,1),"800",IF(E59<DATE(2030,1,1),"900","")))))))))))) ->  | G59: =IF(E59="","",IFERROR(E59+45,"TBD")) ->  | I59: 65880 | J59: TRIBAL DCS LTCFS DATA
C60: =IFERROR(VLOOKUP(B60,Table2[],2,FALSE),"") ->  | F60: =IF(E60="","",IF(E60<DATE(2020,1,1),"900",IF(E60<DATE(2021,1,1),"000",IF(E60<DATE(2022,1,1),"100",IF(E60<DATE(2023,1,1),"200",IF(E60<DATE(2024,1,1),"300",IF(E60<DATE(2025,1,1),"400",IF(E60<DATE(2026,1,1),"500",IF(E60<DATE(2027,1,1),"600",IF(E60<DATE(2028,1,1),"700",IF(E60<DATE(2029,1,1),"800",IF(E60<DATE(2030,1,1),"900","")))))))))))) ->  | G60: =IF(E60="","",IFERROR(E60+45,"TBD")) ->  | I60: 65881 | J60: TRIBAL DCS LTCFS DATA FED
C61: =IFERROR(VLOOKUP(B61,Table2[],2,FALSE),"") ->  | F61: =IF(E61="","",IF(E61<DATE(2020,1,1),"900",IF(E61<DATE(2021,1,1),"000",IF(E61<DATE(2022,1,1),"100",IF(E61<DATE(2023,1,1),"200",IF(E61<DATE(2024,1,1),"300",IF(E61<DATE(2025,1,1),"400",IF(E61<DATE(2026,1,1),"500",IF(E61<DATE(2027,1,1),"600",IF(E61<DATE(2028,1,1),"700",IF(E61<DATE(2029,1,1),"800",IF(E61<DATE(2030,1,1),"900","")))))))))))) ->  | G61: =IF(E61="","",IFERROR(E61+45,"TBD")) ->  | I61: 65882 | J61: TRIBAL DCS LTCFS DATA GPR
C62: =IFERROR(VLOOKUP(B62,Table2[],2,FALSE),"") ->  | F62: =IF(E62="","",IF(E62<DATE(2020,1,1),"900",IF(E62<DATE(2021,1,1),"000",IF(E62<DATE(2022,1,1),"100",IF(E62<DATE(2023,1,1),"200",IF(E62<DATE(2024,1,1),"300",IF(E62<DATE(2025,1,1),"400",IF(E62<DATE(2026,1,1),"500",IF(E62<DATE(2027,1,1),"600",IF(E62<DATE(2028,1,1),"700",IF(E62<DATE(2029,1,1),"800",IF(E62<DATE(2030,1,1),"900","")))))))))))) ->  | G62: =IF(E62="","",IFERROR(E62+45,"TBD")) ->  | I62: 65900 | J62: TRIBAL HLTH INS INFO SHIP
C63: =IFERROR(VLOOKUP(B63,Table2[],2,FALSE),"") ->  | F63: =IF(E63="","",IF(E63<DATE(2020,1,1),"900",IF(E63<DATE(2021,1,1),"000",IF(E63<DATE(2022,1,1),"100",IF(E63<DATE(2023,1,1),"200",IF(E63<DATE(2024,1,1),"300",IF(E63<DATE(2025,1,1),"400",IF(E63<DATE(2026,1,1),"500",IF(E63<DATE(2027,1,1),"600",IF(E63<DATE(2028,1,1),"700",IF(E63<DATE(2029,1,1),"800",IF(E63<DATE(2030,1,1),"900","")))))))))))) ->  | G63: =IF(E63="","",IFERROR(E63+45,"TBD")) ->  | I63: 65910 | J63: TRIBAL BEN SPEC AGING
C64: =IFERROR(VLOOKUP(B64,Table2[],2,FALSE),"") ->  | F64: =IF(E64="","",IF(E64<DATE(2020,1,1),"900",IF(E64<DATE(2021,1,1),"000",IF(E64<DATE(2022,1,1),"100",IF(E64<DATE(2023,1,1),"200",IF(E64<DATE(2024,1,1),"300",IF(E64<DATE(2025,1,1),"400",IF(E64<DATE(2026,1,1),"500",IF(E64<DATE(2027,1,1),"600",IF(E64<DATE(2028,1,1),"700",IF(E64<DATE(2029,1,1),"800",IF(E64<DATE(2030,1,1),"900","")))))))))))) ->  | G64: =IF(E64="","",IFERROR(E64+45,"TBD")) ->  | I64: 65920 | J64: TRIBAL FOSTER GRANDPARENT
C65: =IFERROR(VLOOKUP(B65,Table2[],2,FALSE),"") ->  | F65: =IF(E65="","",IF(E65<DATE(2020,1,1),"900",IF(E65<DATE(2021,1,1),"000",IF(E65<DATE(2022,1,1),"100",IF(E65<DATE(2023,1,1),"200",IF(E65<DATE(2024,1,1),"300",IF(E65<DATE(2025,1,1),"400",IF(E65<DATE(2026,1,1),"500",IF(E65<DATE(2027,1,1),"600",IF(E65<DATE(2028,1,1),"700",IF(E65<DATE(2029,1,1),"800",IF(E65<DATE(2030,1,1),"900","")))))))))))) ->  | G65: =IF(E65="","",IFERROR(E65+45,"TBD")) ->  | I65: 65930 | J65: TRIBAL EBS OCI REPLACMENT
C66: =IFERROR(VLOOKUP(B66,Table2[],2,FALSE),"") ->  | F66: =IF(E66="","",IF(E66<DATE(2020,1,1),"900",IF(E66<DATE(2021,1,1),"000",IF(E66<DATE(2022,1,1),"100",IF(E66<DATE(2023,1,1),"200",IF(E66<DATE(2024,1,1),"300",IF(E66<DATE(2025,1,1),"400",IF(E66<DATE(2026,1,1),"500",IF(E66<DATE(2027,1,1),"600",IF(E66<DATE(2028,1,1),"700",IF(E66<DATE(2029,1,1),"800",IF(E66<DATE(2030,1,1),"900","")))))))))))) ->  | G66: =IF(E66="","",IFERROR(E66+45,"TBD")) ->  | I66: 65940 | J66: TRIBAL SENIOR COMP PRGM
C67: =IFERROR(VLOOKUP(B67,Table2[],2,FALSE),"") ->  | F67: =IF(E67="","",IF(E67<DATE(2020,1,1),"900",IF(E67<DATE(2021,1,1),"000",IF(E67<DATE(2022,1,1),"100",IF(E67<DATE(2023,1,1),"200",IF(E67<DATE(2024,1,1),"300",IF(E67<DATE(2025,1,1),"400",IF(E67<DATE(2026,1,1),"500",IF(E67<DATE(2027,1,1),"600",IF(E67<DATE(2028,1,1),"700",IF(E67<DATE(2029,1,1),"800",IF(E67<DATE(2030,1,1),"900","")))))))))))) ->  | G67: =IF(E67="","",IFERROR(E67+45,"TBD")) ->  | I67: 70010 | J67: TEFAP-EFO'S
C68: =IFERROR(VLOOKUP(B68,Table2[],2,FALSE),"") ->  | F68: =IF(E68="","",IF(E68<DATE(2020,1,1),"900",IF(E68<DATE(2021,1,1),"000",IF(E68<DATE(2022,1,1),"100",IF(E68<DATE(2023,1,1),"200",IF(E68<DATE(2024,1,1),"300",IF(E68<DATE(2025,1,1),"400",IF(E68<DATE(2026,1,1),"500",IF(E68<DATE(2027,1,1),"600",IF(E68<DATE(2028,1,1),"700",IF(E68<DATE(2029,1,1),"800",IF(E68<DATE(2030,1,1),"900","")))))))))))) ->  | G68: =IF(E68="","",IFERROR(E68+45,"TBD")) ->  | I68: 70011 | J68: TEFAP-HTFM
C69: =IFERROR(VLOOKUP(B69,Table2[],2,FALSE),"") ->  | F69: =IF(E69="","",IF(E69<DATE(2020,1,1),"900",IF(E69<DATE(2021,1,1),"000",IF(E69<DATE(2022,1,1),"100",IF(E69<DATE(2023,1,1),"200",IF(E69<DATE(2024,1,1),"300",IF(E69<DATE(2025,1,1),"400",IF(E69<DATE(2026,1,1),"500",IF(E69<DATE(2027,1,1),"600",IF(E69<DATE(2028,1,1),"700",IF(E69<DATE(2029,1,1),"800",IF(E69<DATE(2030,1,1),"900","")))))))))))) ->  | G69: =IF(E69="","",IFERROR(E69+45,"TBD")) ->  | I69: 70013 | J69: TEFAP-WISCAP
C70: =IFERROR(VLOOKUP(B70,Table2[],2,FALSE),"") ->  | F70: =IF(E70="","",IF(E70<DATE(2020,1,1),"900",IF(E70<DATE(2021,1,1),"000",IF(E70<DATE(2022,1,1),"100",IF(E70<DATE(2023,1,1),"200",IF(E70<DATE(2024,1,1),"300",IF(E70<DATE(2025,1,1),"400",IF(E70<DATE(2026,1,1),"500",IF(E70<DATE(2027,1,1),"600",IF(E70<DATE(2028,1,1),"700",IF(E70<DATE(2029,1,1),"800",IF(E70<DATE(2030,1,1),"900","")))))))))))) ->  | G70: =IF(E70="","",IFERROR(E70+45,"TBD")) ->  | I70: 71009 | J70: ARRA - ELC HAI
C71: =IFERROR(VLOOKUP(B71,Table2[],2,FALSE),"") ->  | F71: =IF(E71="","",IF(E71<DATE(2020,1,1),"900",IF(E71<DATE(2021,1,1),"000",IF(E71<DATE(2022,1,1),"100",IF(E71<DATE(2023,1,1),"200",IF(E71<DATE(2024,1,1),"300",IF(E71<DATE(2025,1,1),"400",IF(E71<DATE(2026,1,1),"500",IF(E71<DATE(2027,1,1),"600",IF(E71<DATE(2028,1,1),"700",IF(E71<DATE(2029,1,1),"800",IF(E71<DATE(2030,1,1),"900","")))))))))))) ->  | G71: =IF(E71="","",IFERROR(E71+45,"TBD")) ->  | I71: 72000 | J71: HCR-INFRASTRUCTURE & QI
C72: =IFERROR(VLOOKUP(B72,Table2[],2,FALSE),"") ->  | F72: =IF(E72="","",IF(E72<DATE(2020,1,1),"900",IF(E72<DATE(2021,1,1),"000",IF(E72<DATE(2022,1,1),"100",IF(E72<DATE(2023,1,1),"200",IF(E72<DATE(2024,1,1),"300",IF(E72<DATE(2025,1,1),"400",IF(E72<DATE(2026,1,1),"500",IF(E72<DATE(2027,1,1),"600",IF(E72<DATE(2028,1,1),"700",IF(E72<DATE(2029,1,1),"800",IF(E72<DATE(2030,1,1),"900","")))))))))))) ->  | G72: =IF(E72="","",IFERROR(E72+45,"TBD")) ->  | I72: 72002 | J72: HCR-INFRASTRUCTURE & QI
C73: =IFERROR(VLOOKUP(B73,Table2[],2,FALSE),"") ->  | F73: =IF(E73="","",IF(E73<DATE(2020,1,1),"900",IF(E73<DATE(2021,1,1),"000",IF(E73<DATE(2022,1,1),"100",IF(E73<DATE(2023,1,1),"200",IF(E73<DATE(2024,1,1),"300",IF(E73<DATE(2025,1,1),"400",IF(E73<DATE(2026,1,1),"500",IF(E73<DATE(2027,1,1),"600",IF(E73<DATE(2028,1,1),"700",IF(E73<DATE(2029,1,1),"800",IF(E73<DATE(2030,1,1),"900","")))))))))))) ->  | G73: =IF(E73="","",IFERROR(E73+45,"TBD")) ->  | I73: 76302 | J73: AAA PROJECTS
C74: =IFERROR(VLOOKUP(B74,Table2[],2,FALSE),"") ->  | F74: =IF(E74="","",IF(E74<DATE(2020,1,1),"900",IF(E74<DATE(2021,1,1),"000",IF(E74<DATE(2022,1,1),"100",IF(E74<DATE(2023,1,1),"200",IF(E74<DATE(2024,1,1),"300",IF(E74<DATE(2025,1,1),"400",IF(E74<DATE(2026,1,1),"500",IF(E74<DATE(2027,1,1),"600",IF(E74<DATE(2028,1,1),"700",IF(E74<DATE(2029,1,1),"800",IF(E74<DATE(2030,1,1),"900","")))))))))))) ->  | G74: =IF(E74="","",IFERROR(E74+45,"TBD")) ->  | I74: 76305 | J74: SAMS-IR ADRC
C75: =IFERROR(VLOOKUP(B75,Table2[],2,FALSE),"") ->  | F75: =IF(E75="","",IF(E75<DATE(2020,1,1),"900",IF(E75<DATE(2021,1,1),"000",IF(E75<DATE(2022,1,1),"100",IF(E75<DATE(2023,1,1),"200",IF(E75<DATE(2024,1,1),"300",IF(E75<DATE(2025,1,1),"400",IF(E75<DATE(2026,1,1),"500",IF(E75<DATE(2027,1,1),"600",IF(E75<DATE(2028,1,1),"700",IF(E75<DATE(2029,1,1),"800",IF(E75<DATE(2030,1,1),"900","")))))))))))) ->  | G75: =IF(E75="","",IFERROR(E75+45,"TBD")) ->  | I75: 103010 | J75: REGNL RADON INF CENTERS
C76: =IFERROR(VLOOKUP(B76,Table2[],2,FALSE),"") ->  | F76: =IF(E76="","",IF(E76<DATE(2020,1,1),"900",IF(E76<DATE(2021,1,1),"000",IF(E76<DATE(2022,1,1),"100",IF(E76<DATE(2023,1,1),"200",IF(E76<DATE(2024,1,1),"300",IF(E76<DATE(2025,1,1),"400",IF(E76<DATE(2026,1,1),"500",IF(E76<DATE(2027,1,1),"600",IF(E76<DATE(2028,1,1),"700",IF(E76<DATE(2029,1,1),"800",IF(E76<DATE(2030,1,1),"900","")))))))))))) ->  | G76: =IF(E76="","",IFERROR(E76+45,"TBD")) ->  | I76: 110124 | J76: BIRTH DEFECTS
C77: =IFERROR(VLOOKUP(B77,Table2[],2,FALSE),"") ->  | F77: =IF(E77="","",IF(E77<DATE(2020,1,1),"900",IF(E77<DATE(2021,1,1),"000",IF(E77<DATE(2022,1,1),"100",IF(E77<DATE(2023,1,1),"200",IF(E77<DATE(2024,1,1),"300",IF(E77<DATE(2025,1,1),"400",IF(E77<DATE(2026,1,1),"500",IF(E77<DATE(2027,1,1),"600",IF(E77<DATE(2028,1,1),"700",IF(E77<DATE(2029,1,1),"800",IF(E77<DATE(2030,1,1),"900","")))))))))))) ->  | G77: =IF(E77="","",IFERROR(E77+45,"TBD")) ->  | I77: 110127 | J77: WH/FP RH 255.06 (2)(D)
C78: =IFERROR(VLOOKUP(B78,Table2[],2,FALSE),"") ->  | F78: =IF(E78="","",IF(E78<DATE(2020,1,1),"900",IF(E78<DATE(2021,1,1),"000",IF(E78<DATE(2022,1,1),"100",IF(E78<DATE(2023,1,1),"200",IF(E78<DATE(2024,1,1),"300",IF(E78<DATE(2025,1,1),"400",IF(E78<DATE(2026,1,1),"500",IF(E78<DATE(2027,1,1),"600",IF(E78<DATE(2028,1,1),"700",IF(E78<DATE(2029,1,1),"800",IF(E78<DATE(2030,1,1),"900","")))))))))))) ->  | G78: =IF(E78="","",IFERROR(E78+45,"TBD")) ->  | I78: 110128 | J78: WH/FP RH 146.68
C79: =IFERROR(VLOOKUP(B79,Table2[],2,FALSE),"") ->  | G79: =IF(E79="","",IFERROR(E79+45,"TBD")) ->  | I79: 110190 | J79: INFANT MORTALITY-RACINE
C80: =IFERROR(VLOOKUP(B80,Table2[],2,FALSE),"") ->  | I80: 115002 | J80: NEWBORN HEAR SCREEN-OUTRC
C81: =IFERROR(VLOOKUP(B81,Table2[],2,FALSE),"") ->  | I81: 115003 | J81: WI EHDI TRACK AND SURV
C82: =IFERROR(VLOOKUP(B82,Table2[],2,FALSE),"") ->  | I82: 115004 | J82: SEAL A SMILE ORAL HEALTH
C83: =IFERROR(VLOOKUP(B83,Table2[],2,FALSE),"") ->  | I83: 115005 | J83: ORAL HLTH WORKFORCE
C84: =IFERROR(VLOOKUP(B84,Table2[],2,FALSE),"") ->  | I84: 115007 | J84: OHP-PARTNERS/COALITIONS
C85: =IFERROR(VLOOKUP(B85,Table2[],2,FALSE),"") ->  | I85: 115009 | J85: WI SOUND BEGINNINGS RSC
C86: =IFERROR(VLOOKUP(B86,Table2[],2,FALSE),"") ->  | I86: 115011 | J86: OH WORKFORCE ACTIVITIES
C87: =IFERROR(VLOOKUP(B87,Table2[],2,FALSE),"") ->  | I87: 119011 | J87: GPR CANCER, CITY OF MILW
C88: =IFERROR(VLOOKUP(B88,Table2[],2,FALSE),"") ->  | I88: 124000 | J88: LIMITED AGENT PROGRAM
C89: =IFERROR(VLOOKUP(B89,Table2[],2,FALSE),"") ->  | I89: 128010 | J89: CONGENITAL DISORDERS
I90: 128011 | J90: CONGENITAL DISORDERS PROD
I91: 128012 | J91: CONGENITAL DISORDERS 2
I92: 150156 | J92: MKE SCREENING B&C CANCER
I93: 150178 | J93: IMM E-HEALTH RECORDS
I94: 150179 | J94: IMMUNIZATION
I95: 150180 | J95: IMMUNIZATION 2
I96: 150207 | J96: POISON CONTROL REPORTING
I97: 150208 | J97: POISON CNT CHIP FED
I98: 150209 | J98: POISON CONTROL CHIP GPR
I99: 150210 | J99: STATEWIDE POISON CONTROL
I100: 150211 | J100: OPIOID RX PATHWAY PROJ
I101: 150212 | J101: POISON CONTROL (FED)
I102: 150213 | J102: SEXUAL RISK AVOIDANCE ED
I103: 150307 | J103: CCCP INTERVENTIONS
I104: 150310 | J104: CCCP CANCER INTERVENTIONS
I105: 150320 | J105: EPA INDOOR RADON SERVICES
I106: 150321 | J106: EPA INDOOR RADON SERVICES
I107: 150327 | J107: RADON OUTREACH
I108: 150328 | J108: ATSDR APPLETREE
I109: 150417 | J109: DIABETES PRV CONTROL GPR
I110: 150420 | J110: 1815 DIABETES
I111: 150421 | J111: 1815 HEART DISEASE PREV
I112: 150422 | J112: 1817 SL CVD DISEASE PREV
I113: 150423 | J113: 1817 SL DIABETES PREV
I114: 150426 | J114: 1815 DIABETES
I115: 150427 | J115: 1815 HEART DISEASE PREV
I116: 150428 | J116: 1817 SL CVD DISEASE PREV
I117: 150429 | J117: 1817 SL DIABETES PREV
I118: 150500 | J118: BRACE PROGRAM
I119: 150675 | J119: CDC INJ VIOL PREV STAFF
I120: 150750 | J120: TB CONTROL
I121: 150772 | J121: HEART DISEASE AND STROKE
I122: 151300 | J122: COM HLTH CNTRS 250.15 2 C
I123: 151301 | J123: COM HLTH CNTRS 250.15 2 B
I124: 151302 | J124: COM HLTH CNTRS 250.15 2 A
I125: 151303 | J125: MIN HLTH DISADV S250.20-3
I126: 151304 | J126: MIN HLTH COMM GRANT
I127: 151710 | J127: MARQUETTE DENTAL SERVICES
I128: 151720 | J128: DENTAL SERVICES
I129: 151722 | J129: EXPANDING DENTAL SERVICES
I130: 151723 | J130: DENTAL ACCESS
I131: 151734 | J131: FLUORIDE SUPPLEMENT
I132: 151735 | J132: FLUORIDE MOUTHRINSE
I133: 151736 | J133: FLUORIDE MOUTHRINSE
I134: 151738 | J134: DENTAL SEALANT
I135: 151739 | J135: MCH ORAL HLTH PROGRAM
I136: 151740 | J136: DELTA DENTAL-SAS PLUS
I137: 152002 | J137: WH/FP RH 253.07 (B) & (C)
I138: 152003 | J138: WH/FP RH 253.07 (E)
I139: 152009 | J139: MCH WOMENS REPO HLTH QAQI
I140: 152014 | J140: TITLE X WH/FP TA & TRN
I141: 152015 | J141: WH/FP RH TA & TRN
I142: 152016 | J142: RH EC FPW SUPPORT SERVICE
I143: 152017 | J143: MCH VIOLENT DEATH RPT SYS
I144: 152018 | J144: PED MNTL HLTH CARE ACCESS
I145: 152019 | J145: PED MNTL HLTH CARE MATCH
I146: 152020 | J146: WH/FP RH 253.07 (D)
I147: 152042 | J147: PRIMARY CARE (B)
I148: 152422 | J148: RURAL HLTH DENTAL CLINICS
I149: 152425 | J149: RHDC146.65(1)(B)MENOMINEE
I150: 152426 | J150: RHDC146.65(1)(C) C FALLS
I151: 152427 | J151: RHDC146.65(1)(A)LADYSMITH
I152: 152801 | J152: NEWBORN SCREENING
I153: 153311 | J153: TRAUMA CARE SYSTEM-RTACS
I154: 153312 | J154: TRAUMA CARE - RTAC
I155: 154661 | J155: SNAP NUTR ED GRANT
I156: 154710 | J156: WIC TOTAL GRANTS
I157: 154711 | J157: WIC TOTAL GRANTS
I158: 154720 | J158: WIC FARMERS MARKET
I159: 154740 | J159: WIC INFRASTRUCTURE
I160: 154745 | J160: WIC SPECIAL PROJECTS
I161: 154746 | J161: WIC OUTREACH
I162: 154760 | J162: WIC PEER COUNSELING
I163: 154780 | J163: CSFP PROGRAM
I164: 154790 | J164: BIRTH DEFECTS/CYSHCN PROJ
I165: 154791 | J165: BIRTH DEFECT/CYSHCN PROJ2
I166: 155002 | J166: WI TOB CNTL PGM-SURV&EVAL
I167: 155004 | J167: WI TOB CNTL PGM-STWD COAL
I168: 155010 | J168: CDC WI TCP DISPARITIES
I169: 155015 | J169: BIOT FOCUS A PLANNING
I170: 155016 | J170: BIOT FOCUS PLANNING EBOLA
I171: 155018 | J171: IMMUNIZATION - VFC
I172: 155020 | J172: CONS CONTRACTS IMM
I173: 155021 | J173: CONS CONTRACTS IMM
I174: 155027 | J174: INFERTILITY PREVENTION
I175: 155032 | J175: IMMUN - ADULT
I176: 155036 | J176: CVH STRATEGIC IMPLEMENT
I177: 155037 | J177: ECCS
I178: 155042 | J178: WI PRIMARY CARE - MA
I179: 155043 | J179: WI PRIMARY CARE
I180: 155050 | J180: BIOTERRORISM PREPAREDNESS
I181: 155066 | J181: NVDRS
I182: 155070 | J182: CDC LEAD POISON EXTENSION
I183: 155072 | J183: ASTHMA CAPACITY
I184: 155078 | J184: ENV PH TRACKING NETWORK
I185: 155080 | J185: RAPE PREV AND EDUCATION
I186: 155115 | J186: PHEP ZIKA PLANNING
I187: 155119 | J187: BIOT RISK COMMUNICATION
I188: 155129 | J188: PUB HLTH CRISIS RESPONSE
I189: 155141 | J189: ELC-AFFORDABLE CARE ACT
I190: 155170 | J190: BIOT HOSPITAL PREPARE
I191: 155171 | J191: BIOT HOSPITAL PREPARE CO
I192: 155172 | J192: BIOT HOSPITAL PREPARE
I193: 155174 | J193: HOSPITAL PREPAREDNESS NPP
I194: 155182 | J194: HPP DISASTER MEDICAL
I195: 155189 | J195: HPP EBOLA
I196: 155190 | J196: BIOT PREPARE - CRI
I197: 155191 | J197: BIOT PREPARE - CRI
I198: 155195 | J198: EMER MED SERVICE CHILDREN
I199: 155200 | J199: CCCP DEVELOP & EVALUATION
I200: 155210 | J200: ASTHMA INTERVENTION
I201: 155220 | J201: BEOH IS DATA SVCS
... 247 more rows

Sheet Overview
A1: Updated: 1/27/2022 | C1: 2021 DPH Consolidated Contract Overview
A2: REG | B2: AGENCY | C2: AGENCY NUMBER | D2: CONTRACT # | E2: Contract Locked
A4: S | B4: Adams County Department of Health & Human Serivces, Division of Public Health | C4: 1 | D4: 47605 | E4: No | F4: Amendment 1 | G4: Amendment 2 | H4: Amendment 3 | I4: Amendment 4 | J4: Amendment 5 | K4: Amendment 6
A5: NE | B5: Appleton City Health Department | C5: 449983 | D5: 47606 | E5: No | F5: Amendment 1 | G5: Amendment 2 | H5: Amendment 3 | I5: Amendment 4 | J5: Amendment 5 | K5: Amendment 6
A6: N | B6: Ashland County Health & Human Services Department | C6: 2 | D6: 47607 | E6: No | F6: Amendment 1 | G6: Amendment 2 | H6: Amendment 3 | I6: Amendment 4 | J6: Amendment 5 | K6: Amendment 6 | L6: Amendment 7
A7: W | B7: Barron County Health and Human Services Department | C7: 3 | D7: 47608 | E7: No | F7: Amendment 1 | G7: Amendment 2 | H7: Amendment 3 | I7: Amendment 4 | J7: Amendment 5 | K7: Amendment 6 | L7: Amendment 7 | M7: Amendment 8 | N7: Amendment 9
A8: N | B8: Bayfield County Health Department | C8: 4 | D8: 47609 | E8: No | F8: Amendment 1 | G8: Amendment 2 | H8: Amendment 3 | I8: Amendment 4 | J8: Amendment 5 | K8: Amendment 6 | L8: Amendment 7 | M8: Amendment 8
A9: NE | B9: Brown County Health Department | C9: 5 | D9: 47610 | E9: No | F9: Amendment 1 | G9: Amendment 2 | H9: Amendment 3 | I9: Amendment 4 | J9: Amendment 5 | K9: Amendment 6 | L9: Amendment 7
A10: W | B10: Buffalo County Health & Human Services Department | C10: 6 | D10: 47611 | E10: No | F10: Amendment 1 | G10: Amendment 2 | H10: Amendment 3 | I10: Amendment 4 | J10: Amendment 5 | K10: Amendment 6 | L10: Amendment 7 | M10: Amendment 8
A11: W | B11: Burnett County Department of Health & Human Services | C11: 7 | D11: 47612 | E11: No | F11: Amendment 1 | G11: Amendment 2 | H11: Amendment 3 | I11: Amendment 4 | J11: Amendment 5 | K11: Amendment 6 | L11: Amendment 7
A12: NE | B12: Calumet County Health Division | C12: 8 | D12: 47613 | E12: No | F12: Amendment 1 | G12: Amendment 2 | H12: Amendment 3 | I12: Amendment 4 | J12: Amendment 5 | K12: Amendment 6 | L12: Amendment 7 | M12: Amendment 8
A13: SE | B13: Central Racine County Health Department | C13: 3960058125 | D13: 47614 | E13: No | F13: Amendment 1 | G13: Amendment 2 | H13: Amendment 3 | I13: Amendment 4 | J13: Amendment 5 | K13: Amendment 6
A14: W | B14: Chippewa County Department of Public Health & Home Care | C14: 9 | D14: 47615 | E14: No | F14: Amendment 1 | G14: Amendment 2 | H14: Amendment 3 | I14: Amendment 4 | J14: Amendment 5 | K14: Amendment 6 | L14: Amendment 7 | M14: Amendment 8
A15: S | B15: Board of Health for Madison and Dane County on behalf of Public Health Madison and Dane County | C15: 256099 | D15: 47617 | E15: No | F15: Amendment 1 | G15: Amendment 2 | H15: Amendment 3 | I15: Amendment 4 | J15: Amendment 5 | K15: Amendment 6 | L15: Amendment 7 | M15: Amendment 8
A16: W | B16: Clark County Health Department | C16: 10 | D16: 47625 | E16: No | F16: Amendment 1 | G16: Amendment 2 | H16: Amendment 3 | I16: Amendment 4 | J16: Amendment 5 | K16: Amendment 6 | L16: Amendment 7
A17: S | B17: Columbia County Division of Health | C17: 11 | D17: 47626 | E17: No | F17: Amendment 1 | G17: Amendment 2 | H17: Amendment 3 | I17: Amendment 4 | J17: Amendment 5 | K17: Amendment 6 | L17: Amendment 7 | M17: Amendment 8
A18: S | B18: Crawford County Public Health | C18: 12 | D18: 47627 | E18: No | F18: Amendment 1 | G18: Amendment 2 | H18: Amendment 3 | I18: Amendment 4 | J18: Amendment 5
A19: SE | B19: Cudahy Health Department | C19: 472761 | D19: 47628 | E19: No | F19: Amendment 1 | G19: Amendment 2 | H19: Amendment 3 | I19: Amendment 4 | J19: Amendment 5 | K19: Amendment 6 | L19: Amendment 7
A20: NE | B20: De Pere Department of Public Health | C20: 472779 | D20: 47645 | E20: No | F20: Amendment 1 | G20: Amendment 2 | H20: Amendment 3 | I20: Amendment 4 | J20: Amendment 5
A21: S | B21: Dodge County Human Services & Health Department | C21: 14 | D21: 47646 | E21: No | F21: Amendment 1 | G21: Amendment 2 | H21: Amendment 3 | I21: Amendment 4 | J21: Amendment 5 | K21: Amendment 6 | L21: Amendment 7
A22: NE | B22: Door County Health Department | C22: 15 | D22: 47665 | E22: No | F22: Amendment 1 | G22: Amendment 2 | H22: Amendment 3 | I22: Amendment 4 | J22: Amendment 5 | K22: Amendment 6 | L22: Amendment 7
A23: W | B23: Douglas County Department of Health & Human Services | C23: 16 | D23: 47666 | E23: No | F23: Amendment 1 | G23: Amendment 2 | H23: Amendment 3 | I23: Amendment 4 | J23: Amendment 5
A24: W | B24: Dunn County Health Department | C24: 17 | D24: 47667 | E24: No | F24: Amendment 1 | G24: Amendment 2 | H24: Amendment 3 | I24: Amendment 4 | J24: Amendment 5 | K24: Amendment 6 | L24: Amendment 7 | M24: Amendment 8
A25: W | B25: Eau Claire City/County Health Department | C25: 256321 | D25: 47668 | E25: No | F25: Amendment 1 | G25: Amendment 2 | H25: Amendment 3 | I25: Amendment 4 | J25: Amendment 5 | K25: Amendment 6 | L25: Amendment 7 | M25: Amendment 8
A26: N | B26: Florence County Health Department | C26: 19 | D26: 47705 | E26: No | F26: Amendment 1 | G26: Amendment 2 | H26: Amendment 3 | I26: Amendment 4 | J26: Amendment 5 | K26: Amendment 6
A27: NE | B27: Fond du Lac County Health Department | C27: 20 | D27: 47706 | E27: No | F27: Amendment 1 | G27: Amendment 2 | H27: Amendment 3 | I27: Amendment 4 | J27: Amendment 5 | K27: Amendment 6 | L27: Amendment 7 | M27: Amendment 8
A28: N | B28: Forest County Health Department | C28: 21 | D28: 47707 | E28: No | F28: Amendment 1 | G28: Amendment 2 | H28: Amendment 3 | I28: Amendment 4 | J28: Amendment 5 | K28: Amendment 6 | L28: Amendment 7 | M28: Amendment 8
A29: SE | B29: Franklin Health Department | C29: 472787 | D29: 47708 | E29: No | F29: Amendment 1 | G29: Amendment 2 | H29: Amendment 3 | I29: Amendment 4 | J29: Amendment 5
A30: S | B30: Grant County Health Department | C30: 22 | D30: 47709 | E30: No | F30: Amendment 1 | G30: Amendment 2 | H30: Amendment 3 | I30: Amendment 4 | J30: Amendment 5 | K30: Amendment 6
A31: S | B31: Green County Health Department | C31: 23 | D31: 47710 | E31: No | F31: Amendment 1 | G31: Amendment 2 | H31: Amendment 3 | I31: Amendment 4 | J31: Amendment 5 | K31: Amendment 6 | L31: Amendment 7 | M31: Amendment 8
A32: NE | B32: Green Lake County Department of Health & Human Services | C32: 24 | D32: 47711 | E32: No | F32: Amendment 1 | G32: Amendment 2 | H32: Amendment 3 | I32: Amendment 4 | J32: Amendment 5
A33: SE | B33: Greendale Health Department | C33: 703090 | D33: 47712 | E33: No | F33: Amendment 1 | G33: Amendment 2 | H33: Amendment 3 | I33: Amendment 4 | J33: Amendment 5 | K33: Amendment 6
A34: SE | B34: Greenfield Health Department | C34: 472803 | D34: 47713 | E34: No | F34: Amendment 1 | G34: Amendment 2 | H34: Amendment 3 | I34: Amendment 4 | J34: Amendment 5 | K34: Amendment 6 | L34: Amendment 7
A35: SE | B35: Hales Corners Health Department | C35: 472811 | D35: 47714 | E35: No | F35: Amendment 1 | G35: Amendment 2 | H35: Amendment 3 | I35: Amendment 4 | J35: Amendment 5
A36: S | B36: Iowa County Health Department | C36: 25 | D36: 47715 | E36: No | F36: Amendment 1 | G36: Amendment 2 | H36: Amendment 3 | I36: Amendment 4 | J36: Amendment 5
A37: N | B37: Iron County Health Department | C37: 26 | D37: 47716 | E37: No | F37: Amendment 1 | G37: Amendment 2 | H37: Amendment 3 | I37: Amendment 4 | J37: Amendment 5 | K37: Amendment 6 | L37: Amendment 7
A38: W | B38: Jackson County Health & Human Services Department | C38: 27 | D38: 47717 | E38: No | F38: Amendment 1 | G38: Amendment 2 | H38: Amendment 3 | I38: Amendment 4 | J38: Amendment 5 | K38: Amendment 6 | L38: Amendment 7 | M38: Amendment 8
A39: S | B39: Jefferson County Health Department | C39: 28 | D39: 47718 | E39: No | F39: Amendment 1 | G39: Amendment 2 | H39: Amendment 3 | I39: Amendment 4 | J39: Amendment 5 | K39: Amendment 6 | L39: Amendment 7
A40: S | B40: Juneau County Health Department | C40: 29 | D40: 47719 | E40: No | F40: Amendment 1 | G40: Amendment 2 | H40: Amendment 3 | I40: Amendment 4 | J40: Amendment 5 | K40: Amendment 6 | L40: Amendment 7 | M40: Amendment 8 | N40: Amendment 9
A41: SE | B41: Kenosha County Division of Health | C41: 30 | D41: 47720 | E41: No | F41: Amendment 1 | G41: Amendment 2 | H41: Amendment 3 | I41: Amendment 4 | J41: Amendment 5 | K41: Amendment 6 | L41: Amendment 7 | M41: Amendment 8
A42: NE | B42: Kewaunee County Health Department | C42: 31 | D42: 47721 | E42: No | F42: Amendment 1 | G42: Amendment 2 | H42: Amendment 3 | I42: Amendment 4 | J42: Amendment 5 | K42: Amendment 6 | L42: Amendment 7 | M42: Amendment 8
A43: W | B43: La Crosse County Health Department | C43: 32 | D43: 47722 | E43: No | F43: Amendment 1 | G43: Amendment 2 | H43: Amendment 3 | I43: Amendment 4 | J43: Amendment 5 | K43: Amendment 6 | L43: Amendment 7 | M43: Amendment 8
A44: S | B44: Lafayette County Health Department | C44: 33 | D44: 47723 | E44: No | F44: Amendment 1 | G44: Amendment 2 | H44: Amendment 3 | I44: Amendment 4
A45: N | B45: Langlade County Health Department | C45: 34 | D45: 47724 | E45: No | F45: Amendment 1 | G45: Amendment 2 | H45: Amendment 3 | I45: Amendment 4 | J45: Amendment 5
A46: N | B46: Lincoln County Health Department | C46: 35 | D46: 47725 | E46: No | F46: Amendment 1 | G46: Amendment 2 | H46: Amendment 3 | I46: Amendment 4 | J46: Amendment 5
A47: NE | B47: Manitowoc County Health Department | C47: 36 | D47: 47726 | E47: No | F47: Amendment 1 | G47: Amendment 2 | H47: Amendment 3 | I47: Amendment 4 | J47: Amendment 5 | K47: Amendment 6
A48: N | B48: Marathon County Health Department | C48: 37 | D48: 47727 | E48: No | F48: Amendment 1 | G48: Amendment 2 | H48: Amendment 3 | I48: Amendment 4 | J48: Amendment 5 | K48: Amendment 6
A49: NE | B49: Marinette County Health Department | C49: 38 | D49: 47728 | E49: No | F49: Amendment 1 | G49: Amendment 2 | H49: Amendment 3 | I49: Amendment 4 | J49: Amendment 5 | K49: Amendment 6 | L49: Amendment 7
A50: NE | B50: Marquette County Health Department | C50: 39 | D50: 47729 | E50: No | F50: Amendment 1 | G50: Amendment 2 | H50: Amendment 3 | I50: Amendment 4 | J50: Amendment 5 | K50: Amendment 6
A51: NE | B51: Menasha Health Department | C51: 256420 | D51: 47730 | E51: No | F51: Amendment 1 | G51: Amendment 2 | H51: Amendment 3 | I51: Amendment 4 | J51: Amendment 5 | K51: Amendment 6
A52: SE | B52: Milwaukee City Health Department | C52: 256107 | D52: 47731 | E52: No | F52: Amendment 1 | G52: Amendment 2 | H52: Amendment 3 | I52: Amendment 4 | J52: Amendment 5 | K52: Amendment 6 | L52: Amendment 7
A53: W | B53: Monroe County Health Department | C53: 41 | D53: 47732 | E53: No | F53: Amendment 1 | G53: Amendment 2 | H53: Amendment 3 | I53: Amendment 4 | J53: Amendment 5 | K53: Amendment 6 | L53: Amendment 7 | M53: Amendment 8
A54: SE | B54: North Shore Health Department | C54: 472753 | D54: 47733 | E54: No | F54: Amendment 1 | G54: Amendment 2 | H54: Amendment 3 | I54: Amendment 4 | J54: Amendment 5 | K54: Amendment 6
A55: SE | B55: Oak Creek Health Department | C55: 472886 | D55: 47734 | E55: No | F55: Amendment 1 | G55: Amendment 2 | H55: Amendment 3 | I55: Amendment 4 | J55: Amendment 5 | K55: Amendment 6
A56: NE | B56: Oconto County Health Department Public Health Division | C56: 42 | D56: 47735 | E56: No | F56: Amendment 1 | G56: Amendment 2 | H56: Amendment 3 | I56: Amendment 4 | J56: Amendment 5 | K56: Amendment 6
A57: N | B57: Oneida County Health Department | C57: 43 | D57: 47736 | E57: No | F57: Amendment 1 | G57: Amendment 2 | H57: Amendment 3 | I57: Amendment 4 | J57: Amendment 5 | K57: Amendment 6 | L57: Amendment 7 | M57: Amendment 8
A58: NE | B58: Outagamie County Public Health Division | C58: 44 | D58: 47737 | E58: No | F58: Amendment 1 | G58: Amendment 2 | H58: Amendment 3 | I58: Amendment 4 | J58: Amendment 5 | K58: Amendment 6 | L58: Amendment 7 | M58: Amendment 8
A59: SE | B59: Washington-Ozaukee County Public Health Department | C59: 45 | D59: 47738 | E59: No | F59: Amendment 1 | G59: Amendment 2 | H59: Amendment 3 | I59: Amendment 4 | J59: Amendment 5 | K59: Amendment 6 | L59: Amendment 7
A60: W | B60: Pepin County Health Department | C60: 46 | D60: 47739 | E60: No | F60: Amendment 1 | G60: Amendment 2 | H60: Amendment 3 | I60: Amendment 4 | J60: Amendment 5 | K60: Amendment 6
A61: W | B61: Pierce County Health Department | C61: 47 | D61: 47740 | E61: No | F61: Amendment 1 | G61: Amendment 2 | H61: Amendment 3 | I61: Amendment 4 | J61: Amendment 5 | K61: Amendment 6 | L61: Amendment 7 | M61: Amendment 8
A62: W | B62: Polk County Health Department | C62: 48 | D62: 47741 | E62: No | F62: Amendment 1 | G62: Amendment 2 | H62: Amendment 3 | I62: Amendment 4 | J62: Amendment 5 | K62: Amendment 6 | L62: Amendment 7 | M62: Amendment 8 | N62: Amendment 9
A63: N | B63: Portage County Health & Human Services Department | C63: 49 | D63: 47742 | E63: No | F63: Amendment 1 | G63: Amendment 2 | H63: Amendment 3 | I63: Amendment 4 | J63: Amendment 5 | K63: Amendment 6 | L63: Amendment 7 | M63: Amendment 8
A64: N | B64: Price County Health and Human Services | C64: 50 | D64: 47743 | E64: No | F64: Amendment 1 | G64: Amendment 2 | H64: Amendment 3 | I64: Amendment 4 | J64: Amendment 5 | K64: Amendment 6 | L64: Amendment 7
A65: SE | B65: Racine City Health Department | C65: 341113 | D65: 47744 | E65: No | F65: Amendment 1 | G65: Amendment 2 | H65: Amendment 3 | I65: Amendment 4 | J65: Amendment 5 | K65: Amendment 6
A66: S | B66: Richland County Health & Human Services Public Health Department | C66: 52 | D66: 47745 | E66: No | F66: Amendment 1 | G66: Amendment 2 | H66: Amendment 3 | I66: Amendment 4 | J66: Amendment 5
A67: S | B67: Rock County Public Health Department | C67: 53 | D67: 47746 | E67: No | F67: Amendment 1 | G67: Amendment 2 | H67: Amendment 3 | I67: Amendment 4 | J67: Amendment 5 | K67: Amendment 6
A68: W | B68: Rusk County Department of Health & Human Services | C68: 54 | D68: 47747 | E68: No | F68: Amendment 1 | G68: Amendment 2 | H68: Amendment 3 | I68: Amendment 4 | J68: Amendment 5 | K68: Amendment 6 | L68: Amendment 7
A69: S | B69: Sauk County Public Health Department | C69: 56 | D69: 47748 | E69: No | F69: Amendment 1 | G69: Amendment 2 | H69: Amendment 3 | I69: Amendment 4 | J69: Amendment 5 | K69: Amendment 6 | L69: Amendment 7 | M69: Amendment 8
A70: N | B70: Sawyer County Department of Health & Human Services | C70: 57 | D70: 47749 | E70: No | F70: Amendment 1 | G70: Amendment 2 | H70: Amendment 3 | I70: Amendment 4 | J70: Amendment 5 | K70: Amendment 6 | L70: Amendment 7
A71: NE | B71: Shawano-Menominee County Health Department | C71: 58 | D71: 47750 | E71: No | F71: Amendment 1 | G71: Amendment 2 | H71: Amendment 3 | I71: Amendment 4 | J71: Amendment 5 | K71: Amendment 6 | L71: Amendment 7 | M71: Amendment 8
A72: NE | B72: Sheboygan County Human Services, Division of Public Health | C72: 59 | D72: 47751 | E72: No | F72: Amendment 1 | G72: Amendment 2 | H72: Amendment 3 | I72: Amendment 4 | J72: Amendment 5 | K72: Amendment 6 | L72: Amendment 7 | M72: Amendment 8
A73: SE | B73: South Milwaukee Health Department | C73: 655522 | D73: 47752 | E73: No | F73: Amendment 1 | G73: Amendment 2 | H73: Amendment 3 | I73: Amendment 4 | J73: Amendment 5
A74: W | B74: St Croix County Department of Health & Human Services | C74: 55 | D74: 47753 | E74: No | F74: Amendment 1 | G74: Amendment 2 | H74: Amendment 3 | I74: Amendment 4 | J74: Amendment 5 | K74: Amendment 6 | L74: Amendment 7 | M74: Amendment 8
A75: N | B75: Taylor County Health Department | C75: 60 | D75: 47754 | E75: No | F75: Amendment 1 | G75: Amendment 2 | H75: Amendment 3 | I75: Amendment 4 | J75: Amendment 5 | K75: Amendment 6
A76: W | B76: Trempealeau County Health Department | C76: 61 | D76: 47755 | E76: No | F76: Amendment 1 | G76: Amendment 2 | H76: Amendment 3 | I76: Amendment 4 | J76: Amendment 5 | K76: Amendment 6 | L76: Amendment 7 | M76: Amendment 8 | N76: Amendment 9
A77: S | B77: Vernon County Health Department | C77: 62 | D77: 47756 | E77: No | F77: Amendment 1 | G77: Amendment 2 | H77: Amendment 3 | I77: Amendment 4 | J77: Amendment 5 | K77: Amendment 6 | L77: Amendment 7 | M77: Amendment 8
A78: N | B78: Vilas County Health Department | C78: 63 | D78: 47757 | E78: No | F78: Amendment 1 | G78: Amendment 2 | H78: Amendment 3 | I78: Amendment 4 | J78: Amendment 5 | K78: Amendment 6
A79: SE | B79: Walworth County Health Department | C79: 64 | D79: 47758 | E79: No | F79: Amendment 1 | G79: Amendment 2 | H79: Amendment 3 | I79: Amendment 4 | J79: Amendment 5 | K79: Amendment 6 | L79: Amendment 7 | M79: Amendment 8
A80: W | B80: Washburn County Health and Human Services Department | C80: 65 | D80: 47759 | E80: No | F80: Amendment 1 | G80: Amendment 2 | H80: Amendment 3 | I80: Amendment 4 | J80: Amendment 5 | K80: Amendment 6
A81: S | B81: Watertown Department of Public Health | C81: 472951 | D81: 47760 | E81: No | F81: Amendment 1 | G81: Amendment 2 | H81: Amendment 3 | I81: Amendment 4 | J81: Amendment 5
A82: SE | B82: Waukesha County Public Health Department | C82: 67 | D82: 47761 | E82: No | F82: Amendment 1 | G82: Amendment 2 | H82: Amendment 3 | I82: Amendment 4 | J82: Amendment 5 | K82: Amendment 6 | L82: Amendment 7 | M82: Amendment 8
A83: NE | B83: Waupaca County Human Services, Health Services Division | C83: 68 | D83: 47762 | E83: No | F83: Amendment 1 | G83: Amendment 2 | H83: Amendment 3 | I83: Amendment 4 | J83: Amendment 5 | K83: Amendment 6 | L83: Amendment 7 | M83: Amendment 8
A84: NE | B84: Waushara County Health Department | C84: 69 | D84: 47763 | E84: No | F84: Amendment 1 | G84: Amendment 2 | H84: Amendment 3 | I84: Amendment 4 | J84: Amendment 5 | K84: Amendment 6 | L84: Amendment 7
A85: SE | B85: Wauwatosa Health Department | C85: 472969 | D85: 47764 | E85: No | F85: Amendment 1 | G85: Amendment 2 | H85: Amendment 3 | I85: Amendment 4 | J85: Amendment 5
A86: SE | B86: West Allis Health Department | C86: 256545 | D86: 47765 | E86: No | F86: Amendment 1 | G86: Amendment 2 | H86: Amendment 3 | I86: Amendment 4 | J86: Amendment 5 | K86: Amendment 6 | L86: Amendment 7 | M86: Amendment 8
A87: NE | B87: Winnebago County Health Department | C87: 70 | D87: 47766 | E87: No | F87: Amendment 1 | G87: Amendment 2 | H87: Amendment 3 | I87: Amendment 4 | J87: Amendment 5 | K87: Amendment 6 | L87: Amendment 7 | M87: Amendment 8
A88: N | B88: Wood County Health Department | C88: 71 | D88: 47767 | E88: No | F88: Amendment 1 | G88: Amendment 2 | H88: Amendment 3 | I88: Amendment 4 | J88: Amendment 5 | K88: Amendment 6 | L88: Amendment 7 | M88: Amendment 8 | N88: Amendment 9

Sheet LHD Overview
A1: As of 2-14-2022 | B1: 2021 DPH Consolidated Contract | CH1: 2019 DPH Consolidated Contract Overview
I2: Profile #: | J2: 152020 | K2: 152003 | L2: 159327 | M2: 159322 | N2: 150426 | O2: 150427 | P2: 150429 | Q2: 155811 | R2: 155072 | S2: 155190 | T2: 154791 | U2: 155015 | V2: 157720 | W2: 155800 | X2: 128010 | Y2: 155801 | Z2: 155078 | AA2: 155806 | AB2: 159316 | AC2: 119011 | AD2: 155957 | AE2: 155809 | AF2: 155020 | AG2: 110190 | AH2: 155027 | AI2: 191001 | AJ2: 159320 | AK2: 159332 | AL2: 115002 | AM2: 150211 | AN2: 150215 | AO2: 150216 | AP2: 159354 | AQ2: 155812 | AR2: 159220 | AS2: 103010 | AT2: 150321 | AU2: 155080 | AV2: 154661 | AW2: 181010 | AX2: 181004 | AY2: 159328 | AZ2: 157125 | BA2: 159317 | BB2: 154720 | BC2: 154746 | BD2: 154760 | BE2: 154745 | BF2: 154710 | BG2: 157010 | BH2: 157120
A3: AGENCY | B3: AGENCY # | C3: REG | D3: CONTRACT # | E3: Locked? | F3: Total Allocation | G3: MCH Match | H3: EIPD Match | I3: Profile Name: | J3: 11000 WH/FP RH 253.07 (d) | K3: 11000 WH/FP RH 253.07 (e) | L3: 11000 WH/FP RH 253.07(4)(a) | M3: 17800 WH/FP RH 20.435 (1)(ev) | N3: 1815 Diabetes | O3: 1815 Heart Disease Prevention | P3: 1817 SL Diabetes Prev | Q3: ARPA COVID Recovery Fund | R3: Asthma Capacity | S3: BIOT PREPARE - CRI | T3: BIRTH DEFECT/CYSHCN PROJ2 | U3: Bioterrorism, Focus A | V3: Childhood Lead - Consolidated | W3: Comm Disease Ctrl Prev LPHD | X3: Congenital Disorders | Y3: DPH PHEP COVID19 | Z3: ENV PH Tracking | AA3: Enhancing Detection- COVID | AB3: FP Dual Protection Site | AC3: GPR Cancer, City of Milw | AD3: HIV Prev PS and Linkages | AE3: IMM COVID Supplement CONS | AF3: Immunization - Consolidated IAP | AG3: Infant Mortality - Racine | AH3: Infertility Prevention | AI3: MCH - CYSHCN Hubs | AJ3: Maternal Child Health - Consolidated | AK3: Maternal Child Health - Statewides, Performance | AL3: NEWBORN HEAR SCREEN-OUTR | AM3: OPIOD RX PATHWAY PROJ | AN3: OPIOID Provider Sys & Sup | AO3: Overdose Fatality Reviews | AP3: PERS RESP EDUC PROG-PREP | AQ3: PH Workforce | AR3: Prevention - Consolidated | AS3: Radon Information Centers | AT3: Radon Regional Information Centers | AU3: Rape Prevention and Education | AV3: SNAP Ed Nutr Grant | AW3: TPCP Community Intrvns | AX3: TPCP WI WINS | AY3: Title X Services | AZ3: WELL WOMAN WISEWOMAN | BA3: WH/FP RH 253.07(4) GPR | BB3: WIC Farmers Market | BC3: WIC Outreach | BD3: WIC Peer Counseling | BE3: WIC Special Projects | BF3: WIC USDA | BG3: WWWP GPR EDU AND MJA CHDI | BH3: WWWP NBCCEDP CHDI | BI3: Total Allocation | BJ3: MCH Match | BK3: EIPD Match
I4: Start Date: | J4: 2021-01-01 | K4: 2021-01-01 | L4: 2021-01-01 | M4: 2021-01-01 | N4: 2021-01-01 | O4: 2021-01-01 | P4: 2021-03-01 | Q4: 2021-07-01 | R4: 2021-01-01 | S4: 2021-07-01 | T4: 2021-01-01 | U4: 2021-07-01 | V4: 2021-02-01 | X4: 2021-01-01 | Y4: 2020-10-01 | Z4: 2021-01-01 | AA4: 2021-07-01 | AB4: 2021-01-01 | AC4: 2021-07-01 | AD4: 2021-01-01 | AE4: 2021-01-01 | AF4: 2021-01-01 | AG4: 2021-01-01 | AH4: 2021-01-01 | AI4: 2021-01-01 | AJ4: 2021-07-01 | AK4: 2021-01-01 | AL4: 2021-01-01 | AM4: 2021-02-01 | AN4: 2021-07-01 | AO4: 2021-07-01 | AP4: 2021-04-01 | AQ4: 2021-10-01 | AR4: 2021-01-01 | AS4: 2021-01-01 | AT4: 2021-01-01 | AU4: 2021-01-01 | AV4: 2021-01-01 | AW4: 2021-01-01 | AX4: 2021-07-01 | AY4: 2021-07-01 | AZ4: 00:00:00 | BA4: 00:00:00
I5: End Date: | J5: 2021-12-31 | K5: 2021-12-31 | L5: 2021-12-31 | M5: 2021-12-31 | N5: 2021-12-31 | O5: 2021-12-31 | P5: 2024-12-31 | Q5: 2022-06-30 | R5: 2021-12-31 | S5: 2022-06-30 | T5: 2021-12-31 | U5: 2022-06-30 | V5: 2022-01-31 | X5: 2021-12-31 | Y5: 2022-10-31 | Z5: 2021-12-31 | AA5: 2022-06-30 | AB5: 2021-12-31 | AC5: 2024-06-30 | AD5: 2021-12-31 | AE5: 2021-12-31 | AF5: 2021-12-31 | AG5: 2021-12-31 | AH5: 2021-12-31 | AI5: 2021-12-31 | AJ5: 2023-06-30 | AK5: 2021-12-31 | AL5: 2021-12-31 | AM5: 2022-01-31 | AN5: 2022-06-30 | AO5: 2022-06-30 | AP5: 2022-03-31 | AQ5: 2022-09-30 | AR5: 2021-12-31 | AS5: 2021-12-31 | AT5: 2021-12-31 | AU5: 2021-12-31 | AV5: 2021-12-31 | AW5: 2021-12-31 | AX5: 2022-06-30 | AY5: 2022-06-30 | AZ5: 00:00:00 | BA5: 00:00:00
A6: Adams County Public Health Department | B6: 1 | C6: SRO | D6: 47605 | F6: 1049310 | G6: 6674 | H6: 0 | J6: 0 | K6: 0 | L6: 0 | M6: 0 | N6: 0 | O6: 0 | P6: 0 | Q6: 369800 | R6: 0 | S6: 0 | T6: 0 | U6: 37047 | V6: 1907 | W6: 3400 | X6: 0 | Y6: 0 | Z6: 0 | AA6: 500200 | AB6: 0 | AC6: 0 | AD6: 0 | AE6: 51000 | AF6: 6562 | AG6: 0 | AH6: 0 | AI6: 0 | AJ6: 8898 | AK6: 0 | AL6: 0 | AM6: 0 | AN6: 0 | AO6: 0 | AP6: 0 | AQ6: 69800 | AR6: 696 | AS6: 0 | AT6: 0 | AU6: 0 | AV6: 0 | AW6: 0 | AX6: 0 | AY6: 0 | AZ6: 0 | BA6: 0 | BB6: 0 | BC6: 0 | BD6: 0 | BE6: 0 | BF6: 0 | BG6: 0 | BH6: 0
A7: Appleton City Health Department | B7: 449983 | C7: NERO | D7: 47606 | F7: 2059338 | G7: 21110 | H7: 0 | J7: 0 | K7: 0 | L7: 0 | M7: 0 | N7: 0 | O7: 0 | P7: 0 | Q7: 678600 | R7: 0 | S7: 0 | T7: 0 | U7: 54042 | V7: 9879 | W7: 5700 | X7: 0 | Y7: 0 | Z7: 0 | AA7: 1016000 | AB7: 0 | AC7: 0 | AD7: 0 | AE7: 118000 | AF7: 21443 | AG7: 0 | AH7: 0 | AI7: 0 | AJ7: 28146 | AK7: 0 | AL7: 0 | AM7: 0 | AN7: 0 | AO7: 0 | AP7: 0 | AQ7: 120900 | AR7: 6628 | AS7: 0 | AT7: 0 | AU7: 0 | AV7: 0 | AW7: 0 | AX7: 0 | AY7: 0 | AZ7: 0 | BA7: 0 | BB7: 0 | BC7: 0 | BD7: 0 | BE7: 0 | BF7: 0 | BG7: 0 | BH7: 0
A8: Ashland County Health & Human Services Department | B8: 2 | C8: NRO | D8: 47607 | F8: 1076584 | G8: 8705 | H8: 7178 | J8: 0 | K8: 0 | L8: 0 | M8: 6033 | N8: 0 | O8: 0 | P8: 0 | Q8: 342700 | R8: 0 | S8: 0 | T8: 0 | U8: 37086 | V8: 4221 | W8: 3200 | X8: 0 | Y8: 0 | Z8: 0 | AA8: 454900 | AB8: 0 | AC8: 0 | AD8: 0 | AE8: 45100 | AF8: 6844 | AG8: 0 | AH8: 0 | AI8: 0 | AJ8: 11607 | AK8: 0 | AL8: 0 | AM8: 0 | AN8: 0 | AO8: 43143 | AP8: 0 | AQ8: 65300 | AR8: 5560 | AS8: 0 | AT8: 0 | AU8: 0 | AV8: 0 | AW8: 0 | AX8: 0 | AY8: 15000 | AZ8: 0 | BA8: 35890 | BB8: 0 | BC8: 0 | BD8: 0 | BE8: 0 | BF8: 0 | BG8: 0 | BH8: 0
A9: Barron County Health and Human Services Department | B9: 3 | C9: WRO | D9: 47608 | F9: 1882419 | G9: 13826 | H9: 7178 | J9: 0 | K9: 0 | L9: 0 | M9: 6033 | N9: 0 | O9: 0 | P9: 0 | Q9: 518200 | R9: 0 | S9: 0 | T9: 0 | U9: 36716 | V9: 6592 | W9: 4500 | X9: 0 | Y9: 0 | Z9: 0 | AA9: 748100 | AB9: 0 | AC9: 0 | AD9: 0 | AE9: 83200 | AF9: 10520 | AG9: 0 | AH9: 0 | AI9: 0 | AJ9: 18434 | AK9: 0 | AL9: 0 | AM9: 0 | AN9: 0 | AO9: 0 | AP9: 0 | AQ9: 94400 | AR9: 6682 | AS9: 0 | AT9: 0 | AU9: 0 | AV9: 11592 | AW9: 0 | AX9: 0 | AY9: 73876 | AZ9: 0 | BA9: 35890 | BB9: 2494 | BC9: 4211 | BD9: 11504 | BE9: 0 | BF9: 209475 | BG9: 0 | BH9: 0
A10: Bayfield County Health Department | B10: 4 | C10: NRO | D10: 47609 | F10: 1312838 | G10: 7556 | H10: 7178 | J10: 0 | K10: 0 | L10: 0 | M10: 6033 | N10: 0 | O10: 0 | P10: 0 | Q10: 338900 | R10: 0 | S10: 0 | T10: 0 | U10: 38707 | V10: 2712 | W10: 3200 | X10: 0 | Y10: 0 | Z10: 8117 | AA10: 448500 | AB10: 0 | AC10: 0 | AD10: 0 | AE10: 44300 | AF10: 7353 | AG10: 0 | AH10: 0 | AI10: 0 | AJ10: 10075 | AK10: 0 | AL10: 0 | AM10: 0 | AN10: 0 | AO10: 0 | AP10: 0 | AQ10: 64700 | AR10: 5901 | AS10: 0 | AT10: 0 | AU10: 0 | AV10: 13701 | AW10: 0 | AX10: 0 | AY10: 42376 | AZ10: 0 | BA10: 35890 | BB10: 3163 | BC10: 3600 | BD10: 10000 | BE10: 0 | BF10: 225610 | BG10: 0 | BH10: 0
A11: Board of Health for Madison and Dane County on behalf of Public Health Madison and Dane County | B11: 256099 | C11: SRO | D11: 47617 | F11: 9445524 | G11: 132479 | H11: 3000 | J11: 0 | K11: 0 | L11: 0 | M11: 6033 | N11: 0 | O11: 0 | P11: 0 | Q11: 3339800 | R11: 0 | S11: 0 | T11: 0 | U11: 251752 | V11: 28853 | W11: 25600 | X11: 0 | Y11: 62174 | Z11: 0 | AA11: 2501900 | AB11: 15000 | AC11: 0 | AD11: 200000 | AE11: 695500 | AF11: 98703 | AG11: 0 | AH11: 0 | AI11: 0 | AJ11: 176639 | AK11: 0 | AL11: 0 | AM11: 85992 | AN11: 0 | AO11: 35000 | AP11: 0 | AQ11: 561200 | AR11: 33912 | AS11: 0 | AT11: 10413 | AU11: 0 | AV11: 0 | AW11: 121000 | AX11: 19050 | AY11: 0 | AZ11: 0 | BA11: 0 | BB11: 10159 | BC11: 25153 | BD11: 62293 | BE11: 0 | BF11: 945838 | BG11: 126975 | BH11: 6585
A12: Brown County Health & Human Services Department Health Division | B12: 5 | C12: NERO | D12: 47610 | F12: 5343429 | G12: 71814 | H12: 0 | J12: 0 | K12: 0 | L12: 0 | M12: 0 | N12: 20000 | O12: 20000 | P12: 0 | Q12: 1628500 | R12: 0 | S12: 0 | T12: 0 | U12: 125478 | V12: 19739 | W12: 12600 | X12: 0 | Y12: 0 | Z12: 10000 | AA12: 2602900 | AB12: 0 | AC12: 0 | AD12: 12000 | AE12: 324100 | AF12: 57980 | AG12: 0 | AH12: 0 | AI12: 0 | AJ12: 95752 | AK12: 0 | AL12: 0 | AM12: 0 | AN12: 0 | AO12: 0 | AP12: 0 | AQ12: 278100 | AR12: 17724 | AS12: 0 | AT12: 0 | AU12: 0 | AV12: 0 | AW12: 0 | AX12: 0 | AY12: 0 | AZ12: 0 | BA12: 0 | BB12: 0 | BC12: 0 | BD12: 0 | BE12: 0 | BF12: 0 | BG12: 112700 | BH12: 5856
A13: Buffalo County Health & Human Services Department | B13: 6 | C13: WRO | D13: 47611 | F13: 935245 | G13: 4897 | H13: 3000 | J13: 0 | K13: 0 | L13: 0 | M13: 6033 | N13: 0 | O13: 0 | P13: 0 | Q13: 329000 | R13: 0 | S13: 0 | T13: 0 | U13: 25505 | V13: 2020 | W13: 3100 | X13: 0 | Y13: 0 | Z13: 0 | AA13: 432000 | AB13: 15000 | AC13: 0 | AD13: 0 | AE13: 42100 | AF13: 5295 | AG13: 0 | AH13: 0 | AI13: 0 | AJ13: 6529 | AK13: 0 | AL13: 0 | AM13: 0 | AN13: 0 | AO13: 0 | AP13: 0 | AQ13: 63100 | AR13: 4502 | AS13: 0 | AT13: 0 | AU13: 0 | AV13: 0 | AW13: 0 | AX13: 0 | AY13: 0 | AZ13: 0 | BA13: 0 | BB13: 0 | BC13: 1061 | BD13: 0 | BE13: 0 | BF13: 0 | BG13: 0 | BH13: 0
A14: Burnett County Department of Health & Human Services | B14: 7 | C14: WRO | D14: 47612 | F14: 1033810 | G14: 5701 | H14: 0 | J14: 0 | K14: 0 | L14: 0 | M14: 0 | N14: 0 | O14: 0 | P14: 0 | Q14: 340300 | R14: 0 | S14: 0 | T14: 0 | U14: 26843 | V14: 2380 | W14: 3200 | X14: 0 | Y14: 0 | Z14: 0 | AA14: 450900 | AB14: 0 | AC14: 0 | AD14: 0 | AE14: 44600 | AF14: 5618 | AG14: 0 | AH14: 0 | AI14: 0 | AJ14: 7601 | AK14: 0 | AL14: 0 | AM14: 0 | AN14: 0 | AO14: 0 | AP14: 0 | AQ14: 64900 | AR14: 5129 | AS14: 0 | AT14: 0 | AU14: 0 | AV14: 0 | AW14: 0 | AX14: 0 | AY14: 0 | AZ14: 0 | BA14: 0 | BB14: 1002 | BC14: 1537 | BD14: 0 | BE14: 0 | BF14: 79800 | BG14: 0 | BH14: 0
A15: Calumet County Health Division | B15: 8 | C15: NERO | D15: 47613 | F15: 1539886 | G15: 8549 | H15: 0 | J15: 0 | K15: 0 | L15: 0 | M15: 0 | N15: 0 | O15: 0 | P15: 0 | Q15: 468700 | R15: 0 | S15: 0 | T15: 0 | U15: 40689 | V15: 1660 | W15: 4100 | X15: 0 | Y15: 0 | Z15: 9994 | AA15: 665300 | AB15: 0 | AC15: 0 | AD15: 0 | AE15: 72500 | AF15: 8632 | AG15: 0 | AH15: 0 | AI15: 0 | AJ15: 11399 | AK15: 0 | AL15: 0 | AM15: 0 | AN15: 0 | AO15: 0 | AP15: 0 | AQ15: 86200 | AR15: 4643 | AS15: 0 | AT15: 0 | AU15: 0 | AV15: 0 | AW15: 0 | AX15: 0 | AY15: 0 | AZ15: 0 | BA15: 0 | BB15: 1849 | BC15: 0 | BD15: 10000 | BE15: 0 | BF15: 154220 | BG15: 0 | BH15: 0
A16: Central Racine County Health Department | B16: 3960058125 | C16: SERO | D16: 47614 | F16: 3104403 | G16: 35251 | H16: 0 | J16: 0 | K16: 0 | L16: 0 | M16: 0 | N16: 0 | O16: 0 | P16: 0 | Q16: 980700 | R16: 0 | S16: 27340 | T16: 0 | U16: 96511 | V16: 5990 | W16: 7600 | X16: 0 | Y16: 0 | Z16: 0 | AA16: 1520800 | AB16: 0 | AC16: 0 | AD16: 0 | AE16: 183600 | AF16: 19436 | AG16: 0 | AH16: 0 | AI16: 0 | AJ16: 47001 | AK16: 0 | AL16: 0 | AM16: 0 | AN16: 0 | AO16: 35000 | AP16: 0 | AQ16: 170900 | AR16: 9525 | AS16: 0 | AT16: 0 | AU16: 0 | AV16: 0 | AW16: 0 | AX16: 0 | AY16: 0 | AZ16: 0 | BA16: 0 | BB16: 0 | BC16: 0 | BD16: 0 | BE16: 0 | BF16: 0 | BG16: 0 | BH16: 0
A17: Chippewa County Department of Public Health | B17: 9 | C17: WRO | D17: 47615 | F17: 2644079 | G17: 132825 | H17: 7178 | J17: 0 | K17: 0 | L17: 0 | M17: 6033 | N17: 0 | O17: 0 | P17: 15000 | Q17: 625500 | R17: 0 | S17: 0 | T17: 0 | U17: 42217 | V17: 7290 | W17: 5300 | X17: 0 | Y17: 0 | Z17: 0 | AA17: 927200 | AB17: 0 | AC17: 0 | AD17: 0 | AE17: 106500 | AF17: 15290 | AG17: 0 | AH17: 0 | AI17: 104401 | AJ17: 26161 | AK17: 177100 | AL17: 26100 | AM17: 0 | AN17: 0 | AO17: 35000 | AP17: 0 | AQ17: 112100 | AR17: 8475 | AS17: 0 | AT17: 0 | AU17: 0 | AV17: 36053 | AW17: 0 | AX17: 4350 | AY17: 28376 | AZ17: 0 | BA17: 35890 | BB17: 3536 | BC17: 4986 | BD17: 13741 | BE17: 0 | BF17: 277480 | BG17: 0 | BH17: 0
A18: Clark County Health Department | B18: 10 | C18: WRO | D18: 47625 | F18: 1418910 | G18: 24725 | H18: 7178 | J18: 0 | K18: 0 | L18: 0 | M18: 6033 | N18: 0 | O18: 0 | P18: 0 | Q18: 453100 | R18: 0 | S18: 0 | T18: 0 | U18: 35429 | V18: 4752 | W18: 4000 | X18: 0 | Y18: 0 | Z18: 0 | AA18: 639300 | AB18: 0 | AC18: 0 | AD18: 0 | AE18: 69100 | AF18: 13355 | AG18: 0 | AH18: 0 | AI18: 0 | AJ18: 32966 | AK18: 0 | AL18: 0 | AM18: 0 | AN18: 0 | AO18: 0 | AP18: 0 | AQ18: 83600 | AR18: 6409 | AS18: 0 | AT18: 0 | AU18: 0 | AV18: 0 | AW18: 0 | AX18: 2400 | AY18: 32576 | AZ18: 0 | BA18: 35890 | BB18: 0 | BC18: 0 | BD18: 0 | BE18: 0 | BF18: 0 | BG18: 0 | BH18: 0
A19: Columbia County Division of Health | B19: 11 | C19: SRO | D19: 47626 | F19: 1968342 | G19: 11737 | H19: 0 | J19: 0 | K19: 0 | L19: 0 | M19: 0 | N19: 0 | O19: 0 | P19: 0 | Q19: 584000 | R19: 0 | S19: 0 | T19: 0 | U19: 51599 | V19: 6096 | W19: 5000 | X19: 0 | Y19: 0 | Z19: 0 | AA19: 857900 | AB19: 0 | AC19: 0 | AD19: 0 | AE19: 97500 | AF19: 11649 | AG19: 0 | AH19: 0 | AI19: 0 | AJ19: 15649 | AK19: 0 | AL19: 0 | AM19: 0 | AN19: 0 | AO19: 35000 | AP19: 0 | AQ19: 105300 | AR19: 7056 | AS19: 0 | AT19: 0 | AU19: 0 | AV19: 8194 | AW19: 0 | AX19: 0 | AY19: 0 | AZ19: 0 | BA19: 0 | BB19: 2181 | BC19: 2808 | BD19: 10000 | BE19: 0 | BF19: 168410 | BG19: 0 | BH19: 0
A20: Crawford County Health and Human Services | B20: 12 | C20: SRO | D20: 47627 | F20: 978316 | G20: 5782 | H20: 0 | J20: 0 | K20: 0 | L20: 0 | M20: 0 | N20: 0 | O20: 0 | P20: 0 | Q20: 346800 | R20: 0 | S20: 0 | T20: 0 | U20: 34790 | V20: 2298 | W20: 3200 | X20: 0 | Y20: 0 | Z20: 0 | AA20: 461700 | AB20: 0 | AC20: 0 | AD20: 0 | AE20: 46000 | AF20: 5236 | AG20: 0 | AH20: 0 | AI20: 0 | AJ20: 7709 | AK20: 0 | AL20: 0 | AM20: 0 | AN20: 0 | AO20: 0 | AP20: 0 | AQ20: 66000 | AR20: 4583 | AS20: 0 | AT20: 0 | AU20: 0 | AV20: 0 | AW20: 0 | AX20: 0 | AY20: 0 | AZ20: 0 | BA20: 0 | BB20: 0 | BC20: 0 | BD20: 0 | BE20: 0 | BF20: 0 | BG20: 0 | BH20: 0
A21: Cudahy Health Department | B21: 472761 | C21: SERO | D21: 47628 | F21: 1471557 | G21: 10400 | H21: 7178 | J21: 0 | K21: 0 | L21: 0 | M21: 6033 | N21: 0 | O21: 0 | P21: 0 | Q21: 356100 | R21: 0 | S21: 9212 | T21: 0 | U21: 32736 | V21: 3085 | W21: 3300 | X21: 0 | Y21: 0 | Z21: 0 | AA21: 477300 | AB21: 0 | AC21: 0 | AD21: 0 | AE21: 48000 | AF21: 7657 | AG21: 0 | AH21: 0 | AI21: 0 | AJ21: 13866 | AK21: 0 | AL21: 0 | AM21: 0 | AN21: 0 | AO21: 0 | AP21: 0 | AQ21: 67600 | AR21: 6402 | AS21: 0 | AT21: 0 | AU21: 0 | AV21: 0 | AW21: 0 | AX21: 0 | AY21: 404376 | AZ21: 0 | BA21: 35890 | BB21: 0 | BC21: 0 | BD21: 0 | BE21: 0 | BF21: 0 | BG21: 0 | BH21: 0
A22: De Pere Department of Public Health | B22: 472779 | C22: NERO | D22: 47645 | F22: 1123585 | G22: 6700 | H22: 0 | J22: 0 | K22: 0 | L22: 0 | M22: 0 | N22: 0 | O22: 0 | P22: 0 | Q22: 393500 | R22: 0 | S22: 0 | T22: 0 | U22: 34417 | V22: 1877 | W22: 3600 | X22: 0 | Y22: 0 | Z22: 0 | AA22: 539700 | AB22: 0 | AC22: 0 | AD22: 0 | AE22: 56100 | AF22: 7458 | AG22: 0 | AH22: 0 | AI22: 0 | AJ22: 8933 | AK22: 0 | AL22: 0 | AM22: 0 | AN22: 0 | AO22: 0 | AP22: 0 | AQ22: 73700 | AR22: 4300 | AS22: 0 | AT22: 0 | AU22: 0 | AV22: 0 | AW22: 0 | AX22: 0 | AY22: 0 | AZ22: 0 | BA22: 0 | BB22: 0 | BC22: 0 | BD22: 0 | BE22: 0 | BF22: 0 | BG22: 0 | BH22: 0
A23: Dodge County Human Services & Health Department | B23: 14 | C23: SRO | D23: 47646 | F23: 2459527 | G23: 17609 | H23: 0 | J23: 0 | K23: 0 | L23: 0 | M23: 0 | N23: 0 | O23: 0 | P23: 0 | Q23: 721900 | R23: 0 | S23: 0 | T23: 0 | U23: 61241 | V23: 10404 | W23: 6000 | X23: 0 | Y23: 0 | Z23: 0 | AA23: 1088200 | AB23: 0 | AC23: 0 | AD23: 0 | AE23: 127400 | AF23: 15143 | AG23: 0 | AH23: 0 | AI23: 0 | AJ23: 23478 | AK23: 0 | AL23: 0 | AM23: 0 | AN23: 0 | AO23: 0 | AP23: 0 | AQ23: 128100 | AR23: 8544 | AS23: 0 | AT23: 0 | AU23: 0 | AV23: 0 | AW23: 0 | AX23: 0 | AY23: 0 | AZ23: 0 | BA23: 0 | BB23: 3055 | BC23: 5339 | BD23: 16958 | BE23: 0 | BF23: 243765 | BG23: 0 | BH23: 0
A24: Door County Health Department | B24: 15 | C24: NERO | D24: 47665 | F24: 1327829 | G24: 6383 | H24: 0 | J24: 0 | K24: 0 | L24: 0 | M24: 0 | N24: 0 | O24: 0 | P24: 0 | Q24: 414000 | R24: 0 | S24: 0 | T24: 0 | U24: 39231 | V24: 4133 | W24: 3700 | X24: 0 | Y24: 0 | Z24: 0 | AA24: 573900 | AB24: 0 | AC24: 0 | AD24: 0 | AE24: 60600 | AF24: 5918 | AG24: 0 | AH24: 0 | AI24: 0 | AJ24: 8511 | AK24: 0 | AL24: 0 | AM24: 0 | AN24: 0 | AO24: 0 | AP24: 0 | AQ24: 77100 | AR24: 5441 | AS24: 0 | AT24: 0 | AU24: 0 | AV24: 0 | AW24: 0 | AX24: 0 | AY24: 0 | AZ24: 0 | BA24: 0 | BB24: 1471 | BC24: 2014 | BD24: 7500 | BE24: 0 | BF24: 124310 | BG24: 0 | BH24: 0
A25: Douglas County Department of Health & Human Services | B25: 16 | C25: WRO | D25: 47666 | F25: 1493015 | G25: 13565 | H25: 0 | J25: 0 | K25: 0 | L25: 0 | M25: 0 | N25: 0 | O25: 0 | P25: 0 | Q25: 506500 | R25: 0 | S25: 0 | T25: 0 | U25: 37125 | V25: 7120 | W25: 4500 | X25: 0 | Y25: 0 | Z25: 0 | AA25: 728600 | AB25: 0 | AC25: 0 | AD25: 0 | AE25: 80700 | AF25: 11040 | AG25: 0 | AH25: 0 | AI25: 0 | AJ25: 18086 | AK25: 0 | AL25: 0 | AM25: 0 | AN25: 0 | AO25: 0 | AP25: 0 | AQ25: 92400 | AR25: 6944 | AS25: 0 | AT25: 0 | AU25: 0 | AV25: 0 | AW25: 0 | AX25: 0 | AY25: 0 | AZ25: 0 | BA25: 0 | BB25: 0 | BC25: 0 | BD25: 0 | BE25: 0 | BF25: 0 | BG25: 0 | BH25: 0
A26: Dunn County Health Department | B26: 17 | C26: WRO | D26: 47667 | F26: 1838630 | G26: 15812 | H26: 7178 | J26: 0 | K26: 0 | L26: 0 | M26: 6033 | N26: 0 | O26: 0 | P26: 5000 | Q26: 511800 | R26: 0 | S26: 0 | T26: 0 | U26: 35895 | V26: 4209 | W26: 4500 | X26: 0 | Y26: 0 | Z26: 0 | AA26: 737300 | AB26: 0 | AC26: 0 | AD26: 0 | AE26: 81800 | AF26: 10527 | AG26: 0 | AH26: 0 | AI26: 0 | AJ26: 21083 | AK26: 0 | AL26: 0 | AM26: 0 | AN26: 0 | AO26: 0 | AP26: 0 | AQ26: 93300 | AR26: 7196 | AS26: 0 | AT26: 8398 | AU26: 0 | AV26: 10924 | AW26: 0 | AX26: 0 | AY26: 70376 | AZ26: 0 | BA26: 35890 | BB26: 2026 | BC26: 3428 | BD26: 10000 | BE26: 0 | BF26: 178945 | BG26: 0 | BH26: 0
A27: Eau Claire City/County Health Department | B27: 256321 | C27: WRO | D27: 47668 | F27: 4393549 | G27: 34982 | H27: 7178 | J27: 0 | K27: 0 | L27: 0 | M27: 6033 | N27: 21000 | O27: 21000 | P27: 84092 | Q27: 851500 | R27: 0 | S27: 0 | T27: 0 | U27: 250059 | V27: 9711 | W27: 7000 | X27: 0 | Y27: 0 | Z27: 0 | AA27: 1305000 | AB27: 0 | AC27: 0 | AD27: 75000 | AE27: 155500 | AF27: 22584 | AG27: 0 | AH27: 0 | AI27: 0 | AJ27: 46642 | AK27: 0 | AL27: 0 | AM27: 85000 | AN27: 0 | AO27: 35000 | AP27: 0 | AQ27: 149500 | AR27: 10906 | AS27: 0 | AT27: 9773 | AU27: 90000 | AV27: 16627 | AW27: 50000 | AX27: 4350 | AY27: 558000 | AZ27: 0 | BA27: 35890 | BB27: 4691 | BC27: 8773 | BD27: 23125 | BE27: 0 | BF27: 387710 | BG27: 65250 | BH27: 3833
A28: Florence County Health Department | B28: 19 | C28: NRO | D28: 47705 | F28: 799643 | G28: 4251 | H28: 3000 | J28: 0 | K28: 0 | L28: 0 | M28: 6033 | N28: 0 | O28: 0 | P28: 0 | Q28: 275800 | R28: 0 | S28: 0 | T28: 0 | U28: 29282 | V28: 770 | W28: 2800 | X28: 0 | Y28: 0 | Z28: 0 | AA28: 343200 | AB28: 15000 | AC28: 0 | AD28: 0 | AE28: 30600 | AF28: 4559 | AG28: 0 | AH28: 0 | AI28: 0 | AJ28: 5668 | AK28: 0 | AL28: 0 | AM28: 0 | AN28: 0 | AO28: 0 | AP28: 0 | AQ28: 54300 | AR28: 4444 | AS28: 0 | AT28: 0 | AU28: 0 | AV28: 0 | AW28: 0 | AX28: 0 | AY28: 0 | AZ28: 0 | BA28: 0 | BB28: 563 | BC28: 374 | BD28: 0 | BE28: 0 | BF28: 26250 | BG28: 0 | BH28: 0
A29: Fond du Lac County Health Department | B29: 20 | C29: NERO | D29: 47706 | F29: 3202819 | G29: 29477 | H29: 3000 | J29: 0 | K29: 0 | L29: 0 | M29: 0 | N29: 0 | O29: 0 | P29: 0 | Q29: 854400 | R29: 0 | S29: 0 | T29: 0 | U29: 70950 | V29: 12760 | W29: 7000 | X29: 0 | Y29: 0 | Z29: 0 | AA29: 1309600 | AB29: 15000 | AC29: 0 | AD29: 0 | AE29: 156100 | AF29: 21644 | AG29: 0 | AH29: 0 | AI29: 0 | AJ29: 39302 | AK29: 0 | AL29: 0 | AM29: 0 | AN29: 0 | AO29: 0 | AP29: 0 | AQ29: 150000 | AR29: 9990 | AS29: 0 | AT29: 10547 | AU29: 0 | AV29: 16627 | AW29: 121000 | AX29: 9375 | AY29: 0 | AZ29: 0 | BA29: 0 | BB29: 4019 | BC29: 0 | BD29: 19910 | BE29: 0 | BF29: 374595 | BG29: 0 | BH29: 0
A30: Forest County Health Department | B30: 21 | C30: NRO | D30: 47707 | F30: 920036 | G30: 6359 | H30: 0 | J30: 0 | K30: 0 | L30: 0 | M30: 0 | N30: 0 | O30: 0 | P30: 0 | Q30: 303700 | R30: 0 | S30: 0 | T30: 0 | U30: 33982 | V30: 2069 | W30: 2900 | X30: 0 | Y30: 0 | Z30: 0 | AA30: 389700 | AB30: 0 | AC30: 0 | AD30: 0 | AE30: 36600 | AF30: 5492 | AG30: 0 | AH30: 0 | AI30: 0 | AJ30: 8478 | AK30: 0 | AL30: 0 | AM30: 0 | AN30: 0 | AO30: 0 | AP30: 0 | AQ30: 58900 | AR30: 4906 | AS30: 0 | AT30: 0 | AU30: 0 | AV30: 8696 | AW30: 0 | AX30: 0 | AY30: 0 | AZ30: 0 | BA30: 0 | BB30: 595 | BC30: 881 | BD30: 7500 | BE30: 0 | BF30: 55637 | BG30: 0 | BH30: 0
A31: Franklin Health Department | B31: 472787 | C31: SERO | D31: 47708 | F31: 1347090 | G31: 4769 | H31: 0 | J31: 0 | K31: 0 | L31: 0 | M31: 0 | N31: 0 | O31: 0 | P31: 0 | Q31: 460000 | R31: 0 | S31: 11321 | T31: 0 | U31: 39956 | V31: 1197 | W31: 4100 | X31: 0 | Y31: 3456 | Z31: 0 | AA31: 650900 | AB31: 0 | AC31: 0 | AD31: 0 | AE31: 70600 | AF31: 5730 | AG31: 0 | AH31: 0 | AI31: 0 | AJ31: 6358 | AK31: 0 | AL31: 0 | AM31: 0 | AN31: 0 | AO31: 0 | AP31: 0 | AQ31: 84700 | AR31: 4372 | AS31: 0 | AT31: 0 | AU31: 0 | AV31: 0 | AW31: 3500 | AX31: 900 | AY31: 0 | AZ31: 0 | BA31: 0 | BB31: 0 | BC31: 0 | BD31: 0 | BE31: 0 | BF31: 0 | BG31: 0 | BH31: 0
A32: Grant County Health Department | B32: 22 | C32: SRO | D32: 47709 | F32: 1938423 | G32: 19863 | H32: 0 | J32: 0 | K32: 0 | L32: 0 | M32: 0 | N32: 0 | O32: 0 | P32: 0 | Q32: 556200 | R32: 0 | S32: 0 | T32: 0 | U32: 53149 | V32: 18822 | W32: 4800 | X32: 0 | Y32: 9809 | Z32: 0 | AA32: 811500 | AB32: 0 | AC32: 0 | AD32: 0 | AE32: 91400 | AF32: 13198 | AG32: 0 | AH32: 0 | AI32: 0 | AJ32: 26484 | AK32: 0 | AL32: 0 | AM32: 0 | AN32: 0 | AO32: 0 | AP32: 0 | AQ32: 100700 | AR32: 28273 | AS32: 0 | AT32: 8471 | AU32: 0 | AV32: 0 | AW32: 0 | AX32: 0 | AY32: 0 | AZ32: 0 | BA32: 0 | BB32: 1562 | BC32: 3715 | BD32: 0 | BE32: 0 | BF32: 210340 | BG32: 0 | BH32: 0
A33: Green County Health Department | B33: 23 | C33: SRO | D33: 47710 | F33: 1403335 | G33: 9170 | H33: 0 | J33: 0 | K33: 0 | L33: 0 | M33: 0 | N33: 0 | O33: 0 | P33: 0 | Q33: 465500 | R33: 0 | S33: 0 | T33: 0 | U33: 43011 | V33: 4826 | W33: 4100 | X33: 0 | Y33: 0 | Z33: 0 | AA33: 534570 | AB33: 0 | AC33: 0 | AD33: 0 | AE33: 71800 | AF33: 8606 | AG33: 0 | AH33: 0 | AI33: 0 | AJ33: 12227 | AK33: 0 | AL33: 0 | AM33: 0 | AN33: 0 | AO33: 0 | AP33: 0 | AQ33: 85700 | AR33: 5444 | AS33: 0 | AT33: 0 | AU33: 0 | AV33: 8525 | AW33: 0 | AX33: 0 | AY33: 0 | AZ33: 0 | BA33: 0 | BB33: 1568 | BC33: 2808 | BD33: 10000 | BE33: 0 | BF33: 144650 | BG33: 0 | BH33: 0
A34: Green Lake County Department of Health & Human Services | B34: 24 | C34: NERO | D34: 47711 | F34: 1031895 | G34: 6958 | H34: 0 | J34: 0 | K34: 0 | L34: 0 | M34: 0 | N34: 0 | O34: 0 | P34: 0 | Q34: 361600 | R34: 0 | S34: 0 | T34: 0 | U34: 35058 | V34: 2705 | W34: 3300 | X34: 0 | Y34: 0 | Z34: 5500 | AA34: 486500 | AB34: 0 | AC34: 0 | AD34: 0 | AE34: 49200 | AF34: 5527 | AG34: 0 | AH34: 0 | AI34: 0 | AJ34: 9277 | AK34: 0 | AL34: 0 | AM34: 0 | AN34: 0 | AO34: 0 | AP34: 0 | AQ34: 68500 | AR34: 4728 | AS34: 0 | AT34: 0 | AU34: 0 | AV34: 0 | AW34: 0 | AX34: 0 | AY34: 0 | AZ34: 0 | BA34: 0 | BB34: 0 | BC34: 0 | BD34: 0 | BE34: 0 | BF34: 0 | BG34: 0 | BH34: 0
A35: Greendale Health Department | B35: 703090 | C35: SERO | D35: 47712 | F35: 968188 | G35: 6412 | H35: 0 | J35: 0 | K35: 0 | L35: 0 | M35: 0 | N35: 0 | O35: 0 | P35: 0 | Q35: 333800 | R35: 0 | S35: 3552 | T35: 0 | U35: 30988 | V35: 755 | W35: 3100 | X35: 0 | Y35: 31121 | Z35: 0 | AA35: 440000 | AB35: 0 | AC35: 0 | AD35: 0 | AE35: 43200 | AF35: 5422 | AG35: 0 | AH35: 0 | AI35: 0 | AJ35: 8549 | AK35: 0 | AL35: 0 | AM35: 0 | AN35: 0 | AO35: 0 | AP35: 0 | AQ35: 63900 | AR35: 3801 | AS35: 0 | AT35: 0 | AU35: 0 | AV35: 0 | AW35: 0 | AX35: 0 | AY35: 0 | AZ35: 0 | BA35: 0 | BB35: 0 | BC35: 0 | BD35: 0 | BE35: 0 | BF35: 0 | BG35: 0 | BH35: 0
A36: Greenfield Health Department | B36: 472803 | C36: SERO | D36: 47713 | F36: 1395172 | G36: 9764 | H36: 0 | J36: 0 | K36: 0 | L36: 0 | M36: 0 | N36: 0 | O36: 0 | P36: 0 | Q36: 465700 | R36: 0 | S36: 11259 | T36: 0 | U36: 40978 | V36: 1460 | W36: 4100 | X36: 0 | Y36: 0 | Z36: 0 | AA36: 660400 | AB36: 0 | AC36: 0 | AD36: 0 | AE36: 71800 | AF36: 9924 | AG36: 0 | AH36: 0 | AI36: 0 | AJ36: 13019 | AK36: 0 | AL36: 0 | AM36: 0 | AN36: 0 | AO36: 24977 | AP36: 0 | AQ36: 85700 | AR36: 5855 | AS36: 0 | AT36: 0 | AU36: 0 | AV36: 0 | AW36: 0 | AX36: 0 | AY36: 0 | AZ36: 0 | BA36: 0 | BB36: 0 | BC36: 0 | BD36: 0 | BE36: 0 | BF36: 0 | BG36: 0 | BH36: 0
A37: Hales Corners Health Department | B37: 472811 | C37: SERO | D37: 47714 | F37: 797740 | G37: 0 | H37: 0 | J37: 0 | K37: 0 | L37: 0 | M37: 0 | N37: 0 | O37: 0 | P37: 0 | Q37: 294300 | R37: 0 | S37: 1808 | T37: 0 | U37: 27978 | V37: 0 | W37: 2800 | X37: 0 | Y37: 0 | Z37: 0 | AA37: 374100 | AB37: 0 | AC37: 0 | AD37: 0 | AE37: 34600 | AF37: 2121 | AG37: 0 | AH37: 0 | AI37: 0 | AJ37: 0 | AK37: 0 | AL37: 0 | AM37: 0 | AN37: 0 | AO37: 0 | AP37: 0 | AQ37: 57300 | AR37: 2733 | AS37: 0 | AT37: 0 | AU37: 0 | AV37: 0 | AW37: 0 | AX37: 0 | AY37: 0 | AZ37: 0 | BA37: 0 | BB37: 0 | BC37: 0 | BD37: 0 | BE37: 0 | BF37: 0 | BG37: 0 | BH37: 0
A38: Iowa County Health Department | B38: 25 | C38: SRO | D38: 47715 | F38: 1106604 | G38: 5972 | H38: 0 | J38: 0 | K38: 0 | L38: 0 | M38: 0 | N38: 0 | O38: 0 | P38: 0 | Q38: 389100 | R38: 0 | S38: 0 | T38: 0 | U38: 38383 | V38: 0 | W38: 3600 | X38: 0 | Y38: 0 | Z38: 0 | AA38: 532400 | AB38: 0 | AC38: 0 | AD38: 0 | AE38: 55200 | AF38: 6958 | AG38: 0 | AH38: 0 | AI38: 0 | AJ38: 7963 | AK38: 0 | AL38: 0 | AM38: 0 | AN38: 0 | AO38: 0 | AP38: 0 | AQ38: 73000 | AR38: 0 | AS38: 0 | AT38: 0 | AU38: 0 | AV38: 0 | AW38: 0 | AX38: 0 | AY38: 0 | AZ38: 0 | BA38: 0 | BB38: 0 | BC38: 0 | BD38: 0 | BE38: 0 | BF38: 0 | BG38: 0 | BH38: 0
A39: Iron County Health Department | B39: 26 | C39: NRO | D39: 47716 | F39: 855551 | G39: 3365 | H39: 7178 | J39: 0 | K39: 0 | L39: 0 | M39: 6033 | N39: 0 | O39: 0 | P39: 0 | Q39: 284200 | R39: 0 | S39: 0 | T39: 0 | U39: 31330 | V39: 1735 | W39: 2800 | X39: 0 | Y39: 0 | Z39: 0 | AA39: 357100 | AB39: 0 | AC39: 0 | AD39: 0 | AE39: 32400 | AF39: 3889 | AG39: 0 | AH39: 0 | AI39: 0 | AJ39: 4487 | AK39: 0 | AL39: 0 | AM39: 0 | AN39: 0 | AO39: 0 | AP39: 0 | AQ39: 55700 | AR39: 4611 | AS39: 0 | AT39: 0 | AU39: 0 | AV39: 0 | AW39: 0 | AX39: 0 | AY39: 35376 | AZ39: 0 | BA39: 35890 | BB39: 0 | BC39: 0 | BD39: 0 | BE39: 0 | BF39: 0 | BG39: 0 | BH39: 0
A40: Jackson County Health & Human Services Department | B40: 27 | C40: WRO | D40: 47717 | F40: 1184874 | G40: 9519 | H40: 0 | J40: 0 | K40: 0 | L40: 0 | M40: 0 | N40: 0 | O40: 0 | P40: 0 | Q40: 370800 | R40: 0 | S40: 0 | T40: 0 | U40: 29132 | V40: 2830 | W40: 3400 | X40: 0 | Y40: 0 | Z40: 0 | AA40: 501900 | AB40: 0 | AC40: 0 | AD40: 0 | AE40: 51200 | AF40: 6955 | AG40: 0 | AH40: 0 | AI40: 0 | AJ40: 12692 | AK40: 0 | AL40: 0 | AM40: 0 | AN40: 0 | AO40: 0 | AP40: 0 | AQ40: 70000 | AR40: 5239 | AS40: 0 | AT40: 0 | AU40: 0 | AV40: 8525 | AW40: 0 | AX40: 0 | AY40: 0 | AZ40: 0 | BA40: 0 | BB40: 1076 | BC40: 0 | BD40: 0 | BE40: 0 | BF40: 121125 | BG40: 0 | BH40: 0
A41: Jefferson County Health Department | B41: 28 | C41: SRO | D41: 47718 | F41: 2302905 | G41: 13600 | H41: 0 | J41: 0 | K41: 0 | L41: 0 | M41: 0 | N41: 0 | O41: 0 | P41: 0 | Q41: 655000 | R41: 0 | S41: 0 | T41: 0 | U41: 55701 | V41: 6542 | W41: 5500 | X41: 0 | Y41: 0 | Z41: 0 | AA41: 976600 | AB41: 0 | AC41: 0 | AD41: 0 | AE41: 112900 | AF41: 13939 | AG41: 0 | AH41: 0 | AI41: 0 | AJ41: 18133 | AK41: 0 | AL41: 0 | AM41: 0 | AN41: 0 | AO41: 0 | AP41: 0 | AQ41: 117000 | AR41: 0 | AS41: 0 | AT41: 0 | AU41: 0 | AV41: 18316 | AW41: 0 | AX41: 0 | AY41: 0 | AZ41: 0 | BA41: 0 | BB41: 3784 | BC41: 6410 | BD41: 16105 | BE41: 0 | BF41: 296975 | BG41: 0 | BH41: 0
A42: Juneau County Health Department | B42: 29 | C42: SRO | D42: 47719 | F42: 1775905 | G42: 10249 | H42: 0 | J42: 0 | K42: 0 | L42: 0 | M42: 0 | N42: 0 | O42: 0 | P42: 0 | Q42: 407300 | R42: 0 | S42: 0 | T42: 0 | U42: 40226 | V42: 3784 | W42: 3700 | X42: 0 | Y42: 0 | Z42: 0 | AA42: 562800 | AB42: 0 | AC42: 0 | AD42: 0 | AE42: 59100 | AF42: 9166 | AG42: 0 | AH42: 0 | AI42: 0 | AJ42: 13665 | AK42: 0 | AL42: 0 | AM42: 0 | AN42: 0 | AO42: 35000 | AP42: 0 | AQ42: 76000 | AR42: 1520 | AS42: 0 | AT42: 0 | AU42: 0 | AV42: 18316 | AW42: 121000 | AX42: 8625 | AY42: 0 | AZ42: 0 | BA42: 0 | BB42: 4031 | BC42: 5363 | BD42: 14648 | BE42: 0 | BF42: 292150 | BG42: 94650 | BH42: 4861
A43: Kenosha County Division of Health | B43: 30 | C43: SERO | D43: 47720 | F43: 5230721 | G43: 67871 | H43: 7178 | J43: 31500 | K43: 0 | L43: 0 | M43: 6033 | N43: 0 | O43: 0 | P43: 0 | Q43: 1233500 | R43: 55000 | S43: 55489 | T43: 0 | U43: 98451 | V43: 19208 | W43: 9900 | X43: 0 | Y43: 0 | Z43: 0 | AA43: 1943100 | AB43: 0 | AC43: 0 | AD43: 17000 | AE43: 238400 | AF43: 36643 | AG43: 0 | AH43: 0 | AI43: 0 | AJ43: 90495 | AK43: 0 | AL43: 0 | AM43: 0 | AN43: 0 | AO43: 0 | AP43: 0 | AQ43: 212700 | AR43: 14439 | AS43: 0 | AT43: 7452 | AU43: 0 | AV43: 31700 | AW43: 0 | AX43: 0 | AY43: 122176 | AZ43: 0 | BA43: 35890 | BB43: 7972 | BC43: 19170 | BD43: 39018 | BE43: 6000 | BF43: 817866 | BG43: 77550 | BH43: 4069
A44: Kewaunee County Health Department | B44: 31 | C44: NERO | D44: 47721 | F44: 1142216 | G44: 5606 | H44: 0 | J44: 0 | K44: 0 | L44: 0 | M44: 0 | N44: 0 | O44: 0 | P44: 0 | Q44: 370700 | R44: 0 | S44: 0 | T44: 2100 | U44: 35112 | V44: 1939 | W44: 3400 | X44: 0 | Y44: 0 | Z44: 0 | AA44: 501600 | AB44: 0 | AC44: 0 | AD44: 0 | AE44: 51200 | AF44: 5991 | AG44: 0 | AH44: 0 | AI44: 0 | AJ44: 7475 | AK44: 0 | AL44: 0 | AM44: 0 | AN44: 0 | AO44: 0 | AP44: 0 | AQ44: 70000 | AR44: 4233 | AS44: 0 | AT44: 0 | AU44: 0 | AV44: 15198 | AW44: 0 | AX44: 0 | AY44: 0 | AZ44: 0 | BA44: 0 | BB44: 939 | BC44: 1199 | BD44: 7500 | BE44: 0 | BF44: 63630 | BG44: 0 | BH44: 0
A45: La Crosse County Health Department | B45: 32 | C45: WRO | D45: 47722 | F45: 3859733 | G45: 29036 | H45: 0 | J45: 0 | K45: 0 | L45: 0 | M45: 0 | N45: 0 | O45: 0 | P45: 0 | Q45: 941800 | R45: 0 | S45: 0 | T45: 0 | U45: 76685 | V45: 10383 | W45: 7700 | X45: 0 | Y45: 36238 | Z45: 0 | AA45: 1455700 | AB45: 0 | AC45: 0 | AD45: 16000 | AE45: 175100 | AF45: 23456 | AG45: 0 | AH45: 0 | AI45: 0 | AJ45: 38715 | AK45: 0 | AL45: 0 | AM45: 0 | AN45: 73116 | AO45: 35000 | AP45: 0 | AQ45: 164500 | AR45: 11242 | AS45: 0 | AT45: 5920 | AU45: 0 | AV45: 81777 | AW45: 121000 | AX45: 16650 | AY45: 0 | AZ45: 0 | BA45: 0 | BB45: 5412 | BC45: 10212 | BD45: 24452 | BE45: 6000 | BF45: 465319 | BG45: 54350 | BH45: 3006
A46: Lafayette County Health Department | B46: 33 | C46: SRO | D46: 47723 | F46: 983772 | G46: 9444 | H46: 0 | J46: 0 | K46: 0 | L46: 0 | M46: 0 | N46: 0 | O46: 0 | P46: 0 | Q46: 348700 | R46: 0 | S46: 0 | T46: 0 | U46: 35365 | V46: 0 | W46: 3200 | X46: 0 | Y46: 0 | Z46: 0 | AA46: 464900 | AB46: 0 | AC46: 0 | AD46: 0 | AE46: 46400 | AF46: 6315 | AG46: 0 | AH46: 0 | AI46: 0 | AJ46: 12592 | AK46: 0 | AL46: 0 | AM46: 0 | AN46: 0 | AO46: 0 | AP46: 0 | AQ46: 66300 | AR46: 0 | AS46: 0 | AT46: 0 | AU46: 0 | AV46: 0 | AW46: 0 | AX46: 0 | AY46: 0 | AZ46: 0 | BA46: 0 | BB46: 0 | BC46: 0 | BD46: 0 | BE46: 0 | BF46: 0 | BG46: 0 | BH46: 0
A47: Langlade County Health Department | B47: 34 | C47: NRO | D47: 47724 | F47: 1044076 | G47: 7007 | H47: 0 | J47: 0 | K47: 0 | L47: 0 | M47: 0 | N47: 0 | O47: 0 | P47: 0 | Q47: 365600 | R47: 0 | S47: 0 | T47: 0 | U47: 37650 | V47: 3505 | W47: 3400 | X47: 0 | Y47: 0 | Z47: 0 | AA47: 493200 | AB47: 0 | AC47: 0 | AD47: 0 | AE47: 50100 | AF47: 6600 | AG47: 0 | AH47: 0 | AI47: 0 | AJ47: 9342 | AK47: 0 | AL47: 0 | AM47: 0 | AN47: 0 | AO47: 0 | AP47: 0 | AQ47: 69100 | AR47: 5579 | AS47: 0 | AT47: 0 | AU47: 0 | AV47: 0 | AW47: 0 | AX47: 0 | AY47: 0 | AZ47: 0 | BA47: 0 | BB47: 0 | BC47: 0 | BD47: 0 | BE47: 0 | BF47: 0 | BG47: 0 | BH47: 0
A48: Lincoln County Health Department | B48: 35 | C48: NRO | D48: 47725 | F48: 1218733 | G48: 9591 | H48: 0 | J48: 0 | K48: 0 | L48: 0 | M48: 0 | N48: 0 | O48: 0 | P48: 0 | Q48: 416300 | R48: 0 | S48: 0 | T48: 0 | U48: 40953 | V48: 3657 | W48: 3800 | X48: 0 | Y48: 0 | Z48: 9995 | AA48: 577800 | AB48: 0 | AC48: 0 | AD48: 0 | AE48: 61100 | AF48: 8675 | AG48: 0 | AH48: 0 | AI48: 0 | AJ48: 12788 | AK48: 0 | AL48: 0 | AM48: 0 | AN48: 0 | AO48: 0 | AP48: 0 | AQ48: 77500 | AR48: 6165 | AS48: 0 | AT48: 0 | AU48: 0 | AV48: 0 | AW48: 0 | AX48: 0 | AY48: 0 | AZ48: 0 | BA48: 0 | BB48: 0 | BC48: 0 | BD48: 0 | BE48: 0 | BF48: 0 | BG48: 0 | BH48: 0
A49: Manitowoc County Health Department | B49: 36 | C49: NERO | D49: 47726 | F49: 2469282 | G49: 19615 | H49: 0 | J49: 0 | K49: 0 | L49: 0 | M49: 0 | N49: 0 | O49: 0 | P49: 0 | Q49: 719200 | R49: 0 | S49: 0 | T49: 0 | U49: 61185 | V49: 11426 | W49: 6100 | X49: 0 | Y49: 0 | Z49: 0 | AA49: 1083800 | AB49: 0 | AC49: 0 | AD49: 0 | AE49: 126800 | AF49: 16409 | AG49: 0 | AH49: 0 | AI49: 0 | AJ49: 26153 | AK49: 0 | AL49: 0 | AM49: 0 | AN49: 0 | AO49: 0 | AP49: 0 | AQ49: 127600 | AR49: 8001 | AS49: 0 | AT49: 8883 | AU49: 0 | AV49: 0 | AW49: 0 | AX49: 0 | AY49: 0 | AZ49: 0 | BA49: 0 | BB49: 3447 | BC49: 5873 | BD49: 0 | BE49: 0 | BF49: 264405 | BG49: 0 | BH49: 0
A50: Marathon County Health Department | B50: 37 | C50: NRO | D50: 47727 | F50: 3555813 | G50: 120150 | H50: 0 | J50: 0 | K50: 0 | L50: 0 | M50: 0 | N50: 0 | O50: 0 | P50: 0 | Q50: 1037700 | R50: 0 | S50: 0 | T50: 0 | U50: 89953 | V50: 13709 | W50: 8500 | X50: 0 | Y50: 0 | Z50: 0 | AA50: 1616000 | AB50: 0 | AC50: 0 | AD50: 14000 | AE50: 195900 | AF50: 30614 | AG50: 0 | AH50: 0 | AI50: 0 | AJ50: 43960 | AK50: 160200 | AL50: 0 | AM50: 0 | AN50: 0 | AO50: 0 | AP50: 0 | AQ50: 180300 | AR50: 12452 | AS50: 12303 | AT50: 3997 | AU50: 0 | AV50: 0 | AW50: 121000 | AX50: 15225 | AY50: 0 | AZ50: 0 | BA50: 0 | BB50: 0 | BC50: 0 | BD50: 0 | BE50: 0 | BF50: 0 | BG50: 0 | BH50: 0
A51: Marinette County Health Department | B51: 38 | C51: NERO | D51: 47728 | F51: 1675705 | G51: 11270 | H51: 0 | J51: 0 | K51: 0 | L51: 0 | M51: 0 | N51: 0 | O51: 0 | P51: 0 | Q51: 489300 | R51: 0 | S51: 0 | T51: 0 | U51: 49447 | V51: 6488 | W51: 4300 | X51: 0 | Y51: 0 | Z51: 0 | AA51: 699800 | AB51: 0 | AC51: 0 | AD51: 0 | AE51: 76900 | AF51: 10144 | AG51: 0 | AH51: 0 | AI51: 0 | AJ51: 15027 | AK51: 0 | AL51: 0 | AM51: 0 | AN51: 0 | AO51: 32482 | AP51: 0 | AQ51: 89600 | AR51: 6881 | AS51: 0 | AT51: 0 | AU51: 0 | AV51: 11142 | AW51: 0 | AX51: 0 | AY51: 0 | AZ51: 0 | BA51: 0 | BB51: 1488 | BC51: 3192 | BD51: 0 | BE51: 0 | BF51: 179514 | BG51: 0 | BH51: 0
A52: Marquette County Health Department | B52: 39 | C52: NERO | D52: 47729 | F52: 976438 | G52: 5168 | H52: 3000 | J52: 0 | K52: 0 | L52: 0 | M52: 6033 | N52: 0 | O52: 0 | P52: 0 | Q52: 339900 | R52: 0 | S52: 0 | T52: 0 | U52: 33685 | V52: 1920 | W52: 3200 | X52: 0 | Y52: 0 | Z52: 0 | AA52: 450100 | AB52: 15000 | AC52: 0 | AD52: 0 | AE52: 44500 | AF52: 5222 | AG52: 0 | AH52: 0 | AI52: 0 | AJ52: 6891 | AK52: 0 | AL52: 0 | AM52: 0 | AN52: 0 | AO52: 0 | AP52: 0 | AQ52: 64900 | AR52: 5087 | AS52: 0 | AT52: 0 | AU52: 0 | AV52: 0 | AW52: 0 | AX52: 0 | AY52: 0 | AZ52: 0 | BA52: 0 | BB52: 0 | BC52: 0 | BD52: 0 | BE52: 0 | BF52: 0 | BG52: 0 | BH52: 0
A53: Menasha Health Department | B53: 256420 | C53: NERO | D53: 47730 | F53: 1086748 | G53: 12268 | H53: 0 | J53: 0 | K53: 0 | L53: 0 | M53: 0 | N53: 0 | O53: 0 | P53: 0 | Q53: 351300 | R53: 0 | S53: 0 | T53: 0 | U53: 32439 | V53: 2863 | W53: 3300 | X53: 0 | Y53: 0 | Z53: 0 | AA53: 469200 | AB53: 0 | AC53: 0 | AD53: 0 | AE53: 47000 | AF53: 7809 | AG53: 0 | AH53: 0 | AI53: 0 | AJ53: 16357 | AK53: 0 | AL53: 0 | AM53: 85000 | AN53: 0 | AO53: 0 | AP53: 0 | AQ53: 66800 | AR53: 4680 | AS53: 0 | AT53: 0 | AU53: 0 | AV53: 0 | AW53: 0 | AX53: 0 | AY53: 0 | AZ53: 0 | BA53: 0 | BB53: 0 | BC53: 0 | BD53: 0 | BE53: 0 | BF53: 0 | BG53: 0 | BH53: 0
A54: Milwaukee City Health Department | B54: 256107 | C54: SERO | D54: 47731 | F54: 16015041 | G54: 342891 | H54: 1207 | J54: 0 | K54: 36000 | L54: 225000 | M54: 6033 | N54: 0 | O54: 0 | P54: 0 | Q54: 3695600 | R54: 0 | S54: 211404 | T54: 0 | U54: 331934 | V54: 255662 | W54: 28900 | X54: 142026 | Y54: 234 | Z54: 0 | AA54: 6056200 | AB54: 0 | AC54: 115000 | AD54: 222000 | AE54: 772500 | AF54: 241656 | AG54: 0 | AH54: 399342 | AI54: 67000 | AJ54: 457188 | AK54: 0 | AL54: 27762 | AM54: 0 | AN54: 0 | AO54: 0 | AP54: 0 | AQ54: 619900 | AR54: 57845 | AS54: 0 | AT54: 0 | AU54: 0 | AV54: 0 | AW54: 0 | AX54: 0 | AY54: 0 | AZ54: 10000 | BA54: 0 | BB54: 11458 | BC54: 6033 | BD54: 74273 | BE54: 0 | BF54: 1391091 | BG54: 303000 | BH54: 250000
A55: Monroe County Health Department | B55: 41 | C55: WRO | D55: 47732 | F55: 1750708 | G55: 20230 | H55: 0 | J55: 0 | K55: 0 | L55: 0 | M55: 0 | N55: 0 | O55: 0 | P55: 0 | Q55: 518900 | R55: 0 | S55: 0 | T55: 0 | U55: 36968 | V55: 5861 | W55: 4500 | X55: 0 | Y55: 18038 | Z55: 0 | AA55: 749200 | AB55: 0 | AC55: 0 | AD55: 0 | AE55: 83400 | AF55: 12485 | AG55: 0 | AH55: 0 | AI55: 0 | AJ55: 26973 | AK55: 0 | AL55: 0 | AM55: 0 | AN55: 0 | AO55: 0 | AP55: 0 | AQ55: 94500 | AR55: 6869 | AS55: 0 | AT55: 0 | AU55: 0 | AV55: 11592 | AW55: 0 | AX55: 0 | AY55: 0 | AZ55: 0 | BA55: 0 | BB55: 2576 | BC55: 3341 | BD55: 10000 | BE55: 0 | BF55: 165505 | BG55: 0 | BH55: 0
A56: North Shore Health Department | B56: 472753 | C56: SERO | D56: 47733 | F56: 1934196 | G56: 9753 | H56: 0 | J56: 0 | K56: 0 | L56: 0 | M56: 0 | N56: 0 | O56: 0 | P56: 0 | Q56: 626900 | R56: 0 | S56: 17897 | T56: 0 | U56: 76972 | V56: 3547 | W56: 5400 | X56: 0 | Y56: 0 | Z56: 0 | AA56: 929700 | AB56: 0 | AC56: 0 | AD56: 0 | AE56: 106800 | AF56: 10161 | AG56: 0 | AH56: 0 | AI56: 0 | AJ56: 13004 | AK56: 0 | AL56: 0 | AM56: 0 | AN56: 0 | AO56: 25159 | AP56: 0 | AQ56: 112400 | AR56: 6256 | AS56: 0 | AT56: 0 | AU56: 0 | AV56: 0 | AW56: 0 | AX56: 0 | AY56: 0 | AZ56: 0 | BA56: 0 | BB56: 0 | BC56: 0 | BD56: 0 | BE56: 0 | BF56: 0 | BG56: 0 | BH56: 0
A57: Oak Creek Health Department | B57: 472886 | C57: SERO | D57: 47734 | F57: 1405360 | G57: 9712 | H57: 0 | J57: 0 | K57: 0 | L57: 0 | M57: 0 | N57: 0 | O57: 0 | P57: 0 | Q57: 459100 | R57: 0 | S57: 11338 | T57: 0 | U57: 39492 | V57: 1567 | W57: 4100 | X57: 0 | Y57: 0 | Z57: 10000 | AA57: 649300 | AB57: 0 | AC57: 0 | AD57: 0 | AE57: 70400 | AF57: 9866 | AG57: 0 | AH57: 0 | AI57: 0 | AJ57: 12949 | AK57: 0 | AL57: 0 | AM57: 0 | AN57: 0 | AO57: 47200 | AP57: 0 | AQ57: 84600 | AR57: 5448 | AS57: 0 | AT57: 0 | AU57: 0 | AV57: 0 | AW57: 0 | AX57: 0 | AY57: 0 | AZ57: 0 | BA57: 0 | BB57: 0 | BC57: 0 | BD57: 0 | BE57: 0 | BF57: 0 | BG57: 0 | BH57: 0
A58: Oconto County Health Department Public Health Division | B58: 42 | C58: NERO | D58: 47735 | F58: 1529676 | G58: 11057 | H58: 0 | J58: 0 | K58: 0 | L58: 0 | M58: 0 | N58: 0 | O58: 0 | P58: 0 | Q58: 471900 | R58: 0 | S58: 0 | T58: 0 | U58: 45246 | V58: 4044 | W58: 4200 | X58: 0 | Y58: 0 | Z58: 0 | AA58: 670700 | AB58: 0 | AC58: 0 | AD58: 0 | AE58: 73200 | AF58: 9214 | AG58: 0 | AH58: 0 | AI58: 0 | AJ58: 14743 | AK58: 0 | AL58: 0 | AM58: 0 | AN58: 0 | AO58: 0 | AP58: 0 | AQ58: 86700 | AR58: 6223 | AS58: 0 | AT58: 0 | AU58: 0 | AV58: 0 | AW58: 0 | AX58: 0 | AY58: 0 | AZ58: 0 | BA58: 0 | BB58: 956 | BC58: 0 | BD58: 0 | BE58: 0 | BF58: 142550 | BG58: 0 | BH58: 0
A59: Oneida County Health Department | B59: 43 | C59: NRO | D59: 47736 | F59: 2856804 | G59: 11948 | H59: 43068 | J59: 0 | K59: 0 | L59: 0 | M59: 36238 | N59: 20000 | O59: 20000 | P59: 0 | Q59: 460000 | R59: 0 | S59: 0 | T59: 0 | U59: 45521 | V59: 4281 | W59: 4100 | X59: 0 | Y59: 0 | Z59: 0 | AA59: 650700 | AB59: 0 | AC59: 0 | AD59: 0 | AE59: 70600 | AF59: 10049 | AG59: 0 | AH59: 0 | AI59: 0 | AJ59: 15931 | AK59: 0 | AL59: 0 | AM59: 85000 | AN59: 0 | AO59: 0 | AP59: 0 | AQ59: 84700 | AR59: 7014 | AS59: 0 | AT59: 0 | AU59: 70000 | AV59: 15918 | AW59: 121000 | AX59: 15038 | AY59: 710880 | AZ59: 0 | BA59: 215340 | BB59: 1442 | BC59: 1906 | BD59: 10000 | BE59: 0 | BF59: 112315 | BG59: 64875 | BH59: 3956
A60: Outagamie County Public Health Division | B60: 44 | C60: NERO | D60: 47737 | F60: 4075954 | G60: 28577 | H60: 0 | J60: 0 | K60: 0 | L60: 0 | M60: 0 | N60: 0 | O60: 0 | P60: 0 | Q60: 971000 | R60: 0 | S60: 0 | T60: 3600 | U60: 79725 | V60: 5581 | W60: 7800 | X60: 0 | Y60: 0 | Z60: 0 | AA60: 1504500 | AB60: 0 | AC60: 0 | AD60: 0 | AE60: 181500 | AF60: 21611 | AG60: 0 | AH60: 0 | AI60: 0 | AJ60: 38103 | AK60: 0 | AL60: 0 | AM60: 0 | AN60: 0 | AO60: 35035 | AP60: 0 | AQ60: 169300 | AR60: 10788 | AS60: 0 | AT60: 0 | AU60: 0 | AV60: 18316 | AW60: 0 | AX60: 0 | AY60: 0 | AZ60: 0 | BA60: 0 | BB60: 9198 | BC60: 22157 | BD60: 51790 | BE60: 0 | BF60: 945950 | BG60: 0 | BH60: 0
A61: Pepin County Health Department | B61: 46 | C61: WRO | D61: 47739 | F61: 878544 | G61: 3268 | H61: 7178 | J61: 0 | K61: 0 | L61: 0 | M61: 6033 | N61: 0 | O61: 0 | P61: 0 | Q61: 293000 | R61: 0 | S61: 0 | T61: 0 | U61: 21933 | V61: 817 | W61: 2800 | X61: 0 | Y61: 0 | Z61: 0 | AA61: 371800 | AB61: 0 | AC61: 0 | AD61: 0 | AE61: 34300 | AF61: 3660 | AG61: 0 | AH61: 0 | AI61: 0 | AJ61: 4357 | AK61: 0 | AL61: 0 | AM61: 0 | AN61: 0 | AO61: 0 | AP61: 0 | AQ61: 57100 | AR61: 4478 | AS61: 0 | AT61: 0 | AU61: 0 | AV61: 0 | AW61: 0 | AX61: 0 | AY61: 42376 | AZ61: 0 | BA61: 35890 | BB61: 0 | BC61: 0 | BD61: 0 | BE61: 0 | BF61: 0 | BG61: 0 | BH61: 0
A62: Pierce County Health Department | B62: 47 | C62: WRO | D62: 47740 | F62: 1824554 | G62: 10683 | H62: 7178 | J62: 0 | K62: 0 | L62: 0 | M62: 6033 | N62: 0 | O62: 0 | P62: 0 | Q62: 493400 | R62: 0 | S62: 21093 | T62: 0 | U62: 32996 | V62: 2818 | W62: 4300 | X62: 0 | Y62: 0 | Z62: 0 | AA62: 706700 | AB62: 0 | AC62: 0 | AD62: 0 | AE62: 77800 | AF62: 9308 | AG62: 0 | AH62: 0 | AI62: 0 | AJ62: 14244 | AK62: 0 | AL62: 0 | AM62: 0 | AN62: 0 | AO62: 0 | AP62: 0 | AQ62: 90300 | AR62: 6116 | AS62: 0 | AT62: 0 | AU62: 0 | AV62: 11142 | AW62: 0 | AX62: 0 | AY62: 105376 | AZ62: 0 | BA62: 35890 | BB62: 2526 | BC62: 2982 | BD62: 10000 | BE62: 0 | BF62: 191530 | BG62: 0 | BH62: 0
A63: Polk County Health Department | B63: 48 | C63: WRO | D63: 47741 | F63: 2078382 | G63: 13532 | H63: 7178 | J63: 0 | K63: 0 | L63: 0 | M63: 6033 | N63: 0 | O63: 0 | P63: 0 | Q63: 506700 | R63: 0 | S63: 0 | T63: 0 | U63: 35687 | V63: 4575 | W63: 4400 | X63: 0 | Y63: 47045 | Z63: 0 | AA63: 728800 | AB63: 0 | AC63: 0 | AD63: 0 | AE63: 80700 | AF63: 10655 | AG63: 0 | AH63: 0 | AI63: 0 | AJ63: 18042 | AK63: 0 | AL63: 0 | AM63: 0 | AN63: 0 | AO63: 0 | AP63: 0 | AQ63: 92500 | AR63: 6902 | AS63: 0 | AT63: 6828 | AU63: 0 | AV63: 18316 | AW63: 121000 | AX63: 20175 | AY63: 70376 | AZ63: 0 | BA63: 35890 | BB63: 2026 | BC63: 3459 | BD63: 10000 | BE63: 0 | BF63: 190020 | BG63: 55100 | BH63: 3153
A64: Portage County Health & Human Services Department CC | B64: 49 | C64: NRO | D64: 47742 | F64: 2468640 | G64: 21432 | H64: 0 | J64: 0 | K64: 0 | L64: 0 | M64: 0 | N64: 0 | O64: 0 | P64: 0 | Q64: 663400 | R64: 0 | S64: 0 | T64: 3600 | U64: 58793 | V64: 5582 | W64: 5600 | X64: 0 | Y64: 32772 | Z64: 0 | AA64: 990700 | AB64: 0 | AC64: 0 | AD64: 0 | AE64: 114700 | AF64: 14544 | AG64: 0 | AH64: 0 | AI64: 0 | AJ64: 28576 | AK64: 0 | AL64: 0 | AM64: 0 | AN64: 0 | AO64: 34994 | AP64: 0 | AQ64: 118400 | AR64: 8201 | AS64: 0 | AT64: 0 | AU64: 0 | AV64: 30555 | AW64: 0 | AX64: 0 | AY64: 0 | AZ64: 0 | BA64: 0 | BB64: 3447 | BC64: 4724 | BD64: 14997 | BE64: 0 | BF64: 246510 | BG64: 83800 | BH64: 4745
A65: Price County Health and Human Services | B65: 50 | C65: NRO | D65: 47743 | F65: 3209342 | G65: 5961 | H65: 106418 | J65: 0 | K65: 0 | L65: 0 | M65: 90495 | N65: 0 | O65: 0 | P65: 0 | Q65: 330700 | R65: 0 | S65: 0 | T65: 0 | U65: 37166 | V65: 2603 | W65: 3100 | X65: 0 | Y65: 686 | Z65: 0 | AA65: 434900 | AB65: 0 | AC65: 0 | AD65: 6000 | AE65: 42500 | AF65: 5824 | AG65: 0 | AH65: 0 | AI65: 0 | AJ65: 7948 | AK65: 0 | AL65: 0 | AM65: 0 | AN65: 0 | AO65: 0 | AP65: 0 | AQ65: 63400 | AR65: 5209 | AS65: 0 | AT65: 0 | AU65: 0 | AV65: 0 | AW65: 0 | AX65: 0 | AY65: 1528992 | AZ65: 0 | BA65: 532088 | BB65: 704 | BC65: 1837 | BD65: 0 | BE65: 0 | BF65: 115190 | BG65: 0 | BH65: 0
A66: Racine City Health Department | B66: 341113 | C66: SERO | D66: 47744 | F66: 2423384 | G66: 23810 | H66: 0 | J66: 0 | K66: 0 | L66: 0 | M66: 0 | N66: 0 | O66: 0 | P66: 0 | Q66: 660700 | R66: 0 | S66: 29823 | T66: 0 | U66: 63580 | V66: 24142 | W66: 6100 | X66: 0 | Y66: 0 | Z66: 0 | AA66: 986100 | AB66: 0 | AC66: 0 | AD66: 21000 | AE66: 114100 | AF66: 31815 | AG66: 222700 | AH66: 0 | AI66: 0 | AJ66: 31746 | AK66: 0 | AL66: 0 | AM66: 0 | AN66: 0 | AO66: 0 | AP66: 0 | AQ66: 117900 | AR66: 10965 | AS66: 0 | AT66: 0 | AU66: 0 | AV66: 0 | AW66: 0 | AX66: 0 | AY66: 0 | AZ66: 0 | BA66: 0 | BB66: 0 | BC66: 0 | BD66: 0 | BE66: 0 | BF66: 0 | BG66: 97175 | BH66: 5538
A67: Richland County Health & Human Services Public Health Department | B67: 52 | C67: SRO | D67: 47745 | F67: 1012894 | G67: 6159 | H67: 0 | J67: 0 | K67: 0 | L67: 0 | M67: 0 | N67: 0 | O67: 0 | P67: 0 | Q67: 353600 | R67: 0 | S67: 0 | T67: 0 | U67: 35466 | V67: 0 | W67: 3300 | X67: 0 | Y67: 19141 | Z67: 0 | AA67: 473000 | AB67: 0 | AC67: 0 | AD67: 0 | AE67: 47500 | AF67: 5575 | AG67: 0 | AH67: 0 | AI67: 0 | AJ67: 8212 | AK67: 0 | AL67: 0 | AM67: 0 | AN67: 0 | AO67: 0 | AP67: 0 | AQ67: 67100 | AR67: 0 | AS67: 0 | AT67: 0 | AU67: 0 | AV67: 0 | AW67: 0 | AX67: 0 | AY67: 0 | AZ67: 0 | BA67: 0 | BB67: 0 | BC67: 0 | BD67: 0 | BE67: 0 | BF67: 0 | BG67: 0 | BH67: 0
A68: Rock County Public Health Department CC | B68: 53 | C68: SRO | D68: 47746 | F68: 3790681 | G68: 50612 | H68: 0 | J68: 0 | K68: 0 | L68: 0 | M68: 0 | N68: 20000 | O68: 20000 | P68: 0 | Q68: 1187000 | R68: 0 | S68: 0 | T68: 0 | U68: 97955 | V68: 23554 | W68: 9600 | X68: 0 | Y68: 0 | Z68: 0 | AA68: 1865200 | AB68: 0 | AC68: 0 | AD68: 13000 | AE68: 228300 | AF68: 38793 | AG68: 0 | AH68: 0 | AI68: 0 | AJ68: 67482 | AK68: 0 | AL68: 0 | AM68: 0 | AN68: 0 | AO68: 0 | AP68: 0 | AQ68: 205000 | AR68: 14797 | AS68: 0 | AT68: 0 | AU68: 0 | AV68: 0 | AW68: 0 | AX68: 0 | AY68: 0 | AZ68: 0 | BA68: 0 | BB68: 0 | BC68: 0 | BD68: 0 | BE68: 0 | BF68: 0 | BG68: 0 | BH68: 0
A69: Rusk County Department of Health & Human Services | B69: 54 | C69: WRO | D69: 47747 | F69: 1113457 | G69: 6842 | H69: 7178 | J69: 0 | K69: 0 | L69: 0 | M69: 6033 | N69: 0 | O69: 0 | P69: 0 | Q69: 335000 | R69: 0 | S69: 0 | T69: 0 | U69: 26962 | V69: 2340 | W69: 3100 | X69: 0 | Y69: 0 | Z69: 0 | AA69: 441900 | AB69: 0 | AC69: 0 | AD69: 0 | AE69: 43400 | AF69: 5645 | AG69: 0 | AH69: 0 | AI69: 0 | AJ69: 9123 | AK69: 0 | AL69: 0 | AM69: 0 | AN69: 0 | AO69: 0 | AP69: 0 | AQ69: 64100 | AR69: 4898 | AS69: 0 | AT69: 0 | AU69: 0 | AV69: 0 | AW69: 0 | AX69: 0 | AY69: 35376 | AZ69: 0 | BA69: 35890 | BB69: 1133 | BC69: 1619 | BD69: 7500 | BE69: 0 | BF69: 89438 | BG69: 0 | BH69: 0
A70: Sauk County Public Health Department | B70: 56 | C70: SRO | D70: 47748 | F70: 2374943 | G70: 17297 | H70: 0 | J70: 0 | K70: 0 | L70: 0 | M70: 0 | N70: 0 | O70: 0 | P70: 0 | Q70: 616500 | R70: 0 | S70: 0 | T70: 1800 | U70: 55315 | V70: 7324 | W70: 5300 | X70: 0 | Y70: 0 | Z70: 0 | AA70: 912200 | AB70: 0 | AC70: 0 | AD70: 0 | AE70: 104500 | AF70: 16654 | AG70: 0 | AH70: 0 | AI70: 0 | AJ70: 23063 | AK70: 0 | AL70: 0 | AM70: 85000 | AN70: 0 | AO70: 35001 | AP70: 0 | AQ70: 110600 | AR70: 8284 | AS70: 0 | AT70: 6252 | AU70: 0 | AV70: 33610 | AW70: 0 | AX70: 0 | AY70: 0 | AZ70: 0 | BA70: 0 | BB70: 3889 | BC70: 6478 | BD70: 22083 | BE70: 0 | BF70: 321090 | BG70: 0 | BH70: 0
A71: Sawyer County Department of Health & Human Services | B71: 57 | C71: NRO | D71: 47749 | F71: 1266741 | G71: 6902 | H71: 7178 | J71: 0 | K71: 0 | L71: 0 | M71: 6033 | N71: 0 | O71: 0 | P71: 0 | Q71: 346900 | R71: 0 | S71: 0 | T71: 0 | U71: 38526 | V71: 2508 | W71: 3200 | X71: 0 | Y71: 0 | Z71: 0 | AA71: 461900 | AB71: 0 | AC71: 0 | AD71: 0 | AE71: 46000 | AF71: 6654 | AG71: 0 | AH71: 0 | AI71: 0 | AJ71: 9202 | AK71: 0 | AL71: 0 | AM71: 0 | AN71: 0 | AO71: 0 | AP71: 80000 | AQ71: 66000 | AR71: 5984 | AS71: 0 | AT71: 0 | AU71: 0 | AV71: 0 | AW71: 0 | AX71: 0 | AY71: 49376 | AZ71: 0 | BA71: 35890 | BB71: 1505 | BC71: 1563 | BD71: 0 | BE71: 0 | BF71: 105500 | BG71: 0 | BH71: 0
A72: Shawano-Menominee Counties Health Department | B72: 58 | C72: NERO | D72: 47750 | F72: 1813074 | G72: 16383 | H72: 0 | J72: 0 | K72: 0 | L72: 0 | M72: 0 | N72: 0 | O72: 0 | P72: 0 | Q72: 516800 | R72: 0 | S72: 0 | T72: 0 | U72: 75716 | V72: 6596 | W72: 4500 | X72: 0 | Y72: 31134 | Z72: 0 | AA72: 745800 | AB72: 0 | AC72: 0 | AD72: 0 | AE72: 82900 | AF72: 12517 | AG72: 0 | AH72: 0 | AI72: 0 | AJ72: 21844 | AK72: 0 | AL72: 0 | AM72: 0 | AN72: 0 | AO72: 0 | AP72: 0 | AQ72: 94100 | AR72: 7063 | AS72: 0 | AT72: 0 | AU72: 0 | AV72: 10924 | AW72: 0 | AX72: 0 | AY72: 0 | AZ72: 0 | BA72: 0 | BB72: 2427 | BC72: 3638 | BD72: 10000 | BE72: 0 | BF72: 187115 | BG72: 0 | BH72: 0
A73: Sheboygan County Human Services, Division of Public Health | B73: 59 | C73: NERO | D73: 47751 | F73: 3206210 | G73: 27430 | H73: 0 | J73: 0 | K73: 0 | L73: 0 | M73: 0 | N73: 0 | O73: 0 | P73: 0 | Q73: 919500 | R73: 0 | S73: 0 | T73: 0 | U73: 77158 | V73: 16373 | W73: 7600 | X73: 0 | Y73: 0 | Z73: 0 | AA73: 1265056 | AB73: 0 | AC73: 0 | AD73: 0 | AE73: 170300 | AF73: 26189 | AG73: 0 | AH73: 0 | AI73: 0 | AJ73: 36573 | AK73: 0 | AL73: 0 | AM73: 0 | AN73: 0 | AO73: 35000 | AP73: 0 | AQ73: 160800 | AR73: 10941 | AS73: 0 | AT73: 0 | AU73: 0 | AV73: 15918 | AW73: 0 | AX73: 0 | AY73: 0 | AZ73: 0 | BA73: 0 | BB73: 5115 | BC73: 9454 | BD73: 23718 | BE73: 0 | BF73: 426515 | BG73: 0 | BH73: 0
A74: South Milwaukee Health Department | B74: 655522 | C74: SERO | D74: 47752 | F74: 1927044 | G74: 9983 | H74: 0 | J74: 0 | K74: 0 | L74: 0 | M74: 0 | N74: 0 | O74: 0 | P74: 0 | Q74: 675600 | R74: 0 | S74: 12520 | T74: 0 | U74: 63418 | V74: 4050 | W74: 6300 | X74: 0 | Y74: 22179 | Z74: 0 | AA74: 893500 | AB74: 0 | AC74: 0 | AD74: 0 | AE74: 88100 | AF74: 9988 | AG74: 0 | AH74: 0 | AI74: 0 | AJ74: 13311 | AK74: 0 | AL74: 0 | AM74: 0 | AN74: 0 | AO74: 0 | AP74: 0 | AQ74: 129100 | AR74: 8978 | AS74: 0 | AT74: 0 | AU74: 0 | AV74: 0 | AW74: 0 | AX74: 0 | AY74: 0 | AZ74: 0 | BA74: 0 | BB74: 0 | BC74: 0 | BD74: 0 | BE74: 0 | BF74: 0 | BG74: 0 | BH74: 0
A75: St Croix County Department of Health & Human Services | B75: 55 | C75: WRO | D75: 47753 | F75: 2691905 | G75: 16920 | H75: 7178 | J75: 0 | K75: 0 | L75: 0 | M75: 6033 | N75: 0 | O75: 0 | P75: 0 | Q75: 765500 | R75: 0 | S75: 21093 | T75: 0 | U75: 46512 | V75: 4424 | W75: 6400 | X75: 0 | Y75: 0 | Z75: 0 | AA75: 1161200 | AB75: 0 | AC75: 0 | AD75: 0 | AE75: 136900 | AF75: 18113 | AG75: 0 | AH75: 0 | AI75: 0 | AJ75: 22560 | AK75: 0 | AL75: 0 | AM75: 0 | AN75: 0 | AO75: 0 | AP75: 0 | AQ75: 135300 | AR75: 8012 | AS75: 0 | AT75: 0 | AU75: 0 | AV75: 11365 | AW75: 0 | AX75: 0 | AY75: 84376 | AZ75: 0 | BA75: 35890 | BB75: 2621 | BC75: 3761 | BD75: 10000 | BE75: 0 | BF75: 211845 | BG75: 0 | BH75: 0
A76: St Francis Health Department | B76: 472928 | C76: SERO | F76: 2691905 | G76: 16920 | H76: 7178 | J76: 0 | K76: 0 | L76: 0 | M76: 6033 | N76: 0 | O76: 0 | P76: 0 | Q76: 765500 | R76: 0 | S76: 21093 | T76: 0 | U76: 46512 | V76: 4424 | W76: 6400 | X76: 0 | Y76: 0 | Z76: 0 | AA76: 1161200 | AB76: 0 | AC76: 0 | AD76: 0 | AE76: 136900 | AF76: 18113 | AG76: 0 | AH76: 0 | AI76: 0 | AJ76: 22560 | AK76: 0 | AL76: 0 | AM76: 0 | AN76: 0 | AO76: 0 | AP76: 0 | AQ76: 135300 | AR76: 8012 | AS76: 0 | AT76: 0 | AU76: 0 | AV76: 11365 | AW76: 0 | AX76: 0 | AY76: 84376 | AZ76: 0 | BA76: 35890 | BB76: 2621 | BC76: 3761 | BD76: 10000 | BE76: 0 | BF76: 211845 | BG76: 0 | BH76: 0
A77: Taylor County Health Department | B77: 60 | C77: NRO | D77: 47754 | F77: 1175649 | G77: 8239 | H77: 0 | J77: 0 | K77: 0 | L77: 0 | M77: 0 | N77: 0 | O77: 0 | P77: 0 | Q77: 370300 | R77: 0 | S77: 0 | T77: 0 | U77: 38592 | V77: 2228 | W77: 3400 | X77: 0 | Y77: 0 | Z77: 0 | AA77: 501000 | AB77: 0 | AC77: 0 | AD77: 0 | AE77: 51100 | AF77: 6655 | AG77: 0 | AH77: 0 | AI77: 0 | AJ77: 10985 | AK77: 0 | AL77: 0 | AM77: 0 | AN77: 0 | AO77: 0 | AP77: 0 | AQ77: 69900 | AR77: 5140 | AS77: 0 | AT77: 8703 | AU77: 0 | AV77: 0 | AW77: 0 | AX77: 0 | AY77: 0 | AZ77: 0 | BA77: 0 | BB77: 1076 | BC77: 1640 | BD77: 0 | BE77: 0 | BF77: 104930 | BG77: 0 | BH77: 0
A78: Trempealeau County Health Department | B78: 61 | C78: WRO | D78: 47755 | F78: 1506257 | G78: 14825 | H78: 0 | J78: 0 | K78: 0 | L78: 0 | M78: 0 | N78: 0 | O78: 0 | P78: 0 | Q78: 421500 | R78: 0 | S78: 0 | T78: 0 | U78: 41458 | V78: 4623 | W78: 3800 | X78: 0 | Y78: 0 | Z78: 0 | AA78: 586500 | AB78: 0 | AC78: 0 | AD78: 0 | AE78: 62200 | AF78: 10270 | AG78: 0 | AH78: 0 | AI78: 0 | AJ78: 19767 | AK78: 0 | AL78: 0 | AM78: 0 | AN78: 0 | AO78: 0 | AP78: 0 | AQ78: 78400 | AR78: 5303 | AS78: 0 | AT78: 0 | AU78: 0 | AV78: 16890 | AW78: 0 | AX78: 0 | AY78: 0 | AZ78: 0 | BA78: 0 | BB78: 3116 | BC78: 2490 | BD78: 10000 | BE78: 0 | BF78: 239940 | BG78: 0 | BH78: 0
A79: Vernon County Health Department | B79: 62 | C79: SRO | D79: 47756 | F79: 1433839 | G79: 16186 | H79: 0 | J79: 0 | K79: 0 | L79: 0 | M79: 0 | N79: 0 | O79: 0 | P79: 0 | Q79: 427100 | R79: 0 | S79: 0 | T79: 0 | U79: 42411 | V79: 0 | W79: 3800 | X79: 0 | Y79: 0 | Z79: 0 | AA79: 595800 | AB79: 0 | AC79: 0 | AD79: 0 | AE79: 63400 | AF79: 9593 | AG79: 0 | AH79: 0 | AI79: 0 | AJ79: 21581 | AK79: 0 | AL79: 0 | AM79: 0 | AN79: 0 | AO79: 0 | AP79: 0 | AQ79: 79300 | AR79: 400 | AS79: 0 | AT79: 0 | AU79: 0 | AV79: 13731 | AW79: 0 | AX79: 0 | AY79: 0 | AZ79: 0 | BA79: 0 | BB79: 1351 | BC79: 2562 | BD79: 10000 | BE79: 0 | BF79: 162810 | BG79: 0 | BH79: 0
A80: Vilas County Health Department | B80: 63 | C80: NRO | D80: 47757 | F80: 1134581 | G80: 6307 | H80: 0 | J80: 0 | K80: 0 | L80: 0 | M80: 0 | N80: 0 | O80: 0 | P80: 0 | Q80: 376600 | R80: 0 | S80: 0 | T80: 0 | U80: 38534 | V80: 3148 | W80: 3500 | X80: 0 | Y80: 56 | Z80: 0 | AA80: 511500 | AB80: 0 | AC80: 0 | AD80: 0 | AE80: 52500 | AF80: 6446 | AG80: 0 | AH80: 0 | AI80: 0 | AJ80: 8409 | AK80: 0 | AL80: 0 | AM80: 0 | AN80: 0 | AO80: 0 | AP80: 0 | AQ80: 70900 | AR80: 6062 | AS80: 0 | AT80: 0 | AU80: 0 | AV80: 0 | AW80: 0 | AX80: 0 | AY80: 0 | AZ80: 0 | BA80: 0 | BB80: 569 | BC80: 1067 | BD80: 0 | BE80: 0 | BF80: 55290 | BG80: 0 | BH80: 0
A81: Walworth County Health Department CC | B81: 64 | C81: SERO | D81: 47758 | F81: 2928856 | G81: 22362 | H81: 0 | J81: 0 | K81: 0 | L81: 0 | M81: 0 | N81: 0 | O81: 0 | P81: 0 | Q81: 849900 | R81: 0 | S81: 0 | T81: 0 | U81: 72868 | V81: 10475 | W81: 7000 | X81: 0 | Y81: 0 | Z81: 0 | AA81: 1302200 | AB81: 0 | AC81: 0 | AD81: 0 | AE81: 155200 | AF81: 19295 | AG81: 0 | AH81: 0 | AI81: 0 | AJ81: 29816 | AK81: 0 | AL81: 0 | AM81: 0 | AN81: 0 | AO81: 0 | AP81: 0 | AQ81: 149300 | AR81: 9754 | AS81: 0 | AT81: 0 | AU81: 0 | AV81: 16561 | AW81: 0 | AX81: 0 | AY81: 0 | AZ81: 0 | BA81: 0 | BB81: 3382 | BC81: 6118 | BD81: 12907 | BE81: 0 | BF81: 284080 | BG81: 0 | BH81: 0
A82: Washburn County Health and Human Services Department | B82: 65 | C82: WRO | D82: 47759 | F82: 1068297 | G82: 5513 | H82: 3000 | J82: 0 | K82: 0 | L82: 0 | M82: 6033 | N82: 0 | O82: 0 | P82: 0 | Q82: 342700 | R82: 0 | S82: 0 | T82: 0 | U82: 26831 | V82: 3526 | W82: 3200 | X82: 0 | Y82: 0 | Z82: 0 | AA82: 454800 | AB82: 15000 | AC82: 0 | AD82: 0 | AE82: 45100 | AF82: 5730 | AG82: 0 | AH82: 0 | AI82: 0 | AJ82: 7350 | AK82: 0 | AL82: 0 | AM82: 0 | AN82: 0 | AO82: 0 | AP82: 0 | AQ82: 65300 | AR82: 5721 | AS82: 0 | AT82: 0 | AU82: 0 | AV82: 0 | AW82: 0 | AX82: 0 | AY82: 0 | AZ82: 0 | BA82: 0 | BB82: 1196 | BC82: 1450 | BD82: 0 | BE82: 0 | BF82: 84360 | BG82: 0 | BH82: 0
A83: Washington Ozaukee Public Health Department CC | B83: 45 | C83: SERO | D83: 47738 | F83: 5399513 | G83: 32039 | H83: 0 | J83: 0 | K83: 0 | L83: 0 | M83: 0 | N83: 0 | O83: 0 | P83: 0 | Q83: 1552400 | R83: 0 | S83: 47751 | T83: 0 | U83: 140152 | V83: 9677 | W83: 12300 | X83: 0 | Y83: 0 | Z83: 0 | AA83: 2525600 | AB83: 0 | AC83: 0 | AD83: 0 | AE83: 307600 | AF83: 32118 | AG83: 0 | AH83: 0 | AI83: 0 | AJ83: 42718 | AK83: 0 | AL83: 0 | AM83: 0 | AN83: 0 | AO83: 0 | AP83: 0 | AQ83: 265500 | AR83: 13860 | AS83: 0 | AT83: 7258 | AU83: 0 | AV83: 0 | AW83: 0 | AX83: 2625 | AY83: 0 | AZ83: 0 | BA83: 0 | BB83: 4248 | BC83: 6523 | BD83: 16069 | BE83: 0 | BF83: 354276 | BG83: 55925 | BH83: 2913
A84: Watertown Department of Public Health | B84: 472951 | C84: SRO | D84: 47760 | F84: 1126422 | G84: 6635 | H84: 0 | J84: 0 | K84: 0 | L84: 0 | M84: 0 | N84: 0 | O84: 0 | P84: 0 | Q84: 389700 | R84: 0 | S84: 0 | T84: 0 | U84: 34978 | V84: 3564 | W84: 3600 | X84: 0 | Y84: 0 | Z84: 0 | AA84: 533300 | AB84: 0 | AC84: 0 | AD84: 0 | AE84: 55300 | AF84: 6123 | AG84: 0 | AH84: 0 | AI84: 0 | AJ84: 8847 | AK84: 0 | AL84: 0 | AM84: 0 | AN84: 0 | AO84: 0 | AP84: 0 | AQ84: 73100 | AR84: 10936 | AS84: 0 | AT84: 6974 | AU84: 0 | AV84: 0 | AW84: 0 | AX84: 0 | AY84: 0 | AZ84: 0 | BA84: 0 | BB84: 0 | BC84: 0 | BD84: 0 | BE84: 0 | BF84: 0 | BG84: 0 | BH84: 0
A85: Waukesha County Public Health Department CC | B85: 67 | C85: SERO | D85: 47761 | F85: 8845621 | G85: 53715 | H85: 0 | J85: 0 | K85: 0 | L85: 0 | M85: 0 | N85: 0 | O85: 0 | P85: 0 | Q85: 2580600 | R85: 0 | S85: 78864 | T85: 0 | U85: 182589 | V85: 14803 | W85: 20000 | X85: 0 | Y85: 176597 | Z85: 0 | AA85: 4193500 | AB85: 0 | AC85: 0 | AD85: 17000 | AE85: 530700 | AF85: 54988 | AG85: 0 | AH85: 0 | AI85: 0 | AJ85: 71620 | AK85: 0 | AL85: 0 | AM85: 0 | AN85: 0 | AO85: 0 | AP85: 0 | AQ85: 435600 | AR85: 20290 | AS85: 0 | AT85: 0 | AU85: 0 | AV85: 15918 | AW85: 0 | AX85: 0 | AY85: 0 | AZ85: 0 | BA85: 0 | BB85: 4465 | BC85: 8819 | BD85: 22743 | BE85: 0 | BF85: 416525 | BG85: 0 | BH85: 0
A86: Waupaca County Human Services, Health Services Division CC | B86: 68 | C86: NERO | D86: 47762 | F86: 1927320 | G86: 12354 | H86: 3000 | J86: 0 | K86: 0 | L86: 0 | M86: 6033 | N86: 0 | O86: 0 | P86: 0 | Q86: 552400 | R86: 0 | S86: 0 | T86: 1800 | U86: 50561 | V86: 6834 | W86: 4800 | X86: 0 | Y86: 0 | Z86: 0 | AA86: 805200 | AB86: 15000 | AC86: 0 | AD86: 0 | AE86: 90600 | AF86: 11315 | AG86: 0 | AH86: 0 | AI86: 0 | AJ86: 16472 | AK86: 0 | AL86: 0 | AM86: 0 | AN86: 0 | AO86: 0 | AP86: 0 | AQ86: 100000 | AR86: 6755 | AS86: 0 | AT86: 0 | AU86: 0 | AV86: 32305 | AW86: 0 | AX86: 0 | AY86: 0 | AZ86: 0 | BA86: 0 | BB86: 2549 | BC86: 3637 | BD86: 10000 | BE86: 0 | BF86: 211059 | BG86: 0 | BH86: 0
A87: Waushara County Health Department | B87: 69 | C87: NERO | D87: 47763 | F87: 1058513 | G87: 8663 | H87: 3000 | J87: 0 | K87: 0 | L87: 0 | M87: 0 | N87: 0 | O87: 0 | P87: 0 | Q87: 392100 | R87: 0 | S87: 0 | T87: 0 | U87: 38759 | V87: 3342 | W87: 3600 | X87: 0 | Y87: 0 | Z87: 0 | AA87: 411870 | AB87: 15000 | AC87: 0 | AD87: 0 | AE87: 55800 | AF87: 7661 | AG87: 0 | AH87: 0 | AI87: 0 | AJ87: 11550 | AK87: 0 | AL87: 0 | AM87: 0 | AN87: 0 | AO87: 31754 | AP87: 0 | AQ87: 73500 | AR87: 6300 | AS87: 0 | AT87: 7277 | AU87: 0 | AV87: 0 | AW87: 0 | AX87: 0 | AY87: 0 | AZ87: 0 | BA87: 0 | BB87: 0 | BC87: 0 | BD87: 0 | BE87: 0 | BF87: 0 | BG87: 0 | BH87: 0
A88: Wauwatosa Health Department | B88: 472969 | C88: SERO | D88: 47764 | F88: 1624907 | G88: 10254 | H88: 0 | J88: 0 | K88: 0 | L88: 0 | M88: 0 | N88: 0 | O88: 0 | P88: 0 | Q88: 531900 | R88: 0 | S88: 14335 | T88: 0 | U88: 43462 | V88: 3170 | W88: 4600 | X88: 0 | Y88: 43078 | Z88: 0 | AA88: 770900 | AB88: 0 | AC88: 0 | AD88: 0 | AE88: 86200 | AF88: 11612 | AG88: 0 | AH88: 0 | AI88: 0 | AJ88: 13672 | AK88: 0 | AL88: 0 | AM88: 0 | AN88: 0 | AO88: 0 | AP88: 0 | AQ88: 96600 | AR88: 5378 | AS88: 0 | AT88: 0 | AU88: 0 | AV88: 0 | AW88: 0 | AX88: 0 | AY88: 0 | AZ88: 0 | BA88: 0 | BB88: 0 | BC88: 0 | BD88: 0 | BE88: 0 | BF88: 0 | BG88: 0 | BH88: 0
A89: West Allis Health Department | B89: 256545 | C89: SERO | D89: 47765 | F89: 2906941 | G89: 20377 | H89: 0 | J89: 0 | K89: 0 | L89: 0 | M89: 0 | N89: 0 | O89: 0 | P89: 0 | Q89: 622900 | R89: 0 | S89: 19765 | T89: 0 | U89: 52950 | V89: 11382 | W89: 5400 | X89: 0 | Y89: 0 | Z89: 0 | AA89: 922900 | AB89: 0 | AC89: 0 | AD89: 0 | AE89: 105900 | AF89: 16056 | AG89: 0 | AH89: 0 | AI89: 0 | AJ89: 27169 | AK89: 0 | AL89: 0 | AM89: 0 | AN89: 0 | AO89: 24796 | AP89: 0 | AQ89: 111700 | AR89: 8904 | AS89: 0 | AT89: 0 | AU89: 0 | AV89: 23804 | AW89: 0 | AX89: 0 | AY89: 0 | AZ89: 0 | BA89: 0 | BB89: 10285 | BC89: 19646 | BD89: 45490 | BE89: 0 | BF89: 877894 | BG89: 0 | BH89: 0
A90: Winnebago County Health Department | B90: 70 | C90: NERO | D90: 47766 | F90: 3911258 | G90: 32225 | H90: 0 | J90: 0 | K90: 0 | L90: 0 | M90: 0 | N90: 0 | O90: 0 | P90: 0 | Q90: 1146000 | R90: 0 | S90: 0 | T90: 0 | U90: 139052 | V90: 13536 | W90: 9300 | X90: 0 | Y90: 18241 | Z90: 0 | AA90: 1796800 | AB90: 0 | AC90: 0 | AD90: 13000 | AE90: 219400 | AF90: 27868 | AG90: 0 | AH90: 0 | AI90: 0 | AJ90: 42966 | AK90: 0 | AL90: 0 | AM90: 85000 | AN90: 0 | AO90: 35000 | AP90: 0 | AQ90: 198200 | AR90: 12938 | AS90: 0 | AT90: 0 | AU90: 0 | AV90: 16561 | AW90: 0 | AX90: 0 | AY90: 0 | AZ90: 0 | BA90: 0 | BB90: 0 | BC90: 0 | BD90: 0 | BE90: 0 | BF90: 0 | BG90: 130075 | BH90: 7321
A91: Wood County Health Department | B91: 71 | C91: NRO | D91: 47767 | F91: 2521924 | G91: 20324 | H91: 0 | J91: 0 | K91: 0 | L91: 0 | M91: 0 | N91: 0 | O91: 0 | P91: 0 | Q91: 682800 | R91: 0 | S91: 0 | T91: 0 | U91: 59722 | V91: 8862 | W91: 5800 | X91: 0 | Y91: 0 | Z91: 0 | AA91: 1023000 | AB91: 0 | AC91: 0 | AD91: 0 | AE91: 118900 | AF91: 16930 | AG91: 0 | AH91: 0 | AI91: 0 | AJ91: 27099 | AK91: 0 | AL91: 0 | AM91: 0 | AN91: 0 | AO91: 0 | AP91: 0 | AQ91: 121600 | AR91: 19115 | AS91: 0 | AT91: 5663 | AU91: 0 | AV91: 18061 | AW91: 0 | AX91: 0 | AY91: 0 | AZ91: 0 | BA91: 0 | BB91: 4151 | BC91: 7885 | BD91: 22000 | BE91: 0 | BF91: 380336 | BG91: 0 | BH91: 0
A94: TOTAL | F94: 197082879 | G94: 1992156 | H94: 296719 | J94: 31500 | K94: 36000 | L94: 225000 | M94: 271525 | N94: 81000 | O94: 81000 | P94: 104092 | Q94: 56063400 | R94: 55000 | S94: 626957 | T94: 12900 | U94: 5088616 | V94: 774124 | W94: 476200 | X94: 142026 | Y94: 551999 | Z94: 53606 | AA94: 80109196 | AB94: 120000 | AC94: 115000 | AD94: 626000 | AE94: 9620500 | AF94: 1447000 | AG94: 222700 | AH94: 399342 | AI94: 171401 | AJ94: 2389017 | AK94: 337300 | AL94: 53862 | AM94: 510992 | AN94: 73116 | AO94: 649541 | AP94: 80000 | AQ94: 10026900 | AR94: 697972 | AS94: 12303 | AT94: 122809 | AU94: 160000 | AV94: 658765 | AW94: 900500 | AX94: 118763 | AY94: 4094012 | AZ94: 10000 | BA94: 1357558 | BB94: 162115 | BC94: 260657 | BD94: 727824 | BE94: 12000 | BF94: 14533528 | BG94: 1321425 | BH94: 305836

Sheet Grid
A1: ATTACHMENT #1 - CY21 DPH CONSOLIDATED CONTRACTS GRID
A3: Program | B3: Fund Source | C3: Funding Period | D3: Funding Control | E3: Profile ID (LPHD/Tribal) | F3: 2020 Total Amount Allocated | G3: 2020 Amount Allocated to LPHDs | H3: 2021 Estimated Allocation | I3: Change from 2019 to 2020 | J3: Consolidated Tribal Allocation (Y/N) | K3: Formula Driven Allocation (Y/N) | L3: Using GAC for Negotiations/ Monitoring (Y/N) | M3: Negotiated Objectives (Y/N) | N3: Mid-Year Reviews (Y/N) | O3: Year-End Reviews (Y/N) | P3: Tracking/Reporting Application/System/ Method | Q3: Reviews Performed By: | R3: Face-to-Face Reviews (Y/N) | S3: Estimated Time per Review | T3: Program Managers
A4: Non-Negotiated Objectives
A5: Lead | B5: GPR | C5: 01/01/21 - 12/31/21 | D5: 6/12ths | E5: 157720 | F5: 769700 | G5: 769700 | H5: 769700 | I5: =(H5-G5)/G5 -> 0 | J5: N | K5: Y | L5: Y | M5: Y | N5: N | O5: Y | P5: Reports faxed or emailed | Q5: Central Office Program Staff | R5: N | S5: N/A | T5: Margie Coons (Marjorie.Coons@wi.gov)
A6: Radon RICs | B6: FED | C6: 01/01/21 - 12/31/21 | D6: - | E6: 150321 | F6: 151618 | G6: 151618 | H6: 151618 | I6: =(H6-G6)/G6 -> 0 | J6: N | K6: N | L6: N | M6: N | N6: N | O6: N | P6: reports emailed | Q6: N/A | R6: N | S6: N/A | T6: Jessica Maloney (Jessica.Maloney@wi.gov)
A7: Radon Information Centers | B7: GPR | C7: 01/01/21 - 12/31/21 | D7: 6/12ths | E7: 103010 | F7: 26700 | G7: 26700 | H7: 26700 | I7: =(H7-G7)/G7 -> 0 | J7: N | K7: N | L7: N | M7: N | N7: N | O7: N | P7: reports emailed | Q7: N/A | R7: N | S7: N/A | T7: Jessica Maloney (Jessica.Maloney@wi.gov)
A8: Radon Outreach | B8: FED | C8: 01/01/21 - 12/31/21 | D8: - | E8: 150327 | F8: 0 | G8: 0 | H8: 0 | I8: 0 | J8: N | K8: N | L8: N | M8: N | N8: N | O8: N | P8: N/A | Q8: N/A | R8: N | S8: N/A | T8: Jessica Maloney (Jessica.Maloney@wi.gov)
A9: WWWP | B9: GPR/FED | C9: 07/01/21 - 06/30/22 | D9: - | E9: 157010 & 157008/65505 | F9: 1408221 | G9: 1291425 | H9: 1291425 | I9: =(H9-G9)/G9 -> 0 | J9: Y $116,796 | K9: Y | L9: Y | M9: N | N9: N | O9: Y | P9: GAC | Q9: Central Office Program Staff | R9: N | S9: N/A | T9: Gale Johnson (Gale.Johnson@wi.gov)
A10: PHEP | B10: FED | C10: 07/01/21 - 06/30/22 | D10: - | E10: 155015/65596 | F10: 5264967 | G10: 4964194 | H10: 4964194 | I10: =(H10-G10)/G10 -> 0 | J10: Y $300,773 | K10: Y | L10: N | M10: N | N10: Y | O10: Y | P10: CPG (Capabilities Planning Guide), Contract Deliverables & Attendance at Exercises | Q10: Central Office Program Staff | R10: Y | S10: 30-60 minutes | T10: Dana Wallace (Dana.Wallace@wisconsin.gov)
A11: Cities Readiness | B11: FED | C11: 07/01/21 - 06/30/22 | D11: - | E11: 155190 | F11: 507547 | G11: 507547 | H11: 507547 | I11: 0 | J11: N | K11: Y | L11: N | M11: N | N11: N | O11: Y | P11: TAR (Technical Assistance Review) & POD (Point of Dispensing) | Q11: Central Office Program Staff | R11: Y | S11: 7 hours (includes drive time) | T11: Dana Wallace (Dana.Wallace@wisconsin.gov)
A12: HPP | B12: FED | C12: 07/01/21 - 06/30/22 | D12: - | E12: 155170 | G12: 628000 | H12: 628000 | I12: 0 | J12: N | K12: Y | L12: N | M12: N | N12: Y | O12: Y | P12: CPG (Capabilities Planning Guide), Contract Deliverables & Attendance at Exercises | Q12: Central Office Program Staff | R12: Y | S12: 30-60 minutes | T12: Dana Wallace (Dana.Wallace@wisconsin.gov)
A13: Comm Disease Control and Prev | C13: 07/01/21 - 06/30/22 | E13: 155800 | J13: Y | K13: Y | L13: N | M13: N
A14: Tobacco | B14: GPR | C14: 01/01/21 - 12/31/21 | D14: 6/12ths | E14: 181010/65578 | F14: 895336 | G14: 778936 | H14: 778936 | I14: 0 | J14: Y $116,400 | K14: N | L14: N | M14: N | N14: Y | O14: Y | P14: Web-Based Activity Tracker | Q14: Central Office Program Staff | R14: Y | S14: 2 hours | T14: Vicki Huntington (Vicki.Huntington@wi.gov)
A15: WI WINS | B15: GPR | C15: 01/01/21 - 12/31/21 | D15: 6/12ths | E15: 181004 | F15: 113369 | G15: 113369 | H15: 113369 | I15: 0 | J15: N | K15: Y | L15: N | M15: N | N15: Y | O15: Y | P15: Web-Based Activity Tracker | Q15: Central Office Program Staff | R15: Y | S15: 1 hour | T15: Vicki Huntington (Vicki.Huntington@wi.gov)
A16: WIC | B16: FED | C16: 01/01/21 - 12/31/21 | D16: 9/12ths | E16: 154710/65585 | F16: 14790160 | G16: 14281420 | H16: 14281420 | I16: 0 | J16: Y $508,740 | K16: Y | L16: N | M16: N | N16: Y / every 2 yrs | O16: Y / every 2 yrs | P16: Management Evaluation Tools | Q16: Program Field Staff | R16: Y | S16: 2-3 days plus travel | T16: Kari Malone (Kari.Malone@wi.gov)
A17: TEFAP | B17: FED | C17: 10/01/21 - 09/30/22 | D17: - | E17: 65590 | F17: 1500 | J17: Y $1,500 | K17: Y | L17: N | M17: N | N17: N | O17: Y 25% of contracts each year | P17: Management Evaluation Tools | Q17: Central Office Program Staff | R17: Y | S17: 1 day plus travel | T17: Kitty Kocol (Kitty.Kocol@wi.gov)
A18: SNAP-ED (PO or on WIC contract) | B18: FED | C18: 10/01/21 - 09/30/22 | D18: - | E18: 154661/65691 | F18: 1045774 | G18: 600158 | H18: 642146 | I18: =(H18-G18)/G18 -> 0.06996157678 | J18: Y $495,616 | K18: Y | L18: N | M18: N | N18: Y / every 6 yrs | O18: Y / every 6 yrs | P18: Management Evaluation Tools | Q18: Central Office Program Staff | R18: Y | S18: 1 day plus travel | T18: Tony Zech (Anthony.Zech@wi.gov)
A19: WIC Farmers Market | B19: FED | C19: 01/01/21 - 12/31/21 | D19: 6/12ths | E19: 154720/65586 | F19: 128553 | G19: 124207 | H19: 124207 | I19: 0 | J19: Y $4,346 | L19: N | M19: N | N19: Y / every 2 yrs | O19: Y / every 2 yrs | P19: Management Evaluation Tools | Q19: Program Field Staff | R19: Y | S19: 2-3 days plus travel | T19: Kari Malone (Kari.Malone@wi.gov)
A20: WIC Peer Counseling | B20: FED | C20: 01/01/21 - 12/31/21 | D20: 9/12ths | E20: 154760/65581 | F20: 108877 | G20: 102276 | H20: 102276 | I20: 0 | J20: Y $6,601 | L20: N | M20: N | N20: Y / every 2 yrs | O20: Y / every 2 yrs | P20: Management Evaluation Tools | Q20: Program Field Staff | R20: Y | S20: 2-3 days plus travel | T20: Kari Malone (Kari.Malone@wi.gov)
A21: Chronic Disease - Domain 2 NPAO | B21: FED | C21: 07/01/21 - 06/30/22 | D21: - | E21: 155671 | F21: 24000 | G21: 24000 | H21: 24000 | I21: 0 | J21: N | K21: N | L21: N | M21: N | N21: N | O21: Y | P21: Reports Emailed | Q21: Central Office Program Staff | R21: N | S21: 30-60 minutes | T21: Mary Pesik (Mary.Pesik@wi.gov)
A22: Infertility Prevention | B22: FED | C22: 01/01/21 - 12/31/21 | D22: - | E22: 155027 | F22: 223715 | G22: 223715 | H22: 223715 | I22: 0 | J22: N | K22: N | L22: N | M22: N | N22: Yes, based on objectives. | O22: Yes, based on objectives. | P22: None | Q22: Scott Stokes | R22: Yes | S22: 20 hours | T22: Scott Stokes (Scott.Stokes@dhs.wi.gov)
A23: Asthma | B23: FED | C23: 09/01/20 - 08/31/21 | E23: 155072 | F23: 75000 | G23: 75000 | H23: 75000 | I23: 0 | J23: N | K23: N | L23: N | M23: N | N23: N | O23: N | P23: Reports and Database Submission | Q23: N/A | R23: N | S23: N/A | T23: Cristine Rameker (cristine.rameker@wi.gov)
A24: Trauma (RTACs) | B24: GPR | C24: 7/1/20 - 6/30/21 | D24: - | E24: 153311 | F24: 204200 | G24: 38739 | H24: 38696 | I24: 0.03 | J24: N | K24: Y | L24: N | M24: Y | N24: Y | O24: Y | P24: CARS | Q24: Program Staff | R24: N | S24: 1 hour | T24: Caitlin Washburn (Caitlin.washburn@wi.gov)
A25: Negotiated Objectives
A26: Immunization | B26: FED | C26: 01/01/21 - 12/31/21 | D26: 3/12ths | E26: 155020/65550 | F26: 1467077 | G26: 1425208 | H26: 1425208 | I26: =(H26-G26)/G26 -> 0 | J26: Y $41,869 | K26: Y | L26: Y | M26: Y | N26: Y | O26: Y | P26: WIR | Q26: Program Field Staff | R26: Y | S26: 6-7 Hours | T26: Stephanie Schauer (Stephanie.Schauer@wi.gov)
A27: MCH | B27: FED | C27: 01/01/21 - 12/31/21 | D27: 6/12ths | E27: 159320/159322; 193002 for MCH Match | F27: 2609661 | G27: 2609661 | H27: 2678396 | I27: 0.02633867004 | J27: Y $244,006 | K27: Y | L27: Y | M27: Y | N27: Y | O27: Y | P27: GAC | Q27: Central Office Program Staff | R27: Y | S27: 1-2 hours to drive | T27: Ashley Bergeron (ashley.bergeron@wi.gov)
A28: CYSHCN | B28: FED | C28: 01/01/21 - 12/31/21 | D28: - | E28: 159332/65564; 193001 for CYSHCN Match | F28: 373201 | G28: 293201 | H28: 373201 | I28: 0.2728503654 | J28: Y $80,000 | K28: Y | L28: Y | M28: Y | N28: Y | O28: Y | P28: GAC/SPHERE | Q28: Central Office Program Staff | R28: Y | S28: 1-2 hours drive time | T28: Sharon Fleischfresser (Sharon.Fleischfresser@wi.gov)
A29: Reproductive Health | B29: GPR/FED | C29: 01/01/21 - 12/31/21 | D29: 6/12ths | E29: 159321; 159327; 152020; 152002/65560 | F29: 2560587 | G29: 1943940 | H29: Hold for Title X Application results | J29: Y $27,160 | K29: N | L29: N | M29: Y | N29: Y | O29: Y | P29: REDCap or Local Information System | Q29: Central Office Program Staff | R29: Y | S29: 4-6 hours one-way travel time and 2-3 hours review time | T29: Karen Morris (KarenJ.Morris@wi.gov)
E30: Earned Match - 193996 | P30: CARS
E31: Expended Match - 193997 | P31: CARS
A32: HIV/AIDS Prevention & Linkage (PS County) | B32: FED | C32: 01/01/21 - 12/31/21 | D32: 3/12ths | E32: 155957 | F32: 224000 | G32: 224000 | H32: 224000 | I32: 0 | J32: N | K32: Y | L32: N | M32: N | N32: Y | O32: N | P32: Y | Q32: Program staff | R32: Y | S32: 1 hour | T32: Vipul Shukla (Vipul.Shukla@dhs.wi.gov)
A33: HIV/AIDS Prevention (Milwaukee) | B33: FED | D33: - | E33: 155957 | F33: 197000 | G33: 197000 | H33: 197000 | I33: 0 | J33: N | K33: N | L33: N | M33: N | N33: Y | O33: N | P33: Y | Q33: Program staff | R33: Y | S33: 4 hours | T33: Jacob Dougherty (jacob.dougherty@dhs.wis.gov)
A34: Prevention | B34: FED | C34: 10/01/19 - 09/30/21 | D34: - | E34: 159220/65520 | F34: 730000 | G34: 689960 | H34: 689960 | I34: 0 | J34: Y $55,000 | K34: Y | L34: N | M34: Y | N34: Y | O34: Y | P34: Phone or Visits | Q34: Regional OPPA Staff | R34: Y | S34: 1 hour | T34: Jessica Kessler (jessica.kessler@wi.gov)
A36: (Note: The Department’s Tribal Affairs Office takes the lead for all prepacket creation for tribal contract.)

Sheet Contract Monitors
A1: Local Public Health Department and Tribal Contract Monitors | F1: 2020-10-19
A2: For 2020 & 2021 Consolidated Contracting
A3: Agcy No | B3: County | C3: Reg | D3: Agency | E3: LPHD Level | F3: Prevention Block Grant | G3: Lead | H3: Radon RICs | I3: WWWP | J3: Immunization | K3: Perinatal Hepatitis B | L3: Tobacco | M3: WI WINS | N3: WIC | O3: TEFAP | P3: SNAP-ED (LHDs on WIC contract) | Q3: MCH | R3: CYSHCN | S3: Reproductive Health | T3: Chronic Disease 1815 | U3: Chronic Disease 1817 | V3: Diabetes | W3: PHEP | X3: Cities Readiness | Y3: HIV/AIDS Prevention & Linkage (PS County) | Z3: Ryan White | AA3: Cooperative American Indian | AB3: Asthma | AC3: Trauma
A4: 1 | B4: ADAMS | C4: S | D4: Adams County Public Health Department | E4: 3 | F4: Sheri Siemers | G4: Jeff Raiche-Gill | H4: N/A | I4: Courtney Newman | J4: Wilmot Valhmu | K4: N/A | L4: N/A | M4: N/A | N4: N/A | O4: N/A | P4: N/A | Q4: Rosecky, Mary | R4: N/A | S4: N/A | V4: N/A | W4: Dana Wallace | X4: N/A | Y4: N/A | Z4: N/A | AA4: N/A | AB4: N/A | AC4: N/A
A5: 449983 | B5: OUTAGAMIE | C5: NE | D5: Appleton City Health Department | E5: 3 | F5: Janet Kazmierczak | G5: Margie Coons | H5: N/A | I5: Courtney Newman | J5: Susan Nelson | K5: N/A | L5: N/A | M5: N/A | N5: N/A | O5: N/A | P5: N/A | Q5: Rosecky, Mary | R5: N/A | S5: N/A | V5: N/A | W5: Dana Wallace | X5: N/A | Y5: N/A | Z5: N/A | AA5: N/A | AB5: N/A | AC5: N/A
A6: 2 | B6: ASHLAND | C6: N | D6: Ashland County Health & Human Services Department | E6: 3 | F6: Jim Lawrence | G6: Kim Schneider | H6: N/A | I6: Courtney Newman | J6: Christie Oestreich | K6: N/A | L6: N/A | M6: N/A | N6: N/A | O6: N/A | P6: N/A | Q6: Heinz, Melissa D | R6: N/A | S6: Karen Morris | V6: N/A | W6: Dana Wallace | X6: N/A | Y6: N/A | Z6: N/A | AA6: N/A | AB6: N/A | AC6: N/A
A7: 3 | B7: BARRON | C7: W | D7: Barron County Health and Human Services Department | E7: 2 | F7: Christa Cupp | G7: Jeff Raiche-Gill | H7: N/A | I7: Courtney Newman | J7: Jim Zanto | K7: N/A | L7: N/A | M7: Nancy Michaud | N7: Christina Hinkley | O7: N/A | P7: Anthony Zech | Q7: Molly Holdorf | R7: N/A | S7: Karen Morris | V7: N/A | W7: Dana Wallace | X7: N/A | Y7: N/A | Z7: N/A | AA7: N/A | AB7: N/A | AC7: N/A
A8: 4 | B8: BAYFIELD | C8: N | D8: Bayfield County Health Department | E8: 3 | F8: Jim Lawrence | G8: Kim Schneider | H8: N/A | I8: Courtney Newman | J8: Christie Oestreich | K8: N/A | L8: N/A | M8: N/A | N8: Christina Hinkley | O8: N/A | P8: Anthony Zech | Q8: Heinz, Melissa D | R8: N/A | S8: Karen Morris | V8: N/A | W8: Dana Wallace | X8: N/A | Y8: N/A | Z8: N/A | AA8: N/A | AB8: N/A | AC8: N/A
A9: 256099 | B9: DANE | C9: S | D9: Board of Health for Madison and Dane County on behalf of Public Health Madison and Dane County | E9: 3 | F9: Christina Beach-Baumgartner | G9: Jeff Raiche-Gill | H9: Jessica Maloney | I9: Courtney Newman | J9: Wilmot Valhmu | K9: N/A | L9: N/A | M9: Nancy Michaud | N9: Christina Hinkley | O9: N/A | P9: N/A | Q9: Meyer, Shawn R | R9: N/A | S9: Karen Morris | V9: N/A | W9: Dana Wallace | X9: N/A | Y9: N/A | Z9: N/A | AA9: N/A | AB9: N/A | AC9: N/A
A10: 5 | B10: BROWN | C10: NE | D10: Brown County Health Department | E10: 3 | F10: Janet Kazmierczak | G10: Margie Coons | H10: N/A | I10: Courtney Newman | J10: Susan Nelson | K10: N/A | L10: N/A | M10: N/A | N10: N/A | O10: N/A | P10: N/A | Q10: Heinz, Melissa D | R10: N/A | S10: N/A | T10: Mary Pesik | V10: N/A | W10: Dana Wallace | X10: N/A | Y10: Vipul Shukla | Z10: N/A | AA10: N/A | AB10: N/A | AC10: N/A
A11: 6 | B11: BUFFALO | C11: W | D11: Buffalo County Health & Human Services Department | E11: 2 | F11: Joe Larson | G11: Jeff Raiche-Gill | H11: N/A | I11: Courtney Newman | J11: Jim Zanto | K11: N/A | L11: N/A | M11: N/A | N11: Christina Hinkley | O11: N/A | P11: Anthony Zech | Q11: Molly Holdorf | R11: N/A | S11: Karen Morris | V11: N/A | W11: Dana Wallace | X11: N/A | Y11: N/A | Z11: N/A | AA11: N/A | AB11: N/A | AC11: N/A
A12: 7 | B12: BURNETT | C12: W | D12: Burnett County Department of Health & Human Services | E12: 2 | F12: Christa Cupp | G12: Jeff Raiche-Gill | H12: N/A | I12: Courtney Newman | J12: Jim Zanto | K12: N/A | L12: N/A | M12: N/A | N12: Christina Hinkley | O12: N/A | P12: N/A | Q12: Molly Holdorf | R12: N/A | S12: N/A | V12: N/A | W12: Dana Wallace | X12: N/A | Y12: N/A | Z12: N/A | AA12: N/A | AB12: N/A | AC12: N/A
A13: 8 | B13: CALUMET | C13: NE | D13: Calumet County Health Division | E13: 2 | F13: Janet Kazmierczak | G13: Margie Coons | H13: N/A | I13: Courtney Newman | J13: Susan Nelson | K13: N/A | L13: N/A | M13: N/A | N13: Christina Hinkley | O13: N/A | P13: N/A | Q13: Rosecky, Mary | R13: N/A | S13: N/A | V13: N/A | W13: Dana Wallace | X13: N/A | Y13: N/A | Z13: N/A | AA13: N/A | AB13: N/A | AC13: N/A
A14: 3960058125 | B14: RACINE | C14: SE | D14: Central Racine County Health Department | E14: 3 | F14: Deborah Heim | G14: Margie Coons | H14: N/A | I14: Courtney Newman | J14: Jacqueline Sills Ware | K14: N/A | L14: N/A | M14: N/A | N14: N/A | O14: N/A | P14: N/A | Q14: Meyer, Shawn R | R14: N/A | S14: N/A | V14: N/A | W14: Dana Wallace | X14: Dana Wallace | Y14: N/A | Z14: N/A | AA14: N/A | AB14: N/A | AC14: N/A
A15: 9 | B15: CHIPPEWA | C15: W | D15: Chippewa County Department of Public Health & Home Care | E15: 3 | F15: Christa Cupp | G15: Jeff Raiche-Gill | H15: N/A | I15: Courtney Newman | J15: Jim Zanto | K15: N/A | L15: N/A | M15: Nancy Michaud | N15: Christina Hinkley | O15: N/A | P15: Anthony Zech | Q15: Molly Holdorf | R15: Peggy Helm-Quest | S15: Karen Morris | U15: Mary Pesik | V15: N/A | W15: Dana Wallace | X15: N/A | Y15: N/A | Z15: N/A | AA15: N/A | AB15: N/A | AC15: N/A
A16: 10 | B16: CLARK | C16: W | D16: Clark County Health Department | E16: 2 | F16: Joe Larson | G16: Jeff Raiche-Gill | H16: N/A | I16: Courtney Newman | J16: Jim Zanto | K16: N/A | L16: N/A | M16: Nancy Michaud | N16: Christina Hinkley | O16: N/A | P16: N/A | Q16: Molly Holdorf | R16: N/A | S16: Karen Morris | V16: N/A | W16: Dana Wallace | X16: N/A | Y16: N/A | Z16: N/A | AA16: N/A | AB16: N/A | AC16: N/A
A17: 11 | B17: COLUMBIA | C17: S | D17: Columbia County Division of Health | E17: 2 | F17: Sheri Siemers | G17: Jeff Raiche-Gill | H17: N/A | I17: Courtney Newman | J17: Wilmot Valhmu | K17: N/A | L17: N/A | M17: N/A | N17: Christina Hinkley | O17: N/A | P17: Anthony Zech | Q17: Leah Ludlum | R17: N/A | S17: N/A | V17: N/A | W17: Dana Wallace | X17: N/A | Y17: N/A | Z17: N/A | AA17: N/A | AB17: N/A | AC17: N/A
A18: 12 | B18: CRAWFORD | C18: S | D18: Crawford County Public Health | E18: 2 | F18: Joe Larson | G18: Jeff Raiche-Gill | H18: N/A | I18: Courtney Newman | J18: Wilmot Valhmu | K18: N/A | L18: N/A | M18: N/A | O18: N/A | P18: N/A | Q18: Molly Holdorf | R18: N/A | S18: N/A | V18: N/A | W18: Dana Wallace | X18: N/A | Y18: N/A | Z18: N/A | AA18: N/A | AB18: N/A | AC18: N/A
A19: 472761 | B19: MILWAUKEE | C19: SE | D19: Cudahy Health Department | E19: 3 | F19: Curtis Marshall | G19: Margie Coons | H19: N/A | I19: Courtney Newman | J19: Monica Thakur | K19: N/A | L19: N/A | M19: N/A | N19: N/A | O19: N/A | P19: N/A | Q19: Meyer, Shawn R | R19: N/A | S19: N/A | V19: N/A | W19: Dana Wallace | X19: Dana Wallace | Y19: N/A | Z19: N/A | AA19: N/A | AB19: N/A | AC19: N/A
A20: 472779 | B20: BROWN | C20: NE | D20: De Pere Department of Public Health | E20: 2 | F20: Janet Kazmierczak | G20: Margie Coons | H20: N/A | I20: Courtney Newman | J20: Susan Nelson | K20: N/A | L20: N/A | M20: N/A | N20: N/A | O20: N/A | P20: N/A | Q20: Heinz, Melissa D | R20: N/A | S20: N/A | V20: N/A | W20: Dana Wallace | X20: N/A | Y20: N/A | Z20: N/A | AA20: N/A | AB20: N/A | AC20: N/A
A21: 14 | B21: DODGE | C21: S | D21: Dodge County Human Services & Health Department | E21: 2 | F21: Sheri Siemers | G21: Jeff Raiche-Gill | H21: N/A | I21: Courtney Newman | J21: Wilmot Valhmu | K21: N/A | L21: N/A | M21: N/A | N21: Christina Hinkley | O21: N/A | P21: N/A | Q21: Meyer, Shawn R | R21: N/A | S21: N/A | V21: N/A | W21: Dana Wallace | X21: N/A | Y21: N/A | Z21: N/A | AA21: N/A | AB21: N/A | AC21: N/A
A22: 15 | B22: DOOR | C22: NE | D22: Door County Health Department | E22: 2 | F22: Janet Kazmierczak | G22: Margie Coons | H22: N/A | I22: Courtney Newman | J22: Susan Nelson | K22: N/A | L22: N/A | M22: N/A | N22: Christina Hinkley | O22: N/A | P22: N/A | Q22: Heinz, Melissa D | R22: N/A | S22: N/A | V22: N/A | W22: Dana Wallace | X22: N/A | Y22: N/A | Z22: N/A | AA22: N/A | AB22: N/A | AC22: N/A
A23: 16 | B23: DOUGLAS | C23: W | D23: Douglas County Department of Health & Human Services | E23: 2 | F23: Christa Cupp | G23: Jeff Raiche-Gill | H23: N/A | I23: Courtney Newman | J23: Jim Zanto | K23: N/A | L23: N/A | M23: N/A | N23: N/A | O23: N/A | P23: N/A | Q23: Molly Holdorf | R23: N/A | S23: N/A | V23: N/A | W23: Dana Wallace | X23: N/A | Y23: N/A | Z23: N/A | AA23: N/A | AB23: N/A | AC23: N/A
A24: 17 | B24: DUNN | C24: W | D24: Dunn County Health Department | E24: 3 | F24: Christa Cupp | G24: Jeff Raiche-Gill | H24: Jessica Maloney | I24: Courtney Newman | J24: Jim Zanto | K24: N/A | L24: N/A | M24: N/A | N24: Christina Hinkley | O24: N/A | P24: Anthony Zech | Q24: Meyer, Shawn R | R24: N/A | S24: Karen Morris | U24: Mary Pesik | V24: N/A | W24: Dana Wallace | X24: N/A | Y24: N/A | Z24: N/A | AA24: N/A | AB24: N/A | AC24: N/A
A25: 256321 | B25: EAU CLAIRE | C25: W | D25: Eau Claire City/County Health Department | E25: 3 | F25: Christa Cupp | G25: Jeff Raiche-Gill | H25: Jessica Maloney | I25: Courtney Newman | J25: Jim Zanto | K25: N/A | L25: N/A | M25: Nancy Michaud | N25: Christina Hinkley | O25: N/A | P25: Anthony Zech | Q25: Meyer, Shawn R | R25: N/A | S25: Karen Morris | T25: Mary Pesik | U25: Mary Pesik | V25: N/A | W25: Dana Wallace | X25: N/A | Y25: Vipul Shukla | Z25: N/A | AA25: N/A | AB25: N/A | AC25: N/A
A26: 19 | B26: FLORENCE | C26: N | D26: Florence County Health Department | E26: 3 | F26: Jim Lawrence | G26: Kim Schneider | H26: N/A | I26: Courtney Newman | J26: Christie Oestreich | K26: N/A | L26: N/A | M26: N/A | N26: Christina Hinkley | O26: N/A | P26: N/A | Q26: Kruse, Terry L | R26: N/A | S26: Karen Morris | V26: N/A | W26: Dana Wallace | X26: N/A | Y26: N/A | Z26: N/A | AA26: N/A | AB26: N/A | AC26: N/A
A27: 20 | B27: FOND DU LAC | C27: NE | D27: Fond du Lac County Health Department | E27: 3 | F27: Janet Kazmierczak | G27: Margie Coons | H27: Jessica Maloney | I27: Courtney Newman | J27: Susan Nelson | K27: N/A | L27: N/A | M27: Nancy Michaud | N27: Christina Hinkley | O27: N/A | P27: Anthony Zech | Q27: Rosecky, Mary | R27: N/A | S27: Karen Morris | V27: N/A | W27: Dana Wallace | X27: N/A | Y27: N/A | Z27: N/A | AA27: N/A | AB27: N/A | AC27: N/A
A28: 21 | B28: FOREST | C28: N | D28: Forest County Health Department | E28: 2 | F28: Jim Lawrence | G28: Kim Schneider | H28: N/A | I28: Courtney Newman | J28: Christie Oestreich | K28: N/A | L28: N/A | M28: N/A | N28: Christina Hinkley | O28: N/A | P28: Anthony Zech | Q28: Rosecky, Mary | R28: N/A | S28: N/A | V28: N/A | W28: Dana Wallace | X28: N/A | Y28: N/A | Z28: N/A | AA28: N/A | AB28: N/A | AC28: N/A
A29: 472787 | B29: MILWAUKEE | C29: SE | D29: Franklin Health Department | E29: 2 | F29: Deborah Heim | G29: Margie Coons | H29: N/A | I29: Courtney Newman | J29: Monica Thakur | K29: N/A | L29: N/A | M29: N/A | N29: N/A | O29: N/A | P29: N/A | Q29: Meyer, Shawn R | R29: N/A | S29: N/A | V29: N/A | W29: Dana Wallace | X29: Dana Wallace | Y29: N/A | Z29: N/A | AA29: N/A | AB29: N/A | AC29: N/A
A30: 22 | B30: GRANT | C30: S | D30: Grant County Health Department | E30: 3 | F30: Christina Beach-Baumgartner | G30: Jeff Raiche-Gill | H30: Jessica Maloney | I30: Courtney Newman | J30: Wilmot Valhmu | K30: N/A | L30: N/A | M30: N/A | N30: Christina Hinkley | O30: N/A | P30: N/A | Q30: Heinz, Melissa D | R30: N/A | S30: N/A | V30: N/A | W30: Dana Wallace | X30: N/A | Y30: N/A | Z30: N/A | AA30: N/A | AB30: N/A | AC30: N/A
A31: 23 | B31: GREEN | C31: S | D31: Green County Health Department | E31: 2 | F31: Christina Beach-Baumgartner | G31: Jeff Raiche-Gill | H31: N/A | I31: Courtney Newman | J31: Wilmot Valhmu | K31: N/A | L31: N/A | M31: N/A | N31: Christina Hinkley | O31: N/A | P31: Anthony Zech | Q31: Leah Ludlum | R31: N/A | S31: N/A | V31: N/A | W31: Dana Wallace | X31: N/A | Y31: N/A | Z31: N/A | AA31: N/A | AB31: Cristine Rameker | AC31: N/A
A32: 24 | B32: GREEN LAKE | C32: NE | D32: Green Lake County Department of Health & Human Services | E32: 2 | F32: Janet Kazmierczak | G32: Margie Coons | H32: N/A | I32: Courtney Newman | J32: Susan Nelson | K32: N/A | L32: N/A | M32: N/A | N32: N/A | O32: N/A | P32: N/A | Q32: Rosecky, Mary | R32: N/A | S32: N/A | V32: N/A | W32: Dana Wallace | X32: N/A | Y32: N/A | Z32: N/A | AA32: N/A | AB32: N/A | AC32: N/A
A33: 703090 | B33: MILWAUKEE | C33: SE | D33: Greendale Health Department | E33: 2 | F33: Curtis Marshall | G33: Margie Coons | H33: N/A | I33: Courtney Newman | J33: Monica Thakur | K33: N/A | L33: N/A | M33: N/A | N33: N/A | O33: N/A | P33: N/A | Q33: Heinz, Melissa D | R33: N/A | S33: N/A | V33: N/A | W33: Dana Wallace | X33: Dana Wallace | Y33: N/A | Z33: N/A | AA33: N/A | AB33: N/A | AC33: Caitlin Washburn
A34: 472803 | B34: MILWAUKEE | C34: SE | D34: Greenfield Health Department | E34: 3 | F34: Curtis Marshall | G34: Margie Coons | H34: N/A | I34: Courtney Newman | J34: Monica Thakur | K34: N/A | L34: N/A | M34: N/A | N34: N/A | O34: N/A | P34: N/A | Q34: Kruse, Terry L | R34: N/A | S34: N/A | V34: N/A | W34: Dana Wallace | X34: Dana Wallace | Y34: N/A | Z34: N/A | AA34: N/A | AB34: N/A | AC34: N/A
A35: 472811 | B35: MILWAUKEE | C35: SE | D35: Hales Corners Health Department | E35: 1 | F35: Curtis Marshall | G35: Margie Coons | H35: N/A | I35: Courtney Newman | J35: Monica Thakur | K35: N/A | L35: N/A | M35: N/A | N35: N/A | O35: N/A | P35: N/A | Q35: Heinz, Melissa D | R35: N/A | S35: N/A | V35: N/A | W35: Dana Wallace | X35: Dana Wallace | Y35: N/A | Z35: N/A | AA35: N/A | AB35: N/A | AC35: N/A
A36: 25 | B36: IOWA | C36: S | D36: Iowa County Health Department | E36: 2 | F36: Christina Beach-Baumgartner | G36: Jeff Raiche-Gill | H36: N/A | I36: Courtney Newman | J36: Wilmot Valhmu | K36: N/A | L36: N/A | M36: N/A | N36: N/A | O36: N/A | P36: N/A | Q36: Leah Ludlum | R36: N/A | S36: N/A | V36: N/A | W36: Dana Wallace | X36: N/A | Y36: N/A | Z36: N/A | AA36: N/A | AB36: N/A | AC36: N/A
A37: 26 | B37: IRON | C37: N | D37: Iron County Health Department | E37: 2 | F37: Jim Lawrence | G37: Kim Schneider | H37: N/A | I37: Courtney Newman | J37: Christie Oestreich | K37: N/A | L37: N/A | M37: N/A | N37: N/A | O37: N/A | P37: N/A | Q37: Heinz, Melissa D | R37: N/A | S37: Karen Morris | V37: N/A | W37: Dana Wallace | X37: N/A | Y37: N/A | Z37: N/A | AA37: N/A | AB37: N/A | AC37: N/A
A38: 27 | B38: JACKSON | C38: W | D38: Jackson County Health & Human Services Department | E38: 2 | F38: Joe Larson | G38: Jeff Raiche-Gill | H38: N/A | I38: Courtney Newman | J38: Jim Zanto | K38: N/A | L38: N/A | M38: N/A | N38: Christina Hinkley | O38: N/A | P38: Anthony Zech | Q38: Molly Holdorf | R38: N/A | S38: N/A | V38: N/A | W38: Dana Wallace | X38: N/A | Y38: N/A | Z38: N/A | AA38: N/A | AB38: N/A | AC38: N/A
A39: 28 | B39: JEFFERSON | C39: S | D39: Jefferson County Health Department | E39: 2 | F39: Sheri Siemers | G39: Jeff Raiche-Gill | H39: N/A | I39: Courtney Newman | J39: Wilmot Valhmu | K39: N/A | L39: N/A | M39: N/A | N39: Christina Hinkley | O39: N/A | P39: Anthony Zech | Q39: Meyer, Shawn R | R39: N/A | S39: N/A | V39: N/A | W39: Dana Wallace | X39: N/A | Y39: N/A | Z39: N/A | AA39: N/A | AB39: N/A | AC39: N/A
A40: 29 | B40: JUNEAU | C40: S | D40: Juneau County Health Department | E40: 3 | F40: Sheri Siemers | G40: Jeff Raiche-Gill | H40: N/A | I40: Courtney Newman | J40: Wilmot Valhmu | K40: N/A | L40: N/A | M40: Nancy Michaud | N40: Christina Hinkley | O40: N/A | P40: Anthony Zech | Q40: Kruse, Terry L | R40: N/A | S40: N/A | V40: N/A | W40: Dana Wallace | X40: N/A | Y40: N/A | Z40: N/A | AA40: N/A | AB40: N/A | AC40: N/A
A41: 30 | B41: KENOSHA | C41: SE | D41: Kenosha County Division of Health | E41: 3 | F41: Deborah Heim | G41: Margie Coons | H41: Jessica Maloney | I41: Courtney Newman | J41: Jacqueline Sills Ware | K41: N/A | L41: N/A | M41: Nancy Michaud | N41: Christina Hinkley | O41: N/A | P41: Anthony Zech | Q41: Meyer, Shawn R | S41: Karen Morris | V41: N/A | W41: Dana Wallace | X41: Dana Wallace | Y41: Vipul Shukla | Z41: N/A | AA41: N/A | AB41: N/A | AC41: N/A
A42: 31 | B42: KEWAUNEE | C42: NE | D42: Kewaunee County Health Department | E42: 2 | F42: Janet Kazmierczak | G42: Margie Coons | H42: N/A | I42: Courtney Newman | J42: Susan Nelson | K42: N/A | L42: N/A | M42: N/A | N42: Christina Hinkley | O42: N/A | P42: Anthony Zech | Q42: Rosecky, Mary | R42: N/A | S42: N/A | V42: N/A | W42: Dana Wallace | X42: N/A | Y42: N/A | Z42: N/A | AA42: N/A | AB42: N/A | AC42: N/A
A43: 32 | B43: LA CROSSE | C43: W | D43: La Crosse County Health Department | E43: 3 | F43: Joe Larson | G43: Jeff Raiche-Gill | H43: Jessica Maloney | I43: Courtney Newman | J43: Jim Zanto | K43: N/A | L43: N/A | M43: Nancy Michaud | N43: Christina Hinkley | O43: N/A | P43: Anthony Zech | Q43: Molly Holdorf | R43: N/A | S43: N/A | V43: N/A | W43: Dana Wallace | X43: N/A | Y43: Vipul Shukla | Z43: N/A | AA43: N/A | AB43: N/A | AC43: N/A
A44: 33 | B44: LAFAYETTE | C44: S | D44: Lafayette County Health Department | E44: 2 | F44: Christina Beach-Baumgartner | G44: Jeff Raiche-Gill | H44: N/A | I44: Courtney Newman | J44: Wilmot Valhmu | K44: N/A | L44: N/A | M44: N/A | N44: N/A | O44: N/A | P44: N/A | Q44: Leah Ludlum | R44: N/A | S44: N/A | V44: N/A | W44: Dana Wallace | X44: N/A | Y44: N/A | Z44: N/A | AA44: N/A | AB44: N/A | AC44: N/A
A45: 34 | B45: LANGLADE | C45: N | D45: Langlade County Health Department | E45: 2 | F45: Jim Lawrence | G45: Kim Schneider | H45: N/A | I45: Courtney Newman | J45: Christie Oestreich | K45: N/A | L45: N/A | M45: N/A | N45: N/A | O45: N/A | P45: N/A | Q45: Kruse, Terry L | R45: N/A | S45: N/A | V45: N/A | W45: Dana Wallace | X45: N/A | Y45: N/A | Z45: N/A | AA45: N/A | AB45: N/A | AC45: N/A
A46: 35 | B46: LINCOLN | C46: N | D46: Lincoln County Health Department | E46: 3 | F46: Jim Lawrence | G46: Kim Schneider | H46: N/A | I46: Courtney Newman | J46: Christie Oestreich | K46: N/A | L46: N/A | M46: N/A | N46: N/A | O46: N/A | P46: N/A | Q46: Leah Ludlum | R46: N/A | S46: N/A | V46: N/A | W46: Dana Wallace | X46: N/A | Y46: N/A | Z46: N/A | AA46: N/A | AB46: N/A | AC46: N/A
A47: 36 | B47: MANITOWOC | C47: NE | D47: Manitowoc County Health Department | E47: 2 | F47: Janet Kazmierczak | G47: Margie Coons | H47: Jessica Maloney | I47: Courtney Newman | J47: Susan Nelson | K47: N/A | L47: N/A | M47: N/A | N47: Christina Hinkley | O47: N/A | P47: N/A | Q47: Rosecky, Mary | R47: N/A | S47: N/A | V47: N/A | W47: Dana Wallace | X47: N/A | Y47: N/A | Z47: N/A | AA47: N/A | AB47: N/A | AC47: N/A
A48: 37 | B48: MARATHON | C48: N | D48: Marathon County Health Department | E48: 3 | F48: Jim Lawrence | G48: Kim Schneider | H48: Jessica Maloney | I48: Courtney Newman | J48: Christie Oestreich | K48: N/A | L48: N/A | M48: Nancy Michaud | N48: N/A | O48: N/A | P48: N/A | Q48: Leah Ludlum | R48: Peggy Helm-Quest | S48: N/A | V48: N/A | W48: Dana Wallace | X48: N/A | Y48: Vipul Shukla | Z48: N/A | AA48: N/A | AB48: N/A | AC48: N/A
A49: 38 | B49: MARINETTE | C49: NE | D49: Marinette County Health Department | E49: 2 | F49: Janet Kazmierczak | G49: Margie Coons | H49: N/A | I49: Courtney Newman | J49: Susan Nelson | K49: N/A | L49: N/A | M49: N/A | N49: Christina Hinkley | O49: N/A | P49: Anthony Zech | Q49: Heinz, Melissa D | R49: N/A | S49: N/A | V49: N/A | W49: Dana Wallace | X49: N/A | Y49: N/A | Z49: N/A | AA49: N/A | AB49: N/A | AC49: N/A
A50: 39 | B50: MARQUETTE | C50: NE | D50: Marquette County Health Department | E50: 2 | F50: Janet Kazmierczak | G50: Margie Coons | H50: N/A | I50: Courtney Newman | J50: Susan Nelson | K50: N/A | L50: N/A | M50: N/A | N50: N/A | O50: N/A | P50: N/A | Q50: Rosecky, Mary | R50: N/A | S50: Karen Morris | V50: N/A | W50: Dana Wallace | X50: N/A | Y50: N/A | Z50: N/A | AA50: N/A | AB50: N/A | AC50: N/A
A51: 256420 | B51: WINNEBAGO | C51: NE | D51: Menasha Health Department | E51: 3 | F51: Janet Kazmierczak | G51: Margie Coons | H51: N/A | I51: Courtney Newman | J51: Susan Nelson | K51: N/A | L51: N/A | M51: N/A | N51: N/A | O51: N/A | P51: N/A | Q51: Rosecky, Mary | R51: N/A | S51: N/A | V51: N/A | W51: Dana Wallace | X51: N/A | Y51: N/A | Z51: N/A | AA51: N/A | AB51: N/A | AC51: N/A
A52: 256107 | B52: MILWAUKEE | C52: SE | D52: Milwaukee City Health Department | E52: 3 | F52: Curtis Marshall | G52: Margie Coons | H52: N/A | I52: Courtney Newman | J52: Monica Thakur | K52: Stephanie Borchardt | L52: N/A | M52: N/A | N52: Christina Hinkley | O52: N/A | P52: Anthony Zech | Q52: Leah Ludlum & Terry Kruse | R52: N/A | S52: Karen Morris | V52: N/A | W52: Dana Wallace | X52: Dana Wallace | Y52: N/A | Z52: N/A | AA52: N/A | AB52: N/A | AC52: N/A
A53: 41 | B53: MONROE | C53: W | D53: Monroe County Health Department | E53: 2 | F53: Joe Larson | G53: Jeff Raiche-Gill | H53: N/A | I53: Courtney Newman | J53: Jim Zanto | K53: N/A | L53: N/A | M53: N/A | N53: Christina Hinkley | O53: N/A | P53: Anthony Zech | Q53: Meyer, Shawn R | R53: N/A | S53: N/A | V53: N/A | W53: Dana Wallace | X53: N/A | Y53: N/A | Z53: N/A | AA53: N/A | AB53: N/A | AC53: N/A
A54: 472753 | B54: MILWAUKEE | C54: SE | D54: North Shore Health Department | E54: 3 | F54: Deborah Heim | G54: Margie Coons | H54: N/A | I54: Courtney Newman | J54: Monica Thakur | K54: N/A | L54: N/A | M54: N/A | N54: N/A | O54: N/A | P54: N/A | Q54: Heinz, Melissa D | R54: N/A | S54: N/A | V54: N/A | W54: Dana Wallace | X54: Dana Wallace | Y54: N/A | Z54: N/A | AA54: N/A | AB54: N/A | AC54: N/A
A55: 472886 | B55: MILWAUKEE | C55: SE | D55: Oak Creek Health Department | E55: 3 | F55: Deborah Heim | G55: Margie Coons | H55: N/A | I55: Courtney Newman | J55: Monica Thakur | K55: N/A | L55: N/A | M55: N/A | N55: N/A | O55: N/A | P55: N/A | Q55: Meyer, Shawn R | R55: N/A | S55: N/A | V55: N/A | W55: Dana Wallace | X55: Dana Wallace | Y55: N/A | Z55: N/A | AA55: N/A | AB55: N/A | AC55: N/A
A56: 42 | B56: OCONTO | C56: NE | D56: Oconto County Health Department Public Health Division | E56: 2 | F56: Janet Kazmierczak | G56: Margie Coons | H56: N/A | I56: Courtney Newman | J56: Susan Nelson | K56: N/A | L56: N/A | M56: N/A | N56: Christina Hinkley | O56: N/A | P56: N/A | Q56: Heinz, Melissa D | R56: N/A | S56: N/A | V56: N/A | W56: Dana Wallace | X56: N/A | Y56: N/A | Z56: N/A | AA56: N/A | AB56: N/A | AC56: N/A
A57: 43 | B57: ONEIDA | C57: N | D57: Oneida County Health Department | E57: 3 | F57: Jim Lawrence | G57: Kim Schneider | H57: N/A | I57: Courtney Newman | J57: Christie Oestreich | K57: N/A | L57: N/A | M57: Nancy Michaud | N57: Christina Hinkley | O57: N/A | P57: Anthony Zech | Q57: Rosecky, Mary | R57: N/A | S57: Karen Morris | T57: Mary Pesik | V57: N/A | W57: Dana Wallace | X57: N/A | Y57: N/A | Z57: N/A | AA57: N/A | AB57: N/A | AC57: N/A
A58: 44 | B58: OUTAGAMIE | C58: NE | D58: Outagamie County Public Health Division | E58: 3 | F58: Janet Kazmierczak | G58: Margie Coons | H58: N/A | I58: Courtney Newman | J58: Susan Nelson | K58: N/A | L58: N/A | M58: N/A | N58: Christina Hinkley | P58: Anthony Zech | Q58: Rosecky, Mary | R58: N/A | S58: N/A | V58: N/A | W58: Dana Wallace | X58: N/A | Y58: N/A | Z58: N/A | AA58: N/A | AB58: N/A | AC58: N/A
A59: 46 | B59: PEPIN | C59: W | D59: Pepin County Health Department | E59: 2 | F59: Joe Larson | G59: Jeff Raiche-Gill | H59: N/A | I59: Courtney Newman | J59: Jim Zanto | K59: N/A | L59: N/A | M59: N/A | N59: N/A | O59: N/A | P59: N/A | Q59: Molly Holdorf | R59: N/A | S59: Karen Morris | V59: N/A | W59: Dana Wallace | X59: N/A | Y59: N/A | Z59: N/A | AA59: N/A | AB59: N/A | AC59: N/A
A60: 47 | B60: PIERCE | C60: W | D60: Pierce County Health Department | E60: 3 | F60: Joe Larson | G60: Jeff Raiche-Gill | H60: N/A | I60: Courtney Newman | J60: Jim Zanto | K60: N/A | L60: N/A | M60: N/A | N60: Christina Hinkley | O60: N/A | P60: Anthony Zech | Q60: Molly Holdorf | R60: N/A | S60: Karen Morris | V60: N/A | W60: Dana Wallace | X60: Dana Wallace | Y60: N/A | Z60: N/A | AA60: N/A | AB60: N/A | AC60: N/A
A61: 48 | B61: POLK | C61: W | D61: Polk County Health Department | E61: 3 | F61: Christa Cupp | G61: Jeff Raiche-Gill | H61: Jessica Maloney | I61: Courtney Newman | J61: Jim Zanto | K61: N/A | L61: N/A | M61: Nancy Michaud | N61: Christina Hinkley | O61: N/A | P61: Anthony Zech | Q61: Kruse, Terry L | R61: N/A | S61: Karen Morris | V61: N/A | W61: Dana Wallace | X61: N/A | Y61: N/A | Z61: N/A | AA61: N/A | AB61: N/A | AC61: N/A
A62: 49 | B62: PORTAGE | C62: N | D62: Portage County Health & Human Services Department | E62: 3 | F62: Jim Lawrence | G62: Kim Schneider | H62: N/A | I62: Courtney Newman | J62: Christie Oestreich | K62: N/A | L62: N/A | M62: N/A | N62: Christina Hinkley | O62: N/A | P62: Anthony Zech | Q62: Molly Holdorf | R62: N/A | S62: N/A | V62: N/A | W62: Dana Wallace | X62: N/A | Y62: N/A | Z62: N/A | AA62: N/A | AB62: N/A | AC62: N/A
A63: 50 | B63: PRICE | C63: N | D63: Price County Health and Human Services | E63: 2 | F63: Jim Lawrence | G63: Kim Schneider | H63: N/A | I63: Courtney Newman | J63: Christie Oestreich | K63: N/A | L63: N/A | M63: N/A | N63: Christina Hinkley | O63: N/A | P63: N/A | Q63: Kruse, Terry L | R63: N/A | S63: Karen Morris | V63: N/A | W63: Dana Wallace | X63: N/A | Y63: Vipul Shukla | Z63: N/A | AA63: N/A | AB63: N/A | AC63: N/A
A64: 341113 | B64: RACINE | C64: SE | D64: Racine City Health Department | E64: 3 | F64: Deborah Heim | G64: Margie Coons | H64: N/A | I64: Courtney Newman | J64: Jacqueline Sills Ware | K64: N/A | L64: N/A | M64: N/A | N64: N/A | O64: N/A | P64: N/A | Q64: Meyer, Shawn R | R64: N/A | S64: N/A | V64: N/A | W64: Dana Wallace | X64: Dana Wallace | Y64: Vipul Shukla | Z64: N/A | AA64: N/A | AB64: N/A | AC64: N/A
A65: 52 | B65: RICHLAND | C65: S | D65: Richland County Health & Human Services Public Health Department | E65: 2 | F65: Christina Beach-Baumgartner | G65: Jeff Raiche-Gill | H65: N/A | I65: Courtney Newman | J65: Wilmot Valhmu | K65: N/A | L65: N/A | M65: N/A | N65: N/A | O65: N/A | P65: N/A | Q65: Molly Holdorf | R65: N/A | S65: N/A | V65: N/A | W65: Dana Wallace | X65: N/A | Y65: N/A | Z65: N/A | AA65: N/A | AB65: N/A | AC65: N/A
A66: 53 | B66: ROCK | C66: S | D66: Rock County Public Health Department | E66: 3 | F66: Sheri Siemers | G66: Jeff Raiche-Gill | H66: N/A | I66: Courtney Newman | J66: Wilmot Valhmu | K66: N/A | L66: N/A | M66: N/A | N66: N/A | O66: N/A | Q66: Meyer, Shawn R | R66: N/A | S66: N/A | T66: Mary Pesik | V66: N/A | W66: Dana Wallace | X66: N/A | Y66: Vipul Shukla | AA66: N/A | AB66: N/A | AC66: N/A
A67: 54 | B67: RUSK | C67: W | D67: Rusk County Department of Health & Human Services | E67: 2 | F67: Christa Cupp | G67: Jeff Raiche-Gill | H67: N/A | I67: Courtney Newman | J67: Jim Zanto | K67: N/A | L67: N/A | M67: N/A | N67: Christina Hinkley | O67: N/A | P67: N/A | Q67: Kruse, Terry L | R67: N/A | S67: Karen Morris | V67: N/A | W67: Dana Wallace | X67: N/A | Y67: N/A | Z67: N/A | AA67: N/A | AB67: N/A | AC67: N/A
A68: 56 | B68: SAUK | C68: S | D68: Sauk County Public Health Department | E68: 3 | F68: Sheri Siemers | G68: Jeff Raiche-Gill | H68: Jessica Maloney | I68: Courtney Newman | J68: Wilmot Valhmu | K68: N/A | L68: N/A | M68: N/A | N68: Christina Hinkley | O68: N/A | P68: Anthony Zech | Q68: Leah Ludlum | R68: N/A | S68: N/A | V68: N/A | W68: Dana Wallace | X68: N/A | Y68: N/A | Z68: N/A | AA68: N/A | AB68: N/A | AC68: N/A
A69: 57 | B69: SAWYER | C69: N | D69: Sawyer County Department of Health & Human Services | E69: 2 | F69: Jim Lawrence | G69: Kim Schneider | H69: N/A | I69: Courtney Newman | J69: Christie Oestreich | K69: N/A | L69: N/A | M69: N/A | N69: Christina Hinkley | O69: N/A | P69: N/A | Q69: Molly Holdorf | R69: N/A | S69: Karen Morris | V69: N/A | W69: Dana Wallace | X69: N/A | Y69: N/A | Z69: N/A | AA69: N/A | AB69: N/A | AC69: Caitlin Washburn
A70: 58 | B70: SHAWANO | C70: NE | D70: Shawano County Health Department | E70: 2 | F70: Janet Kazmierczak | G70: Margie Coons | H70: N/A | I70: Courtney Newman | J70: Susan Nelson | K70: N/A | L70: N/A | M70: N/A | N70: Christina Hinkley | O70: N/A | P70: Anthony Zech | Q70: Leah Ludlum | R70: N/A | S70: N/A | V70: N/A | W70: Dana Wallace | X70: N/A | Y70: N/A | Z70: N/A | AA70: N/A | AB70: N/A | AC70: N/A
A71: 59 | B71: SHEBOYGAN | C71: NE | D71: Sheboygan County Human Services, Division of Public Health | E71: 3 | F71: Janet Kazmierczak | G71: Margie Coons | H71: N/A | I71: Courtney Newman | J71: Susan Nelson | K71: N/A | L71: N/A | M71: N/A | N71: Christina Hinkley | O71: N/A | P71: Anthony Zech | Q71: Rosecky, Mary | R71: N/A | S71: N/A | V71: N/A | W71: Dana Wallace | X71: N/A | Y71: N/A | Z71: N/A | AA71: N/A | AB71: N/A | AC71: N/A
A72: 655522 | B72: MILWAUKEE | C72: SE | D72: South Milwaukee Health Department | E72: 3 | F72: Curtis Marshall | G72: Margie Coons | H72: N/A | I72: Courtney Newman | J72: Monica Thakur | K72: N/A | L72: N/A | M72: N/A | N72: N/A | O72: N/A | P72: N/A | Q72: Rosecky, Mary | R72: N/A | S72: N/A | V72: N/A | W72: Dana Wallace | X72: Dana Wallace | Y72: N/A | Z72: N/A | AA72: N/A | AB72: N/A | AC72: N/A
A73: 55 | B73: ST CROIX | C73: W | D73: St Croix County Department of Health & Human Services | E73: 3 | F73: Christa Cupp | G73: Jeff Raiche-Gill | H73: N/A | I73: Courtney Newman | J73: Jim Zanto | K73: N/A | L73: N/A | M73: N/A | N73: Christina Hinkley | O73: N/A | P73: Anthony Zech | Q73: Kruse, Terry L | R73: N/A | S73: Karen Morris | V73: N/A | W73: Dana Wallace | X73: Dana Wallace | Y73: N/A | Z73: N/A | AA73: N/A | AB73: N/A | AC73: N/A
A74: 472928 | B74: MILWAUKEE | C74: SE | D74: St Francis Health Department | E74: 1 | F74: Curtis Marshall | G74: Margie Coons | H74: N/A | I74: Courtney Newman | J74: Monica Thakur | K74: N/A | L74: N/A | M74: N/A | N74: N/A | O74: N/A | P74: N/A | Q74: Rosecky, Mary | R74: N/A | S74: N/A | V74: N/A | W74: Dana Wallace | X74: Dana Wallace | Y74: N/A | Z74: N/A | AA74: N/A | AB74: N/A | AC74: N/A
A75: 60 | B75: TAYLOR | C75: N | D75: Taylor County Health Department | E75: 2 | F75: Jim Lawrence | G75: Kim Schneider | H75: Jessica Maloney | I75: Courtney Newman | J75: Christie Oestreich | K75: N/A | L75: N/A | M75: N/A | N75: Christina Hinkley | O75: N/A | P75: N/A | Q75: Kruse, Terry L | R75: N/A | S75: N/A | V75: N/A | W75: Dana Wallace | X75: N/A | Y75: N/A | Z75: N/A | AA75: N/A | AB75: N/A | AC75: N/A
A76: 61 | B76: TREMPEALEAU | C76: W | D76: Trempealeau County Health Department | E76: 2 | F76: Joe Larson | G76: Jeff Raiche-Gill | H76: N/A | I76: Courtney Newman | J76: Jim Zanto | K76: N/A | L76: N/A | M76: N/A | N76: Christina Hinkley | O76: N/A | P76: Anthony Zech | Q76: Kruse, Terry L | R76: N/A | S76: N/A | V76: N/A | W76: Dana Wallace | X76: N/A | Y76: N/A | Z76: N/A | AA76: N/A | AB76: N/A | AC76: N/A
A77: 62 | B77: VERNON | C77: S | D77: Vernon County Health Department | E77: 2 | F77: Joe Larson | G77: Jeff Raiche-Gill | H77: N/A | I77: Courtney Newman | J77: Wilmot Valhmu | K77: N/A | L77: N/A | M77: N/A | N77: Christina Hinkley | O77: N/A | P77: Anthony Zech | Q77: Leah Ludlum | R77: N/A | S77: N/A | V77: N/A | W77: Dana Wallace | X77: N/A | Y77: N/A | Z77: N/A | AA77: N/A | AB77: N/A | AC77: N/A
A78: 63 | B78: VILAS | C78: N | D78: Vilas County Health Department | E78: 2 | F78: Jim Lawrence | G78: Kim Schneider | H78: N/A | I78: Courtney Newman | J78: Christie Oestreich | K78: N/A | L78: N/A | M78: N/A | N78: Christina Hinkley | O78: N/A | P78: N/A | Q78: Kruse, Terry L | R78: N/A | S78: N/A | V78: N/A | W78: Dana Wallace | X78: N/A | Y78: N/A | Z78: N/A | AA78: N/A | AB78: N/A | AC78: N/A
A79: 64 | B79: WALWORTH | C79: SE | D79: Walworth County Health Department | E79: 2 | F79: Curtis Marshall | G79: Margie Coons | H79: N/A | I79: Courtney Newman | J79: Jacqueline Sills Ware | K79: N/A | L79: N/A | M79: N/A | N79: Christina Hinkley | O79: N/A | P79: Anthony Zech | Q79: Heinz, Melissa D | R79: N/A | S79: N/A | V79: N/A | W79: Dana Wallace | X79: N/A | Y79: N/A | Z79: N/A | AA79: N/A | AB79: N/A | AC79: N/A
A80: 65 | B80: WASHBURN | C80: W | D80: Washburn County Health and Human Services Department | E80: 2 | F80: Christa Cupp | G80: Jeff Raiche-Gill | H80: N/A | I80: Courtney Newman | J80: Jim Zanto | K80: N/A | L80: N/A | M80: N/A | N80: Christina Hinkley | O80: N/A | P80: N/A | Q80: Kruse, Terry L | R80: N/A | S80: Karen Morris | V80: N/A | W80: Dana Wallace | X80: N/A | Y80: N/A | Z80: N/A | AA80: N/A | AB80: N/A | AC80: N/A
A81: 66 | B81: WASHINGTON | C81: SE | D81: Washington Ozaukee County Health Department | F81: Curtis Marshall | G81: Margie Coons | H81: Jessica Maloney | I81: Courtney Newman | J81: Jacqueline Sills Ware | K81: N/A | L81: N/A | M81: N/A | N81: Christina Hinkley | O81: N/A | P81: N/A | Q81: Rosecky, Mary | R81: N/A | S81: N/A | V81: N/A | W81: Dana Wallace | X81: Dana Wallace | Y81: N/A | Z81: N/A | AA81: N/A | AB81: N/A | AC81: N/A
A82: 45 | B82: OZAUKEE | C82: SE | D82: Washington Ozaukee County Public Health Department | E82: 3 | F82: Curtis Marshall | G82: Margie Coons | H82: N/A | I82: Courtney Newman | J82: Jacqueline Sills Ware | K82: N/A | L82: N/A | M82: N/A | N82: Christina Hinkley | O82: N/A | P82: N/A | Q82: Rosecky, Mary | R82: N/A | S82: N/A | V82: N/A | W82: Dana Wallace | X82: Dana Wallace | Y82: N/A | Z82: N/A | AA82: N/A | AB82: N/A | AC82: N/A
A83: 472951 | B83: JEFFERSON | C83: S | D83: Watertown Department of Public Health | E83: 2 | F83: Sheri Siemers | G83: Jeff Raiche-Gill | H83: Jessica Maloney | I83: Courtney Newman | J83: Wilmot Valhmu | K83: N/A | L83: N/A | M83: N/A | N83: N/A | O83: N/A | P83: N/A | Q83: Meyer, Shawn R | R83: N/A | S83: N/A | V83: N/A | W83: Dana Wallace | X83: N/A | Y83: N/A | Z83: N/A | AA83: N/A | AB83: N/A | AC83: N/A
A84: 67 | B84: WAUKESHA | C84: SE | D84: Waukesha County Public Health Department | E84: 2 | F84: Deborah Heim | G84: Margie Coons | H84: Jessica Maloney | I84: Courtney Newman | J84: Jacqueline Sills Ware | K84: N/A | L84: N/A | M84: N/A | N84: Christina Hinkley | O84: N/A | P84: Anthony Zech | Q84: Meyer, Shawn R | R84: N/A | S84: N/A | V84: N/A | W84: Dana Wallace | X84: Dana Wallace | Y84: Vipul Shukla | Z84: N/A | AA84: N/A | AB84: N/A | AC84: N/A
A85: 68 | B85: WAUPACA | C85: NE | D85: Waupaca County Human Services, Health Services Division | E85: 2 | F85: Janet Kazmierczak | G85: Margie Coons | H85: N/A | I85: Courtney Newman | J85: Susan Nelson | K85: N/A | L85: N/A | M85: N/A | N85: Christina Hinkley | O85: N/A | P85: Anthony Zech | Q85: Rosecky, Mary | R85: N/A | S85: Karen Morris | V85: N/A | W85: Dana Wallace | X85: N/A | Y85: N/A | Z85: N/A | AA85: N/A | AB85: N/A | AC85: N/A
A86: 69 | B86: WAUSHARA | C86: NE | D86: Waushara County Health Department | E86: 3 | F86: Janet Kazmierczak | G86: Margie Coons | H86: Jessica Maloney | I86: Courtney Newman | J86: Susan Nelson | K86: N/A | L86: N/A | M86: N/A | N86: N/A | O86: N/A | P86: N/A | Q86: Heinz, Melissa D | R86: N/A | S86: Karen Morris | V86: N/A | W86: Dana Wallace | X86: N/A | Y86: N/A | Z86: N/A | AA86: N/A | AB86: N/A | AC86: N/A
A87: 472969 | B87: MILWAUKEE | C87: SE | D87: Wauwatosa Health Department | E87: 3 | F87: Deborah Heim | G87: Margie Coons | H87: N/A | I87: Courtney Newman | J87: Monica Thakur | K87: N/A | L87: N/A | M87: N/A | N87: N/A | O87: N/A | P87: N/A | Q87: Kruse, Terry L | R87: N/A | S87: N/A | V87: N/A | W87: Dana Wallace | X87: Dana Wallace | Y87: N/A | Z87: N/A | AA87: N/A | AB87: N/A | AC87: N/A
A88: 256545 | B88: MILWAUKEE | C88: SE | D88: West Allis Health Department | E88: 3 | F88: Deborah Heim | G88: Margie Coons | H88: N/A | I88: Courtney Newman | J88: Monica Thakur | K88: N/A | L88: N/A | M88: N/A | N88: Christina Hinkley | O88: N/A | P88: Anthony Zech | Q88: Kruse, Terry L | R88: N/A | S88: N/A | V88: N/A | W88: Dana Wallace | X88: Dana Wallace | Y88: N/A | Z88: N/A | AA88: N/A | AB88: N/A | AC88: N/A
A89: 70 | B89: WINNEBAGO | C89: NE | D89: Winnebago County Health Department | E89: 3 | F89: Janet Kazmierczak | G89: Margie Coons | H89: N/A | I89: Courtney Newman | J89: Susan Nelson | K89: N/A | L89: N/A | M89: N/A | N89: Christina Hinkley | P89: Anthony Zech | Q89: Leah Ludlum | R89: N/A | S89: N/A | V89: N/A | W89: Dana Wallace | X89: N/A | Y89: Vipul Shukla | Z89: N/A | AA89: N/A | AB89: N/A | AC89: N/A
A90: 71 | B90: WOOD | C90: N | D90: Wood County Health Department | E90: 3 | F90: Jim Lawrence | G90: Kim Schneider | H90: Jessica Maloney | I90: Courtney Newman | J90: Christie Oestreich | K90: N/A | L90: N/A | M90: N/A | N90: Christina Hinkley | O90: N/A | P90: Anthony Zech | Q90: Meyer, Shawn R | R90: N/A | S90: N/A | V90: N/A | W90: Dana Wallace | X90: N/A | Y90: N/A | Z90: N/A | AA90: N/A | AB90: N/A | AC90: N/A
A95: 10100100 | B95: TRIBE | C95: N | D95: Bad River Tribe | F95: Charlotte Ahrens | G95: N/A | H95: N/A | I95: N/A | J95: Christie Oestreich | K95: N/A | L95: N/A | M95: N/A | N95: N/A | O95: N/A | P95: N/A | Q95: Leah Ludlum | R95: N/A | S95: N/A | V95: Mary Pesik | W95: N/A | X95: N/A | Y95: Kailynn Mitchell | Z95: N/A | AA95: Gail Nahwahquaw | AB95: N/A | AC95: N/A
A96: 10100700 | B96: TRIBE | C96: N | D96: Forest County Potawatomi Tribe | F96: Charlotte Ahrens | G96: N/A | H96: N/A | I96: Courtney Newman | J96: Christie Oestreich | K96: N/A | L96: N/A | M96: N/A | N96: Christina Hinkley | O96: N/A | P96: N/A | Q96: Leah Ludlum | R96: N/A | S96: N/A | V96: Mary Pesik | W96: N/A | X96: N/A | Y96: Kailynn Mitchell | Z96: N/A | AA96: Gail Nahwahquaw | AB96: N/A | AC96: N/A
A97: 10100200 | B97: TRIBE | C97: W | D97: Ho-Chunk Tribe | F97: Charlotte Ahrens | G97: N/A | H97: N/A | I97: Courtney Newman | J97: Jim Zanto | K97: N/A | L97: N/A | M97: N/A | N97: N/A | O97: N/A | P97: Anthony Zech - Not on WIC contract, all separate | Q97: Leah Ludlum | R97: N/A | S97: N/A | V97: Mary Pesik | W97: N/A | X97: N/A | Y97: Kailynn Mitchell | Z97: N/A | AA97: Gail Nahwahquaw | AB97: N/A | AC97: N/A
A98: 10100300 | B98: TRIBE | C98: N | D98: Lac Courtes Oreilles Tribe | F98: Charlotte Ahrens | G98: N/A | H98: N/A | I98: Courtney Newman | J98: Christie Oestreich | K98: N/A | L98: N/A | M98: N/A | N98: N/A | P98: N/A | Q98: Leah Ludlum | R98: N/A | S98: N/A | V98: Mary Pesik | W98: N/A | X98: N/A | Y98: Kailynn Mitchell | Z98: N/A | AA98: Gail Nahwahquaw | AB98: N/A | AC98: N/A
A99: 10100400 | B99: TRIBE | C99: N | D99: Lac Du Flambeau Tribe | F99: Charlotte Ahrens | G99: N/A | H99: N/A | I99: Courtney Newman | J99: Christie Oestreich | K99: N/A | L99: N/A | M99: N/A | N99: N/A | O99: N/A | P99: N/A | Q99: Leah Ludlum | R99: N/A | S99: N/A | V99: Mary Pesik | W99: N/A | X99: N/A | Y99: Kailynn Mitchell | Z99: N/A | AA99: Gail Nahwahquaw | AB99: N/A | AC99: N/A
A100: 10100500 | B100: TRIBE | C100: NE | D100: Menominee Tribe | F100: Angela Nimsgern | G100: N/A | H100: N/A | I100: Courtney Newman | J100: Susan Nelson | K100: N/A | L100: N/A | M100: N/A | N100: Christina Hinkley | O100: Kitty Kocol | P100: N/A | Q100: Leah Ludlum | R100: N/A | S100: Karen Morris | V100: Mary Pesik | W100: N/A | X100: N/A | Y100: Kailynn Mitchell | Z100: N/A | AA100: Gail Nahwahquaw | AB100: N/A | AC100: N/A
A101: 10100600 | B101: TRIBE | C101: NE | D101: Oneida Tribe | F101: Angela Nimsgern | G101: N/A | H101: N/A | I101: Courtney Newman | J101: Susan Nelson | K101: N/A | L101: N/A | M101: N/A | N101: Christina Hinkley | O101: N/A | P101: N/A | Q101: Leah Ludlum | R101: N/A | S101: N/A | V101: Mary Pesik | W101: N/A | X101: N/A | Y101: Kailynn Mitchell | Z101: N/A | AA101: Gail Nahwahquaw | AB101: N/A | AC101: N/A
A102: 10100800 | B102: TRIBE | C102: N | D102: Red Cliff Tribe | F102: Charlotte Ahrens | G102: N/A | H102: N/A | I102: Courtney Newman | J102: Christie Oestreich | K102: N/A | L102: N/A | M102: N/A | N102: N/A | O102: N/A | P102: N/A | Q102: Leah Ludlum | R102: N/A | S102: N/A | V102: Mary Pesik | W102: N/A | X102: N/A | Y102: Kailynn Mitchell | Z102: N/A | AA102: Gail Nahwahquaw | AB102: N/A | AC102: N/A
A103: 10100900 | B103: TRIBE | C103: N | D103: Sokaogon Tribe | F103: Charlotte Ahrens | G103: N/A | H103: N/A | I103: Courtney Newman | J103: Christie Oestreich | K103: N/A | L103: N/A | M103: N/A | N103: N/A | O103: N/A | P103: N/A | Q103: Leah Ludlum | R103: N/A | S103: N/A | V103: Mary Pesik | W103: N/A | X103: N/A | Y103: Kailynn Mitchell | Z103: N/A | AA103: Gail Nahwahquaw | AB103: N/A | AC103: N/A
A104: 10101000 | B104: TRIBE | C104: W | D104: St. Croix Tribe | F104: Charlotte Ahrens | G104: N/A | H104: N/A | I104: Courtney Newman | J104: Jim Zanto | K104: N/A | L104: N/A | M104: N/A | N104: N/A | O104: N/A | P104: N/A | Q104: Leah Ludlum | R104: N/A | S104: N/A | V104: Mary Pesik | W104: N/A | X104: N/A | Y104: Kailynn Mitchell | Z104: N/A | AA104: Gail Nahwahquaw | AB104: N/A | AC104: N/A
A105: 10101100 | B105: TRIBE | C105: NE | D105: Stockbridge Munsee Tribe | F105: Angela Nimsgern | G105: N/A | H105: N/A | I105: Courtney Newman | J105: Susan Nelson | K105: N/A | L105: N/A | M105: N/A | N105: N/A | O105: N/A | P105: N/A | Q105: Leah Ludlum | R105: N/A | S105: N/A | V105: Mary Pesik | W105: N/A | X105: N/A | Y105: Kailynn Mitchell | Z105: N/A | AA105: Gail Nahwahquaw | AB105: N/A | AC105: N/A
A106: 10101200 | B106: TRIBE | D106: GLITC | F106: N/A | G106: N/A | H106: N/A | I106: N/A | J106: N/A | K106: N/A | L106: N/A | M106: N/A | N106: Christina Hinkley | O106: N/A | P106: Anthony Zech - Part on WIC, part SNAP-ed separate contract | Q106: Leah Ludlum | R106: N/A | S106: N/A | V106: N/A | W106: N/A | X106: N/A | Y106: Kailynn Mitchell | Z106: N/A | AA106: Gail Nahwahquaw | AB106: N/A | AC106: N/A

Sheet Adams
A1: Back to Overview
A2: ='LHD Overview'!B1 -> 2021 DPH Consolidated Contract | F2: Total Amount | G2: =SUM(F:F) -> 1045910
A3: Adams County Public Health Department | F3: Agency Number | G3: 1
A4: Profile Name | B4: Profile | C4: Agency Type | D4: Start Date | E4: End Date | F4: Current Amount | G4: Final Fiscal Report Due Date
A5: =IFERROR(VLOOKUP(B5,Table1[],2,FALSE),"") -> CONS CONTRACTS PHHS | B5: ='Profile Overview'!B42 -> 159220 | C5: =IFERROR(IF(B5>0,(VLOOKUP(B5,Table1[],5,FALSE)+30),""),"") -> 130 | D5: =IF(B5>0,VLOOKUP(B5,Table1[],3,FALSE),"") -> 2021-01-01 | E5: =IF(B5>0,VLOOKUP(B5,Table1[],4,FALSE),"") -> 2021-12-31 | F5: =IFERROR(IF(INDEX('LHD Overview'!$A$6:$CK$93,(MATCH($A$3,'LHD Overview'!$A$6:$A$93,0)),MATCH(B5,'LHD Overview'!$A$2:$CK$2,0))>0,INDEX('LHD Overview'!$A$6:$CK$93,(MATCH($A$3,'LHD Overview'!$A$6:$A$93,0)),MATCH(B5,'LHD Overview'!$A$2:$CK$2,0)),""),"") -> 696 | G5: =IF(B5>0,VLOOKUP(B5,Table1[],6,FALSE),"") -> 2022-02-14
A6: =IFERROR(VLOOKUP(B6,Table1[],2,FALSE),"") -> CONS CONTRACTS CHHD LD | B6: ='Profile Overview'!B13 -> 157720 | C6: =IFERROR(IF(B6>0,(VLOOKUP(B6,Table1[],5,FALSE)+30),""),"") -> 230 | D6: =IF(B6>0,VLOOKUP(B6,Table1[],3,FALSE),"") -> 2021-02-01 | E6: =IF(B6>0,VLOOKUP(B6,Table1[],4,FALSE),"") -> 2022-01-31 | F6: =IFERROR(IF(INDEX('LHD Overview'!$A$6:$CK$93,(MATCH($A$3,'LHD Overview'!$A$6:$A$93,0)),MATCH(B6,'LHD Overview'!$A$2:$CK$2,0))>0,INDEX('LHD Overview'!$A$6:$CK$93,(MATCH($A$3,'LHD Overview'!$A$6:$A$93,0)),MATCH(B6,'LHD Overview'!$A$2:$CK$2,0)),""),"") -> 1907 | G6: =IF(B6>0,VLOOKUP(B6,Table1[],6,FALSE),"") -> 2022-03-17
A7: =IFERROR(VLOOKUP(B7,Table1[],2,FALSE),"") -> CONS CONTRACTS IMM | B7: ='Profile Overview'!B27 -> 155020 | C7: =IFERROR(IF(B7>0,(VLOOKUP(B7,Table1[],5,FALSE)+30),""),"") -> 130 | D7: =IF(B7>0,VLOOKUP(B7,Table1[],3,FALSE),"") -> 2021-01-01 | E7: =IF(B7>0,VLOOKUP(B7,Table1[],4,FALSE),"") -> 2021-12-31 | F7: =IFERROR(IF(INDEX('LHD Overview'!$A$6:$CK$93,(MATCH($A$3,'LHD Overview'!$A$6:$A$93,0)),MATCH(B7,'LHD Overview'!$A$2:$CK$2,0))>0,INDEX('LHD Overview'!$A$6:$CK$93,(MATCH($A$3,'LHD Overview'!$A$6:$A$93,0)),MATCH(B7,'LHD Overview'!$A$2:$CK$2,0)),""),"") -> 6562 | G7: =IF(B7>0,VLOOKUP(B7,Table1[],6,FALSE),"") -> 2022-02-14
A8: =IFERROR(VLOOKUP(B8,Table1[],2,FALSE),"") -> PH Workforce | B8: ='Profile Overview'!B35 -> 159320 | C8: =IFERROR(IF(B8>0,(VLOOKUP(B8,Table1[],5,FALSE)+30),""),"") -> 330 | D8: =IF(B8>0,VLOOKUP(B8,Table1[],3,FALSE),"") -> 2021-07-01 | E8: =IF(B8>0,VLOOKUP(B8,Table1[],4,FALSE),"") -> 2023-06-30 | F8: =IFERROR(IF(INDEX('LHD Overview'!$A$6:$CK$93,(MATCH($A$3,'LHD Overview'!$A$6:$A$93,0)),MATCH(B8,'LHD Overview'!$A$2:$CK$2,0))>0,INDEX('LHD Overview'!$A$6:$CK$93,(MATCH($A$3,'LHD Overview'!$A$6:$A$93,0)),MATCH(B8,'LHD Overview'!$A$2:$CK$2,0)),""),"") -> 8898 | G8: =IF(B8>0,VLOOKUP(B8,Table1[],6,FALSE),"") -> 2023-08-14
A9: =IFERROR(VLOOKUP(B9,Table1[],2,FALSE),"") -> BIOT FOCUS A PLANNING | B9: ='Profile Overview'!B31 -> 155015 | C9: =IFERROR(IF(B9>0,(VLOOKUP(B9,Table1[],5,FALSE)+30),""),"") -> 230 | D9: =IF(B9>0,VLOOKUP(B9,Table1[],3,FALSE),"") -> 2021-07-01 | E9: =IF(B9>0,VLOOKUP(B9,Table1[],4,FALSE),"") -> 2022-06-30 | F9: =IFERROR(IF(INDEX('LHD Overview'!$A$6:$CK$93,(MATCH($A$3,'LHD Overview'!$A$6:$A$93,0)),MATCH(B9,'LHD Overview'!$A$2:$CK$2,0))>0,INDEX('LHD Overview'!$A$6:$CK$93,(MATCH($A$3,'LHD Overview'!$A$6:$A$93,0)),MATCH(B9,'LHD Overview'!$A$2:$CK$2,0)),""),"") -> 37047 | G9: =IF(B9>0,VLOOKUP(B9,Table1[],6,FALSE),"") -> 2022-08-14
A10: =IFERROR(VLOOKUP(B10,Table1[],2,FALSE),"") ->  | B10: ='Profile Overview'!B11 -> 155809 | C10: =IFERROR(IF(B10>0,(VLOOKUP(B10,Table1[],5,FALSE)+30),""),"") -> 130 | D10: =IF(B10>0,VLOOKUP(B10,Table1[],3,FALSE),"") -> 2021-01-01 | E10: =IF(B10>0,VLOOKUP(B10,Table1[],4,FALSE),"") -> 2021-12-31 | F10: =IFERROR(IF(INDEX('LHD Overview'!$A$6:$CK$93,(MATCH($A$3,'LHD Overview'!$A$6:$A$93,0)),MATCH(B10,'LHD Overview'!$A$2:$CK$2,0))>0,INDEX('LHD Overview'!$A$6:$CK$93,(MATCH($A$3,'LHD Overview'!$A$6:$A$93,0)),MATCH(B10,'LHD Overview'!$A$2:$CK$2,0)),""),"") -> 51000 | G10: =IF(B10>0,VLOOKUP(B10,Table1[],6,FALSE),"") -> 2022-02-14
A11: =IFERROR(VLOOKUP(B11,Table1[],2,FALSE),"") ->  | B11: ='Profile Overview'!B39 -> 155812 | C11: =IFERROR(IF(B11>0,(VLOOKUP(B11,Table1[],5,FALSE)+30),""),"") -> 230 | D11: =IF(B11>0,VLOOKUP(B11,Table1[],3,FALSE),"") -> 2021-10-01 | E11: =IF(B11>0,VLOOKUP(B11,Table1[],4,FALSE),"") -> 2022-09-30 | F11: =IFERROR(IF(INDEX('LHD Overview'!$A$6:$CK$93,(MATCH($A$3,'LHD Overview'!$A$6:$A$93,0)),MATCH(B11,'LHD Overview'!$A$2:$CK$2,0))>0,INDEX('LHD Overview'!$A$6:$CK$93,(MATCH($A$3,'LHD Overview'!$A$6:$A$93,0)),MATCH(B11,'LHD Overview'!$A$2:$CK$2,0)),""),"") -> 69800 | G11: =IF(B11>0,VLOOKUP(B11,Table1[],6,FALSE),"") -> 2022-11-14
A12: =IFERROR(VLOOKUP(B12,Table1[],2,FALSE),"") -> BIOT PREPARE CRI | B12: ='Profile Overview'!B30 -> 155811 | C12: =IFERROR(IF(B12>0,(VLOOKUP(B12,Table1[],5,FALSE)+30),""),"") -> 230 | D12: =IF(B12>0,VLOOKUP(B12,Table1[],3,FALSE),"") -> 2021-07-01 | E12: =IF(B12>0,VLOOKUP(B12,Table1[],4,FALSE),"") -> 2022-06-30 | F12: =IFERROR(IF(INDEX('LHD Overview'!$A$6:$CK$93,(MATCH($A$3,'LHD Overview'!$A$6:$A$93,0)),MATCH(B12,'LHD Overview'!$A$2:$CK$2,0))>0,INDEX('LHD Overview'!$A$6:$CK$93,(MATCH($A$3,'LHD Overview'!$A$6:$A$93,0)),MATCH(B12,'LHD Overview'!$A$2:$CK$2,0)),""),"") -> 369800 | G12: =IF(B12>0,VLOOKUP(B12,Table1[],6,FALSE),"") -> 2022-08-14
A13: =IFERROR(VLOOKUP(B13,Table1[],2,FALSE),"") ->  | B13: ='Profile Overview'!B12 -> 155806 | C13: =IFERROR(IF(B13>0,(VLOOKUP(B13,Table1[],5,FALSE)+30),""),"") -> 230 | D13: =IF(B13>0,VLOOKUP(B13,Table1[],3,FALSE),"") -> 2021-07-01 | E13: =IF(B13>0,VLOOKUP(B13,Table1[],4,FALSE),"") -> 2022-06-30 | F13: =IFERROR(IF(INDEX('LHD Overview'!$A$6:$CK$93,(MATCH($A$3,'LHD Overview'!$A$6:$A$93,0)),MATCH(B13,'LHD Overview'!$A$2:$CK$2,0))>0,INDEX('LHD Overview'!$A$6:$CK$93,(MATCH($A$3,'LHD Overview'!$A$6:$A$93,0)),MATCH(B13,'LHD Overview'!$A$2:$CK$2,0)),""),"") -> 500200 | G13: =IF(B13>0,VLOOKUP(B13,Table1[],6,FALSE),"") -> 2022-08-14
A14: =IFERROR(VLOOKUP(B14,Table1[],2,FALSE),"") -> WELL WOMAN WISEWOMAN | B14: ='Profile Overview'!B8 -> 157125 | C14: =IFERROR(IF(B14>0,(VLOOKUP(B14,Table1[],5,FALSE)+30),""),"") ->  | D14: =IF(B14>0,VLOOKUP(B14,Table1[],3,FALSE),"") -> 00:00:00 | E14: =IF(B14>0,VLOOKUP(B14,Table1[],4,FALSE),"") -> 00:00:00 | F14: =IFERROR(IF(INDEX('LHD Overview'!$A$6:$CK$93,(MATCH($A$3,'LHD Overview'!$A$6:$A$93,0)),MATCH(B14,'LHD Overview'!$A$2:$CK$2,0))>0,INDEX('LHD Overview'!$A$6:$CK$93,(MATCH($A$3,'LHD Overview'!$A$6:$A$93,0)),MATCH(B14,'LHD Overview'!$A$2:$CK$2,0)),""),"") ->  | G14: =IF(B14>0,VLOOKUP(B14,Table1[],6,FALSE),"") -> 
A15: =IFERROR(VLOOKUP(B15,Table1[],2,FALSE),"") -> WH/FP RH 253.07 GPR | B15: ='Profile Overview'!B9 -> 159317 | C15: =IFERROR(IF(B15>0,(VLOOKUP(B15,Table1[],5,FALSE)+30),""),"") ->  | D15: =IF(B15>0,VLOOKUP(B15,Table1[],3,FALSE),"") -> 00:00:00 | E15: =IF(B15>0,VLOOKUP(B15,Table1[],4,FALSE),"") -> 00:00:00 | F15: =IFERROR(IF(INDEX('LHD Overview'!$A$6:$CK$93,(MATCH($A$3,'LHD Overview'!$A$6:$A$93,0)),MATCH(B15,'LHD Overview'!$A$2:$CK$2,0))>0,INDEX('LHD Overview'!$A$6:$CK$93,(MATCH($A$3,'LHD Overview'!$A$6:$A$93,0)),MATCH(B15,'LHD Overview'!$A$2:$CK$2,0)),""),"") ->  | G15: =IF(B15>0,VLOOKUP(B15,Table1[],6,FALSE),"") -> 
A16: =IFERROR(VLOOKUP(B16,Table1[],2,FALSE),"") -> STATEWIDES-PERF BASED | B16: ='Profile Overview'!B10 -> 159332 | C16: =IFERROR(IF(B16>0,(VLOOKUP(B16,Table1[],5,FALSE)+30),""),"") -> 130 | D16: =IF(B16>0,VLOOKUP(B16,Table1[],3,FALSE),"") -> 2021-01-01 | E16: =IF(B16>0,VLOOKUP(B16,Table1[],4,FALSE),"") -> 2021-12-31 | F16: =IFERROR(IF(INDEX('LHD Overview'!$A$6:$CK$93,(MATCH($A$3,'LHD Overview'!$A$6:$A$93,0)),MATCH(B16,'LHD Overview'!$A$2:$CK$2,0))>0,INDEX('LHD Overview'!$A$6:$CK$93,(MATCH($A$3,'LHD Overview'!$A$6:$A$93,0)),MATCH(B16,'LHD Overview'!$A$2:$CK$2,0)),""),"") ->  | G16: =IF(B16>0,VLOOKUP(B16,Table1[],6,FALSE),"") -> 2022-02-14
A17: =IFERROR(VLOOKUP(B17,Table1[],2,FALSE),"") -> NEWBORN HEAR SCREEN-OUTRC | B17: ='Profile Overview'!B14 -> 115002 | C17: =IFERROR(IF(B17>0,(VLOOKUP(B17,Table1[],5,FALSE)+30),""),"") -> 130 | D17: =IF(B17>0,VLOOKUP(B17,Table1[],3,FALSE),"") -> 2021-01-01 | E17: =IF(B17>0,VLOOKUP(B17,Table1[],4,FALSE),"") -> 2021-12-31 | F17: =IFERROR(IF(INDEX('LHD Overview'!$A$6:$CK$93,(MATCH($A$3,'LHD Overview'!$A$6:$A$93,0)),MATCH(B17,'LHD Overview'!$A$2:$CK$2,0))>0,INDEX('LHD Overview'!$A$6:$CK$93,(MATCH($A$3,'LHD Overview'!$A$6:$A$93,0)),MATCH(B17,'LHD Overview'!$A$2:$CK$2,0)),""),"") ->  | G17: =IF(B17>0,VLOOKUP(B17,Table1[],6,FALSE),"") -> 2022-02-14
A18: =IFERROR(VLOOKUP(B18,Table1[],2,FALSE),"") -> 1815 DIABETES | B18: ='Profile Overview'!B15 -> 150426 | C18: =IFERROR(IF(B18>0,(VLOOKUP(B18,Table1[],5,FALSE)+30),""),"") -> 130 | D18: =IF(B18>0,VLOOKUP(B18,Table1[],3,FALSE),"") -> 2021-01-01 | E18: =IF(B18>0,VLOOKUP(B18,Table1[],4,FALSE),"") -> 2021-12-31 | F18: =IFERROR(IF(INDEX('LHD Overview'!$A$6:$CK$93,(MATCH($A$3,'LHD Overview'!$A$6:$A$93,0)),MATCH(B18,'LHD Overview'!$A$2:$CK$2,0))>0,INDEX('LHD Overview'!$A$6:$CK$93,(MATCH($A$3,'LHD Overview'!$A$6:$A$93,0)),MATCH(B18,'LHD Overview'!$A$2:$CK$2,0)),""),"") ->  | G18: =IF(B18>0,VLOOKUP(B18,Table1[],6,FALSE),"") -> 2022-02-14
A19: =IFERROR(VLOOKUP(B19,Table1[],2,FALSE),"") -> 1815 HEART DISEASE PREV | B19: ='Profile Overview'!B16 -> 150427 | C19: =IFERROR(IF(B19>0,(VLOOKUP(B19,Table1[],5,FALSE)+30),""),"") -> 130 | D19: =IF(B19>0,VLOOKUP(B19,Table1[],3,FALSE),"") -> 2021-01-01 | E19: =IF(B19>0,VLOOKUP(B19,Table1[],4,FALSE),"") -> 2021-12-31 | F19: =IFERROR(IF(INDEX('LHD Overview'!$A$6:$CK$93,(MATCH($A$3,'LHD Overview'!$A$6:$A$93,0)),MATCH(B19,'LHD Overview'!$A$2:$CK$2,0))>0,INDEX('LHD Overview'!$A$6:$CK$93,(MATCH($A$3,'LHD Overview'!$A$6:$A$93,0)),MATCH(B19,'LHD Overview'!$A$2:$CK$2,0)),""),"") ->  | G19: =IF(B19>0,VLOOKUP(B19,Table1[],6,FALSE),"") -> 2022-02-14
A20: =IFERROR(VLOOKUP(B20,Table1[],2,FALSE),"") -> WH/FP RH 253.07 (E) | B20: ='Profile Overview'!B17 -> 152003 | C20: =IFERROR(IF(B20>0,(VLOOKUP(B20,Table1[],5,FALSE)+30),""),"") -> 130 | D20: =IF(B20>0,VLOOKUP(B20,Table1[],3,FALSE),"") -> 2021-01-01 | E20: =IF(B20>0,VLOOKUP(B20,Table1[],4,FALSE),"") -> 2021-12-31 | F20: =IFERROR(IF(INDEX('LHD Overview'!$A$6:$CK$93,(MATCH($A$3,'LHD Overview'!$A$6:$A$93,0)),MATCH(B20,'LHD Overview'!$A$2:$CK$2,0))>0,INDEX('LHD Overview'!$A$6:$CK$93,(MATCH($A$3,'LHD Overview'!$A$6:$A$93,0)),MATCH(B20,'LHD Overview'!$A$2:$CK$2,0)),""),"") ->  | G20: =IF(B20>0,VLOOKUP(B20,Table1[],6,FALSE),"") -> 2022-02-14
A21: =IFERROR(VLOOKUP(B21,Table1[],2,FALSE),"") -> WH/FP RH 253.07 (D) | B21: ='Profile Overview'!B18 -> 152020 | C21: =IFERROR(IF(B21>0,(VLOOKUP(B21,Table1[],5,FALSE)+30),""),"") -> 130 | D21: =IF(B21>0,VLOOKUP(B21,Table1[],3,FALSE),"") -> 2021-01-01 | E21: =IF(B21>0,VLOOKUP(B21,Table1[],4,FALSE),"") -> 2021-12-31 | F21: =IFERROR(IF(INDEX('LHD Overview'!$A$6:$CK$93,(MATCH($A$3,'LHD Overview'!$A$6:$A$93,0)),MATCH(B21,'LHD Overview'!$A$2:$CK$2,0))>0,INDEX('LHD Overview'!$A$6:$CK$93,(MATCH($A$3,'LHD Overview'!$A$6:$A$93,0)),MATCH(B21,'LHD Overview'!$A$2:$CK$2,0)),""),"") ->  | G21: =IF(B21>0,VLOOKUP(B21,Table1[],6,FALSE),"") -> 2022-02-14
A22: =IFERROR(VLOOKUP(B22,Table1[],2,FALSE),"") -> TPCP COMMUNITY INTRVNS | B22: ='Profile Overview'!B19 -> 181010 | C22: =IFERROR(IF(B22>0,(VLOOKUP(B22,Table1[],5,FALSE)+30),""),"") -> 130 | D22: =IF(B22>0,VLOOKUP(B22,Table1[],3,FALSE),"") -> 2021-01-01 | E22: =IF(B22>0,VLOOKUP(B22,Table1[],4,FALSE),"") -> 2021-12-31 | F22: =IFERROR(IF(INDEX('LHD Overview'!$A$6:$CK$93,(MATCH($A$3,'LHD Overview'!$A$6:$A$93,0)),MATCH(B22,'LHD Overview'!$A$2:$CK$2,0))>0,INDEX('LHD Overview'!$A$6:$CK$93,(MATCH($A$3,'LHD Overview'!$A$6:$A$93,0)),MATCH(B22,'LHD Overview'!$A$2:$CK$2,0)),""),"") ->  | G22: =IF(B22>0,VLOOKUP(B22,Table1[],6,FALSE),"") -> 2022-02-14
A23: =IFERROR(VLOOKUP(B23,Table1[],2,FALSE),"") -> REGNL RADON INF CENTERS | B23: ='Profile Overview'!B20 -> 103010 | C23: =IFERROR(IF(B23>0,(VLOOKUP(B23,Table1[],5,FALSE)+30),""),"") -> 130 | D23: =IF(B23>0,VLOOKUP(B23,Table1[],3,FALSE),"") -> 2021-01-01 | E23: =IF(B23>0,VLOOKUP(B23,Table1[],4,FALSE),"") -> 2021-12-31 | F23: =IFERROR(IF(INDEX('LHD Overview'!$A$6:$CK$93,(MATCH($A$3,'LHD Overview'!$A$6:$A$93,0)),MATCH(B23,'LHD Overview'!$A$2:$CK$2,0))>0,INDEX('LHD Overview'!$A$6:$CK$93,(MATCH($A$3,'LHD Overview'!$A$6:$A$93,0)),MATCH(B23,'LHD Overview'!$A$2:$CK$2,0)),""),"") ->  | G23: =IF(B23>0,VLOOKUP(B23,Table1[],6,FALSE),"") -> 2022-02-14
A24: =IFERROR(VLOOKUP(B24,Table1[],2,FALSE),"") -> SNAP NUTR ED GRANT | B24: ='Profile Overview'!B21 -> 154661 | C24: =IFERROR(IF(B24>0,(VLOOKUP(B24,Table1[],5,FALSE)+30),""),"") -> 130 | D24: =IF(B24>0,VLOOKUP(B24,Table1[],3,FALSE),"") -> 2021-01-01 | E24: =IF(B24>0,VLOOKUP(B24,Table1[],4,FALSE),"") -> 2021-12-31 | F24: =IFERROR(IF(INDEX('LHD Overview'!$A$6:$CK$93,(MATCH($A$3,'LHD Overview'!$A$6:$A$93,0)),MATCH(B24,'LHD Overview'!$A$2:$CK$2,0))>0,INDEX('LHD Overview'!$A$6:$CK$93,(MATCH($A$3,'LHD Overview'!$A$6:$A$93,0)),MATCH(B24,'LHD Overview'!$A$2:$CK$2,0)),""),"") ->  | G24: =IF(B24>0,VLOOKUP(B24,Table1[],6,FALSE),"") -> 2022-02-14
A25: =IFERROR(VLOOKUP(B25,Table1[],2,FALSE),"") -> EPA INDOOR RADON SERVICES | B25: ='Profile Overview'!B22 -> 150321 | C25: =IFERROR(IF(B25>0,(VLOOKUP(B25,Table1[],5,FALSE)+30),""),"") -> 130 | D25: =IF(B25>0,VLOOKUP(B25,Table1[],3,FALSE),"") -> 2021-01-01 | E25: =IF(B25>0,VLOOKUP(B25,Table1[],4,FALSE),"") -> 2021-12-31 | F25: =IFERROR(IF(INDEX('LHD Overview'!$A$6:$CK$93,(MATCH($A$3,'LHD Overview'!$A$6:$A$93,0)),MATCH(B25,'LHD Overview'!$A$2:$CK$2,0))>0,INDEX('LHD Overview'!$A$6:$CK$93,(MATCH($A$3,'LHD Overview'!$A$6:$A$93,0)),MATCH(B25,'LHD Overview'!$A$2:$CK$2,0)),""),"") ->  | G25: =IF(B25>0,VLOOKUP(B25,Table1[],6,FALSE),"") -> 2022-02-14
A26: =IFERROR(VLOOKUP(B26,Table1[],2,FALSE),"") -> RAPE PREV AND EDUCATION | B26: ='Profile Overview'!B23 -> 155080 | C26: =IFERROR(IF(B26>0,(VLOOKUP(B26,Table1[],5,FALSE)+30),""),"") -> 130 | D26: =IF(B26>0,VLOOKUP(B26,Table1[],3,FALSE),"") -> 2021-01-01 | E26: =IF(B26>0,VLOOKUP(B26,Table1[],4,FALSE),"") -> 2021-12-31 | F26: =IFERROR(IF(INDEX('LHD Overview'!$A$6:$CK$93,(MATCH($A$3,'LHD Overview'!$A$6:$A$93,0)),MATCH(B26,'LHD Overview'!$A$2:$CK$2,0))>0,INDEX('LHD Overview'!$A$6:$CK$93,(MATCH($A$3,'LHD Overview'!$A$6:$A$93,0)),MATCH(B26,'LHD Overview'!$A$2:$CK$2,0)),""),"") ->  | G26: =IF(B26>0,VLOOKUP(B26,Table1[],6,FALSE),"") -> 2022-02-14
A27: =IFERROR(VLOOKUP(B27,Table1[],2,FALSE),"") -> HIV PREV PS & LINKAGES | B27: ='Profile Overview'!B24 -> 155072 | C27: =IFERROR(IF(B27>0,(VLOOKUP(B27,Table1[],5,FALSE)+30),""),"") -> 130 | D27: =IF(B27>0,VLOOKUP(B27,Table1[],3,FALSE),"") -> 2021-01-01 | E27: =IF(B27>0,VLOOKUP(B27,Table1[],4,FALSE),"") -> 2021-12-31 | F27: =IFERROR(IF(INDEX('LHD Overview'!$A$6:$CK$93,(MATCH($A$3,'LHD Overview'!$A$6:$A$93,0)),MATCH(B27,'LHD Overview'!$A$2:$CK$2,0))>0,INDEX('LHD Overview'!$A$6:$CK$93,(MATCH($A$3,'LHD Overview'!$A$6:$A$93,0)),MATCH(B27,'LHD Overview'!$A$2:$CK$2,0)),""),"") ->  | G27: =IF(B27>0,VLOOKUP(B27,Table1[],6,FALSE),"") -> 2022-02-14
A28: =IFERROR(VLOOKUP(B28,Table1[],2,FALSE),"") -> BIOT FOCUS A PLANNING | B28: ='Profile Overview'!B25 -> 155190 | C28: =IFERROR(IF(B28>0,(VLOOKUP(B28,Table1[],5,FALSE)+30),""),"") -> 230 | D28: =IF(B28>0,VLOOKUP(B28,Table1[],3,FALSE),"") -> 2021-07-01 | E28: =IF(B28>0,VLOOKUP(B28,Table1[],4,FALSE),"") -> 2022-06-30 | F28: =IFERROR(IF(INDEX('LHD Overview'!$A$6:$CK$93,(MATCH($A$3,'LHD Overview'!$A$6:$A$93,0)),MATCH(B28,'LHD Overview'!$A$2:$CK$2,0))>0,INDEX('LHD Overview'!$A$6:$CK$93,(MATCH($A$3,'LHD Overview'!$A$6:$A$93,0)),MATCH(B28,'LHD Overview'!$A$2:$CK$2,0)),""),"") ->  | G28: =IF(B28>0,VLOOKUP(B28,Table1[],6,FALSE),"") -> 2022-08-14
A29: =IFERROR(VLOOKUP(B29,Table1[],2,FALSE),"") -> HIV PREV PS & LINKAGES | B29: ='Profile Overview'!B26 -> 155957 | C29: =IFERROR(IF(B29>0,(VLOOKUP(B29,Table1[],5,FALSE)+30),""),"") -> 130 | D29: =IF(B29>0,VLOOKUP(B29,Table1[],3,FALSE),"") -> 2021-01-01 | E29: =IF(B29>0,VLOOKUP(B29,Table1[],4,FALSE),"") -> 2021-12-31 | F29: =IFERROR(IF(INDEX('LHD Overview'!$A$6:$CK$93,(MATCH($A$3,'LHD Overview'!$A$6:$A$93,0)),MATCH(B29,'LHD Overview'!$A$2:$CK$2,0))>0,INDEX('LHD Overview'!$A$6:$CK$93,(MATCH($A$3,'LHD Overview'!$A$6:$A$93,0)),MATCH(B29,'LHD Overview'!$A$2:$CK$2,0)),""),"") ->  | G29: =IF(B29>0,VLOOKUP(B29,Table1[],6,FALSE),"") -> 2022-02-14
A30: =IFERROR(VLOOKUP(B30,Table1[],2,FALSE),"") -> REGNL RADON INF CENTERS | B30: ='Profile Overview'!B28 -> 128010 | C30: =IFERROR(IF(B30>0,(VLOOKUP(B30,Table1[],5,FALSE)+30),""),"") -> 130 | D30: =IF(B30>0,VLOOKUP(B30,Table1[],3,FALSE),"") -> 2021-01-01 | E30: =IF(B30>0,VLOOKUP(B30,Table1[],4,FALSE),"") -> 2021-12-31 | F30: =IFERROR(IF(INDEX('LHD Overview'!$A$6:$CK$93,(MATCH($A$3,'LHD Overview'!$A$6:$A$93,0)),MATCH(B30,'LHD Overview'!$A$2:$CK$2,0))>0,INDEX('LHD Overview'!$A$6:$CK$93,(MATCH($A$3,'LHD Overview'!$A$6:$A$93,0)),MATCH(B30,'LHD Overview'!$A$2:$CK$2,0)),""),"") ->  | G30: =IF(B30>0,VLOOKUP(B30,Table1[],6,FALSE),"") -> 2022-02-14
A31: =IFERROR(VLOOKUP(B31,Table1[],2,FALSE),"") -> OPIOID RX PATHWAY PROJ | B31: ='Profile Overview'!B29 -> 150211 | C31: =IFERROR(IF(B31>0,(VLOOKUP(B31,Table1[],5,FALSE)+30),""),"") -> 230 | D31: =IF(B31>0,VLOOKUP(B31,Table1[],3,FALSE),"") -> 2021-02-01 | E31: =IF(B31>0,VLOOKUP(B31,Table1[],4,FALSE),"") -> 2022-01-31 | F31: =IFERROR(IF(INDEX('LHD Overview'!$A$6:$CK$93,(MATCH($A$3,'LHD Overview'!$A$6:$A$93,0)),MATCH(B31,'LHD Overview'!$A$2:$CK$2,0))>0,INDEX('LHD Overview'!$A$6:$CK$93,(MATCH($A$3,'LHD Overview'!$A$6:$A$93,0)),MATCH(B31,'LHD Overview'!$A$2:$CK$2,0)),""),"") ->  | G31: =IF(B31>0,VLOOKUP(B31,Table1[],6,FALSE),"") -> 2022-03-17
A32: =IFERROR(VLOOKUP(B32,Table1[],2,FALSE),"") ->  | B32: ='Profile Overview'!#REF! ->  | C32: =IFERROR(IF(B32>0,(VLOOKUP(B32,Table1[],5,FALSE)+30),""),"") ->  | D32: =IF(B32>0,VLOOKUP(B32,Table1[],3,FALSE),"") ->  | E32: =IF(B32>0,VLOOKUP(B32,Table1[],4,FALSE),"") ->  | F32: =IFERROR(IF(INDEX('LHD Overview'!$A$6:$CK$93,(MATCH($A$3,'LHD Overview'!$A$6:$A$93,0)),MATCH(B32,'LHD Overview'!$A$2:$CK$2,0))>0,INDEX('LHD Overview'!$A$6:$CK$93,(MATCH($A$3,'LHD Overview'!$A$6:$A$93,0)),MATCH(B32,'LHD Overview'!$A$2:$CK$2,0)),""),"") ->  | G32: =IF(B32>0,VLOOKUP(B32,Table1[],6,FALSE),"") -> 
A33: =IFERROR(VLOOKUP(B33,Table1[],2,FALSE),"") -> ENHANCING DETECTION COVID | B33: ='Profile Overview'!B32 -> 155801 | C33: =IFERROR(IF(B33>0,(VLOOKUP(B33,Table1[],5,FALSE)+30),""),"") -> 230 | D33: =IF(B33>0,VLOOKUP(B33,Table1[],3,FALSE),"") -> 2020-10-01 | E33: =IF(B33>0,VLOOKUP(B33,Table1[],4,FALSE),"") -> 2022-10-31 | F33: =IFERROR(IF(INDEX('LHD Overview'!$A$6:$CK$93,(MATCH($A$3,'LHD Overview'!$A$6:$A$93,0)),MATCH(B33,'LHD Overview'!$A$2:$CK$2,0))>0,INDEX('LHD Overview'!$A$6:$CK$93,(MATCH($A$3,'LHD Overview'!$A$6:$A$93,0)),MATCH(B33,'LHD Overview'!$A$2:$CK$2,0)),""),"") ->  | G33: =IF(B33>0,VLOOKUP(B33,Table1[],6,FALSE),"") -> 2022-12-15
A34: =IFERROR(VLOOKUP(B34,Table1[],2,FALSE),"") -> IMM COVID Supplement Cons | B34: ='Profile Overview'!B33 -> 119011 | C34: =IFERROR(IF(B34>0,(VLOOKUP(B34,Table1[],5,FALSE)+30),""),"") -> 430 | D34: =IF(B34>0,VLOOKUP(B34,Table1[],3,FALSE),"") -> 2021-07-01 | E34: =IF(B34>0,VLOOKUP(B34,Table1[],4,FALSE),"") -> 2024-06-30 | F34: =IFERROR(IF(INDEX('LHD Overview'!$A$6:$CK$93,(MATCH($A$3,'LHD Overview'!$A$6:$A$93,0)),MATCH(B34,'LHD Overview'!$A$2:$CK$2,0))>0,INDEX('LHD Overview'!$A$6:$CK$93,(MATCH($A$3,'LHD Overview'!$A$6:$A$93,0)),MATCH(B34,'LHD Overview'!$A$2:$CK$2,0)),""),"") ->  | G34: =IF(B34>0,VLOOKUP(B34,Table1[],6,FALSE),"") -> 2024-08-14
A35: =IFERROR(VLOOKUP(B35,Table1[],2,FALSE),"") -> ARPA COVID Recovery Fund | B35: ='Profile Overview'!B34 -> 150429 | C35: =IFERROR(IF(B35>0,(VLOOKUP(B35,Table1[],5,FALSE)+30),""),"") -> 430 | D35: =IF(B35>0,VLOOKUP(B35,Table1[],3,FALSE),"") -> 2021-03-01 | E35: =IF(B35>0,VLOOKUP(B35,Table1[],4,FALSE),"") -> 2024-12-31 | F35: =IFERROR(IF(INDEX('LHD Overview'!$A$6:$CK$93,(MATCH($A$3,'LHD Overview'!$A$6:$A$93,0)),MATCH(B35,'LHD Overview'!$A$2:$CK$2,0))>0,INDEX('LHD Overview'!$A$6:$CK$93,(MATCH($A$3,'LHD Overview'!$A$6:$A$93,0)),MATCH(B35,'LHD Overview'!$A$2:$CK$2,0)),""),"") ->  | G35: =IF(B35>0,VLOOKUP(B35,Table1[],6,FALSE),"") -> 2025-02-14
A36: =IFERROR(VLOOKUP(B36,Table1[],2,FALSE),"") ->  | B36: ='Profile Overview'!B36 -> 159316 | C36: =IFERROR(IF(B36>0,(VLOOKUP(B36,Table1[],5,FALSE)+30),""),"") -> 130 | D36: =IF(B36>0,VLOOKUP(B36,Table1[],3,FALSE),"") -> 2021-01-01 | E36: =IF(B36>0,VLOOKUP(B36,Table1[],4,FALSE),"") -> 2021-12-31 | F36: =IFERROR(IF(INDEX('LHD Overview'!$A$6:$CK$93,(MATCH($A$3,'LHD Overview'!$A$6:$A$93,0)),MATCH(B36,'LHD Overview'!$A$2:$CK$2,0))>0,INDEX('LHD Overview'!$A$6:$CK$93,(MATCH($A$3,'LHD Overview'!$A$6:$A$93,0)),MATCH(B36,'LHD Overview'!$A$2:$CK$2,0)),""),"") ->  | G36: =IF(B36>0,VLOOKUP(B36,Table1[],6,FALSE),"") -> 2022-02-14
A37: =IFERROR(VLOOKUP(B37,Table1[],2,FALSE),"") -> TPCP WI WINS | B37: ='Profile Overview'!B37 -> 181004 | C37: =IFERROR(IF(B37>0,(VLOOKUP(B37,Table1[],5,FALSE)+30),""),"") -> 230 | D37: =IF(B37>0,VLOOKUP(B37,Table1[],3,FALSE),"") -> 2021-07-01 | E37: =IF(B37>0,VLOOKUP(B37,Table1[],4,FALSE),"") -> 2022-06-30 | F37: =IFERROR(IF(INDEX('LHD Overview'!$A$6:$CK$93,(MATCH($A$3,'LHD Overview'!$A$6:$A$93,0)),MATCH(B37,'LHD Overview'!$A$2:$CK$2,0))>0,INDEX('LHD Overview'!$A$6:$CK$93,(MATCH($A$3,'LHD Overview'!$A$6:$A$93,0)),MATCH(B37,'LHD Overview'!$A$2:$CK$2,0)),""),"") ->  | G37: =IF(B37>0,VLOOKUP(B37,Table1[],6,FALSE),"") -> 2022-08-14
A38: =IFERROR(VLOOKUP(B38,Table1[],2,FALSE),"") -> TITLE X SERVICES | B38: ='Profile Overview'!B38 -> 159328 | C38: =IFERROR(IF(B38>0,(VLOOKUP(B38,Table1[],5,FALSE)+30),""),"") -> 230 | D38: =IF(B38>0,VLOOKUP(B38,Table1[],3,FALSE),"") -> 2021-07-01 | E38: =IF(B38>0,VLOOKUP(B38,Table1[],4,FALSE),"") -> 2022-06-30 | F38: =IFERROR(IF(INDEX('LHD Overview'!$A$6:$CK$93,(MATCH($A$3,'LHD Overview'!$A$6:$A$93,0)),MATCH(B38,'LHD Overview'!$A$2:$CK$2,0))>0,INDEX('LHD Overview'!$A$6:$CK$93,(MATCH($A$3,'LHD Overview'!$A$6:$A$93,0)),MATCH(B38,'LHD Overview'!$A$2:$CK$2,0)),""),"") ->  | G38: =IF(B38>0,VLOOKUP(B38,Table1[],6,FALSE),"") -> 2022-08-14
A39: =IFERROR(VLOOKUP(B39,Table1[],2,FALSE),"") -> INFERTILITY PREVENTION | B39: ='Profile Overview'!B40 -> 154791 | C39: =IFERROR(IF(B39>0,(VLOOKUP(B39,Table1[],5,FALSE)+30),""),"") -> 130 | D39: =IF(B39>0,VLOOKUP(B39,Table1[],3,FALSE),"") -> 2021-01-01 | E39: =IF(B39>0,VLOOKUP(B39,Table1[],4,FALSE),"") -> 2021-12-31 | F39: =IFERROR(IF(INDEX('LHD Overview'!$A$6:$CK$93,(MATCH($A$3,'LHD Overview'!$A$6:$A$93,0)),MATCH(B39,'LHD Overview'!$A$2:$CK$2,0))>0,INDEX('LHD Overview'!$A$6:$CK$93,(MATCH($A$3,'LHD Overview'!$A$6:$A$93,0)),MATCH(B39,'LHD Overview'!$A$2:$CK$2,0)),""),"") ->  | G39: =IF(B39>0,VLOOKUP(B39,Table1[],6,FALSE),"") -> 2022-02-14
A40: =IFERROR(VLOOKUP(B40,Table1[],2,FALSE),"") -> FP DUAL PROTECTION SITE | B40: ='Profile Overview'!B41 -> 155078 | C40: =IFERROR(IF(B40>0,(VLOOKUP(B40,Table1[],5,FALSE)+30),""),"") -> 130 | D40: =IF(B40>0,VLOOKUP(B40,Table1[],3,FALSE),"") -> 2021-01-01 | E40: =IF(B40>0,VLOOKUP(B40,Table1[],4,FALSE),"") -> 2021-12-31 | F40: =IFERROR(IF(INDEX('LHD Overview'!$A$6:$CK$93,(MATCH($A$3,'LHD Overview'!$A$6:$A$93,0)),MATCH(B40,'LHD Overview'!$A$2:$CK$2,0))>0,INDEX('LHD Overview'!$A$6:$CK$93,(MATCH($A$3,'LHD Overview'!$A$6:$A$93,0)),MATCH(B40,'LHD Overview'!$A$2:$CK$2,0)),""),"") ->  | G40: =IF(B40>0,VLOOKUP(B40,Table1[],6,FALSE),"") -> 2022-02-14
A41: =IFERROR(VLOOKUP(B41,Table1[],2,FALSE),"") -> INFERTILITY PREVENTION | B41: ='Profile Overview'!B43 -> 155027 | C41: =IFERROR(IF(B41>0,(VLOOKUP(B41,Table1[],5,FALSE)+30),""),"") -> 130 | D41: =IF(B41>0,VLOOKUP(B41,Table1[],3,FALSE),"") -> 2021-01-01 | E41: =IF(B41>0,VLOOKUP(B41,Table1[],4,FALSE),"") -> 2021-12-31 | F41: =IFERROR(IF(INDEX('LHD Overview'!$A$6:$CK$93,(MATCH($A$3,'LHD Overview'!$A$6:$A$93,0)),MATCH(B41,'LHD Overview'!$A$2:$CK$2,0))>0,INDEX('LHD Overview'!$A$6:$CK$93,(MATCH($A$3,'LHD Overview'!$A$6:$A$93,0)),MATCH(B41,'LHD Overview'!$A$2:$CK$2,0)),""),"") ->  | G41: =IF(B41>0,VLOOKUP(B41,Table1[],6,FALSE),"") -> 2022-02-14
A42: =IFERROR(VLOOKUP(B42,Table1[],2,FALSE),"") -> WH/FP RH 20.435 (1)(EV) | B42: ='Profile Overview'!B44 -> 159322 | C42: =IFERROR(IF(B42>0,(VLOOKUP(B42,Table1[],5,FALSE)+30),""),"") -> 130 | D42: =IF(B42>0,VLOOKUP(B42,Table1[],3,FALSE),"") -> 2021-01-01 | E42: =IF(B42>0,VLOOKUP(B42,Table1[],4,FALSE),"") -> 2021-12-31 | F42: =IFERROR(IF(INDEX('LHD Overview'!$A$6:$CK$93,(MATCH($A$3,'LHD Overview'!$A$6:$A$93,0)),MATCH(B42,'LHD Overview'!$A$2:$CK$2,0))>0,INDEX('LHD Overview'!$A$6:$CK$93,(MATCH($A$3,'LHD Overview'!$A$6:$A$93,0)),MATCH(B42,'LHD Overview'!$A$2:$CK$2,0)),""),"") ->  | G42: =IF(B42>0,VLOOKUP(B42,Table1[],6,FALSE),"") -> 2022-02-14
A43: =IFERROR(VLOOKUP(B43,Table1[],2,FALSE),"") -> WH/FP RH 253.07 (4)(a) | B43: ='Profile Overview'!B45 -> 159327 | C43: =IFERROR(IF(B43>0,(VLOOKUP(B43,Table1[],5,FALSE)+30),""),"") -> 130 | D43: =IF(B43>0,VLOOKUP(B43,Table1[],3,FALSE),"") -> 2021-01-01 | E43: =IF(B43>0,VLOOKUP(B43,Table1[],4,FALSE),"") -> 2021-12-31 | F43: =IFERROR(IF(INDEX('LHD Overview'!$A$6:$CK$93,(MATCH($A$3,'LHD Overview'!$A$6:$A$93,0)),MATCH(B43,'LHD Overview'!$A$2:$CK$2,0))>0,INDEX('LHD Overview'!$A$6:$CK$93,(MATCH($A$3,'LHD Overview'!$A$6:$A$93,0)),MATCH(B43,'LHD Overview'!$A$2:$CK$2,0)),""),"") ->  | G43: =IF(B43>0,VLOOKUP(B43,Table1[],6,FALSE),"") -> 2022-02-14
A44: =IFERROR(VLOOKUP(B44,Table1[],2,FALSE),"") -> PERS RESP EDUC PROG-PREP | B44: ='Profile Overview'!B46 -> 159354 | C44: =IFERROR(IF(B44>0,(VLOOKUP(B44,Table1[],5,FALSE)+30),""),"") -> 230 | D44: =IF(B44>0,VLOOKUP(B44,Table1[],3,FALSE),"") -> 2021-04-01 | E44: =IF(B44>0,VLOOKUP(B44,Table1[],4,FALSE),"") -> 2022-03-31 | F44: =IFERROR(IF(INDEX('LHD Overview'!$A$6:$CK$93,(MATCH($A$3,'LHD Overview'!$A$6:$A$93,0)),MATCH(B44,'LHD Overview'!$A$2:$CK$2,0))>0,INDEX('LHD Overview'!$A$6:$CK$93,(MATCH($A$3,'LHD Overview'!$A$6:$A$93,0)),MATCH(B44,'LHD Overview'!$A$2:$CK$2,0)),""),"") ->  | G44: =IF(B44>0,VLOOKUP(B44,Table1[],6,FALSE),"") -> 2022-05-15
A45: =IFERROR(VLOOKUP(B45,Table1[],2,FALSE),"") -> MCH-CYSHCNHUBS | B45: ='Profile Overview'!B47 -> 191001 | C45: =IFERROR(IF(B45>0,(VLOOKUP(B45,Table1[],5,FALSE)+30),""),"") -> 130 | D45: =IF(B45>0,VLOOKUP(B45,Table1[],3,FALSE),"") -> 2021-01-01 | E45: =IF(B45>0,VLOOKUP(B45,Table1[],4,FALSE),"") -> 2021-12-31 | F45: =IFERROR(IF(INDEX('LHD Overview'!$A$6:$CK$93,(MATCH($A$3,'LHD Overview'!$A$6:$A$93,0)),MATCH(B45,'LHD Overview'!$A$2:$CK$2,0))>0,INDEX('LHD Overview'!$A$6:$CK$93,(MATCH($A$3,'LHD Overview'!$A$6:$A$93,0)),MATCH(B45,'LHD Overview'!$A$2:$CK$2,0)),""),"") ->  | G45: =IF(B45>0,VLOOKUP(B45,Table1[],6,FALSE),"") -> 2022-02-14
A46: =IFERROR(VLOOKUP(B46,Table1[],2,FALSE),"") ->  | B46: ='Profile Overview'!B48 -> 150216 | C46: =IFERROR(IF(B46>0,(VLOOKUP(B46,Table1[],5,FALSE)+30),""),"") -> 230 | D46: =IF(B46>0,VLOOKUP(B46,Table1[],3,FALSE),"") -> 2021-07-01 | E46: =IF(B46>0,VLOOKUP(B46,Table1[],4,FALSE),"") -> 2022-06-30 | F46: =IFERROR(IF(INDEX('LHD Overview'!$A$6:$CK$93,(MATCH($A$3,'LHD Overview'!$A$6:$A$93,0)),MATCH(B46,'LHD Overview'!$A$2:$CK$2,0))>0,INDEX('LHD Overview'!$A$6:$CK$93,(MATCH($A$3,'LHD Overview'!$A$6:$A$93,0)),MATCH(B46,'LHD Overview'!$A$2:$CK$2,0)),""),"") ->  | G46: =IF(B46>0,VLOOKUP(B46,Table1[],6,FALSE),"") -> 2022-08-14
A47: =IFERROR(VLOOKUP(B47,Table1[],2,FALSE),"") ->  | B47: ='Profile Overview'!B49 -> 150215 | C47: =IFERROR(IF(B47>0,(VLOOKUP(B47,Table1[],5,FALSE)+30),""),"") -> 230 | D47: =IF(B47>0,VLOOKUP(B47,Table1[],3,FALSE),"") -> 2021-07-01 | E47: =IF(B47>0,VLOOKUP(B47,Table1[],4,FALSE),"") -> 2022-06-30 | F47: =IFERROR(IF(INDEX('LHD Overview'!$A$6:$CK$93,(MATCH($A$3,'LHD Overview'!$A$6:$A$93,0)),MATCH(B47,'LHD Overview'!$A$2:$CK$2,0))>0,INDEX('LHD Overview'!$A$6:$CK$93,(MATCH($A$3,'LHD Overview'!$A$6:$A$93,0)),MATCH(B47,'LHD Overview'!$A$2:$CK$2,0)),""),"") ->  | G47: =IF(B47>0,VLOOKUP(B47,Table1[],6,FALSE),"") -> 2022-08-14
A48: =IFERROR(VLOOKUP(B48,Table1[],2,FALSE),"") -> INFANT MORTALITY-RACINE | B48: ='Profile Overview'!B50 -> 110190 | C48: =IFERROR(IF(B48>0,(VLOOKUP(B48,Table1[],5,FALSE)+30),""),"") -> 130 | D48: =IF(B48>0,VLOOKUP(B48,Table1[],3,FALSE),"") -> 2021-01-01 | E48: =IF(B48>0,VLOOKUP(B48,Table1[],4,FALSE),"") -> 2021-12-31 | F48: =IFERROR(IF(INDEX('LHD Overview'!$A$6:$CK$93,(MATCH($A$3,'LHD Overview'!$A$6:$A$93,0)),MATCH(B48,'LHD Overview'!$A$2:$CK$2,0))>0,INDEX('LHD Overview'!$A$6:$CK$93,(MATCH($A$3,'LHD Overview'!$A$6:$A$93,0)),MATCH(B48,'LHD Overview'!$A$2:$CK$2,0)),""),"") ->  | G48: =IF(B48>0,VLOOKUP(B48,Table1[],6,FALSE),"") -> 2022-02-14
A49: =IFERROR(VLOOKUP(B49,Table1[],2,FALSE),"") ->  | B49: ='Profile Overview'!B51 -> 0 | C49: =IFERROR(IF(B49>0,(VLOOKUP(B49,Table1[],5,FALSE)+30),""),"") ->  | D49: =IF(B49>0,VLOOKUP(B49,Table1[],3,FALSE),"") ->  | E49: =IF(B49>0,VLOOKUP(B49,Table1[],4,FALSE),"") ->  | F49: =IFERROR(IF(INDEX('LHD Overview'!$A$6:$CK$93,(MATCH($A$3,'LHD Overview'!$A$6:$A$93,0)),MATCH(B49,'LHD Overview'!$A$2:$CK$2,0))>0,INDEX('LHD Overview'!$A$6:$CK$93,(MATCH($A$3,'LHD Overview'!$A$6:$A$93,0)),MATCH(B49,'LHD Overview'!$A$2:$CK$2,0)),""),"") ->  | G49: =IF(B49>0,VLOOKUP(B49,Table1[],6,FALSE),"") -> 
A50: =IFERROR(VLOOKUP(B50,Table1[],2,FALSE),"") ->  | B50: ='Profile Overview'!B52 -> 0 | C50: =IFERROR(IF(B50>0,(VLOOKUP(B50,Table1[],5,FALSE)+30),""),"") ->  | D50: =IF(B50>0,VLOOKUP(B50,Table1[],3,FALSE),"") ->  | E50: =IF(B50>0,VLOOKUP(B50,Table1[],4,FALSE),"") ->  | F50: =IFERROR(IF(INDEX('LHD Overview'!$A$6:$CK$93,(MATCH($A$3,'LHD Overview'!$A$6:$A$93,0)),MATCH(B50,'LHD Overview'!$A$2:$CK$2,0))>0,INDEX('LHD Overview'!$A$6:$CK$93,(MATCH($A$3,'LHD Overview'!$A$6:$A$93,0)),MATCH(B50,'LHD Overview'!$A$2:$CK$2,0)),""),"") ->  | G50: =IF(B50>0,VLOOKUP(B50,Table1[],6,FALSE),"") -> 
A51: =IFERROR(VLOOKUP(B51,Table1[],2,FALSE),"") ->  | B51: ='Profile Overview'!B53 -> 0 | C51: =IFERROR(IF(B51>0,(VLOOKUP(B51,Table1[],5,FALSE)+30),""),"") ->  | D51: =IF(B51>0,VLOOKUP(B51,Table1[],3,FALSE),"") ->  | E51: =IF(B51>0,VLOOKUP(B51,Table1[],4,FALSE),"") ->  | F51: =IFERROR(IF(INDEX('LHD Overview'!$A$6:$CK$93,(MATCH($A$3,'LHD Overview'!$A$6:$A$93,0)),MATCH(B51,'LHD Overview'!$A$2:$CK$2,0))>0,INDEX('LHD Overview'!$A$6:$CK$93,(MATCH($A$3,'LHD Overview'!$A$6:$A$93,0)),MATCH(B51,'LHD Overview'!$A$2:$CK$2,0)),""),"") ->  | G51: =IF(B51>0,VLOOKUP(B51,Table1[],6,FALSE),"") -> 
A52: =IFERROR(VLOOKUP(B52,Table1[],2,FALSE),"") ->  | B52: ='Profile Overview'!B54 -> 0 | C52: =IFERROR(IF(B52>0,(VLOOKUP(B52,Table1[],5,FALSE)+30),""),"") ->  | D52: =IF(B52>0,VLOOKUP(B52,Table1[],3,FALSE),"") ->  | E52: =IF(B52>0,VLOOKUP(B52,Table1[],4,FALSE),"") ->  | F52: =IFERROR(IF(INDEX('LHD Overview'!$A$6:$CK$93,(MATCH($A$3,'LHD Overview'!$A$6:$A$93,0)),MATCH(B52,'LHD Overview'!$A$2:$CK$2,0))>0,INDEX('LHD Overview'!$A$6:$CK$93,(MATCH($A$3,'LHD Overview'!$A$6:$A$93,0)),MATCH(B52,'LHD Overview'!$A$2:$CK$2,0)),""),"") ->  | G52: =IF(B52>0,VLOOKUP(B52,Table1[],6,FALSE),"") -> 
A53: =IFERROR(VLOOKUP(B53,Table1[],2,FALSE),"") ->  | B53: ='Profile Overview'!B55 -> 0 | C53: =IFERROR(IF(B53>0,(VLOOKUP(B53,Table1[],5,FALSE)+30),""),"") ->  | D53: =IF(B53>0,VLOOKUP(B53,Table1[],3,FALSE),"") ->  | E53: =IF(B53>0,VLOOKUP(B53,Table1[],4,FALSE),"") ->  | F53: =IFERROR(IF(INDEX('LHD Overview'!$A$6:$CK$93,(MATCH($A$3,'LHD Overview'!$A$6:$A$93,0)),MATCH(B53,'LHD Overview'!$A$2:$CK$2,0))>0,INDEX('LHD Overview'!$A$6:$CK$93,(MATCH($A$3,'LHD Overview'!$A$6:$A$93,0)),MATCH(B53,'LHD Overview'!$A$2:$CK$2,0)),""),"") ->  | G53: =IF(B53>0,VLOOKUP(B53,Table1[],6,FALSE),"") -> 
A54: =IFERROR(VLOOKUP(B54,Table1[],2,FALSE),"") ->  | B54: ='Profile Overview'!B56 -> 0 | C54: =IFERROR(IF(B54>0,(VLOOKUP(B54,Table1[],5,FALSE)+30),""),"") ->  | D54: =IF(B54>0,VLOOKUP(B54,Table1[],3,FALSE),"") ->  | E54: =IF(B54>0,VLOOKUP(B54,Table1[],4,FALSE),"") ->  | F54: =IFERROR(IF(INDEX('LHD Overview'!$A$6:$CK$93,(MATCH($A$3,'LHD Overview'!$A$6:$A$93,0)),MATCH(B54,'LHD Overview'!$A$2:$CK$2,0))>0,INDEX('LHD Overview'!$A$6:$CK$93,(MATCH($A$3,'LHD Overview'!$A$6:$A$93,0)),MATCH(B54,'LHD Overview'!$A$2:$CK$2,0)),""),"") ->  | G54: =IF(B54>0,VLOOKUP(B54,Table1[],6,FALSE),"") -> 
A55: =IFERROR(VLOOKUP(B55,Table1[],2,FALSE),"") ->  | B55: ='Profile Overview'!B57 -> 0 | C55: =IFERROR(IF(B55>0,(VLOOKUP(B55,Table1[],5,FALSE)+30),""),"") ->  | D55: =IF(B55>0,VLOOKUP(B55,Table1[],3,FALSE),"") ->  | E55: =IF(B55>0,VLOOKUP(B55,Table1[],4,FALSE),"") ->  | F55: =IFERROR(IF(INDEX('LHD Overview'!$A$6:$CK$93,(MATCH($A$3,'LHD Overview'!$A$6:$A$93,0)),MATCH(B55,'LHD Overview'!$A$2:$CK$2,0))>0,INDEX('LHD Overview'!$A$6:$CK$93,(MATCH($A$3,'LHD Overview'!$A$6:$A$93,0)),MATCH(B55,'LHD Overview'!$A$2:$CK$2,0)),""),"") ->  | G55: =IF(B55>0,VLOOKUP(B55,Table1[],6,FALSE),"") -> 
A56: =IFERROR(VLOOKUP(B56,Table1[],2,FALSE),"") ->  | B56: ='Profile Overview'!B58 -> 0 | C56: =IFERROR(IF(B56>0,(VLOOKUP(B56,Table1[],5,FALSE)+30),""),"") ->  | D56: =IF(B56>0,VLOOKUP(B56,Table1[],3,FALSE),"") ->  | E56: =IF(B56>0,VLOOKUP(B56,Table1[],4,FALSE),"") ->  | F56: =IFERROR(IF(INDEX('LHD Overview'!$A$6:$CK$93,(MATCH($A$3,'LHD Overview'!$A$6:$A$93,0)),MATCH(B56,'LHD Overview'!$A$2:$CK$2,0))>0,INDEX('LHD Overview'!$A$6:$CK$93,(MATCH($A$3,'LHD Overview'!$A$6:$A$93,0)),MATCH(B56,'LHD Overview'!$A$2:$CK$2,0)),""),"") ->  | G56: =IF(B56>0,VLOOKUP(B56,Table1[],6,FALSE),"") -> 
A57: =IFERROR(VLOOKUP(B57,Table1[],2,FALSE),"") ->  | B57: ='Profile Overview'!B59 -> 0 | C57: =IFERROR(IF(B57>0,(VLOOKUP(B57,Table1[],5,FALSE)+30),""),"") ->  | D57: =IF(B57>0,VLOOKUP(B57,Table1[],3,FALSE),"") ->  | E57: =IF(B57>0,VLOOKUP(B57,Table1[],4,FALSE),"") ->  | F57: =IFERROR(IF(INDEX('LHD Overview'!$A$6:$CK$93,(MATCH($A$3,'LHD Overview'!$A$6:$A$93,0)),MATCH(B57,'LHD Overview'!$A$2:$CK$2,0))>0,INDEX('LHD Overview'!$A$6:$CK$93,(MATCH($A$3,'LHD Overview'!$A$6:$A$93,0)),MATCH(B57,'LHD Overview'!$A$2:$CK$2,0)),""),"") ->  | G57: =IF(B57>0,VLOOKUP(B57,Table1[],6,FALSE),"") -> 
A58: =IFERROR(VLOOKUP(B58,Table1[],2,FALSE),"") ->  | B58: ='Profile Overview'!B60 -> 0 | C58: =IFERROR(IF(B58>0,(VLOOKUP(B58,Table1[],5,FALSE)+30),""),"") ->  | D58: =IF(B58>0,VLOOKUP(B58,Table1[],3,FALSE),"") ->  | E58: =IF(B58>0,VLOOKUP(B58,Table1[],4,FALSE),"") ->  | F58: =IFERROR(IF(INDEX('LHD Overview'!$A$6:$CK$93,(MATCH($A$3,'LHD Overview'!$A$6:$A$93,0)),MATCH(B58,'LHD Overview'!$A$2:$CK$2,0))>0,INDEX('LHD Overview'!$A$6:$CK$93,(MATCH($A$3,'LHD Overview'!$A$6:$A$93,0)),MATCH(B58,'LHD Overview'!$A$2:$CK$2,0)),""),"") ->  | G58: =IF(B58>0,VLOOKUP(B58,Table1[],6,FALSE),"") -> 
A59: =IFERROR(VLOOKUP(B59,Table1[],2,FALSE),"") ->  | B59: ='Profile Overview'!B61 -> 0 | C59: =IFERROR(IF(B59>0,(VLOOKUP(B59,Table1[],5,FALSE)+30),""),"") ->  | D59: =IF(B59>0,VLOOKUP(B59,Table1[],3,FALSE),"") ->  | E59: =IF(B59>0,VLOOKUP(B59,Table1[],4,FALSE),"") ->  | F59: =IFERROR(IF(INDEX('LHD Overview'!$A$6:$CK$93,(MATCH($A$3,'LHD Overview'!$A$6:$A$93,0)),MATCH(B59,'LHD Overview'!$A$2:$CK$2,0))>0,INDEX('LHD Overview'!$A$6:$CK$93,(MATCH($A$3,'LHD Overview'!$A$6:$A$93,0)),MATCH(B59,'LHD Overview'!$A$2:$CK$2,0)),""),"") ->  | G59: =IF(B59>0,VLOOKUP(B59,Table1[],6,FALSE),"") -> 
A60: =IFERROR(VLOOKUP(B60,Table1[],2,FALSE),"") ->  | B60: ='Profile Overview'!B62 -> 0 | C60: =IFERROR(IF(B60>0,(VLOOKUP(B60,Table1[],5,FALSE)+30),""),"") ->  | D60: =IF(B60>0,VLOOKUP(B60,Table1[],3,FALSE),"") ->  | E60: =IF(B60>0,VLOOKUP(B60,Table1[],4,FALSE),"") ->  | F60: =IFERROR(IF(INDEX('LHD Overview'!$A$6:$CK$93,(MATCH($A$3,'LHD Overview'!$A$6:$A$93,0)),MATCH(B60,'LHD Overview'!$A$2:$CK$2,0))>0,INDEX('LHD Overview'!$A$6:$CK$93,(MATCH($A$3,'LHD Overview'!$A$6:$A$93,0)),MATCH(B60,'LHD Overview'!$A$2:$CK$2,0)),""),"") ->  | G60: =IF(B60>0,VLOOKUP(B60,Table1[],6,FALSE),"") -> 
A61: =IFERROR(VLOOKUP(B61,Table1[],2,FALSE),"") ->  | B61: ='Profile Overview'!B63 -> 0 | C61: =IFERROR(IF(B61>0,(VLOOKUP(B61,Table1[],5,FALSE)+30),""),"") ->  | D61: =IF(B61>0,VLOOKUP(B61,Table1[],3,FALSE),"") ->  | E61: =IF(B61>0,VLOOKUP(B61,Table1[],4,FALSE),"") ->  | F61: =IFERROR(IF(INDEX('LHD Overview'!$A$6:$CK$93,(MATCH($A$3,'LHD Overview'!$A$6:$A$93,0)),MATCH(B61,'LHD Overview'!$A$2:$CK$2,0))>0,INDEX('LHD Overview'!$A$6:$CK$93,(MATCH($A$3,'LHD Overview'!$A$6:$A$93,0)),MATCH(B61,'LHD Overview'!$A$2:$CK$2,0)),""),"") ->  | G61: =IF(B61>0,VLOOKUP(B61,Table1[],6,FALSE),"") -> 
A62: =IFERROR(VLOOKUP(B62,Table1[],2,FALSE),"") ->  | B62: ='Profile Overview'!B64 -> 0 | C62: =IFERROR(IF(B62>0,(VLOOKUP(B62,Table1[],5,FALSE)+30),""),"") ->  | D62: =IF(B62>0,VLOOKUP(B62,Table1[],3,FALSE),"") ->  | E62: =IF(B62>0,VLOOKUP(B62,Table1[],4,FALSE),"") ->  | F62: =IFERROR(IF(INDEX('LHD Overview'!$A$6:$CK$93,(MATCH($A$3,'LHD Overview'!$A$6:$A$93,0)),MATCH(B62,'LHD Overview'!$A$2:$CK$2,0))>0,INDEX('LHD Overview'!$A$6:$CK$93,(MATCH($A$3,'LHD Overview'!$A$6:$A$93,0)),MATCH(B62,'LHD Overview'!$A$2:$CK$2,0)),""),"") ->  | G62: =IF(B62>0,VLOOKUP(B62,Table1[],6,FALSE),"") -> 
A63: =IFERROR(VLOOKUP(B63,Table1[],2,FALSE),"") ->  | B63: ='Profile Overview'!B65 -> 0 | C63: =IFERROR(IF(B63>0,(VLOOKUP(B63,Table1[],5,FALSE)+30),""),"") ->  | D63: =IF(B63>0,VLOOKUP(B63,Table1[],3,FALSE),"") ->  | E63: =IF(B63>0,VLOOKUP(B63,Table1[],4,FALSE),"") ->  | F63: =IFERROR(IF(INDEX('LHD Overview'!$A$6:$CK$93,(MATCH($A$3,'LHD Overview'!$A$6:$A$93,0)),MATCH(B63,'LHD Overview'!$A$2:$CK$2,0))>0,INDEX('LHD Overview'!$A$6:$CK$93,(MATCH($A$3,'LHD Overview'!$A$6:$A$93,0)),MATCH(B63,'LHD Overview'!$A$2:$CK$2,0)),""),"") ->  | G63: =IF(B63>0,VLOOKUP(B63,Table1[],6,FALSE),"") -> 
A64: =IFERROR(VLOOKUP(B64,Table1[],2,FALSE),"") ->  | B64: ='Profile Overview'!B66 -> 0 | C64: =IFERROR(IF(B64>0,(VLOOKUP(B64,Table1[],5,FALSE)+30),""),"") ->  | D64: =IF(B64>0,VLOOKUP(B64,Table1[],3,FALSE),"") ->  | E64: =IF(B64>0,VLOOKUP(B64,Table1[],4,FALSE),"") ->  | F64: =IFERROR(IF(INDEX('LHD Overview'!$A$6:$CK$93,(MATCH($A$3,'LHD Overview'!$A$6:$A$93,0)),MATCH(B64,'LHD Overview'!$A$2:$CK$2,0))>0,INDEX('LHD Overview'!$A$6:$CK$93,(MATCH($A$3,'LHD Overview'!$A$6:$A$93,0)),MATCH(B64,'LHD Overview'!$A$2:$CK$2,0)),""),"") ->  | G64: =IF(B64>0,VLOOKUP(B64,Table1[],6,FALSE),"") -> 
A65: =IFERROR(VLOOKUP(B65,Table1[],2,FALSE),"") ->  | B65: ='Profile Overview'!B67 -> 0 | C65: =IFERROR(IF(B65>0,(VLOOKUP(B65,Table1[],5,FALSE)+30),""),"") ->  | D65: =IF(B65>0,VLOOKUP(B65,Table1[],3,FALSE),"") ->  | E65: =IF(B65>0,VLOOKUP(B65,Table1[],4,FALSE),"") ->  | F65: =IFERROR(IF(INDEX('LHD Overview'!$A$6:$CK$93,(MATCH($A$3,'LHD Overview'!$A$6:$A$93,0)),MATCH(B65,'LHD Overview'!$A$2:$CK$2,0))>0,INDEX('LHD Overview'!$A$6:$CK$93,(MATCH($A$3,'LHD Overview'!$A$6:$A$93,0)),MATCH(B65,'LHD Overview'!$A$2:$CK$2,0)),""),"") ->  | G65: =IF(B65>0,VLOOKUP(B65,Table1[],6,FALSE),"") -> 
A66: =IFERROR(VLOOKUP(B66,Table1[],2,FALSE),"") ->  | B66: ='Profile Overview'!B68 -> 0 | C66: =IFERROR(IF(B66>0,(VLOOKUP(B66,Table1[],5,FALSE)+30),""),"") ->  | D66: =IF(B66>0,VLOOKUP(B66,Table1[],3,FALSE),"") ->  | E66: =IF(B66>0,VLOOKUP(B66,Table1[],4,FALSE),"") ->  | F66: =IFERROR(IF(INDEX('LHD Overview'!$A$6:$CK$93,(MATCH($A$3,'LHD Overview'!$A$6:$A$93,0)),MATCH(B66,'LHD Overview'!$A$2:$CK$2,0))>0,INDEX('LHD Overview'!$A$6:$CK$93,(MATCH($A$3,'LHD Overview'!$A$6:$A$93,0)),MATCH(B66,'LHD Overview'!$A$2:$CK$2,0)),""),"") ->  | G66: =IF(B66>0,VLOOKUP(B66,Table1[],6,FALSE),"") -> 
A67: =IFERROR(VLOOKUP(B67,Table1[],2,FALSE),"") ->  | B67: ='Profile Overview'!B69 -> 0 | C67: =IFERROR(IF(B67>0,(VLOOKUP(B67,Table1[],5,FALSE)+30),""),"") ->  | D67: =IF(B67>0,VLOOKUP(B67,Table1[],3,FALSE),"") ->  | E67: =IF(B67>0,VLOOKUP(B67,Table1[],4,FALSE),"") ->  | F67: =IFERROR(IF(INDEX('LHD Overview'!$A$6:$CK$93,(MATCH($A$3,'LHD Overview'!$A$6:$A$93,0)),MATCH(B67,'LHD Overview'!$A$2:$CK$2,0))>0,INDEX('LHD Overview'!$A$6:$CK$93,(MATCH($A$3,'LHD Overview'!$A$6:$A$93,0)),MATCH(B67,'LHD Overview'!$A$2:$CK$2,0)),""),"") ->  | G67: =IF(B67>0,VLOOKUP(B67,Table1[],6,FALSE),"") -> 
A68: =IFERROR(VLOOKUP(B68,Table1[],2,FALSE),"") ->  | B68: ='Profile Overview'!B70 -> 0 | C68: =IFERROR(IF(B68>0,(VLOOKUP(B68,Table1[],5,FALSE)+30),""),"") ->  | D68: =IF(B68>0,VLOOKUP(B68,Table1[],3,FALSE),"") ->  | E68: =IF(B68>0,VLOOKUP(B68,Table1[],4,FALSE),"") ->  | F68: =IFERROR(IF(INDEX('LHD Overview'!$A$6:$CK$93,(MATCH($A$3,'LHD Overview'!$A$6:$A$93,0)),MATCH(B68,'LHD Overview'!$A$2:$CK$2,0))>0,INDEX('LHD Overview'!$A$6:$CK$93,(MATCH($A$3,'LHD Overview'!$A$6:$A$93,0)),MATCH(B68,'LHD Overview'!$A$2:$CK$2,0)),""),"") ->  | G68: =IF(B68>0,VLOOKUP(B68,Table1[],6,FALSE),"") -> 
A69: =IFERROR(VLOOKUP(B69,Table1[],2,FALSE),"") ->  | B69: ='Profile Overview'!B71 -> 0 | C69: =IFERROR(IF(B69>0,(VLOOKUP(B69,Table1[],5,FALSE)+30),""),"") ->  | D69: =IF(B69>0,VLOOKUP(B69,Table1[],3,FALSE),"") ->  | E69: =IF(B69>0,VLOOKUP(B69,Table1[],4,FALSE),"") ->  | F69: =IFERROR(IF(INDEX('LHD Overview'!$A$6:$CK$93,(MATCH($A$3,'LHD Overview'!$A$6:$A$93,0)),MATCH(B69,'LHD Overview'!$A$2:$CK$2,0))>0,INDEX('LHD Overview'!$A$6:$CK$93,(MATCH($A$3,'LHD Overview'!$A$6:$A$93,0)),MATCH(B69,'LHD Overview'!$A$2:$CK$2,0)),""),"") ->  | G69: =IF(B69>0,VLOOKUP(B69,Table1[],6,FALSE),"") -> 
A70: =IFERROR(VLOOKUP(B70,Table1[],2,FALSE),"") ->  | B70: ='Profile Overview'!B72 -> 0 | C70: =IFERROR(IF(B70>0,(VLOOKUP(B70,Table1[],5,FALSE)+30),""),"") ->  | D70: =IF(B70>0,VLOOKUP(B70,Table1[],3,FALSE),"") ->  | E70: =IF(B70>0,VLOOKUP(B70,Table1[],4,FALSE),"") ->  | F70: =IFERROR(IF(INDEX('LHD Overview'!$A$6:$CK$93,(MATCH($A$3,'LHD Overview'!$A$6:$A$93,0)),MATCH(B70,'LHD Overview'!$A$2:$CK$2,0))>0,INDEX('LHD Overview'!$A$6:$CK$93,(MATCH($A$3,'LHD Overview'!$A$6:$A$93,0)),MATCH(B70,'LHD Overview'!$A$2:$CK$2,0)),""),"") ->  | G70: =IF(B70>0,VLOOKUP(B70,Table1[],6,FALSE),"") -> 
A71: =IFERROR(VLOOKUP(B71,Table1[],2,FALSE),"") ->  | B71: ='Profile Overview'!B73 -> 0 | C71: =IFERROR(IF(B71>0,(VLOOKUP(B71,Table1[],5,FALSE)+30),""),"") ->  | D71: =IF(B71>0,VLOOKUP(B71,Table1[],3,FALSE),"") ->  | E71: =IF(B71>0,VLOOKUP(B71,Table1[],4,FALSE),"") ->  | F71: =IFERROR(IF(INDEX('LHD Overview'!$A$6:$CK$93,(MATCH($A$3,'LHD Overview'!$A$6:$A$93,0)),MATCH(B71,'LHD Overview'!$A$2:$CK$2,0))>0,INDEX('LHD Overview'!$A$6:$CK$93,(MATCH($A$3,'LHD Overview'!$A$6:$A$93,0)),MATCH(B71,'LHD Overview'!$A$2:$CK$2,0)),""),"") ->  | G71: =IF(B71>0,VLOOKUP(B71,Table1[],6,FALSE),"") -> 
A72: =IFERROR(VLOOKUP(B72,Table1[],2,FALSE),"") ->  | B72: ='Profile Overview'!B74 -> 0 | C72: =IFERROR(IF(B72>0,(VLOOKUP(B72,Table1[],5,FALSE)+30),""),"") ->  | D72: =IF(B72>0,VLOOKUP(B72,Table1[],3,FALSE),"") ->  | E72: =IF(B72>0,VLOOKUP(B72,Table1[],4,FALSE),"") ->  | F72: =IFERROR(IF(INDEX('LHD Overview'!$A$6:$CK$93,(MATCH($A$3,'LHD Overview'!$A$6:$A$93,0)),MATCH(B72,'LHD Overview'!$A$2:$CK$2,0))>0,INDEX('LHD Overview'!$A$6:$CK$93,(MATCH($A$3,'LHD Overview'!$A$6:$A$93,0)),MATCH(B72,'LHD Overview'!$A$2:$CK$2,0)),""),"") ->  | G72: =IF(B72>0,VLOOKUP(B72,Table1[],6,FALSE),"") -> 
A73: =IFERROR(VLOOKUP(B73,Table1[],2,FALSE),"") ->  | B73: ='Profile Overview'!B75 -> 0 | C73: =IFERROR(IF(B73>0,(VLOOKUP(B73,Table1[],5,FALSE)+30),""),"") ->  | D73: =IF(B73>0,VLOOKUP(B73,Table1[],3,FALSE),"") ->  | E73: =IF(B73>0,VLOOKUP(B73,Table1[],4,FALSE),"") ->  | F73: =IFERROR(IF(INDEX('LHD Overview'!$A$6:$CK$93,(MATCH($A$3,'LHD Overview'!$A$6:$A$93,0)),MATCH(B73,'LHD Overview'!$A$2:$CK$2,0))>0,INDEX('LHD Overview'!$A$6:$CK$93,(MATCH($A$3,'LHD Overview'!$A$6:$A$93,0)),MATCH(B73,'LHD Overview'!$A$2:$CK$2,0)),""),"") ->  | G73: =IF(B73>0,VLOOKUP(B73,Table1[],6,FALSE),"") -> 
A74: =IFERROR(VLOOKUP(B74,Table1[],2,FALSE),"") ->  | B74: ='Profile Overview'!B76 -> 0 | C74: =IFERROR(IF(B74>0,(VLOOKUP(B74,Table1[],5,FALSE)+30),""),"") ->  | D74: =IF(B74>0,VLOOKUP(B74,Table1[],3,FALSE),"") ->  | E74: =IF(B74>0,VLOOKUP(B74,Table1[],4,FALSE),"") ->  | F74: =IFERROR(IF(INDEX('LHD Overview'!$A$6:$CK$93,(MATCH($A$3,'LHD Overview'!$A$6:$A$93,0)),MATCH(B74,'LHD Overview'!$A$2:$CK$2,0))>0,INDEX('LHD Overview'!$A$6:$CK$93,(MATCH($A$3,'LHD Overview'!$A$6:$A$93,0)),MATCH(B74,'LHD Overview'!$A$2:$CK$2,0)),""),"") ->  | G74: =IF(B74>0,VLOOKUP(B74,Table1[],6,FALSE),"") -> 
A75: =IFERROR(VLOOKUP(B75,Table1[],2,FALSE),"") ->  | B75: ='Profile Overview'!B77 -> 0 | C75: =IFERROR(IF(B75>0,(VLOOKUP(B75,Table1[],5,FALSE)+30),""),"") ->  | D75: =IF(B75>0,VLOOKUP(B75,Table1[],3,FALSE),"") ->  | E75: =IF(B75>0,VLOOKUP(B75,Table1[],4,FALSE),"") ->  | F75: =IFERROR(IF(INDEX('LHD Overview'!$A$6:$CK$93,(MATCH($A$3,'LHD Overview'!$A$6:$A$93,0)),MATCH(B75,'LHD Overview'!$A$2:$CK$2,0))>0,INDEX('LHD Overview'!$A$6:$CK$93,(MATCH($A$3,'LHD Overview'!$A$6:$A$93,0)),MATCH(B75,'LHD Overview'!$A$2:$CK$2,0)),""),"") ->  | G75: =IF(B75>0,VLOOKUP(B75,Table1[],6,FALSE),"") -> 
A76: =IFERROR(VLOOKUP(B76,Table1[],2,FALSE),"") ->  | B76: ='Profile Overview'!B78 -> 0 | C76: =IFERROR(IF(B76>0,(VLOOKUP(B76,Table1[],5,FALSE)+30),""),"") ->  | D76: =IF(B76>0,VLOOKUP(B76,Table1[],3,FALSE),"") ->  | E76: =IF(B76>0,VLOOKUP(B76,Table1[],4,FALSE),"") ->  | F76: =IFERROR(IF(INDEX('LHD Overview'!$A$6:$CK$93,(MATCH($A$3,'LHD Overview'!$A$6:$A$93,0)),MATCH(B76,'LHD Overview'!$A$2:$CK$2,0))>0,INDEX('LHD Overview'!$A$6:$CK$93,(MATCH($A$3,'LHD Overview'!$A$6:$A$93,0)),MATCH(B76,'LHD Overview'!$A$2:$CK$2,0)),""),"") ->  | G76: =IF(B76>0,VLOOKUP(B76,Table1[],6,FALSE),"") -> 
A77: =IFERROR(VLOOKUP(B77,Table1[],2,FALSE),"") ->  | B77: ='Profile Overview'!B79 -> 0 | C77: =IFERROR(IF(B77>0,(VLOOKUP(B77,Table1[],5,FALSE)+30),""),"") ->  | D77: =IF(B77>0,VLOOKUP(B77,Table1[],3,FALSE),"") ->  | E77: =IF(B77>0,VLOOKUP(B77,Table1[],4,FALSE),"") ->  | F77: =IFERROR(IF(INDEX('LHD Overview'!$A$6:$CK$93,(MATCH($A$3,'LHD Overview'!$A$6:$A$93,0)),MATCH(B77,'LHD Overview'!$A$2:$CK$2,0))>0,INDEX('LHD Overview'!$A$6:$CK$93,(MATCH($A$3,'LHD Overview'!$A$6:$A$93,0)),MATCH(B77,'LHD Overview'!$A$2:$CK$2,0)),""),"") ->  | G77: =IF(B77>0,VLOOKUP(B77,Table1[],6,FALSE),"") -> 
A78: =IFERROR(VLOOKUP(B78,Table1[],2,FALSE),"") ->  | B78: ='Profile Overview'!B80 -> 0 | C78: =IFERROR(IF(B78>0,(VLOOKUP(B78,Table1[],5,FALSE)+30),""),"") ->  | D78: =IF(B78>0,VLOOKUP(B78,Table1[],3,FALSE),"") ->  | E78: =IF(B78>0,VLOOKUP(B78,Table1[],4,FALSE),"") ->  | F78: =IFERROR(IF(INDEX('LHD Overview'!$A$6:$CK$93,(MATCH($A$3,'LHD Overview'!$A$6:$A$93,0)),MATCH(B78,'LHD Overview'!$A$2:$CK$2,0))>0,INDEX('LHD Overview'!$A$6:$CK$93,(MATCH($A$3,'LHD Overview'!$A$6:$A$93,0)),MATCH(B78,'LHD Overview'!$A$2:$CK$2,0)),""),"") ->  | G78: =IF(B78>0,VLOOKUP(B78,Table1[],6,FALSE),"") -> 
A79: =IFERROR(VLOOKUP(B79,Table1[],2,FALSE),"") ->  | B79: ='Profile Overview'!B81 -> 0 | C79: =IFERROR(IF(B79>0,(VLOOKUP(B79,Table1[],5,FALSE)+30),""),"") ->  | D79: =IF(B79>0,VLOOKUP(B79,Table1[],3,FALSE),"") ->  | E79: =IF(B79>0,VLOOKUP(B79,Table1[],4,FALSE),"") ->  | F79: =IFERROR(IF(INDEX('LHD Overview'!$A$6:$CK$93,(MATCH($A$3,'LHD Overview'!$A$6:$A$93,0)),MATCH(B79,'LHD Overview'!$A$2:$CK$2,0))>0,INDEX('LHD Overview'!$A$6:$CK$93,(MATCH($A$3,'LHD Overview'!$A$6:$A$93,0)),MATCH(B79,'LHD Overview'!$A$2:$CK$2,0)),""),"") ->  | G79: =IF(B79>0,VLOOKUP(B79,Table1[],6,FALSE),"") -> 
A80: =IFERROR(VLOOKUP(B80,Table1[],2,FALSE),"") ->  | C80: =IFERROR(IF(B80>0,(VLOOKUP(B80,Table1[],5,FALSE)+30),""),"") ->  | D80: =IF(B80>0,VLOOKUP(B80,Table1[],3,FALSE),"") ->  | E80: =IF(B80>0,VLOOKUP(B80,Table1[],4,FALSE),"") ->  | F80: =IFERROR(IF(INDEX('LHD Overview'!$A$6:$CK$93,1,MATCH(B80,'LHD Overview'!$A$2:$CK$2,0))>0,INDEX('LHD Overview'!$A$6:$CK$93,1,MATCH(B80,'LHD Overview'!$A$2:$CK$2,0)),""),"") ->  | G80: =IF(B80>0,VLOOKUP(B80,Table1[],6,FALSE),"") -> 
A81: =IFERROR(VLOOKUP(B81,Table1[],2,FALSE),"") ->  | C81: =IFERROR(IF(B81>0,(VLOOKUP(B81,Table1[],5,FALSE)+30),""),"") ->  | D81: =IF(B81>0,VLOOKUP(B81,Table1[],3,FALSE),"") ->  | E81: =IF(B81>0,VLOOKUP(B81,Table1[],4,FALSE),"") ->  | F81: =IFERROR(IF(INDEX('LHD Overview'!$A$6:$CK$93,1,MATCH(B81,'LHD Overview'!$A$2:$CK$2,0))>0,INDEX('LHD Overview'!$A$6:$CK$93,1,MATCH(B81,'LHD Overview'!$A$2:$CK$2,0)),""),"") ->  | G81: =IF(B81>0,VLOOKUP(B81,Table1[],6,FALSE),"") -> 
A82: =IFERROR(VLOOKUP(B82,Table1[],2,FALSE),"") ->  | C82: =IFERROR(IF(B82>0,(VLOOKUP(B82,Table1[],5,FALSE)+30),""),"") ->  | D82: =IF(B82>0,VLOOKUP(B82,Table1[],3,FALSE),"") ->  | E82: =IF(B82>0,VLOOKUP(B82,Table1[],4,FALSE),"") ->  | F82: =IFERROR(IF(INDEX('LHD Overview'!$A$6:$CK$93,1,MATCH(B82,'LHD Overview'!$A$2:$CK$2,0))>0,INDEX('LHD Overview'!$A$6:$CK$93,1,MATCH(B82,'LHD Overview'!$A$2:$CK$2,0)),""),"") ->  | G82: =IF(B82>0,VLOOKUP(B82,Table1[],6,FALSE),"") -> 
A83: =IFERROR(VLOOKUP(B83,Table1[],2,FALSE),"") ->  | C83: =IFERROR(IF(B83>0,(VLOOKUP(B83,Table1[],5,FALSE)+30),""),"") ->  | D83: =IF(B83>0,VLOOKUP(B83,Table1[],3,FALSE),"") ->  | E83: =IF(B83>0,VLOOKUP(B83,Table1[],4,FALSE),"") ->  | F83: =IFERROR(IF(INDEX('LHD Overview'!$A$6:$CK$93,1,MATCH(B83,'LHD Overview'!$A$2:$CK$2,0))>0,INDEX('LHD Overview'!$A$6:$CK$93,1,MATCH(B83,'LHD Overview'!$A$2:$CK$2,0)),""),"") ->  | G83: =IF(B83>0,VLOOKUP(B83,Table1[],6,FALSE),"") -> 
A84: =IFERROR(VLOOKUP(B84,Table1[],2,FALSE),"") ->  | C84: =IFERROR(IF(B84>0,(VLOOKUP(B84,Table1[],5,FALSE)+30),""),"") ->  | D84: =IF(B84>0,VLOOKUP(B84,Table1[],3,FALSE),"") ->  | E84: =IF(B84>0,VLOOKUP(B84,Table1[],4,FALSE),"") ->  | F84: =IFERROR(IF(INDEX('LHD Overview'!$A$6:$CK$93,1,MATCH(B84,'LHD Overview'!$A$2:$CK$2,0))>0,INDEX('LHD Overview'!$A$6:$CK$93,1,MATCH(B84,'LHD Overview'!$A$2:$CK$2,0)),""),"") ->  | G84: =IF(B84>0,VLOOKUP(B84,Table1[],6,FALSE),"") -> 
A85: =IFERROR(VLOOKUP(B85,Table1[],2,FALSE),"") ->  | C85: =IFERROR(IF(B85>0,(VLOOKUP(B85,Table1[],5,FALSE)+30),""),"") ->  | D85: =IF(B85>0,VLOOKUP(B85,Table1[],3,FALSE),"") ->  | E85: =IF(B85>0,VLOOKUP(B85,Table1[],4,FALSE),"") ->  | F85: =IFERROR(IF(INDEX('LHD Overview'!$A$6:$CK$93,1,MATCH(B85,'LHD Overview'!$A$2:$CK$2,0))>0,INDEX('LHD Overview'!$A$6:$CK$93,1,MATCH(B85,'LHD Overview'!$A$2:$CK$2,0)),""),"") ->  | G85: =IF(B85>0,VLOOKUP(B85,Table1[],6,FALSE),"") -> 
A86: =IFERROR(VLOOKUP(B86,Table1[],2,FALSE),"") ->  | C86: =IFERROR(IF(B86>0,(VLOOKUP(B86,Table1[],5,FALSE)+30),""),"") ->  | D86: =IF(B86>0,VLOOKUP(B86,Table1[],3,FALSE),"") ->  | E86: =IF(B86>0,VLOOKUP(B86,Table1[],4,FALSE),"") ->  | F86: =IFERROR(IF(INDEX('LHD Overview'!$A$6:$CK$93,1,MATCH(B86,'LHD Overview'!$A$2:$CK$2,0))>0,INDEX('LHD Overview'!$A$6:$CK$93,1,MATCH(B86,'LHD Overview'!$A$2:$CK$2,0)),""),"") ->  | G86: =IF(B86>0,VLOOKUP(B86,Table1[],6,FALSE),"") -> 
A87: =IFERROR(VLOOKUP(B87,Table1[],2,FALSE),"") ->  | C87: =IFERROR(IF(B87>0,(VLOOKUP(B87,Table1[],5,FALSE)+30),""),"") ->  | D87: =IF(B87>0,VLOOKUP(B87,Table1[],3,FALSE),"") ->  | E87: =IF(B87>0,VLOOKUP(B87,Table1[],4,FALSE),"") ->  | F87: =IFERROR(IF(INDEX('LHD Overview'!$A$6:$CK$93,1,MATCH(B87,'LHD Overview'!$A$2:$CK$2,0))>0,INDEX('LHD Overview'!$A$6:$CK$93,1,MATCH(B87,'LHD Overview'!$A$2:$CK$2,0)),""),"") ->  | G87: =IF(B87>0,VLOOKUP(B87,Table1[],6,FALSE),"") -> 
A88: =IFERROR(VLOOKUP(B88,Table1[],2,FALSE),"") ->  | C88: =IFERROR(IF(B88>0,(VLOOKUP(B88,Table1[],5,FALSE)+30),""),"") ->  | D88: =IF(B88>0,VLOOKUP(B88,Table1[],3,FALSE),"") ->  | E88: =IF(B88>0,VLOOKUP(B88,Table1[],4,FALSE),"") ->  | F88: =IFERROR(IF(INDEX('LHD Overview'!$A$6:$CK$93,1,MATCH(B88,'LHD Overview'!$A$2:$CK$2,0))>0,INDEX('LHD Overview'!$A$6:$CK$93,1,MATCH(B88,'LHD Overview'!$A$2:$CK$2,0)),""),"") ->  | G88: =IF(B88>0,VLOOKUP(B88,Table1[],6,FALSE),"") -> 
A89: =IFERROR(VLOOKUP(B89,Table1[],2,FALSE),"") ->  | C89: =IFERROR(IF(B89>0,(VLOOKUP(B89,Table1[],5,FALSE)+30),""),"") ->  | D89: =IF(B89>0,VLOOKUP(B89,Table1[],3,FALSE),"") ->  | E89: =IF(B89>0,VLOOKUP(B89,Table1[],4,FALSE),"") ->  | F89: =IFERROR(IF(INDEX('LHD Overview'!$A$6:$CK$93,1,MATCH(B89,'LHD Overview'!$A$2:$CK$2,0))>0,INDEX('LHD Overview'!$A$6:$CK$93,1,MATCH(B89,'LHD Overview'!$A$2:$CK$2,0)),""),"") ->  | G89: =IF(B89>0,VLOOKUP(B89,Table1[],6,FALSE),"") -> 
A90: =IFERROR(VLOOKUP(B90,Table1[],2,FALSE),"") ->  | C90: =IFERROR(IF(B90>0,(VLOOKUP(B90,Table1[],5,FALSE)+30),""),"") ->  | D90: =IF(B90>0,VLOOKUP(B90,Table1[],3,FALSE),"") ->  | E90: =IF(B90>0,VLOOKUP(B90,Table1[],4,FALSE),"") ->  | F90: =IFERROR(IF(INDEX('LHD Overview'!$A$6:$CK$93,1,MATCH(B90,'LHD Overview'!$A$2:$CK$2,0))>0,INDEX('LHD Overview'!$A$6:$CK$93,1,MATCH(B90,'LHD Overview'!$A$2:$CK$2,0)),""),"") ->  | G90: =IF(B90>0,VLOOKUP(B90,Table1[],6,FALSE),"") -> 
A91: =IFERROR(VLOOKUP(B91,Table1[],2,FALSE),"") ->  | C91: =IFERROR(IF(B91>0,(VLOOKUP(B91,Table1[],5,FALSE)+30),""),"") ->  | D91: =IF(B91>0,VLOOKUP(B91,Table1[],3,FALSE),"") ->  | E91: =IF(B91>0,VLOOKUP(B91,Table1[],4,FALSE),"") ->  | F91: =IFERROR(IF(INDEX('LHD Overview'!$A$6:$CK$93,1,MATCH(B91,'LHD Overview'!$A$2:$CK$2,0))>0,INDEX('LHD Overview'!$A$6:$CK$93,1,MATCH(B91,'LHD Overview'!$A$2:$CK$2,0)),""),"") ->  | G91: =IF(B91>0,VLOOKUP(B91,Table1[],6,FALSE),"") -> 
A92: =IFERROR(VLOOKUP(B92,Table1[],2,FALSE),"") ->  | C92: =IFERROR(IF(B92>0,(VLOOKUP(B92,Table1[],5,FALSE)+30),""),"") ->  | D92: =IF(B92>0,VLOOKUP(B92,Table1[],3,FALSE),"") ->  | E92: =IF(B92>0,VLOOKUP(B92,Table1[],4,FALSE),"") ->  | F92: =IFERROR(IF(INDEX('LHD Overview'!$A$6:$CK$93,1,MATCH(B92,'LHD Overview'!$A$2:$CK$2,0))>0,INDEX('LHD Overview'!$A$6:$CK$93,1,MATCH(B92,'LHD Overview'!$A$2:$CK$2,0)),""),"") ->  | G92: =IF(B92>0,VLOOKUP(B92,Table1[],6,FALSE),"") -> 
A93: =IFERROR(VLOOKUP(B93,Table1[],2,FALSE),"") ->  | C93: =IFERROR(IF(B93>0,(VLOOKUP(B93,Table1[],5,FALSE)+30),""),"") ->  | D93: =IF(B93>0,VLOOKUP(B93,Table1[],3,FALSE),"") ->  | E93: =IF(B93>0,VLOOKUP(B93,Table1[],4,FALSE),"") ->  | F93: =IFERROR(IF(INDEX('LHD Overview'!$A$6:$CK$93,1,MATCH(B93,'LHD Overview'!$A$2:$CK$2,0))>0,INDEX('LHD Overview'!$A$6:$CK$93,1,MATCH(B93,'LHD Overview'!$A$2:$CK$2,0)),""),"") ->  | G93: =IF(B93>0,VLOOKUP(B93,Table1[],6,FALSE),"") -> 
A94: =IFERROR(VLOOKUP(B94,Table1[],2,FALSE),"") ->  | C94: =IFERROR(IF(B94>0,(VLOOKUP(B94,Table1[],5,FALSE)+30),""),"") ->  | D94: =IF(B94>0,VLOOKUP(B94,Table1[],3,FALSE),"") ->  | E94: =IF(B94>0,VLOOKUP(B94,Table1[],4,FALSE),"") ->  | F94: =IFERROR(IF(INDEX('LHD Overview'!$A$6:$CK$93,1,MATCH(B94,'LHD Overview'!$A$2:$CK$2,0))>0,INDEX('LHD Overview'!$A$6:$CK$93,1,MATCH(B94,'LHD Overview'!$A$2:$CK$2,0)),""),"") ->  | G94: =IF(B94>0,VLOOKUP(B94,Table1[],6,FALSE),"") -> 
A95: =IFERROR(VLOOKUP(B95,Table1[],2,FALSE),"") ->  | C95: =IFERROR(IF(B95>0,(VLOOKUP(B95,Table1[],5,FALSE)+30),""),"") ->  | D95: =IF(B95>0,VLOOKUP(B95,Table1[],3,FALSE),"") ->  | E95: =IF(B95>0,VLOOKUP(B95,Table1[],4,FALSE),"") ->  | F95: =IFERROR(IF(INDEX('LHD Overview'!$A$6:$CK$93,1,MATCH(B95,'LHD Overview'!$A$2:$CK$2,0))>0,INDEX('LHD Overview'!$A$6:$CK$93,1,MATCH(B95,'LHD Overview'!$A$2:$CK$2,0)),""),"") ->  | G95: =IF(B95>0,VLOOKUP(B95,Table1[],6,FALSE),"") -> 
A96: =IFERROR(VLOOKUP(B96,Table1[],2,FALSE),"") ->  | C96: =IFERROR(IF(B96>0,(VLOOKUP(B96,Table1[],5,FALSE)+30),""),"") ->  | D96: =IF(B96>0,VLOOKUP(B96,Table1[],3,FALSE),"") ->  | E96: =IF(B96>0,VLOOKUP(B96,Table1[],4,FALSE),"") ->  | F96: =IFERROR(IF(INDEX('LHD Overview'!$A$6:$CK$93,1,MATCH(B96,'LHD Overview'!$A$2:$CK$2,0))>0,INDEX('LHD Overview'!$A$6:$CK$93,1,MATCH(B96,'LHD Overview'!$A$2:$CK$2,0)),""),"") ->  | G96: =IF(B96>0,VLOOKUP(B96,Table1[],6,FALSE),"") -> 
A97: =IFERROR(VLOOKUP(B97,Table1[],2,FALSE),"") ->  | C97: =IFERROR(IF(B97>0,(VLOOKUP(B97,Table1[],5,FALSE)+30),""),"") ->  | D97: =IF(B97>0,VLOOKUP(B97,Table1[],3,FALSE),"") ->  | E97: =IF(B97>0,VLOOKUP(B97,Table1[],4,FALSE),"") ->  | F97: =IFERROR(IF(INDEX('LHD Overview'!$A$6:$CK$93,1,MATCH(B97,'LHD Overview'!$A$2:$CK$2,0))>0,INDEX('LHD Overview'!$A$6:$CK$93,1,MATCH(B97,'LHD Overview'!$A$2:$CK$2,0)),""),"") ->  | G97: =IF(B97>0,VLOOKUP(B97,Table1[],6,FALSE),"") -> 
A98: =IFERROR(VLOOKUP(B98,Table1[],2,FALSE),"") ->  | C98: =IFERROR(IF(B98>0,(VLOOKUP(B98,Table1[],5,FALSE)+30),""),"") ->  | D98: =IF(B98>0,VLOOKUP(B98,Table1[],3,FALSE),"") ->  | E98: =IF(B98>0,VLOOKUP(B98,Table1[],4,FALSE),"") ->  | F98: =IFERROR(IF(INDEX('LHD Overview'!$A$6:$CK$93,1,MATCH(B98,'LHD Overview'!$A$2:$CK$2,0))>0,INDEX('LHD Overview'!$A$6:$CK$93,1,MATCH(B98,'LHD Overview'!$A$2:$CK$2,0)),""),"") ->  | G98: =IF(B98>0,VLOOKUP(B98,Table1[],6,FALSE),"") -> 
A99: =IFERROR(VLOOKUP(B99,Table1[],2,FALSE),"") ->  | C99: =IFERROR(IF(B99>0,(VLOOKUP(B99,Table1[],5,FALSE)+30),""),"") ->  | D99: =IF(B99>0,VLOOKUP(B99,Table1[],3,FALSE),"") ->  | E99: =IF(B99>0,VLOOKUP(B99,Table1[],4,FALSE),"") ->  | F99: =IFERROR(IF(INDEX('LHD Overview'!$A$6:$CK$93,1,MATCH(B99,'LHD Overview'!$A$2:$CK$2,0))>0,INDEX('LHD Overview'!$A$6:$CK$93,1,MATCH(B99,'LHD Overview'!$A$2:$CK$2,0)),""),"") ->  | G99: =IF(B99>0,VLOOKUP(B99,Table1[],6,FALSE),"") -> 
A100: =IFERROR(VLOOKUP(B100,Table1[],2,FALSE),"") ->  | C100: =IFERROR(IF(B100>0,(VLOOKUP(B100,Table1[],5,FALSE)+30),""),"") ->  | D100: =IF(B100>0,VLOOKUP(B100,Table1[],3,FALSE),"") ->  | E100: =IF(B100>0,VLOOKUP(B100,Table1[],4,FALSE),"") ->  | F100: =IFERROR(IF(INDEX('LHD Overview'!$A$6:$CK$93,1,MATCH(B100,'LHD Overview'!$A$2:$CK$2,0))>0,INDEX('LHD Overview'!$A$6:$CK$93,1,MATCH(B100,'LHD Overview'!$A$2:$CK$2,0)),""),"") ->  | G100: =IF(B100>0,VLOOKUP(B100,Table1[],6,FALSE),"") -> 
G101: =IF(B101>0,VLOOKUP(B101,Table1[],6,FALSE),"") -> 
G102: =IF(B102>0,VLOOKUP(B102,Table1[],6,FALSE),"") -> 
G103: =IF(B103>0,VLOOKUP(B103,Table1[],6,FALSE),"") -> 
G104: =IF(B104>0,VLOOKUP(B104,Table1[],6,FALSE),"") -> 
G105: =IF(B105>0,VLOOKUP(B105,Table1[],6,FALSE),"") -> 

Sheet Appleton
A1: Back to Overview
A2: ='LHD Overview'!B1 -> 2021 DPH Consolidated Contract | F2: Total Amount | G2: =SUM(F:F) -> 2053638
A3: Appleton City Health Department | F3: Agency Number | G3: 449983
A4: Profile Name | B4: Profile | C4: Agency Type | D4: Start Date | E4: End Date | F4: Current Amount | G4: Final Fiscal Report Due Date
A5: =IFERROR(VLOOKUP(B5,Table1[],2,FALSE),"") -> CONS CONTRACTS PHHS | B5: ='Profile Overview'!B42 -> 159220 | C5: =IFERROR(IF(B5>0,(VLOOKUP(B5,Table1[],5,FALSE)+30),""),"") -> 130 | D5: =IF(B5>0,VLOOKUP(B5,Table1[],3,FALSE),"") -> 2021-01-01 | E5: =IF(B5>0,VLOOKUP(B5,Table1[],4,FALSE),"") -> 2021-12-31 | F5: =IFERROR(IF(INDEX('LHD Overview'!$A$6:$CK$93,(MATCH($A$3,'LHD Overview'!$A$6:$A$93,0)),MATCH(B5,'LHD Overview'!$A$2:$CK$2,0))>0,INDEX('LHD Overview'!$A$6:$CK$93,(MATCH($A$3,'LHD Overview'!$A$6:$A$93,0)),MATCH(B5,'LHD Overview'!$A$2:$CK$2,0)),""),"") -> 6628 | G5: =IF(B5>0,VLOOKUP(B5,Table1[],6,FALSE),"") -> 2022-02-14
A6: =IFERROR(VLOOKUP(B6,Table1[],2,FALSE),"") -> CONS CONTRACTS CHHD LD | B6: ='Profile Overview'!B13 -> 157720 | C6: =IFERROR(IF(B6>0,(VLOOKUP(B6,Table1[],5,FALSE)+30),""),"") -> 230 | D6: =IF(B6>0,VLOOKUP(B6,Table1[],3,FALSE),"") -> 2021-02-01 | E6: =IF(B6>0,VLOOKUP(B6,Table1[],4,FALSE),"") -> 2022-01-31 | F6: =IFERROR(IF(INDEX('LHD Overview'!$A$6:$CK$93,(MATCH($A$3,'LHD Overview'!$A$6:$A$93,0)),MATCH(B6,'LHD Overview'!$A$2:$CK$2,0))>0,INDEX('LHD Overview'!$A$6:$CK$93,(MATCH($A$3,'LHD Overview'!$A$6:$A$93,0)),MATCH(B6,'LHD Overview'!$A$2:$CK$2,0)),""),"") -> 9879 | G6: =IF(B6>0,VLOOKUP(B6,Table1[],6,FALSE),"") -> 2022-03-17
A7: =IFERROR(VLOOKUP(B7,Table1[],2,FALSE),"") -> CONS CONTRACTS IMM | B7: ='Profile Overview'!B27 -> 155020 | C7: =IFERROR(IF(B7>0,(VLOOKUP(B7,Table1[],5,FALSE)+30),""),"") -> 130 | D7: =IF(B7>0,VLOOKUP(B7,Table1[],3,FALSE),"") -> 2021-01-01 | E7: =IF(B7>0,VLOOKUP(B7,Table1[],4,FALSE),"") -> 2021-12-31 | F7: =IFERROR(IF(INDEX('LHD Overview'!$A$6:$CK$93,(MATCH($A$3,'LHD Overview'!$A$6:$A$93,0)),MATCH(B7,'LHD Overview'!$A$2:$CK$2,0))>0,INDEX('LHD Overview'!$A$6:$CK$93,(MATCH($A$3,'LHD Overview'!$A$6:$A$93,0)),MATCH(B7,'LHD Overview'!$A$2:$CK$2,0)),""),"") -> 21443 | G7: =IF(B7>0,VLOOKUP(B7,Table1[],6,FALSE),"") -> 2022-02-14
A8: =IFERROR(VLOOKUP(B8,Table1[],2,FALSE),"") -> PH Workforce | B8: ='Profile Overview'!B35 -> 159320 | C8: =IFERROR(IF(B8>0,(VLOOKUP(B8,Table1[],5,FALSE)+30),""),"") -> 330 | D8: =IF(B8>0,VLOOKUP(B8,Table1[],3,FALSE),"") -> 2021-07-01 | E8: =IF(B8>0,VLOOKUP(B8,Table1[],4,FALSE),"") -> 2023-06-30 | F8: =IFERROR(IF(INDEX('LHD Overview'!$A$6:$CK$93,(MATCH($A$3,'LHD Overview'!$A$6:$A$93,0)),MATCH(B8,'LHD Overview'!$A$2:$CK$2,0))>0,INDEX('LHD Overview'!$A$6:$CK$93,(MATCH($A$3,'LHD Overview'!$A$6:$A$93,0)),MATCH(B8,'LHD Overview'!$A$2:$CK$2,0)),""),"") -> 28146 | G8: =IF(B8>0,VLOOKUP(B8,Table1[],6,FALSE),"") -> 2023-08-14
A9: =IFERROR(VLOOKUP(B9,Table1[],2,FALSE),"") -> BIOT FOCUS A PLANNING | B9: ='Profile Overview'!B31 -> 155015 | C9: =IFERROR(IF(B9>0,(VLOOKUP(B9,Table1[],5,FALSE)+30),""),"") -> 230 | D9: =IF(B9>0,VLOOKUP(B9,Table1[],3,FALSE),"") -> 2021-07-01 | E9: =IF(B9>0,VLOOKUP(B9,Table1[],4,FALSE),"") -> 2022-06-30 | F9: =IFERROR(IF(INDEX('LHD Overview'!$A$6:$CK$93,(MATCH($A$3,'LHD Overview'!$A$6:$A$93,0)),MATCH(B9,'LHD Overview'!$A$2:$CK$2,0))>0,INDEX('LHD Overview'!$A$6:$CK$93,(MATCH($A$3,'LHD Overview'!$A$6:$A$93,0)),MATCH(B9,'LHD Overview'!$A$2:$CK$2,0)),""),"") -> 54042 | G9: =IF(B9>0,VLOOKUP(B9,Table1[],6,FALSE),"") -> 2022-08-14
A10: =IFERROR(VLOOKUP(B10,Table1[],2,FALSE),"") ->  | B10: ='Profile Overview'!B11 -> 155809 | C10: =IFERROR(IF(B10>0,(VLOOKUP(B10,Table1[],5,FALSE)+30),""),"") -> 130 | D10: =IF(B10>0,VLOOKUP(B10,Table1[],3,FALSE),"") -> 2021-01-01 | E10: =IF(B10>0,VLOOKUP(B10,Table1[],4,FALSE),"") -> 2021-12-31 | F10: =IFERROR(IF(INDEX('LHD Overview'!$A$6:$CK$93,(MATCH($A$3,'LHD Overview'!$A$6:$A$93,0)),MATCH(B10,'LHD Overview'!$A$2:$CK$2,0))>0,INDEX('LHD Overview'!$A$6:$CK$93,(MATCH($A$3,'LHD Overview'!$A$6:$A$93,0)),MATCH(B10,'LHD Overview'!$A$2:$CK$2,0)),""),"") -> 118000 | G10: =IF(B10>0,VLOOKUP(B10,Table1[],6,FALSE),"") -> 2022-02-14
A11: =IFERROR(VLOOKUP(B11,Table1[],2,FALSE),"") ->  | B11: ='Profile Overview'!B39 -> 155812 | C11: =IFERROR(IF(B11>0,(VLOOKUP(B11,Table1[],5,FALSE)+30),""),"") -> 230 | D11: =IF(B11>0,VLOOKUP(B11,Table1[],3,FALSE),"") -> 2021-10-01 | E11: =IF(B11>0,VLOOKUP(B11,Table1[],4,FALSE),"") -> 2022-09-30 | F11: =IFERROR(IF(INDEX('LHD Overview'!$A$6:$CK$93,(MATCH($A$3,'LHD Overview'!$A$6:$A$93,0)),MATCH(B11,'LHD Overview'!$A$2:$CK$2,0))>0,INDEX('LHD Overview'!$A$6:$CK$93,(MATCH($A$3,'LHD Overview'!$A$6:$A$93,0)),MATCH(B11,'LHD Overview'!$A$2:$CK$2,0)),""),"") -> 120900 | G11: =IF(B11>0,VLOOKUP(B11,Table1[],6,FALSE),"") -> 2022-11-14
A12: =IFERROR(VLOOKUP(B12,Table1[],2,FALSE),"") -> BIOT PREPARE CRI | B12: ='Profile Overview'!B30 -> 155811 | C12: =IFERROR(IF(B12>0,(VLOOKUP(B12,Table1[],5,FALSE)+30),""),"") -> 230 | D12: =IF(B12>0,VLOOKUP(B12,Table1[],3,FALSE),"") -> 2021-07-01 | E12: =IF(B12>0,VLOOKUP(B12,Table1[],4,FALSE),"") -> 2022-06-30 | F12: =IFERROR(IF(INDEX('LHD Overview'!$A$6:$CK$93,(MATCH($A$3,'LHD Overview'!$A$6:$A$93,0)),MATCH(B12,'LHD Overview'!$A$2:$CK$2,0))>0,INDEX('LHD Overview'!$A$6:$CK$93,(MATCH($A$3,'LHD Overview'!$A$6:$A$93,0)),MATCH(B12,'LHD Overview'!$A$2:$CK$2,0)),""),"") -> 678600 | G12: =IF(B12>0,VLOOKUP(B12,Table1[],6,FALSE),"") -> 2022-08-14
A13: =IFERROR(VLOOKUP(B13,Table1[],2,FALSE),"") ->  | B13: ='Profile Overview'!B12 -> 155806 | C13: =IFERROR(IF(B13>0,(VLOOKUP(B13,Table1[],5,FALSE)+30),""),"") -> 230 | D13: =IF(B13>0,VLOOKUP(B13,Table1[],3,FALSE),"") -> 2021-07-01 | E13: =IF(B13>0,VLOOKUP(B13,Table1[],4,FALSE),"") -> 2022-06-30 | F13: =IFERROR(IF(INDEX('LHD Overview'!$A$6:$CK$93,(MATCH($A$3,'LHD Overview'!$A$6:$A$93,0)),MATCH(B13,'LHD Overview'!$A$2:$CK$2,0))>0,INDEX('LHD Overview'!$A$6:$CK$93,(MATCH($A$3,'LHD Overview'!$A$6:$A$93,0)),MATCH(B13,'LHD Overview'!$A$2:$CK$2,0)),""),"") -> 1016000 | G13: =IF(B13>0,VLOOKUP(B13,Table1[],6,FALSE),"") -> 2022-08-14
A14: =IFERROR(VLOOKUP(B14,Table1[],2,FALSE),"") -> WELL WOMAN WISEWOMAN | B14: ='Profile Overview'!B8 -> 157125 | C14: =IFERROR(IF(B14>0,(VLOOKUP(B14,Table1[],5,FALSE)+30),""),"") ->  | D14: =IF(B14>0,VLOOKUP(B14,Table1[],3,FALSE),"") -> 00:00:00 | E14: =IF(B14>0,VLOOKUP(B14,Table1[],4,FALSE),"") -> 00:00:00 | F14: =IFERROR(IF(INDEX('LHD Overview'!$A$6:$CK$93,(MATCH($A$3,'LHD Overview'!$A$6:$A$93,0)),MATCH(B14,'LHD Overview'!$A$2:$CK$2,0))>0,INDEX('LHD Overview'!$A$6:$CK$93,(MATCH($A$3,'LHD Overview'!$A$6:$A$93,0)),MATCH(B14,'LHD Overview'!$A$2:$CK$2,0)),""),"") ->  | G14: =IF(B14>0,VLOOKUP(B14,Table1[],6,FALSE),"") -> 
A15: =IFERROR(VLOOKUP(B15,Table1[],2,FALSE),"") -> WH/FP RH 253.07 GPR | B15: ='Profile Overview'!B9 -> 159317 | C15: =IFERROR(IF(B15>0,(VLOOKUP(B15,Table1[],5,FALSE)+30),""),"") ->  | D15: =IF(B15>0,VLOOKUP(B15,Table1[],3,FALSE),"") -> 00:00:00 | E15: =IF(B15>0,VLOOKUP(B15,Table1[],4,FALSE),"") -> 00:00:00 | F15: =IFERROR(IF(INDEX('LHD Overview'!$A$6:$CK$93,(MATCH($A$3,'LHD Overview'!$A$6:$A$93,0)),MATCH(B15,'LHD Overview'!$A$2:$CK$2,0))>0,INDEX('LHD Overview'!$A$6:$CK$93,(MATCH($A$3,'LHD Overview'!$A$6:$A$93,0)),MATCH(B15,'LHD Overview'!$A$2:$CK$2,0)),""),"") ->  | G15: =IF(B15>0,VLOOKUP(B15,Table1[],6,FALSE),"") -> 
A16: =IFERROR(VLOOKUP(B16,Table1[],2,FALSE),"") -> STATEWIDES-PERF BASED | B16: ='Profile Overview'!B10 -> 159332 | C16: =IFERROR(IF(B16>0,(VLOOKUP(B16,Table1[],5,FALSE)+30),""),"") -> 130 | D16: =IF(B16>0,VLOOKUP(B16,Table1[],3,FALSE),"") -> 2021-01-01 | E16: =IF(B16>0,VLOOKUP(B16,Table1[],4,FALSE),"") -> 2021-12-31 | F16: =IFERROR(IF(INDEX('LHD Overview'!$A$6:$CK$93,(MATCH($A$3,'LHD Overview'!$A$6:$A$93,0)),MATCH(B16,'LHD Overview'!$A$2:$CK$2,0))>0,INDEX('LHD Overview'!$A$6:$CK$93,(MATCH($A$3,'LHD Overview'!$A$6:$A$93,0)),MATCH(B16,'LHD Overview'!$A$2:$CK$2,0)),""),"") ->  | G16: =IF(B16>0,VLOOKUP(B16,Table1[],6,FALSE),"") -> 2022-02-14
A17: =IFERROR(VLOOKUP(B17,Table1[],2,FALSE),"") -> NEWBORN HEAR SCREEN-OUTRC | B17: ='Profile Overview'!B14 -> 115002 | C17: =IFERROR(IF(B17>0,(VLOOKUP(B17,Table1[],5,FALSE)+30),""),"") -> 130 | D17: =IF(B17>0,VLOOKUP(B17,Table1[],3,FALSE),"") -> 2021-01-01 | E17: =IF(B17>0,VLOOKUP(B17,Table1[],4,FALSE),"") -> 2021-12-31 | F17: =IFERROR(IF(INDEX('LHD Overview'!$A$6:$CK$93,(MATCH($A$3,'LHD Overview'!$A$6:$A$93,0)),MATCH(B17,'LHD Overview'!$A$2:$CK$2,0))>0,INDEX('LHD Overview'!$A$6:$CK$93,(MATCH($A$3,'LHD Overview'!$A$6:$A$93,0)),MATCH(B17,'LHD Overview'!$A$2:$CK$2,0)),""),"") ->  | G17: =IF(B17>0,VLOOKUP(B17,Table1[],6,FALSE),"") -> 2022-02-14
A18: =IFERROR(VLOOKUP(B18,Table1[],2,FALSE),"") -> 1815 DIABETES | B18: ='Profile Overview'!B15 -> 150426 | C18: =IFERROR(IF(B18>0,(VLOOKUP(B18,Table1[],5,FALSE)+30),""),"") -> 130 | D18: =IF(B18>0,VLOOKUP(B18,Table1[],3,FALSE),"") -> 2021-01-01 | E18: =IF(B18>0,VLOOKUP(B18,Table1[],4,FALSE),"") -> 2021-12-31 | F18: =IFERROR(IF(INDEX('LHD Overview'!$A$6:$CK$93,(MATCH($A$3,'LHD Overview'!$A$6:$A$93,0)),MATCH(B18,'LHD Overview'!$A$2:$CK$2,0))>0,INDEX('LHD Overview'!$A$6:$CK$93,(MATCH($A$3,'LHD Overview'!$A$6:$A$93,0)),MATCH(B18,'LHD Overview'!$A$2:$CK$2,0)),""),"") ->  | G18: =IF(B18>0,VLOOKUP(B18,Table1[],6,FALSE),"") -> 2022-02-14
A19: =IFERROR(VLOOKUP(B19,Table1[],2,FALSE),"") -> 1815 HEART DISEASE PREV | B19: ='Profile Overview'!B16 -> 150427 | C19: =IFERROR(IF(B19>0,(VLOOKUP(B19,Table1[],5,FALSE)+30),""),"") -> 130 | D19: =IF(B19>0,VLOOKUP(B19,Table1[],3,FALSE),"") -> 2021-01-01 | E19: =IF(B19>0,VLOOKUP(B19,Table1[],4,FALSE),"") -> 2021-12-31 | F19: =IFERROR(IF(INDEX('LHD Overview'!$A$6:$CK$93,(MATCH($A$3,'LHD Overview'!$A$6:$A$93,0)),MATCH(B19,'LHD Overview'!$A$2:$CK$2,0))>0,INDEX('LHD Overview'!$A$6:$CK$93,(MATCH($A$3,'LHD Overview'!$A$6:$A$93,0)),MATCH(B19,'LHD Overview'!$A$2:$CK$2,0)),""),"") ->  | G19: =IF(B19>0,VLOOKUP(B19,Table1[],6,FALSE),"") -> 2022-02-14
A20: =IFERROR(VLOOKUP(B20,Table1[],2,FALSE),"") -> WH/FP RH 253.07 (E) | B20: ='Profile Overview'!B17 -> 152003 | C20: =IFERROR(IF(B20>0,(VLOOKUP(B20,Table1[],5,FALSE)+30),""),"") -> 130 | D20: =IF(B20>0,VLOOKUP(B20,Table1[],3,FALSE),"") -> 2021-01-01 | E20: =IF(B20>0,VLOOKUP(B20,Table1[],4,FALSE),"") -> 2021-12-31 | F20: =IFERROR(IF(INDEX('LHD Overview'!$A$6:$CK$93,(MATCH($A$3,'LHD Overview'!$A$6:$A$93,0)),MATCH(B20,'LHD Overview'!$A$2:$CK$2,0))>0,INDEX('LHD Overview'!$A$6:$CK$93,(MATCH($A$3,'LHD Overview'!$A$6:$A$93,0)),MATCH(B20,'LHD Overview'!$A$2:$CK$2,0)),""),"") ->  | G20: =IF(B20>0,VLOOKUP(B20,Table1[],6,FALSE),"") -> 2022-02-14
A21: =IFERROR(VLOOKUP(B21,Table1[],2,FALSE),"") -> WH/FP RH 253.07 (D) | B21: ='Profile Overview'!B18 -> 152020 | C21: =IFERROR(IF(B21>0,(VLOOKUP(B21,Table1[],5,FALSE)+30),""),"") -> 130 | D21: =IF(B21>0,VLOOKUP(B21,Table1[],3,FALSE),"") -> 2021-01-01 | E21: =IF(B21>0,VLOOKUP(B21,Table1[],4,FALSE),"") -> 2021-12-31 | F21: =IFERROR(IF(INDEX('LHD Overview'!$A$6:$CK$93,(MATCH($A$3,'LHD Overview'!$A$6:$A$93,0)),MATCH(B21,'LHD Overview'!$A$2:$CK$2,0))>0,INDEX('LHD Overview'!$A$6:$CK$93,(MATCH($A$3,'LHD Overview'!$A$6:$A$93,0)),MATCH(B21,'LHD Overview'!$A$2:$CK$2,0)),""),"") ->  | G21: =IF(B21>0,VLOOKUP(B21,Table1[],6,FALSE),"") -> 2022-02-14
A22: =IFERROR(VLOOKUP(B22,Table1[],2,FALSE),"") -> TPCP COMMUNITY INTRVNS | B22: ='Profile Overview'!B19 -> 181010 | C22: =IFERROR(IF(B22>0,(VLOOKUP(B22,Table1[],5,FALSE)+30),""),"") -> 130 | D22: =IF(B22>0,VLOOKUP(B22,Table1[],3,FALSE),"") -> 2021-01-01 | E22: =IF(B22>0,VLOOKUP(B22,Table1[],4,FALSE),"") -> 2021-12-31 | F22: =IFERROR(IF(INDEX('LHD Overview'!$A$6:$CK$93,(MATCH($A$3,'LHD Overview'!$A$6:$A$93,0)),MATCH(B22,'LHD Overview'!$A$2:$CK$2,0))>0,INDEX('LHD Overview'!$A$6:$CK$93,(MATCH($A$3,'LHD Overview'!$A$6:$A$93,0)),MATCH(B22,'LHD Overview'!$A$2:$CK$2,0)),""),"") ->  | G22: =IF(B22>0,VLOOKUP(B22,Table1[],6,FALSE),"") -> 2022-02-14
A23: =IFERROR(VLOOKUP(B23,Table1[],2,FALSE),"") -> REGNL RADON INF CENTERS | B23: ='Profile Overview'!B20 -> 103010 | C23: =IFERROR(IF(B23>0,(VLOOKUP(B23,Table1[],5,FALSE)+30),""),"") -> 130 | D23: =IF(B23>0,VLOOKUP(B23,Table1[],3,FALSE),"") -> 2021-01-01 | E23: =IF(B23>0,VLOOKUP(B23,Table1[],4,FALSE),"") -> 2021-12-31 | F23: =IFERROR(IF(INDEX('LHD Overview'!$A$6:$CK$93,(MATCH($A$3,'LHD Overview'!$A$6:$A$93,0)),MATCH(B23,'LHD Overview'!$A$2:$CK$2,0))>0,INDEX('LHD Overview'!$A$6:$CK$93,(MATCH($A$3,'LHD Overview'!$A$6:$A$93,0)),MATCH(B23,'LHD Overview'!$A$2:$CK$2,0)),""),"") ->  | G23: =IF(B23>0,VLOOKUP(B23,Table1[],6,FALSE),"") -> 2022-02-14
A24: =IFERROR(VLOOKUP(B24,Table1[],2,FALSE),"") -> SNAP NUTR ED GRANT | B24: ='Profile Overview'!B21 -> 154661 | C24: =IFERROR(IF(B24>0,(VLOOKUP(B24,Table1[],5,FALSE)+30),""),"") -> 130 | D24: =IF(B24>0,VLOOKUP(B24,Table1[],3,FALSE),"") -> 2021-01-01 | E24: =IF(B24>0,VLOOKUP(B24,Table1[],4,FALSE),"") -> 2021-12-31 | F24: =IFERROR(IF(INDEX('LHD Overview'!$A$6:$CK$93,(MATCH($A$3,'LHD Overview'!$A$6:$A$93,0)),MATCH(B24,'LHD Overview'!$A$2:$CK$2,0))>0,INDEX('LHD Overview'!$A$6:$CK$93,(MATCH($A$3,'LHD Overview'!$A$6:$A$93,0)),MATCH(B24,'LHD Overview'!$A$2:$CK$2,0)),""),"") ->  | G24: =IF(B24>0,VLOOKUP(B24,Table1[],6,FALSE),"") -> 2022-02-14
A25: =IFERROR(VLOOKUP(B25,Table1[],2,FALSE),"") -> EPA INDOOR RADON SERVICES | B25: ='Profile Overview'!B22 -> 150321 | C25: =IFERROR(IF(B25>0,(VLOOKUP(B25,Table1[],5,FALSE)+30),""),"") -> 130 | D25: =IF(B25>0,VLOOKUP(B25,Table1[],3,FALSE),"") -> 2021-01-01 | E25: =IF(B25>0,VLOOKUP(B25,Table1[],4,FALSE),"") -> 2021-12-31 | F25: =IFERROR(IF(INDEX('LHD Overview'!$A$6:$CK$93,(MATCH($A$3,'LHD Overview'!$A$6:$A$93,0)),MATCH(B25,'LHD Overview'!$A$2:$CK$2,0))>0,INDEX('LHD Overview'!$A$6:$CK$93,(MATCH($A$3,'LHD Overview'!$A$6:$A$93,0)),MATCH(B25,'LHD Overview'!$A$2:$CK$2,0)),""),"") ->  | G25: =IF(B25>0,VLOOKUP(B25,Table1[],6,FALSE),"") -> 2022-02-14
A26: =IFERROR(VLOOKUP(B26,Table1[],2,FALSE),"") -> RAPE PREV AND EDUCATION | B26: ='Profile Overview'!B23 -> 155080 | C26: =IFERROR(IF(B26>0,(VLOOKUP(B26,Table1[],5,FALSE)+30),""),"") -> 130 | D26: =IF(B26>0,VLOOKUP(B26,Table1[],3,FALSE),"") -> 2021-01-01 | E26: =IF(B26>0,VLOOKUP(B26,Table1[],4,FALSE),"") -> 2021-12-31 | F26: =IFERROR(IF(INDEX('LHD Overview'!$A$6:$CK$93,(MATCH($A$3,'LHD Overview'!$A$6:$A$93,0)),MATCH(B26,'LHD Overview'!$A$2:$CK$2,0))>0,INDEX('LHD Overview'!$A$6:$CK$93,(MATCH($A$3,'LHD Overview'!$A$6:$A$93,0)),MATCH(B26,'LHD Overview'!$A$2:$CK$2,0)),""),"") ->  | G26: =IF(B26>0,VLOOKUP(B26,Table1[],6,FALSE),"") -> 2022-02-14
A27: =IFERROR(VLOOKUP(B27,Table1[],2,FALSE),"") -> HIV PREV PS & LINKAGES | B27: ='Profile Overview'!B24 -> 155072 | C27: =IFERROR(IF(B27>0,(VLOOKUP(B27,Table1[],5,FALSE)+30),""),"") -> 130 | D27: =IF(B27>0,VLOOKUP(B27,Table1[],3,FALSE),"") -> 2021-01-01 | E27: =IF(B27>0,VLOOKUP(B27,Table1[],4,FALSE),"") -> 2021-12-31 | F27: =IFERROR(IF(INDEX('LHD Overview'!$A$6:$CK$93,(MATCH($A$3,'LHD Overview'!$A$6:$A$93,0)),MATCH(B27,'LHD Overview'!$A$2:$CK$2,0))>0,INDEX('LHD Overview'!$A$6:$CK$93,(MATCH($A$3,'LHD Overview'!$A$6:$A$93,0)),MATCH(B27,'LHD Overview'!$A$2:$CK$2,0)),""),"") ->  | G27: =IF(B27>0,VLOOKUP(B27,Table1[],6,FALSE),"") -> 2022-02-14
A28: =IFERROR(VLOOKUP(B28,Table1[],2,FALSE),"") -> BIOT FOCUS A PLANNING | B28: ='Profile Overview'!B25 -> 155190 | C28: =IFERROR(IF(B28>0,(VLOOKUP(B28,Table1[],5,FALSE)+30),""),"") -> 230 | D28: =IF(B28>0,VLOOKUP(B28,Table1[],3,FALSE),"") -> 2021-07-01 | E28: =IF(B28>0,VLOOKUP(B28,Table1[],4,FALSE),"") -> 2022-06-30 | F28: =IFERROR(IF(INDEX('LHD Overview'!$A$6:$CK$93,(MATCH($A$3,'LHD Overview'!$A$6:$A$93,0)),MATCH(B28,'LHD Overview'!$A$2:$CK$2,0))>0,INDEX('LHD Overview'!$A$6:$CK$93,(MATCH($A$3,'LHD Overview'!$A$6:$A$93,0)),MATCH(B28,'LHD Overview'!$A$2:$CK$2,0)),""),"") ->  | G28: =IF(B28>0,VLOOKUP(B28,Table1[],6,FALSE),"") -> 2022-08-14
A29: =IFERROR(VLOOKUP(B29,Table1[],2,FALSE),"") -> HIV PREV PS & LINKAGES | B29: ='Profile Overview'!B26 -> 155957 | C29: =IFERROR(IF(B29>0,(VLOOKUP(B29,Table1[],5,FALSE)+30),""),"") -> 130 | D29: =IF(B29>0,VLOOKUP(B29,Table1[],3,FALSE),"") -> 2021-01-01 | E29: =IF(B29>0,VLOOKUP(B29,Table1[],4,FALSE),"") -> 2021-12-31 | F29: =IFERROR(IF(INDEX('LHD Overview'!$A$6:$CK$93,(MATCH($A$3,'LHD Overview'!$A$6:$A$93,0)),MATCH(B29,'LHD Overview'!$A$2:$CK$2,0))>0,INDEX('LHD Overview'!$A$6:$CK$93,(MATCH($A$3,'LHD Overview'!$A$6:$A$93,0)),MATCH(B29,'LHD Overview'!$A$2:$CK$2,0)),""),"") ->  | G29: =IF(B29>0,VLOOKUP(B29,Table1[],6,FALSE),"") -> 2022-02-14
A30: =IFERROR(VLOOKUP(B30,Table1[],2,FALSE),"") -> REGNL RADON INF CENTERS | B30: ='Profile Overview'!B28 -> 128010 | C30: =IFERROR(IF(B30>0,(VLOOKUP(B30,Table1[],5,FALSE)+30),""),"") -> 130 | D30: =IF(B30>0,VLOOKUP(B30,Table1[],3,FALSE),"") -> 2021-01-01 | E30: =IF(B30>0,VLOOKUP(B30,Table1[],4,FALSE),"") -> 2021-12-31 | F30: =IFERROR(IF(INDEX('LHD Overview'!$A$6:$CK$93,(MATCH($A$3,'LHD Overview'!$A$6:$A$93,0)),MATCH(B30,'LHD Overview'!$A$2:$CK$2,0))>0,INDEX('LHD Overview'!$A$6:$CK$93,(MATCH($A$3,'LHD Overview'!$A$6:$A$93,0)),MATCH(B30,'LHD Overview'!$A$2:$CK$2,0)),""),"") ->  | G30: =IF(B30>0,VLOOKUP(B30,Table1[],6,FALSE),"") -> 2022-02-14
A31: =IFERROR(VLOOKUP(B31,Table1[],2,FALSE),"") -> OPIOID RX PATHWAY PROJ | B31: ='Profile Overview'!B29 -> 150211 | C31: =IFERROR(IF(B31>0,(VLOOKUP(B31,Table1[],5,FALSE)+30),""),"") -> 230 | D31: =IF(B31>0,VLOOKUP(B31,Table1[],3,FALSE),"") -> 2021-02-01 | E31: =IF(B31>0,VLOOKUP(B31,Table1[],4,FALSE),"") -> 2022-01-31 | F31: =IFERROR(IF(INDEX('LHD Overview'!$A$6:$CK$93,(MATCH($A$3,'LHD Overview'!$A$6:$A$93,0)),MATCH(B31,'LHD Overview'!$A$2:$CK$2,0))>0,INDEX('LHD Overview'!$A$6:$CK$93,(MATCH($A$3,'LHD Overview'!$A$6:$A$93,0)),MATCH(B31,'LHD Overview'!$A$2:$CK$2,0)),""),"") ->  | G31: =IF(B31>0,VLOOKUP(B31,Table1[],6,FALSE),"") -> 2022-03-17
A32: =IFERROR(VLOOKUP(B32,Table1[],2,FALSE),"") ->  | B32: ='Profile Overview'!#REF! ->  | C32: =IFERROR(IF(B32>0,(VLOOKUP(B32,Table1[],5,FALSE)+30),""),"") ->  | D32: =IF(B32>0,VLOOKUP(B32,Table1[],3,FALSE),"") ->  | E32: =IF(B32>0,VLOOKUP(B32,Table1[],4,FALSE),"") ->  | F32: =IFERROR(IF(INDEX('LHD Overview'!$A$6:$CK$93,(MATCH($A$3,'LHD Overview'!$A$6:$A$93,0)),MATCH(B32,'LHD Overview'!$A$2:$CK$2,0))>0,INDEX('LHD Overview'!$A$6:$CK$93,(MATCH($A$3,'LHD Overview'!$A$6:$A$93,0)),MATCH(B32,'LHD Overview'!$A$2:$CK$2,0)),""),"") ->  | G32: =IF(B32>0,VLOOKUP(B32,Table1[],6,FALSE),"") -> 
A33: =IFERROR(VLOOKUP(B33,Table1[],2,FALSE),"") -> ENHANCING DETECTION COVID | B33: ='Profile Overview'!B32 -> 155801 | C33: =IFERROR(IF(B33>0,(VLOOKUP(B33,Table1[],5,FALSE)+30),""),"") -> 230 | D33: =IF(B33>0,VLOOKUP(B33,Table1[],3,FALSE),"") -> 2020-10-01 | E33: =IF(B33>0,VLOOKUP(B33,Table1[],4,FALSE),"") -> 2022-10-31 | F33: =IFERROR(IF(INDEX('LHD Overview'!$A$6:$CK$93,(MATCH($A$3,'LHD Overview'!$A$6:$A$93,0)),MATCH(B33,'LHD Overview'!$A$2:$CK$2,0))>0,INDEX('LHD Overview'!$A$6:$CK$93,(MATCH($A$3,'LHD Overview'!$A$6:$A$93,0)),MATCH(B33,'LHD Overview'!$A$2:$CK$2,0)),""),"") ->  | G33: =IF(B33>0,VLOOKUP(B33,Table1[],6,FALSE),"") -> 2022-12-15
A34: =IFERROR(VLOOKUP(B34,Table1[],2,FALSE),"") -> IMM COVID Supplement Cons | B34: ='Profile Overview'!B33 -> 119011 | C34: =IFERROR(IF(B34>0,(VLOOKUP(B34,Table1[],5,FALSE)+30),""),"") -> 430 | D34: =IF(B34>0,VLOOKUP(B34,Table1[],3,FALSE),"") -> 2021-07-01 | E34: =IF(B34>0,VLOOKUP(B34,Table1[],4,FALSE),"") -> 2024-06-30 | F34: =IFERROR(IF(INDEX('LHD Overview'!$A$6:$CK$93,(MATCH($A$3,'LHD Overview'!$A$6:$A$93,0)),MATCH(B34,'LHD Overview'!$A$2:$CK$2,0))>0,INDEX('LHD Overview'!$A$6:$CK$93,(MATCH($A$3,'LHD Overview'!$A$6:$A$93,0)),MATCH(B34,'LHD Overview'!$A$2:$CK$2,0)),""),"") ->  | G34: =IF(B34>0,VLOOKUP(B34,Table1[],6,FALSE),"") -> 2024-08-14
A35: =IFERROR(VLOOKUP(B35,Table1[],2,FALSE),"") -> ARPA COVID Recovery Fund | B35: ='Profile Overview'!B34 -> 150429 | C35: =IFERROR(IF(B35>0,(VLOOKUP(B35,Table1[],5,FALSE)+30),""),"") -> 430 | D35: =IF(B35>0,VLOOKUP(B35,Table1[],3,FALSE),"") -> 2021-03-01 | E35: =IF(B35>0,VLOOKUP(B35,Table1[],4,FALSE),"") -> 2024-12-31 | F35: =IFERROR(IF(INDEX('LHD Overview'!$A$6:$CK$93,(MATCH($A$3,'LHD Overview'!$A$6:$A$93,0)),MATCH(B35,'LHD Overview'!$A$2:$CK$2,0))>0,INDEX('LHD Overview'!$A$6:$CK$93,(MATCH($A$3,'LHD Overview'!$A$6:$A$93,0)),MATCH(B35,'LHD Overview'!$A$2:$CK$2,0)),""),"") ->  | G35: =IF(B35>0,VLOOKUP(B35,Table1[],6,FALSE),"") -> 2025-02-14
A36: =IFERROR(VLOOKUP(B36,Table1[],2,FALSE),"") ->  | B36: ='Profile Overview'!B36 -> 159316 | C36: =IFERROR(IF(B36>0,(VLOOKUP(B36,Table1[],5,FALSE)+30),""),"") -> 130 | D36: =IF(B36>0,VLOOKUP(B36,Table1[],3,FALSE),"") -> 2021-01-01 | E36: =IF(B36>0,VLOOKUP(B36,Table1[],4,FALSE),"") -> 2021-12-31 | F36: =IFERROR(IF(INDEX('LHD Overview'!$A$6:$CK$93,(MATCH($A$3,'LHD Overview'!$A$6:$A$93,0)),MATCH(B36,'LHD Overview'!$A$2:$CK$2,0))>0,INDEX('LHD Overview'!$A$6:$CK$93,(MATCH($A$3,'LHD Overview'!$A$6:$A$93,0)),MATCH(B36,'LHD Overview'!$A$2:$CK$2,0)),""),"") ->  | G36: =IF(B36>0,VLOOKUP(B36,Table1[],6,FALSE),"") -> 2022-02-14
A37: =IFERROR(VLOOKUP(B37,Table1[],2,FALSE),"") -> TPCP WI WINS | B37: ='Profile Overview'!B37 -> 181004 | C37: =IFERROR(IF(B37>0,(VLOOKUP(B37,Table1[],5,FALSE)+30),""),"") -> 230 | D37: =IF(B37>0,VLOOKUP(B37,Table1[],3,FALSE),"") -> 2021-07-01 | E37: =IF(B37>0,VLOOKUP(B37,Table1[],4,FALSE),"") -> 2022-06-30 | F37: =IFERROR(IF(INDEX('LHD Overview'!$A$6:$CK$93,(MATCH($A$3,'LHD Overview'!$A$6:$A$93,0)),MATCH(B37,'LHD Overview'!$A$2:$CK$2,0))>0,INDEX('LHD Overview'!$A$6:$CK$93,(MATCH($A$3,'LHD Overview'!$A$6:$A$93,0)),MATCH(B37,'LHD Overview'!$A$2:$CK$2,0)),""),"") ->  | G37: =IF(B37>0,VLOOKUP(B37,Table1[],6,FALSE),"") -> 2022-08-14
A38: =IFERROR(VLOOKUP(B38,Table1[],2,FALSE),"") -> TITLE X SERVICES | B38: ='Profile Overview'!B38 -> 159328 | C38: =IFERROR(IF(B38>0,(VLOOKUP(B38,Table1[],5,FALSE)+30),""),"") -> 230 | D38: =IF(B38>0,VLOOKUP(B38,Table1[],3,FALSE),"") -> 2021-07-01 | E38: =IF(B38>0,VLOOKUP(B38,Table1[],4,FALSE),"") -> 2022-06-30 | F38: =IFERROR(IF(INDEX('LHD Overview'!$A$6:$CK$93,(MATCH($A$3,'LHD Overview'!$A$6:$A$93,0)),MATCH(B38,'LHD Overview'!$A$2:$CK$2,0))>0,INDEX('LHD Overview'!$A$6:$CK$93,(MATCH($A$3,'LHD Overview'!$A$6:$A$93,0)),MATCH(B38,'LHD Overview'!$A$2:$CK$2,0)),""),"") ->  | G38: =IF(B38>0,VLOOKUP(B38,Table1[],6,FALSE),"") -> 2022-08-14
A39: =IFERROR(VLOOKUP(B39,Table1[],2,FALSE),"") -> INFERTILITY PREVENTION | B39: ='Profile Overview'!B40 -> 154791 | C39: =IFERROR(IF(B39>0,(VLOOKUP(B39,Table1[],5,FALSE)+30),""),"") -> 130 | D39: =IF(B39>0,VLOOKUP(B39,Table1[],3,FALSE),"") -> 2021-01-01 | E39: =IF(B39>0,VLOOKUP(B39,Table1[],4,FALSE),"") -> 2021-12-31 | F39: =IFERROR(IF(INDEX('LHD Overview'!$A$6:$CK$93,(MATCH($A$3,'LHD Overview'!$A$6:$A$93,0)),MATCH(B39,'LHD Overview'!$A$2:$CK$2,0))>0,INDEX('LHD Overview'!$A$6:$CK$93,(MATCH($A$3,'LHD Overview'!$A$6:$A$93,0)),MATCH(B39,'LHD Overview'!$A$2:$CK$2,0)),""),"") ->  | G39: =IF(B39>0,VLOOKUP(B39,Table1[],6,FALSE),"") -> 2022-02-14
A40: =IFERROR(VLOOKUP(B40,Table1[],2,FALSE),"") -> FP DUAL PROTECTION SITE | B40: ='Profile Overview'!B41 -> 155078 | C40: =IFERROR(IF(B40>0,(VLOOKUP(B40,Table1[],5,FALSE)+30),""),"") -> 130 | D40: =IF(B40>0,VLOOKUP(B40,Table1[],3,FALSE),"") -> 2021-01-01 | E40: =IF(B40>0,VLOOKUP(B40,Table1[],4,FALSE),"") -> 2021-12-31 | F40: =IFERROR(IF(INDEX('LHD Overview'!$A$6:$CK$93,(MATCH($A$3,'LHD Overview'!$A$6:$A$93,0)),MATCH(B40,'LHD Overview'!$A$2:$CK$2,0))>0,INDEX('LHD Overview'!$A$6:$CK$93,(MATCH($A$3,'LHD Overview'!$A$6:$A$93,0)),MATCH(B40,'LHD Overview'!$A$2:$CK$2,0)),""),"") ->  | G40: =IF(B40>0,VLOOKUP(B40,Table1[],6,FALSE),"") -> 2022-02-14
A41: =IFERROR(VLOOKUP(B41,Table1[],2,FALSE),"") -> INFERTILITY PREVENTION | B41: ='Profile Overview'!B43 -> 155027 | C41: =IFERROR(IF(B41>0,(VLOOKUP(B41,Table1[],5,FALSE)+30),""),"") -> 130 | D41: =IF(B41>0,VLOOKUP(B41,Table1[],3,FALSE),"") -> 2021-01-01 | E41: =IF(B41>0,VLOOKUP(B41,Table1[],4,FALSE),"") -> 2021-12-31 | F41: =IFERROR(IF(INDEX('LHD Overview'!$A$6:$CK$93,(MATCH($A$3,'LHD Overview'!$A$6:$A$93,0)),MATCH(B41,'LHD Overview'!$A$2:$CK$2,0))>0,INDEX('LHD Overview'!$A$6:$CK$93,(MATCH($A$3,'LHD Overview'!$A$6:$A$93,0)),MATCH(B41,'LHD Overview'!$A$2:$CK$2,0)),""),"") ->  | G41: =IF(B41>0,VLOOKUP(B41,Table1[],6,FALSE),"") -> 2022-02-14
A42: =IFERROR(VLOOKUP(B42,Table1[],2,FALSE),"") -> WH/FP RH 20.435 (1)(EV) | B42: ='Profile Overview'!B44 -> 159322 | C42: =IFERROR(IF(B42>0,(VLOOKUP(B42,Table1[],5,FALSE)+30),""),"") -> 130 | D42: =IF(B42>0,VLOOKUP(B42,Table1[],3,FALSE),"") -> 2021-01-01 | E42: =IF(B42>0,VLOOKUP(B42,Table1[],4,FALSE),"") -> 2021-12-31 | F42: =IFERROR(IF(INDEX('LHD Overview'!$A$6:$CK$93,(MATCH($A$3,'LHD Overview'!$A$6:$A$93,0)),MATCH(B42,'LHD Overview'!$A$2:$CK$2,0))>0,INDEX('LHD Overview'!$A$6:$CK$93,(MATCH($A$3,'LHD Overview'!$A$6:$A$93,0)),MATCH(B42,'LHD Overview'!$A$2:$CK$2,0)),""),"") ->  | G42: =IF(B42>0,VLOOKUP(B42,Table1[],6,FALSE),"") -> 2022-02-14
A43: =IFERROR(VLOOKUP(B43,Table1[],2,FALSE),"") -> WH/FP RH 253.07 (4)(a) | B43: ='Profile Overview'!B45 -> 159327 | C43: =IFERROR(IF(B43>0,(VLOOKUP(B43,Table1[],5,FALSE)+30),""),"") -> 130 | D43: =IF(B43>0,VLOOKUP(B43,Table1[],3,FALSE),"") -> 2021-01-01 | E43: =IF(B43>0,VLOOKUP(B43,Table1[],4,FALSE),"") -> 2021-12-31 | F43: =IFERROR(IF(INDEX('LHD Overview'!$A$6:$CK$93,(MATCH($A$3,'LHD Overview'!$A$6:$A$93,0)),MATCH(B43,'LHD Overview'!$A$2:$CK$2,0))>0,INDEX('LHD Overview'!$A$6:$CK$93,(MATCH($A$3,'LHD Overview'!$A$6:$A$93,0)),MATCH(B43,'LHD Overview'!$A$2:$CK$2,0)),""),"") ->  | G43: =IF(B43>0,VLOOKUP(B43,Table1[],6,FALSE),"") -> 2022-02-14
A44: =IFERROR(VLOOKUP(B44,Table1[],2,FALSE),"") -> PERS RESP EDUC PROG-PREP | B44: ='Profile Overview'!B46 -> 159354 | C44: =IFERROR(IF(B44>0,(VLOOKUP(B44,Table1[],5,FALSE)+30),""),"") -> 230 | D44: =IF(B44>0,VLOOKUP(B44,Table1[],3,FALSE),"") -> 2021-04-01 | E44: =IF(B44>0,VLOOKUP(B44,Table1[],4,FALSE),"") -> 2022-03-31 | F44: =IFERROR(IF(INDEX('LHD Overview'!$A$6:$CK$93,(MATCH($A$3,'LHD Overview'!$A$6:$A$93,0)),MATCH(B44,'LHD Overview'!$A$2:$CK$2,0))>0,INDEX('LHD Overview'!$A$6:$CK$93,(MATCH($A$3,'LHD Overview'!$A$6:$A$93,0)),MATCH(B44,'LHD Overview'!$A$2:$CK$2,0)),""),"") ->  | G44: =IF(B44>0,VLOOKUP(B44,Table1[],6,FALSE),"") -> 2022-05-15
A45: =IFERROR(VLOOKUP(B45,Table1[],2,FALSE),"") -> MCH-CYSHCNHUBS | B45: ='Profile Overview'!B47 -> 191001 | C45: =IFERROR(IF(B45>0,(VLOOKUP(B45,Table1[],5,FALSE)+30),""),"") -> 130 | D45: =IF(B45>0,VLOOKUP(B45,Table1[],3,FALSE),"") -> 2021-01-01 | E45: =IF(B45>0,VLOOKUP(B45,Table1[],4,FALSE),"") -> 2021-12-31 | F45: =IFERROR(IF(INDEX('LHD Overview'!$A$6:$CK$93,(MATCH($A$3,'LHD Overview'!$A$6:$A$93,0)),MATCH(B45,'LHD Overview'!$A$2:$CK$2,0))>0,INDEX('LHD Overview'!$A$6:$CK$93,(MATCH($A$3,'LHD Overview'!$A$6:$A$93,0)),MATCH(B45,'LHD Overview'!$A$2:$CK$2,0)),""),"") ->  | G45: =IF(B45>0,VLOOKUP(B45,Table1[],6,FALSE),"") -> 2022-02-14
A46: =IFERROR(VLOOKUP(B46,Table1[],2,FALSE),"") ->  | B46: ='Profile Overview'!B48 -> 150216 | C46: =IFERROR(IF(B46>0,(VLOOKUP(B46,Table1[],5,FALSE)+30),""),"") -> 230 | D46: =IF(B46>0,VLOOKUP(B46,Table1[],3,FALSE),"") -> 2021-07-01 | E46: =IF(B46>0,VLOOKUP(B46,Table1[],4,FALSE),"") -> 2022-06-30 | F46: =IFERROR(IF(INDEX('LHD Overview'!$A$6:$CK$93,(MATCH($A$3,'LHD Overview'!$A$6:$A$93,0)),MATCH(B46,'LHD Overview'!$A$2:$CK$2,0))>0,INDEX('LHD Overview'!$A$6:$CK$93,(MATCH($A$3,'LHD Overview'!$A$6:$A$93,0)),MATCH(B46,'LHD Overview'!$A$2:$CK$2,0)),""),"") ->  | G46: =IF(B46>0,VLOOKUP(B46,Table1[],6,FALSE),"") -> 2022-08-14
A47: =IFERROR(VLOOKUP(B47,Table1[],2,FALSE),"") ->  | B47: ='Profile Overview'!B49 -> 150215 | C47: =IFERROR(IF(B47>0,(VLOOKUP(B47,Table1[],5,FALSE)+30),""),"") -> 230 | D47: =IF(B47>0,VLOOKUP(B47,Table1[],3,FALSE),"") -> 2021-07-01 | E47: =IF(B47>0,VLOOKUP(B47,Table1[],4,FALSE),"") -> 2022-06-30 | F47: =IFERROR(IF(INDEX('LHD Overview'!$A$6:$CK$93,(MATCH($A$3,'LHD Overview'!$A$6:$A$93,0)),MATCH(B47,'LHD Overview'!$A$2:$CK$2,0))>0,INDEX('LHD Overview'!$A$6:$CK$93,(MATCH($A$3,'LHD Overview'!$A$6:$A$93,0)),MATCH(B47,'LHD Overview'!$A$2:$CK$2,0)),""),"") ->  | G47: =IF(B47>0,VLOOKUP(B47,Table1[],6,FALSE),"") -> 2022-08-14
A48: =IFERROR(VLOOKUP(B48,Table1[],2,FALSE),"") -> INFANT MORTALITY-RACINE | B48: ='Profile Overview'!B50 -> 110190 | C48: =IFERROR(IF(B48>0,(VLOOKUP(B48,Table1[],5,FALSE)+30),""),"") -> 130 | D48: =IF(B48>0,VLOOKUP(B48,Table1[],3,FALSE),"") -> 2021-01-01 | E48: =IF(B48>0,VLOOKUP(B48,Table1[],4,FALSE),"") -> 2021-12-31 | F48: =IFERROR(IF(INDEX('LHD Overview'!$A$6:$CK$93,(MATCH($A$3,'LHD Overview'!$A$6:$A$93,0)),MATCH(B48,'LHD Overview'!$A$2:$CK$2,0))>0,INDEX('LHD Overview'!$A$6:$CK$93,(MATCH($A$3,'LHD Overview'!$A$6:$A$93,0)),MATCH(B48,'LHD Overview'!$A$2:$CK$2,0)),""),"") ->  | G48: =IF(B48>0,VLOOKUP(B48,Table1[],6,FALSE),"") -> 2022-02-14
A49: =IFERROR(VLOOKUP(B49,Table1[],2,FALSE),"") ->  | B49: ='Profile Overview'!B51 -> 0 | C49: =IFERROR(IF(B49>0,(VLOOKUP(B49,Table1[],5,FALSE)+30),""),"") ->  | D49: =IF(B49>0,VLOOKUP(B49,Table1[],3,FALSE),"") ->  | E49: =IF(B49>0,VLOOKUP(B49,Table1[],4,FALSE),"") ->  | F49: =IFERROR(IF(INDEX('LHD Overview'!$A$6:$CK$93,(MATCH($A$3,'LHD Overview'!$A$6:$A$93,0)),MATCH(B49,'LHD Overview'!$A$2:$CK$2,0))>0,INDEX('LHD Overview'!$A$6:$CK$93,(MATCH($A$3,'LHD Overview'!$A$6:$A$93,0)),MATCH(B49,'LHD Overview'!$A$2:$CK$2,0)),""),"") ->  | G49: =IF(B49>0,VLOOKUP(B49,Table1[],6,FALSE),"") -> 
A50: =IFERROR(VLOOKUP(B50,Table1[],2,FALSE),"") ->  | B50: ='Profile Overview'!B52 -> 0 | C50: =IFERROR(IF(B50>0,(VLOOKUP(B50,Table1[],5,FALSE)+30),""),"") ->  | D50: =IF(B50>0,VLOOKUP(B50,Table1[],3,FALSE),"") ->  | E50: =IF(B50>0,VLOOKUP(B50,Table1[],4,FALSE),"") ->  | F50: =IFERROR(IF(INDEX('LHD Overview'!$A$6:$CK$93,(MATCH($A$3,'LHD Overview'!$A$6:$A$93,0)),MATCH(B50,'LHD Overview'!$A$2:$CK$2,0))>0,INDEX('LHD Overview'!$A$6:$CK$93,(MATCH($A$3,'LHD Overview'!$A$6:$A$93,0)),MATCH(B50,'LHD Overview'!$A$2:$CK$2,0)),""),"") ->  | G50: =IF(B50>0,VLOOKUP(B50,Table1[],6,FALSE),"") -> 
A51: =IFERROR(VLOOKUP(B51,Table1[],2,FALSE),"") ->  | B51: ='Profile Overview'!B53 -> 0 | C51: =IFERROR(IF(B51>0,(VLOOKUP(B51,Table1[],5,FALSE)+30),""),"") ->  | D51: =IF(B51>0,VLOOKUP(B51,Table1[],3,FALSE),"") ->  | E51: =IF(B51>0,VLOOKUP(B51,Table1[],4,FALSE),"") ->  | F51: =IFERROR(IF(INDEX('LHD Overview'!$A$6:$CK$93,(MATCH($A$3,'LHD Overview'!$A$6:$A$93,0)),MATCH(B51,'LHD Overview'!$A$2:$CK$2,0))>0,INDEX('LHD Overview'!$A$6:$CK$93,(MATCH($A$3,'LHD Overview'!$A$6:$A$93,0)),MATCH(B51,'LHD Overview'!$A$2:$CK$2,0)),""),"") ->  | G51: =IF(B51>0,VLOOKUP(B51,Table1[],6,FALSE),"") -> 
A52: =IFERROR(VLOOKUP(B52,Table1[],2,FALSE),"") ->  | B52: ='Profile Overview'!B54 -> 0 | C52: =IFERROR(IF(B52>0,(VLOOKUP(B52,Table1[],5,FALSE)+30),""),"") ->  | D52: =IF(B52>0,VLOOKUP(B52,Table1[],3,FALSE),"") ->  | E52: =IF(B52>0,VLOOKUP(B52,Table1[],4,FALSE),"") ->  | F52: =IFERROR(IF(INDEX('LHD Overview'!$A$6:$CK$93,(MATCH($A$3,'LHD Overview'!$A$6:$A$93,0)),MATCH(B52,'LHD Overview'!$A$2:$CK$2,0))>0,INDEX('LHD Overview'!$A$6:$CK$93,(MATCH($A$3,'LHD Overview'!$A$6:$A$93,0)),MATCH(B52,'LHD Overview'!$A$2:$CK$2,0)),""),"") ->  | G52: =IF(B52>0,VLOOKUP(B52,Table1[],6,FALSE),"") -> 
A53: =IFERROR(VLOOKUP(B53,Table1[],2,FALSE),"") ->  | B53: ='Profile Overview'!B55 -> 0 | C53: =IFERROR(IF(B53>0,(VLOOKUP(B53,Table1[],5,FALSE)+30),""),"") ->  | D53: =IF(B53>0,VLOOKUP(B53,Table1[],3,FALSE),"") ->  | E53: =IF(B53>0,VLOOKUP(B53,Table1[],4,FALSE),"") ->  | F53: =IFERROR(IF(INDEX('LHD Overview'!$A$6:$CK$93,(MATCH($A$3,'LHD Overview'!$A$6:$A$93,0)),MATCH(B53,'LHD Overview'!$A$2:$CK$2,0))>0,INDEX('LHD Overview'!$A$6:$CK$93,(MATCH($A$3,'LHD Overview'!$A$6:$A$93,0)),MATCH(B53,'LHD Overview'!$A$2:$CK$2,0)),""),"") ->  | G53: =IF(B53>0,VLOOKUP(B53,Table1[],6,FALSE),"") -> 
A54: =IFERROR(VLOOKUP(B54,Table1[],2,FALSE),"") ->  | B54: ='Profile Overview'!B56 -> 0 | C54: =IFERROR(IF(B54>0,(VLOOKUP(B54,Table1[],5,FALSE)+30),""),"") ->  | D54: =IF(B54>0,VLOOKUP(B54,Table1[],3,FALSE),"") ->  | E54: =IF(B54>0,VLOOKUP(B54,Table1[],4,FALSE),"") ->  | F54: =IFERROR(IF(INDEX('LHD Overview'!$A$6:$CK$93,(MATCH($A$3,'LHD Overview'!$A$6:$A$93,0)),MATCH(B54,'LHD Overview'!$A$2:$CK$2,0))>0,INDEX('LHD Overview'!$A$6:$CK$93,(MATCH($A$3,'LHD Overview'!$A$6:$A$93,0)),MATCH(B54,'LHD Overview'!$A$2:$CK$2,0)),""),"") ->  | G54: =IF(B54>0,VLOOKUP(B54,Table1[],6,FALSE),"") -> 
A55: =IFERROR(VLOOKUP(B55,Table1[],2,FALSE),"") ->  | B55: ='Profile Overview'!B57 -> 0 | C55: =IFERROR(IF(B55>0,(VLOOKUP(B55,Table1[],5,FALSE)+30),""),"") ->  | D55: =IF(B55>0,VLOOKUP(B55,Table1[],3,FALSE),"") ->  | E55: =IF(B55>0,VLOOKUP(B55,Table1[],4,FALSE),"") ->  | F55: =IFERROR(IF(INDEX('LHD Overview'!$A$6:$CK$93,(MATCH($A$3,'LHD Overview'!$A$6:$A$93,0)),MATCH(B55,'LHD Overview'!$A$2:$CK$2,0))>0,INDEX('LHD Overview'!$A$6:$CK$93,(MATCH($A$3,'LHD Overview'!$A$6:$A$93,0)),MATCH(B55,'LHD Overview'!$A$2:$CK$2,0)),""),"") ->  | G55: =IF(B55>0,VLOOKUP(B55,Table1[],6,FALSE),"") -> 
A56: =IFERROR(VLOOKUP(B56,Table1[],2,FALSE),"") ->  | B56: ='Profile Overview'!B58 -> 0 | C56: =IFERROR(IF(B56>0,(VLOOKUP(B56,Table1[],5,FALSE)+30),""),"") ->  | D56: =IF(B56>0,VLOOKUP(B56,Table1[],3,FALSE),"") ->  | E56: =IF(B56>0,VLOOKUP(B56,Table1[],4,FALSE),"") ->  | F56: =IFERROR(IF(INDEX('LHD Overview'!$A$6:$CK$93,(MATCH($A$3,'LHD Overview'!$A$6:$A$93,0)),MATCH(B56,'LHD Overview'!$A$2:$CK$2,0))>0,INDEX('LHD Overview'!$A$6:$CK$93,(MATCH($A$3,'LHD Overview'!$A$6:$A$93,0)),MATCH(B56,'LHD Overview'!$A$2:$CK$2,0)),""),"") ->  | G56: =IF(B56>0,VLOOKUP(B56,Table1[],6,FALSE),"") -> 
A57: =IFERROR(VLOOKUP(B57,Table1[],2,FALSE),"") ->  | B57: ='Profile Overview'!B59 -> 0 | C57: =IFERROR(IF(B57>0,(VLOOKUP(B57,Table1[],5,FALSE)+30),""),"") ->  | D57: =IF(B57>0,VLOOKUP(B57,Table1[],3,FALSE),"") ->  | E57: =IF(B57>0,VLOOKUP(B57,Table1[],4,FALSE),"") ->  | F57: =IFERROR(IF(INDEX('LHD Overview'!$A$6:$CK$93,(MATCH($A$3,'LHD Overview'!$A$6:$A$93,0)),MATCH(B57,'LHD Overview'!$A$2:$CK$2,0))>0,INDEX('LHD Overview'!$A$6:$CK$93,(MATCH($A$3,'LHD Overview'!$A$6:$A$93,0)),MATCH(B57,'LHD Overview'!$A$2:$CK$2,0)),""),"") ->  | G57: =IF(B57>0,VLOOKUP(B57,Table1[],6,FALSE),"") -> 
A58: =IFERROR(VLOOKUP(B58,Table1[],2,FALSE),"") ->  | B58: ='Profile Overview'!B60 -> 0 | C58: =IFERROR(IF(B58>0,(VLOOKUP(B58,Table1[],5,FALSE)+30),""),"") ->  | D58: =IF(B58>0,VLOOKUP(B58,Table1[],3,FALSE),"") ->  | E58: =IF(B58>0,VLOOKUP(B58,Table1[],4,FALSE),"") ->  | F58: =IFERROR(IF(INDEX('LHD Overview'!$A$6:$CK$93,(MATCH($A$3,'LHD Overview'!$A$6:$A$93,0)),MATCH(B58,'LHD Overview'!$A$2:$CK$2,0))>0,INDEX('LHD Overview'!$A$6:$CK$93,(MATCH($A$3,'LHD Overview'!$A$6:$A$93,0)),MATCH(B58,'LHD Overview'!$A$2:$CK$2,0)),""),"") ->  | G58: =IF(B58>0,VLOOKUP(B58,Table1[],6,FALSE),"") -> 
A59: =IFERROR(VLOOKUP(B59,Table1[],2,FALSE),"") ->  | B59: ='Profile Overview'!B61 -> 0 | C59: =IFERROR(IF(B59>0,(VLOOKUP(B59,Table1[],5,FALSE)+30),""),"") ->  | D59: =IF(B59>0,VLOOKUP(B59,Table1[],3,FALSE),"") ->  | E59: =IF(B59>0,VLOOKUP(B59,Table1[],4,FALSE),"") ->  | F59: =IFERROR(IF(INDEX('LHD Overview'!$A$6:$CK$93,(MATCH($A$3,'LHD Overview'!$A$6:$A$93,0)),MATCH(B59,'LHD Overview'!$A$2:$CK$2,0))>0,INDEX('LHD Overview'!$A$6:$CK$93,(MATCH($A$3,'LHD Overview'!$A$6:$A$93,0)),MATCH(B59,'LHD Overview'!$A$2:$CK$2,0)),""),"") ->  | G59: =IF(B59>0,VLOOKUP(B59,Table1[],6,FALSE),"") -> 
A60: =IFERROR(VLOOKUP(B60,Table1[],2,FALSE),"") ->  | B60: ='Profile Overview'!B62 -> 0 | C60: =IFERROR(IF(B60>0,(VLOOKUP(B60,Table1[],5,FALSE)+30),""),"") ->  | D60: =IF(B60>0,VLOOKUP(B60,Table1[],3,FALSE),"") ->  | E60: =IF(B60>0,VLOOKUP(B60,Table1[],4,FALSE),"") ->  | F60: =IFERROR(IF(INDEX('LHD Overview'!$A$6:$CK$93,(MATCH($A$3,'LHD Overview'!$A$6:$A$93,0)),MATCH(B60,'LHD Overview'!$A$2:$CK$2,0))>0,INDEX('LHD Overview'!$A$6:$CK$93,(MATCH($A$3,'LHD Overview'!$A$6:$A$93,0)),MATCH(B60,'LHD Overview'!$A$2:$CK$2,0)),""),"") ->  | G60: =IF(B60>0,VLOOKUP(B60,Table1[],6,FALSE),"") -> 
A61: =IFERROR(VLOOKUP(B61,Table1[],2,FALSE),"") ->  | B61: ='Profile Overview'!B63 -> 0 | C61: =IFERROR(IF(B61>0,(VLOOKUP(B61,Table1[],5,FALSE)+30),""),"") ->  | D61: =IF(B61>0,VLOOKUP(B61,Table1[],3,FALSE),"") ->  | E61: =IF(B61>0,VLOOKUP(B61,Table1[],4,FALSE),"") ->  | F61: =IFERROR(IF(INDEX('LHD Overview'!$A$6:$CK$93,(MATCH($A$3,'LHD Overview'!$A$6:$A$93,0)),MATCH(B61,'LHD Overview'!$A$2:$CK$2,0))>0,INDEX('LHD Overview'!$A$6:$CK$93,(MATCH($A$3,'LHD Overview'!$A$6:$A$93,0)),MATCH(B61,'LHD Overview'!$A$2:$CK$2,0)),""),"") ->  | G61: =IF(B61>0,VLOOKUP(B61,Table1[],6,FALSE),"") -> 
A62: =IFERROR(VLOOKUP(B62,Table1[],2,FALSE),"") ->  | B62: ='Profile Overview'!B64 -> 0 | C62: =IFERROR(IF(B62>0,(VLOOKUP(B62,Table1[],5,FALSE)+30),""),"") ->  | D62: =IF(B62>0,VLOOKUP(B62,Table1[],3,FALSE),"") ->  | E62: =IF(B62>0,VLOOKUP(B62,Table1[],4,FALSE),"") ->  | F62: =IFERROR(IF(INDEX('LHD Overview'!$A$6:$CK$93,(MATCH($A$3,'LHD Overview'!$A$6:$A$93,0)),MATCH(B62,'LHD Overview'!$A$2:$CK$2,0))>0,INDEX('LHD Overview'!$A$6:$CK$93,(MATCH($A$3,'LHD Overview'!$A$6:$A$93,0)),MATCH(B62,'LHD Overview'!$A$2:$CK$2,0)),""),"") ->  | G62: =IF(B62>0,VLOOKUP(B62,Table1[],6,FALSE),"") -> 
A63: =IFERROR(VLOOKUP(B63,Table1[],2,FALSE),"") ->  | B63: ='Profile Overview'!B65 -> 0 | C63: =IFERROR(IF(B63>0,(VLOOKUP(B63,Table1[],5,FALSE)+30),""),"") ->  | D63: =IF(B63>0,VLOOKUP(B63,Table1[],3,FALSE),"") ->  | E63: =IF(B63>0,VLOOKUP(B63,Table1[],4,FALSE),"") ->  | F63: =IFERROR(IF(INDEX('LHD Overview'!$A$6:$CK$93,(MATCH($A$3,'LHD Overview'!$A$6:$A$93,0)),MATCH(B63,'LHD Overview'!$A$2:$CK$2,0))>0,INDEX('LHD Overview'!$A$6:$CK$93,(MATCH($A$3,'LHD Overview'!$A$6:$A$93,0)),MATCH(B63,'LHD Overview'!$A$2:$CK$2,0)),""),"") ->  | G63: =IF(B63>0,VLOOKUP(B63,Table1[],6,FALSE),"") -> 
A64: =IFERROR(VLOOKUP(B64,Table1[],2,FALSE),"") ->  | B64: ='Profile Overview'!B66 -> 0 | C64: =IFERROR(IF(B64>0,(VLOOKUP(B64,Table1[],5,FALSE)+30),""),"") ->  | D64: =IF(B64>0,VLOOKUP(B64,Table1[],3,FALSE),"") ->  | E64: =IF(B64>0,VLOOKUP(B64,Table1[],4,FALSE),"") ->  | F64: =IFERROR(IF(INDEX('LHD Overview'!$A$6:$CK$93,(MATCH($A$3,'LHD Overview'!$A$6:$A$93,0)),MATCH(B64,'LHD Overview'!$A$2:$CK$2,0))>0,INDEX('LHD Overview'!$A$6:$CK$93,(MATCH($A$3,'LHD Overview'!$A$6:$A$93,0)),MATCH(B64,'LHD Overview'!$A$2:$CK$2,0)),""),"") ->  | G64: =IF(B64>0,VLOOKUP(B64,Table1[],6,FALSE),"") -> 
A65: =IFERROR(VLOOKUP(B65,Table1[],2,FALSE),"") ->  | B65: ='Profile Overview'!B67 -> 0 | C65: =IFERROR(IF(B65>0,(VLOOKUP(B65,Table1[],5,FALSE)+30),""),"") ->  | D65: =IF(B65>0,VLOOKUP(B65,Table1[],3,FALSE),"") ->  | E65: =IF(B65>0,VLOOKUP(B65,Table1[],4,FALSE),"") ->  | F65: =IFERROR(IF(INDEX('LHD Overview'!$A$6:$CK$93,(MATCH($A$3,'LHD Overview'!$A$6:$A$93,0)),MATCH(B65,'LHD Overview'!$A$2:$CK$2,0))>0,INDEX('LHD Overview'!$A$6:$CK$93,(MATCH($A$3,'LHD Overview'!$A$6:$A$93,0)),MATCH(B65,'LHD Overview'!$A$2:$CK$2,0)),""),"") ->  | G65: =IF(B65>0,VLOOKUP(B65,Table1[],6,FALSE),"") -> 
A66: =IFERROR(VLOOKUP(B66,Table1[],2,FALSE),"") ->  | B66: ='Profile Overview'!B68 -> 0 | C66: =IFERROR(IF(B66>0,(VLOOKUP(B66,Table1[],5,FALSE)+30),""),"") ->  | D66: =IF(B66>0,VLOOKUP(B66,Table1[],3,FALSE),"") ->  | E66: =IF(B66>0,VLOOKUP(B66,Table1[],4,FALSE),"") ->  | F66: =IFERROR(IF(INDEX('LHD Overview'!$A$6:$CK$93,(MATCH($A$3,'LHD Overview'!$A$6:$A$93,0)),MATCH(B66,'LHD Overview'!$A$2:$CK$2,0))>0,INDEX('LHD Overview'!$A$6:$CK$93,(MATCH($A$3,'LHD Overview'!$A$6:$A$93,0)),MATCH(B66,'LHD Overview'!$A$2:$CK$2,0)),""),"") ->  | G66: =IF(B66>0,VLOOKUP(B66,Table1[],6,FALSE),"") -> 
A67: =IFERROR(VLOOKUP(B67,Table1[],2,FALSE),"") ->  | B67: ='Profile Overview'!B69 -> 0 | C67: =IFERROR(IF(B67>0,(VLOOKUP(B67,Table1[],5,FALSE)+30),""),"") ->  | D67: =IF(B67>0,VLOOKUP(B67,Table1[],3,FALSE),"") ->  | E67: =IF(B67>0,VLOOKUP(B67,Table1[],4,FALSE),"") ->  | F67: =IFERROR(IF(INDEX('LHD Overview'!$A$6:$CK$93,(MATCH($A$3,'LHD Overview'!$A$6:$A$93,0)),MATCH(B67,'LHD Overview'!$A$2:$CK$2,0))>0,INDEX('LHD Overview'!$A$6:$CK$93,(MATCH($A$3,'LHD Overview'!$A$6:$A$93,0)),MATCH(B67,'LHD Overview'!$A$2:$CK$2,0)),""),"") ->  | G67: =IF(B67>0,VLOOKUP(B67,Table1[],6,FALSE),"") -> 
A68: =IFERROR(VLOOKUP(B68,Table1[],2,FALSE),"") ->  | B68: ='Profile Overview'!B70 -> 0 | C68: =IFERROR(IF(B68>0,(VLOOKUP(B68,Table1[],5,FALSE)+30),""),"") ->  | D68: =IF(B68>0,VLOOKUP(B68,Table1[],3,FALSE),"") ->  | E68: =IF(B68>0,VLOOKUP(B68,Table1[],4,FALSE),"") ->  | F68: =IFERROR(IF(INDEX('LHD Overview'!$A$6:$CK$93,(MATCH($A$3,'LHD Overview'!$A$6:$A$93,0)),MATCH(B68,'LHD Overview'!$A$2:$CK$2,0))>0,INDEX('LHD Overview'!$A$6:$CK$93,(MATCH($A$3,'LHD Overview'!$A$6:$A$93,0)),MATCH(B68,'LHD Overview'!$A$2:$CK$2,0)),""),"") ->  | G68: =IF(B68>0,VLOOKUP(B68,Table1[],6,FALSE),"") -> 
A69: =IFERROR(VLOOKUP(B69,Table1[],2,FALSE),"") ->  | B69: ='Profile Overview'!B71 -> 0 | C69: =IFERROR(IF(B69>0,(VLOOKUP(B69,Table1[],5,FALSE)+30),""),"") ->  | D69: =IF(B69>0,VLOOKUP(B69,Table1[],3,FALSE),"") ->  | E69: =IF(B69>0,VLOOKUP(B69,Table1[],4,FALSE),"") ->  | F69: =IFERROR(IF(INDEX('LHD Overview'!$A$6:$CK$93,(MATCH($A$3,'LHD Overview'!$A$6:$A$93,0)),MATCH(B69,'LHD Overview'!$A$2:$CK$2,0))>0,INDEX('LHD Overview'!$A$6:$CK$93,(MATCH($A$3,'LHD Overview'!$A$6:$A$93,0)),MATCH(B69,'LHD Overview'!$A$2:$CK$2,0)),""),"") ->  | G69: =IF(B69>0,VLOOKUP(B69,Table1[],6,FALSE),"") -> 
A70: =IFERROR(VLOOKUP(B70,Table1[],2,FALSE),"") ->  | B70: ='Profile Overview'!B72 -> 0 | C70: =IFERROR(IF(B70>0,(VLOOKUP(B70,Table1[],5,FALSE)+30),""),"") ->  | D70: =IF(B70>0,VLOOKUP(B70,Table1[],3,FALSE),"") ->  | E70: =IF(B70>0,VLOOKUP(B70,Table1[],4,FALSE),"") ->  | F70: =IFERROR(IF(INDEX('LHD Overview'!$A$6:$CK$93,(MATCH($A$3,'LHD Overview'!$A$6:$A$93,0)),MATCH(B70,'LHD Overview'!$A$2:$CK$2,0))>0,INDEX('LHD Overview'!$A$6:$CK$93,(MATCH($A$3,'LHD Overview'!$A$6:$A$93,0)),MATCH(B70,'LHD Overview'!$A$2:$CK$2,0)),""),"") ->  | G70: =IF(B70>0,VLOOKUP(B70,Table1[],6,FALSE),"") -> 
A71: =IFERROR(VLOOKUP(B71,Table1[],2,FALSE),"") ->  | B71: ='Profile Overview'!B73 -> 0 | C71: =IFERROR(IF(B71>0,(VLOOKUP(B71,Table1[],5,FALSE)+30),""),"") ->  | D71: =IF(B71>0,VLOOKUP(B71,Table1[],3,FALSE),"") ->  | E71: =IF(B71>0,VLOOKUP(B71,Table1[],4,FALSE),"") ->  | F71: =IFERROR(IF(INDEX('LHD Overview'!$A$6:$CK$93,(MATCH($A$3,'LHD Overview'!$A$6:$A$93,0)),MATCH(B71,'LHD Overview'!$A$2:$CK$2,0))>0,INDEX('LHD Overview'!$A$6:$CK$93,(MATCH($A$3,'LHD Overview'!$A$6:$A$93,0)),MATCH(B71,'LHD Overview'!$A$2:$CK$2,0)),""),"") ->  | G71: =IF(B71>0,VLOOKUP(B71,Table1[],6,FALSE),"") -> 
A72: =IFERROR(VLOOKUP(B72,Table1[],2,FALSE),"") ->  | B72: ='Profile Overview'!B74 -> 0 | C72: =IFERROR(IF(B72>0,(VLOOKUP(B72,Table1[],5,FALSE)+30),""),"") ->  | D72: =IF(B72>0,VLOOKUP(B72,Table1[],3,FALSE),"") ->  | E72: =IF(B72>0,VLOOKUP(B72,Table1[],4,FALSE),"") ->  | F72: =IFERROR(IF(INDEX('LHD Overview'!$A$6:$CK$93,(MATCH($A$3,'LHD Overview'!$A$6:$A$93,0)),MATCH(B72,'LHD Overview'!$A$2:$CK$2,0))>0,INDEX('LHD Overview'!$A$6:$CK$93,(MATCH($A$3,'LHD Overview'!$A$6:$A$93,0)),MATCH(B72,'LHD Overview'!$A$2:$CK$2,0)),""),"") ->  | G72: =IF(B72>0,VLOOKUP(B72,Table1[],6,FALSE),"") -> 
A73: =IFERROR(VLOOKUP(B73,Table1[],2,FALSE),"") ->  | B73: ='Profile Overview'!B75 -> 0 | C73: =IFERROR(IF(B73>0,(VLOOKUP(B73,Table1[],5,FALSE)+30),""),"") ->  | D73: =IF(B73>0,VLOOKUP(B73,Table1[],3,FALSE),"") ->  | E73: =IF(B73>0,VLOOKUP(B73,Table1[],4,FALSE),"") ->  | F73: =IFERROR(IF(INDEX('LHD Overview'!$A$6:$CK$93,(MATCH($A$3,'LHD Overview'!$A$6:$A$93,0)),MATCH(B73,'LHD Overview'!$A$2:$CK$2,0))>0,INDEX('LHD Overview'!$A$6:$CK$93,(MATCH($A$3,'LHD Overview'!$A$6:$A$93,0)),MATCH(B73,'LHD Overview'!$A$2:$CK$2,0)),""),"") ->  | G73: =IF(B73>0,VLOOKUP(B73,Table1[],6,FALSE),"") -> 
A74: =IFERROR(VLOOKUP(B74,Table1[],2,FALSE),"") ->  | B74: ='Profile Overview'!B76 -> 0 | C74: =IFERROR(IF(B74>0,(VLOOKUP(B74,Table1[],5,FALSE)+30),""),"") ->  | D74: =IF(B74>0,VLOOKUP(B74,Table1[],3,FALSE),"") ->  | E74: =IF(B74>0,VLOOKUP(B74,Table1[],4,FALSE),"") ->  | F74: =IFERROR(IF(INDEX('LHD Overview'!$A$6:$CK$93,(MATCH($A$3,'LHD Overview'!$A$6:$A$93,0)),MATCH(B74,'LHD Overview'!$A$2:$CK$2,0))>0,INDEX('LHD Overview'!$A$6:$CK$93,(MATCH($A$3,'LHD Overview'!$A$6:$A$93,0)),MATCH(B74,'LHD Overview'!$A$2:$CK$2,0)),""),"") ->  | G74: =IF(B74>0,VLOOKUP(B74,Table1[],6,FALSE),"") -> 
A75: =IFERROR(VLOOKUP(B75,Table1[],2,FALSE),"") ->  | B75: ='Profile Overview'!B77 -> 0 | C75: =IFERROR(IF(B75>0,(VLOOKUP(B75,Table1[],5,FALSE)+30),""),"") ->  | D75: =IF(B75>0,VLOOKUP(B75,Table1[],3,FALSE),"") ->  | E75: =IF(B75>0,VLOOKUP(B75,Table1[],4,FALSE),"") ->  | F75: =IFERROR(IF(INDEX('LHD Overview'!$A$6:$CK$93,(MATCH($A$3,'LHD Overview'!$A$6:$A$93,0)),MATCH(B75,'LHD Overview'!$A$2:$CK$2,0))>0,INDEX('LHD Overview'!$A$6:$CK$93,(MATCH($A$3,'LHD Overview'!$A$6:$A$93,0)),MATCH(B75,'LHD Overview'!$A$2:$CK$2,0)),""),"") ->  | G75: =IF(B75>0,VLOOKUP(B75,Table1[],6,FALSE),"") -> 
A76: =IFERROR(VLOOKUP(B76,Table1[],2,FALSE),"") ->  | B76: ='Profile Overview'!B78 -> 0 | C76: =IFERROR(IF(B76>0,(VLOOKUP(B76,Table1[],5,FALSE)+30),""),"") ->  | D76: =IF(B76>0,VLOOKUP(B76,Table1[],3,FALSE),"") ->  | E76: =IF(B76>0,VLOOKUP(B76,Table1[],4,FALSE),"") ->  | F76: =IFERROR(IF(INDEX('LHD Overview'!$A$6:$CK$93,(MATCH($A$3,'LHD Overview'!$A$6:$A$93,0)),MATCH(B76,'LHD Overview'!$A$2:$CK$2,0))>0,INDEX('LHD Overview'!$A$6:$CK$93,(MATCH($A$3,'LHD Overview'!$A$6:$A$93,0)),MATCH(B76,'LHD Overview'!$A$2:$CK$2,0)),""),"") ->  | G76: =IF(B76>0,VLOOKUP(B76,Table1[],6,FALSE),"") -> 
A77: =IFERROR(VLOOKUP(B77,Table1[],2,FALSE),"") ->  | B77: ='Profile Overview'!B79 -> 0 | C77: =IFERROR(IF(B77>0,(VLOOKUP(B77,Table1[],5,FALSE)+30),""),"") ->  | D77: =IF(B77>0,VLOOKUP(B77,Table1[],3,FALSE),"") ->  | E77: =IF(B77>0,VLOOKUP(B77,Table1[],4,FALSE),"") ->  | F77: =IFERROR(IF(INDEX('LHD Overview'!$A$6:$CK$93,(MATCH($A$3,'LHD Overview'!$A$6:$A$93,0)),MATCH(B77,'LHD Overview'!$A$2:$CK$2,0))>0,INDEX('LHD Overview'!$A$6:$CK$93,(MATCH($A$3,'LHD Overview'!$A$6:$A$93,0)),MATCH(B77,'LHD Overview'!$A$2:$CK$2,0)),""),"") ->  | G77: =IF(B77>0,VLOOKUP(B77,Table1[],6,FALSE),"") -> 
A78: =IFERROR(VLOOKUP(B78,Table1[],2,FALSE),"") ->  | B78: ='Profile Overview'!B80 -> 0 | C78: =IFERROR(IF(B78>0,(VLOOKUP(B78,Table1[],5,FALSE)+30),""),"") ->  | D78: =IF(B78>0,VLOOKUP(B78,Table1[],3,FALSE),"") ->  | E78: =IF(B78>0,VLOOKUP(B78,Table1[],4,FALSE),"") ->  | F78: =IFERROR(IF(INDEX('LHD Overview'!$A$6:$CK$93,(MATCH($A$3,'LHD Overview'!$A$6:$A$93,0)),MATCH(B78,'LHD Overview'!$A$2:$CK$2,0))>0,INDEX('LHD Overview'!$A$6:$CK$93,(MATCH($A$3,'LHD Overview'!$A$6:$A$93,0)),MATCH(B78,'LHD Overview'!$A$2:$CK$2,0)),""),"") ->  | G78: =IF(B78>0,VLOOKUP(B78,Table1[],6,FALSE),"") -> 
A79: =IFERROR(VLOOKUP(B79,Table1[],2,FALSE),"") ->  | B79: ='Profile Overview'!B81 -> 0 | C79: =IFERROR(IF(B79>0,(VLOOKUP(B79,Table1[],5,FALSE)+30),""),"") ->  | D79: =IF(B79>0,VLOOKUP(B79,Table1[],3,FALSE),"") ->  | E79: =IF(B79>0,VLOOKUP(B79,Table1[],4,FALSE),"") ->  | F79: =IFERROR(IF(INDEX('LHD Overview'!$A$6:$CK$93,(MATCH($A$3,'LHD Overview'!$A$6:$A$93,0)),MATCH(B79,'LHD Overview'!$A$2:$CK$2,0))>0,INDEX('LHD Overview'!$A$6:$CK$93,(MATCH($A$3,'LHD Overview'!$A$6:$A$93,0)),MATCH(B79,'LHD Overview'!$A$2:$CK$2,0)),""),"") ->  | G79: =IF(B79>0,VLOOKUP(B79,Table1[],6,FALSE),"") -> 

Sheet Ashland
A1: Back to Overview
A2: ='LHD Overview'!B1 -> 2021 DPH Consolidated Contract | F2: Total Amount | G2: =SUM(F:F) -> 1073384
A3: Ashland County Health & Human Services Department | F3: Agency Number | G3: 2
A4: Profile Name | B4: Profile | C4: Agency Type | D4: Start Date | E4: End Date | F4: Current Amount | G4: Final Fiscal Report Due Date
A5: =IFERROR(VLOOKUP(B5,Table1[],2,FALSE),"") -> CONS CONTRACTS CHHD LD | B5: ='Profile Overview'!B13 -> 157720 | C5: =IFERROR(IF(B5>0,(VLOOKUP(B5,Table1[],5,FALSE)+30),""),"") -> 230 | D5: =IF(B5>0,VLOOKUP(B5,Table1[],3,FALSE),"") -> 2021-02-01 | E5: =IF(B5>0,VLOOKUP(B5,Table1[],4,FALSE),"") -> 2022-01-31 | F5: =IFERROR(IF(INDEX('LHD Overview'!$A$6:$CK$93,(MATCH($A$3,'LHD Overview'!$A$6:$A$93,0)),MATCH(B5,'LHD Overview'!$A$2:$CK$2,0))>0,INDEX('LHD Overview'!$A$6:$CK$93,(MATCH($A$3,'LHD Overview'!$A$6:$A$93,0)),MATCH(B5,'LHD Overview'!$A$2:$CK$2,0)),""),"") -> 4221 | G5: =IF(B5>0,VLOOKUP(B5,Table1[],6,FALSE),"") -> 2022-03-17
A6: =IFERROR(VLOOKUP(B6,Table1[],2,FALSE),"") -> CONS CONTRACTS PHHS | B6: ='Profile Overview'!B42 -> 159220 | C6: =IFERROR(IF(B6>0,(VLOOKUP(B6,Table1[],5,FALSE)+30),""),"") -> 130 | D6: =IF(B6>0,VLOOKUP(B6,Table1[],3,FALSE),"") -> 2021-01-01 | E6: =IF(B6>0,VLOOKUP(B6,Table1[],4,FALSE),"") -> 2021-12-31 | F6: =IFERROR(IF(INDEX('LHD Overview'!$A$6:$CK$93,(MATCH($A$3,'LHD Overview'!$A$6:$A$93,0)),MATCH(B6,'LHD Overview'!$A$2:$CK$2,0))>0,INDEX('LHD Overview'!$A$6:$CK$93,(MATCH($A$3,'LHD Overview'!$A$6:$A$93,0)),MATCH(B6,'LHD Overview'!$A$2:$CK$2,0)),""),"") -> 5560 | G6: =IF(B6>0,VLOOKUP(B6,Table1[],6,FALSE),"") -> 2022-02-14
A7: =IFERROR(VLOOKUP(B7,Table1[],2,FALSE),"") -> WH/FP RH 20.435 (1)(EV) | B7: ='Profile Overview'!B44 -> 159322 | C7: =IFERROR(IF(B7>0,(VLOOKUP(B7,Table1[],5,FALSE)+30),""),"") -> 130 | D7: =IF(B7>0,VLOOKUP(B7,Table1[],3,FALSE),"") -> 2021-01-01 | E7: =IF(B7>0,VLOOKUP(B7,Table1[],4,FALSE),"") -> 2021-12-31 | F7: =IFERROR(IF(INDEX('LHD Overview'!$A$6:$CK$93,(MATCH($A$3,'LHD Overview'!$A$6:$A$93,0)),MATCH(B7,'LHD Overview'!$A$2:$CK$2,0))>0,INDEX('LHD Overview'!$A$6:$CK$93,(MATCH($A$3,'LHD Overview'!$A$6:$A$93,0)),MATCH(B7,'LHD Overview'!$A$2:$CK$2,0)),""),"") -> 6033 | G7: =IF(B7>0,VLOOKUP(B7,Table1[],6,FALSE),"") -> 2022-02-14
A8: =IFERROR(VLOOKUP(B8,Table1[],2,FALSE),"") -> CONS CONTRACTS IMM | B8: ='Profile Overview'!B27 -> 155020 | C8: =IFERROR(IF(B8>0,(VLOOKUP(B8,Table1[],5,FALSE)+30),""),"") -> 130 | D8: =IF(B8>0,VLOOKUP(B8,Table1[],3,FALSE),"") -> 2021-01-01 | E8: =IF(B8>0,VLOOKUP(B8,Table1[],4,FALSE),"") -> 2021-12-31 | F8: =IFERROR(IF(INDEX('LHD Overview'!$A$6:$CK$93,(MATCH($A$3,'LHD Overview'!$A$6:$A$93,0)),MATCH(B8,'LHD Overview'!$A$2:$CK$2,0))>0,INDEX('LHD Overview'!$A$6:$CK$93,(MATCH($A$3,'LHD Overview'!$A$6:$A$93,0)),MATCH(B8,'LHD Overview'!$A$2:$CK$2,0)),""),"") -> 6844 | G8: =IF(B8>0,VLOOKUP(B8,Table1[],6,FALSE),"") -> 2022-02-14
A9: =IFERROR(VLOOKUP(B9,Table1[],2,FALSE),"") -> PH Workforce | B9: ='Profile Overview'!B35 -> 159320 | C9: =IFERROR(IF(B9>0,(VLOOKUP(B9,Table1[],5,FALSE)+30),""),"") -> 330 | D9: =IF(B9>0,VLOOKUP(B9,Table1[],3,FALSE),"") -> 2021-07-01 | E9: =IF(B9>0,VLOOKUP(B9,Table1[],4,FALSE),"") -> 2023-06-30 | F9: =IFERROR(IF(INDEX('LHD Overview'!$A$6:$CK$93,(MATCH($A$3,'LHD Overview'!$A$6:$A$93,0)),MATCH(B9,'LHD Overview'!$A$2:$CK$2,0))>0,INDEX('LHD Overview'!$A$6:$CK$93,(MATCH($A$3,'LHD Overview'!$A$6:$A$93,0)),MATCH(B9,'LHD Overview'!$A$2:$CK$2,0)),""),"") -> 11607 | G9: =IF(B9>0,VLOOKUP(B9,Table1[],6,FALSE),"") -> 2023-08-14
A10: =IFERROR(VLOOKUP(B10,Table1[],2,FALSE),"") -> TITLE X SERVICES | B10: ='Profile Overview'!B38 -> 159328 | C10: =IFERROR(IF(B10>0,(VLOOKUP(B10,Table1[],5,FALSE)+30),""),"") -> 230 | D10: =IF(B10>0,VLOOKUP(B10,Table1[],3,FALSE),"") -> 2021-07-01 | E10: =IF(B10>0,VLOOKUP(B10,Table1[],4,FALSE),"") -> 2022-06-30 | F10: =IFERROR(IF(INDEX('LHD Overview'!$A$6:$CK$93,(MATCH($A$3,'LHD Overview'!$A$6:$A$93,0)),MATCH(B10,'LHD Overview'!$A$2:$CK$2,0))>0,INDEX('LHD Overview'!$A$6:$CK$93,(MATCH($A$3,'LHD Overview'!$A$6:$A$93,0)),MATCH(B10,'LHD Overview'!$A$2:$CK$2,0)),""),"") -> 15000 | G10: =IF(B10>0,VLOOKUP(B10,Table1[],6,FALSE),"") -> 2022-08-14
A11: =IFERROR(VLOOKUP(B11,Table1[],2,FALSE),"") -> WH/FP RH 253.07 GPR | B11: ='Profile Overview'!B9 -> 159317 | C11: =IFERROR(IF(B11>0,(VLOOKUP(B11,Table1[],5,FALSE)+30),""),"") ->  | D11: =IF(B11>0,VLOOKUP(B11,Table1[],3,FALSE),"") -> 00:00:00 | E11: =IF(B11>0,VLOOKUP(B11,Table1[],4,FALSE),"") -> 00:00:00 | F11: =IFERROR(IF(INDEX('LHD Overview'!$A$6:$CK$93,(MATCH($A$3,'LHD Overview'!$A$6:$A$93,0)),MATCH(B11,'LHD Overview'!$A$2:$CK$2,0))>0,INDEX('LHD Overview'!$A$6:$CK$93,(MATCH($A$3,'LHD Overview'!$A$6:$A$93,0)),MATCH(B11,'LHD Overview'!$A$2:$CK$2,0)),""),"") -> 35890 | G11: =IF(B11>0,VLOOKUP(B11,Table1[],6,FALSE),"") -> 
A12: =IFERROR(VLOOKUP(B12,Table1[],2,FALSE),"") -> BIOT FOCUS A PLANNING | B12: ='Profile Overview'!B31 -> 155015 | C12: =IFERROR(IF(B12>0,(VLOOKUP(B12,Table1[],5,FALSE)+30),""),"") -> 230 | D12: =IF(B12>0,VLOOKUP(B12,Table1[],3,FALSE),"") -> 2021-07-01 | E12: =IF(B12>0,VLOOKUP(B12,Table1[],4,FALSE),"") -> 2022-06-30 | F12: =IFERROR(IF(INDEX('LHD Overview'!$A$6:$CK$93,(MATCH($A$3,'LHD Overview'!$A$6:$A$93,0)),MATCH(B12,'LHD Overview'!$A$2:$CK$2,0))>0,INDEX('LHD Overview'!$A$6:$CK$93,(MATCH($A$3,'LHD Overview'!$A$6:$A$93,0)),MATCH(B12,'LHD Overview'!$A$2:$CK$2,0)),""),"") -> 37086 | G12: =IF(B12>0,VLOOKUP(B12,Table1[],6,FALSE),"") -> 2022-08-14
A13: =IFERROR(VLOOKUP(B13,Table1[],2,FALSE),"") ->  | B13: ='Profile Overview'!B48 -> 150216 | C13: =IFERROR(IF(B13>0,(VLOOKUP(B13,Table1[],5,FALSE)+30),""),"") -> 230 | D13: =IF(B13>0,VLOOKUP(B13,Table1[],3,FALSE),"") -> 2021-07-01 | E13: =IF(B13>0,VLOOKUP(B13,Table1[],4,FALSE),"") -> 2022-06-30 | F13: =IFERROR(IF(INDEX('LHD Overview'!$A$6:$CK$93,(MATCH($A$3,'LHD Overview'!$A$6:$A$93,0)),MATCH(B13,'LHD Overview'!$A$2:$CK$2,0))>0,INDEX('LHD Overview'!$A$6:$CK$93,(MATCH($A$3,'LHD Overview'!$A$6:$A$93,0)),MATCH(B13,'LHD Overview'!$A$2:$CK$2,0)),""),"") -> 43143 | G13: =IF(B13>0,VLOOKUP(B13,Table1[],6,FALSE),"") -> 2022-08-14
A14: =IFERROR(VLOOKUP(B14,Table1[],2,FALSE),"") ->  | B14: ='Profile Overview'!B11 -> 155809 | C14: =IFERROR(IF(B14>0,(VLOOKUP(B14,Table1[],5,FALSE)+30),""),"") -> 130 | D14: =IF(B14>0,VLOOKUP(B14,Table1[],3,FALSE),"") -> 2021-01-01 | E14: =IF(B14>0,VLOOKUP(B14,Table1[],4,FALSE),"") -> 2021-12-31 | F14: =IFERROR(IF(INDEX('LHD Overview'!$A$6:$CK$93,(MATCH($A$3,'LHD Overview'!$A$6:$A$93,0)),MATCH(B14,'LHD Overview'!$A$2:$CK$2,0))>0,INDEX('LHD Overview'!$A$6:$CK$93,(MATCH($A$3,'LHD Overview'!$A$6:$A$93,0)),MATCH(B14,'LHD Overview'!$A$2:$CK$2,0)),""),"") -> 45100 | G14: =IF(B14>0,VLOOKUP(B14,Table1[],6,FALSE),"") -> 2022-02-14
A15: =IFERROR(VLOOKUP(B15,Table1[],2,FALSE),"") ->  | B15: ='Profile Overview'!B39 -> 155812 | C15: =IFERROR(IF(B15>0,(VLOOKUP(B15,Table1[],5,FALSE)+30),""),"") -> 230 | D15: =IF(B15>0,VLOOKUP(B15,Table1[],3,FALSE),"") -> 2021-10-01 | E15: =IF(B15>0,VLOOKUP(B15,Table1[],4,FALSE),"") -> 2022-09-30 | F15: =IFERROR(IF(INDEX('LHD Overview'!$A$6:$CK$93,(MATCH($A$3,'LHD Overview'!$A$6:$A$93,0)),MATCH(B15,'LHD Overview'!$A$2:$CK$2,0))>0,INDEX('LHD Overview'!$A$6:$CK$93,(MATCH($A$3,'LHD Overview'!$A$6:$A$93,0)),MATCH(B15,'LHD Overview'!$A$2:$CK$2,0)),""),"") -> 65300 | G15: =IF(B15>0,VLOOKUP(B15,Table1[],6,FALSE),"") -> 2022-11-14
A16: =IFERROR(VLOOKUP(B16,Table1[],2,FALSE),"") -> BIOT PREPARE CRI | B16: ='Profile Overview'!B30 -> 155811 | C16: =IFERROR(IF(B16>0,(VLOOKUP(B16,Table1[],5,FALSE)+30),""),"") -> 230 | D16: =IF(B16>0,VLOOKUP(B16,Table1[],3,FALSE),"") -> 2021-07-01 | E16: =IF(B16>0,VLOOKUP(B16,Table1[],4,FALSE),"") -> 2022-06-30 | F16: =IFERROR(IF(INDEX('LHD Overview'!$A$6:$CK$93,(MATCH($A$3,'LHD Overview'!$A$6:$A$93,0)),MATCH(B16,'LHD Overview'!$A$2:$CK$2,0))>0,INDEX('LHD Overview'!$A$6:$CK$93,(MATCH($A$3,'LHD Overview'!$A$6:$A$93,0)),MATCH(B16,'LHD Overview'!$A$2:$CK$2,0)),""),"") -> 342700 | G16: =IF(B16>0,VLOOKUP(B16,Table1[],6,FALSE),"") -> 2022-08-14
A17: =IFERROR(VLOOKUP(B17,Table1[],2,FALSE),"") ->  | B17: ='Profile Overview'!B12 -> 155806 | C17: =IFERROR(IF(B17>0,(VLOOKUP(B17,Table1[],5,FALSE)+30),""),"") -> 230 | D17: =IF(B17>0,VLOOKUP(B17,Table1[],3,FALSE),"") -> 2021-07-01 | E17: =IF(B17>0,VLOOKUP(B17,Table1[],4,FALSE),"") -> 2022-06-30 | F17: =IFERROR(IF(INDEX('LHD Overview'!$A$6:$CK$93,(MATCH($A$3,'LHD Overview'!$A$6:$A$93,0)),MATCH(B17,'LHD Overview'!$A$2:$CK$2,0))>0,INDEX('LHD Overview'!$A$6:$CK$93,(MATCH($A$3,'LHD Overview'!$A$6:$A$93,0)),MATCH(B17,'LHD Overview'!$A$2:$CK$2,0)),""),"") -> 454900 | G17: =IF(B17>0,VLOOKUP(B17,Table1[],6,FALSE),"") -> 2022-08-14
A18: =IFERROR(VLOOKUP(B18,Table1[],2,FALSE),"") -> WELL WOMAN WISEWOMAN | B18: ='Profile Overview'!B8 -> 157125 | C18: =IFERROR(IF(B18>0,(VLOOKUP(B18,Table1[],5,FALSE)+30),""),"") ->  | D18: =IF(B18>0,VLOOKUP(B18,Table1[],3,FALSE),"") -> 00:00:00 | E18: =IF(B18>0,VLOOKUP(B18,Table1[],4,FALSE),"") -> 00:00:00 | F18: =IFERROR(IF(INDEX('LHD Overview'!$A$6:$CK$93,(MATCH($A$3,'LHD Overview'!$A$6:$A$93,0)),MATCH(B18,'LHD Overview'!$A$2:$CK$2,0))>0,INDEX('LHD Overview'!$A$6:$CK$93,(MATCH($A$3,'LHD Overview'!$A$6:$A$93,0)),MATCH(B18,'LHD Overview'!$A$2:$CK$2,0)),""),"") ->  | G18: =IF(B18>0,VLOOKUP(B18,Table1[],6,FALSE),"") -> 
A19: =IFERROR(VLOOKUP(B19,Table1[],2,FALSE),"") -> STATEWIDES-PERF BASED | B19: ='Profile Overview'!B10 -> 159332 | C19: =IFERROR(IF(B19>0,(VLOOKUP(B19,Table1[],5,FALSE)+30),""),"") -> 130 | D19: =IF(B19>0,VLOOKUP(B19,Table1[],3,FALSE),"") -> 2021-01-01 | E19: =IF(B19>0,VLOOKUP(B19,Table1[],4,FALSE),"") -> 2021-12-31 | F19: =IFERROR(IF(INDEX('LHD Overview'!$A$6:$CK$93,(MATCH($A$3,'LHD Overview'!$A$6:$A$93,0)),MATCH(B19,'LHD Overview'!$A$2:$CK$2,0))>0,INDEX('LHD Overview'!$A$6:$CK$93,(MATCH($A$3,'LHD Overview'!$A$6:$A$93,0)),MATCH(B19,'LHD Overview'!$A$2:$CK$2,0)),""),"") ->  | G19: =IF(B19>0,VLOOKUP(B19,Table1[],6,FALSE),"") -> 2022-02-14
A20: =IFERROR(VLOOKUP(B20,Table1[],2,FALSE),"") -> NEWBORN HEAR SCREEN-OUTRC | B20: ='Profile Overview'!B14 -> 115002 | C20: =IFERROR(IF(B20>0,(VLOOKUP(B20,Table1[],5,FALSE)+30),""),"") -> 130 | D20: =IF(B20>0,VLOOKUP(B20,Table1[],3,FALSE),"") -> 2021-01-01 | E20: =IF(B20>0,VLOOKUP(B20,Table1[],4,FALSE),"") -> 2021-12-31 | F20: =IFERROR(IF(INDEX('LHD Overview'!$A$6:$CK$93,(MATCH($A$3,'LHD Overview'!$A$6:$A$93,0)),MATCH(B20,'LHD Overview'!$A$2:$CK$2,0))>0,INDEX('LHD Overview'!$A$6:$CK$93,(MATCH($A$3,'LHD Overview'!$A$6:$A$93,0)),MATCH(B20,'LHD Overview'!$A$2:$CK$2,0)),""),"") ->  | G20: =IF(B20>0,VLOOKUP(B20,Table1[],6,FALSE),"") -> 2022-02-14
A21: =IFERROR(VLOOKUP(B21,Table1[],2,FALSE),"") -> 1815 DIABETES | B21: ='Profile Overview'!B15 -> 150426 | C21: =IFERROR(IF(B21>0,(VLOOKUP(B21,Table1[],5,FALSE)+30),""),"") -> 130 | D21: =IF(B21>0,VLOOKUP(B21,Table1[],3,FALSE),"") -> 2021-01-01 | E21: =IF(B21>0,VLOOKUP(B21,Table1[],4,FALSE),"") -> 2021-12-31 | F21: =IFERROR(IF(INDEX('LHD Overview'!$A$6:$CK$93,(MATCH($A$3,'LHD Overview'!$A$6:$A$93,0)),MATCH(B21,'LHD Overview'!$A$2:$CK$2,0))>0,INDEX('LHD Overview'!$A$6:$CK$93,(MATCH($A$3,'LHD Overview'!$A$6:$A$93,0)),MATCH(B21,'LHD Overview'!$A$2:$CK$2,0)),""),"") ->  | G21: =IF(B21>0,VLOOKUP(B21,Table1[],6,FALSE),"") -> 2022-02-14
A22: =IFERROR(VLOOKUP(B22,Table1[],2,FALSE),"") -> 1815 HEART DISEASE PREV | B22: ='Profile Overview'!B16 -> 150427 | C22: =IFERROR(IF(B22>0,(VLOOKUP(B22,Table1[],5,FALSE)+30),""),"") -> 130 | D22: =IF(B22>0,VLOOKUP(B22,Table1[],3,FALSE),"") -> 2021-01-01 | E22: =IF(B22>0,VLOOKUP(B22,Table1[],4,FALSE),"") -> 2021-12-31 | F22: =IFERROR(IF(INDEX('LHD Overview'!$A$6:$CK$93,(MATCH($A$3,'LHD Overview'!$A$6:$A$93,0)),MATCH(B22,'LHD Overview'!$A$2:$CK$2,0))>0,INDEX('LHD Overview'!$A$6:$CK$93,(MATCH($A$3,'LHD Overview'!$A$6:$A$93,0)),MATCH(B22,'LHD Overview'!$A$2:$CK$2,0)),""),"") ->  | G22: =IF(B22>0,VLOOKUP(B22,Table1[],6,FALSE),"") -> 2022-02-14
A23: =IFERROR(VLOOKUP(B23,Table1[],2,FALSE),"") -> WH/FP RH 253.07 (E) | B23: ='Profile Overview'!B17 -> 152003 | C23: =IFERROR(IF(B23>0,(VLOOKUP(B23,Table1[],5,FALSE)+30),""),"") -> 130 | D23: =IF(B23>0,VLOOKUP(B23,Table1[],3,FALSE),"") -> 2021-01-01 | E23: =IF(B23>0,VLOOKUP(B23,Table1[],4,FALSE),"") -> 2021-12-31 | F23: =IFERROR(IF(INDEX('LHD Overview'!$A$6:$CK$93,(MATCH($A$3,'LHD Overview'!$A$6:$A$93,0)),MATCH(B23,'LHD Overview'!$A$2:$CK$2,0))>0,INDEX('LHD Overview'!$A$6:$CK$93,(MATCH($A$3,'LHD Overview'!$A$6:$A$93,0)),MATCH(B23,'LHD Overview'!$A$2:$CK$2,0)),""),"") ->  | G23: =IF(B23>0,VLOOKUP(B23,Table1[],6,FALSE),"") -> 2022-02-14
A24: =IFERROR(VLOOKUP(B24,Table1[],2,FALSE),"") -> WH/FP RH 253.07 (D) | B24: ='Profile Overview'!B18 -> 152020 | C24: =IFERROR(IF(B24>0,(VLOOKUP(B24,Table1[],5,FALSE)+30),""),"") -> 130 | D24: =IF(B24>0,VLOOKUP(B24,Table1[],3,FALSE),"") -> 2021-01-01 | E24: =IF(B24>0,VLOOKUP(B24,Table1[],4,FALSE),"") -> 2021-12-31 | F24: =IFERROR(IF(INDEX('LHD Overview'!$A$6:$CK$93,(MATCH($A$3,'LHD Overview'!$A$6:$A$93,0)),MATCH(B24,'LHD Overview'!$A$2:$CK$2,0))>0,INDEX('LHD Overview'!$A$6:$CK$93,(MATCH($A$3,'LHD Overview'!$A$6:$A$93,0)),MATCH(B24,'LHD Overview'!$A$2:$CK$2,0)),""),"") ->  | G24: =IF(B24>0,VLOOKUP(B24,Table1[],6,FALSE),"") -> 2022-02-14
A25: =IFERROR(VLOOKUP(B25,Table1[],2,FALSE),"") -> TPCP COMMUNITY INTRVNS | B25: ='Profile Overview'!B19 -> 181010 | C25: =IFERROR(IF(B25>0,(VLOOKUP(B25,Table1[],5,FALSE)+30),""),"") -> 130 | D25: =IF(B25>0,VLOOKUP(B25,Table1[],3,FALSE),"") -> 2021-01-01 | E25: =IF(B25>0,VLOOKUP(B25,Table1[],4,FALSE),"") -> 2021-12-31 | F25: =IFERROR(IF(INDEX('LHD Overview'!$A$6:$CK$93,(MATCH($A$3,'LHD Overview'!$A$6:$A$93,0)),MATCH(B25,'LHD Overview'!$A$2:$CK$2,0))>0,INDEX('LHD Overview'!$A$6:$CK$93,(MATCH($A$3,'LHD Overview'!$A$6:$A$93,0)),MATCH(B25,'LHD Overview'!$A$2:$CK$2,0)),""),"") ->  | G25: =IF(B25>0,VLOOKUP(B25,Table1[],6,FALSE),"") -> 2022-02-14
A26: =IFERROR(VLOOKUP(B26,Table1[],2,FALSE),"") -> REGNL RADON INF CENTERS | B26: ='Profile Overview'!B20 -> 103010 | C26: =IFERROR(IF(B26>0,(VLOOKUP(B26,Table1[],5,FALSE)+30),""),"") -> 130 | D26: =IF(B26>0,VLOOKUP(B26,Table1[],3,FALSE),"") -> 2021-01-01 | E26: =IF(B26>0,VLOOKUP(B26,Table1[],4,FALSE),"") -> 2021-12-31 | F26: =IFERROR(IF(INDEX('LHD Overview'!$A$6:$CK$93,(MATCH($A$3,'LHD Overview'!$A$6:$A$93,0)),MATCH(B26,'LHD Overview'!$A$2:$CK$2,0))>0,INDEX('LHD Overview'!$A$6:$CK$93,(MATCH($A$3,'LHD Overview'!$A$6:$A$93,0)),MATCH(B26,'LHD Overview'!$A$2:$CK$2,0)),""),"") ->  | G26: =IF(B26>0,VLOOKUP(B26,Table1[],6,FALSE),"") -> 2022-02-14
A27: =IFERROR(VLOOKUP(B27,Table1[],2,FALSE),"") -> SNAP NUTR ED GRANT | B27: ='Profile Overview'!B21 -> 154661 | C27: =IFERROR(IF(B27>0,(VLOOKUP(B27,Table1[],5,FALSE)+30),""),"") -> 130 | D27: =IF(B27>0,VLOOKUP(B27,Table1[],3,FALSE),"") -> 2021-01-01 | E27: =IF(B27>0,VLOOKUP(B27,Table1[],4,FALSE),"") -> 2021-12-31 | F27: =IFERROR(IF(INDEX('LHD Overview'!$A$6:$CK$93,(MATCH($A$3,'LHD Overview'!$A$6:$A$93,0)),MATCH(B27,'LHD Overview'!$A$2:$CK$2,0))>0,INDEX('LHD Overview'!$A$6:$CK$93,(MATCH($A$3,'LHD Overview'!$A$6:$A$93,0)),MATCH(B27,'LHD Overview'!$A$2:$CK$2,0)),""),"") ->  | G27: =IF(B27>0,VLOOKUP(B27,Table1[],6,FALSE),"") -> 2022-02-14
A28: =IFERROR(VLOOKUP(B28,Table1[],2,FALSE),"") -> EPA INDOOR RADON SERVICES | B28: ='Profile Overview'!B22 -> 150321 | C28: =IFERROR(IF(B28>0,(VLOOKUP(B28,Table1[],5,FALSE)+30),""),"") -> 130 | D28: =IF(B28>0,VLOOKUP(B28,Table1[],3,FALSE),"") -> 2021-01-01 | E28: =IF(B28>0,VLOOKUP(B28,Table1[],4,FALSE),"") -> 2021-12-31 | F28: =IFERROR(IF(INDEX('LHD Overview'!$A$6:$CK$93,(MATCH($A$3,'LHD Overview'!$A$6:$A$93,0)),MATCH(B28,'LHD Overview'!$A$2:$CK$2,0))>0,INDEX('LHD Overview'!$A$6:$CK$93,(MATCH($A$3,'LHD Overview'!$A$6:$A$93,0)),MATCH(B28,'LHD Overview'!$A$2:$CK$2,0)),""),"") ->  | G28: =IF(B28>0,VLOOKUP(B28,Table1[],6,FALSE),"") -> 2022-02-14
A29: =IFERROR(VLOOKUP(B29,Table1[],2,FALSE),"") -> RAPE PREV AND EDUCATION | B29: ='Profile Overview'!B23 -> 155080 | C29: =IFERROR(IF(B29>0,(VLOOKUP(B29,Table1[],5,FALSE)+30),""),"") -> 130 | D29: =IF(B29>0,VLOOKUP(B29,Table1[],3,FALSE),"") -> 2021-01-01 | E29: =IF(B29>0,VLOOKUP(B29,Table1[],4,FALSE),"") -> 2021-12-31 | F29: =IFERROR(IF(INDEX('LHD Overview'!$A$6:$CK$93,(MATCH($A$3,'LHD Overview'!$A$6:$A$93,0)),MATCH(B29,'LHD Overview'!$A$2:$CK$2,0))>0,INDEX('LHD Overview'!$A$6:$CK$93,(MATCH($A$3,'LHD Overview'!$A$6:$A$93,0)),MATCH(B29,'LHD Overview'!$A$2:$CK$2,0)),""),"") ->  | G29: =IF(B29>0,VLOOKUP(B29,Table1[],6,FALSE),"") -> 2022-02-14
A30: =IFERROR(VLOOKUP(B30,Table1[],2,FALSE),"") -> HIV PREV PS & LINKAGES | B30: ='Profile Overview'!B24 -> 155072 | C30: =IFERROR(IF(B30>0,(VLOOKUP(B30,Table1[],5,FALSE)+30),""),"") -> 130 | D30: =IF(B30>0,VLOOKUP(B30,Table1[],3,FALSE),"") -> 2021-01-01 | E30: =IF(B30>0,VLOOKUP(B30,Table1[],4,FALSE),"") -> 2021-12-31 | F30: =IFERROR(IF(INDEX('LHD Overview'!$A$6:$CK$93,(MATCH($A$3,'LHD Overview'!$A$6:$A$93,0)),MATCH(B30,'LHD Overview'!$A$2:$CK$2,0))>0,INDEX('LHD Overview'!$A$6:$CK$93,(MATCH($A$3,'LHD Overview'!$A$6:$A$93,0)),MATCH(B30,'LHD Overview'!$A$2:$CK$2,0)),""),"") ->  | G30: =IF(B30>0,VLOOKUP(B30,Table1[],6,FALSE),"") -> 2022-02-14
A31: =IFERROR(VLOOKUP(B31,Table1[],2,FALSE),"") -> BIOT FOCUS A PLANNING | B31: ='Profile Overview'!B25 -> 155190 | C31: =IFERROR(IF(B31>0,(VLOOKUP(B31,Table1[],5,FALSE)+30),""),"") -> 230 | D31: =IF(B31>0,VLOOKUP(B31,Table1[],3,FALSE),"") -> 2021-07-01 | E31: =IF(B31>0,VLOOKUP(B31,Table1[],4,FALSE),"") -> 2022-06-30 | F31: =IFERROR(IF(INDEX('LHD Overview'!$A$6:$CK$93,(MATCH($A$3,'LHD Overview'!$A$6:$A$93,0)),MATCH(B31,'LHD Overview'!$A$2:$CK$2,0))>0,INDEX('LHD Overview'!$A$6:$CK$93,(MATCH($A$3,'LHD Overview'!$A$6:$A$93,0)),MATCH(B31,'LHD Overview'!$A$2:$CK$2,0)),""),"") ->  | G31: =IF(B31>0,VLOOKUP(B31,Table1[],6,FALSE),"") -> 2022-08-14
A32: =IFERROR(VLOOKUP(B32,Table1[],2,FALSE),"") -> HIV PREV PS & LINKAGES | B32: ='Profile Overview'!B26 -> 155957 | C32: =IFERROR(IF(B32>0,(VLOOKUP(B32,Table1[],5,FALSE)+30),""),"") -> 130 | D32: =IF(B32>0,VLOOKUP(B32,Table1[],3,FALSE),"") -> 2021-01-01 | E32: =IF(B32>0,VLOOKUP(B32,Table1[],4,FALSE),"") -> 2021-12-31 | F32: =IFERROR(IF(INDEX('LHD Overview'!$A$6:$CK$93,(MATCH($A$3,'LHD Overview'!$A$6:$A$93,0)),MATCH(B32,'LHD Overview'!$A$2:$CK$2,0))>0,INDEX('LHD Overview'!$A$6:$CK$93,(MATCH($A$3,'LHD Overview'!$A$6:$A$93,0)),MATCH(B32,'LHD Overview'!$A$2:$CK$2,0)),""),"") ->  | G32: =IF(B32>0,VLOOKUP(B32,Table1[],6,FALSE),"") -> 2022-02-14
A33: =IFERROR(VLOOKUP(B33,Table1[],2,FALSE),"") -> REGNL RADON INF CENTERS | B33: ='Profile Overview'!B28 -> 128010 | C33: =IFERROR(IF(B33>0,(VLOOKUP(B33,Table1[],5,FALSE)+30),""),"") -> 130 | D33: =IF(B33>0,VLOOKUP(B33,Table1[],3,FALSE),"") -> 2021-01-01 | E33: =IF(B33>0,VLOOKUP(B33,Table1[],4,FALSE),"") -> 2021-12-31 | F33: =IFERROR(IF(INDEX('LHD Overview'!$A$6:$CK$93,(MATCH($A$3,'LHD Overview'!$A$6:$A$93,0)),MATCH(B33,'LHD Overview'!$A$2:$CK$2,0))>0,INDEX('LHD Overview'!$A$6:$CK$93,(MATCH($A$3,'LHD Overview'!$A$6:$A$93,0)),MATCH(B33,'LHD Overview'!$A$2:$CK$2,0)),""),"") ->  | G33: =IF(B33>0,VLOOKUP(B33,Table1[],6,FALSE),"") -> 2022-02-14
A34: =IFERROR(VLOOKUP(B34,Table1[],2,FALSE),"") -> OPIOID RX PATHWAY PROJ | B34: ='Profile Overview'!B29 -> 150211 | C34: =IFERROR(IF(B34>0,(VLOOKUP(B34,Table1[],5,FALSE)+30),""),"") -> 230 | D34: =IF(B34>0,VLOOKUP(B34,Table1[],3,FALSE),"") -> 2021-02-01 | E34: =IF(B34>0,VLOOKUP(B34,Table1[],4,FALSE),"") -> 2022-01-31 | F34: =IFERROR(IF(INDEX('LHD Overview'!$A$6:$CK$93,(MATCH($A$3,'LHD Overview'!$A$6:$A$93,0)),MATCH(B34,'LHD Overview'!$A$2:$CK$2,0))>0,INDEX('LHD Overview'!$A$6:$CK$93,(MATCH($A$3,'LHD Overview'!$A$6:$A$93,0)),MATCH(B34,'LHD Overview'!$A$2:$CK$2,0)),""),"") ->  | G34: =IF(B34>0,VLOOKUP(B34,Table1[],6,FALSE),"") -> 2022-03-17
A35: =IFERROR(VLOOKUP(B35,Table1[],2,FALSE),"") ->  | B35: ='Profile Overview'!#REF! ->  | C35: =IFERROR(IF(B35>0,(VLOOKUP(B35,Table1[],5,FALSE)+30),""),"") ->  | D35: =IF(B35>0,VLOOKUP(B35,Table1[],3,FALSE),"") ->  | E35: =IF(B35>0,VLOOKUP(B35,Table1[],4,FALSE),"") ->  | F35: =IFERROR(IF(INDEX('LHD Overview'!$A$6:$CK$93,(MATCH($A$3,'LHD Overview'!$A$6:$A$93,0)),MATCH(B35,'LHD Overview'!$A$2:$CK$2,0))>0,INDEX('LHD Overview'!$A$6:$CK$93,(MATCH($A$3,'LHD Overview'!$A$6:$A$93,0)),MATCH(B35,'LHD Overview'!$A$2:$CK$2,0)),""),"") ->  | G35: =IF(B35>0,VLOOKUP(B35,Table1[],6,FALSE),"") -> 
